Workbook

Sheet eTable1 PwP correlations age
A1: eTable 1. Correlations between age, PD duration and important aspects of Parkinson's for People with PD
A2: N=667 | B2: Correlation between most important aspects of PD to PwP and age and PD duration
B3: PwP age | F3: PD duration
B4: r | C4: p | D4: Direction | E4: Strength | F4: r | G4: p | H4: Direction | I4: Strength | J4: Change in relative importance over time
B5: strength of relatiohship | F5: strength of relatiohship
A6: SYMPTOMS
A7: MOVEMENT | B7: 0.081 | C7: 0.035 | F7: 0.069 | G7: 0.073
A8: SLOW MOVEMENT
A9: Bradykinesia | B9: 0.103 | C9: 0.007 | D9: + | E9: weak | F9: -0.042 | G9: 0.280 | J9: More important with greater age
A10: Dexterity/fine motor | B10: -0.009 | C10: 0.813 | F10: -0.058 | G10: 0.130 | J10: Stable
A11: Loss of coordination | B11: -0.039 | C11: 0.308 | F11: -0.009 | G11: 0.809 | J11: Stable
A12: STIFFNESS
A13: Stiffness and loss of flexibility | B13: -0.041 | C13: 0.290 | F13: -0.137 | G13: <0.001 | H13: - | I13: weak | J13: Less important with longer PD duration
A14: Altered facial expressions | B14: 0.031 | C14: 0.415 | F14: 0.006 | G14: 0.884 | J14: Stable
A15: WALKING & BALANCE | B15: 0.147 | C15: <0.001 | D15: + | E15: weak | F15: 0.162 | G15: <0.001 | H15: + | I15: weak | J15: More important with greater age and longer PD duration
A16: Akinesia, freezing of gait | B16: 0.022 | C16: 0.569 | F16: 0.160 | G16: <0.001 | H16: + | I16: weak | J16: More important with longer PD duration
A17: Altered gait | B17: 0.099 | C17: 0.010 | D17: + | E17: negligible | F17: 0.112 | G17: 0.004 | H17: + | I17: weak | J17: Stable
A18: Arm swing | B18: -0.048 | C18: 0.217 | F18: -0.051 | G18: 0.183 | J18: Stable
A19: Balance | B19: 0.169 | C19: <0.001 | D19: + | E19: weak | F19: 0.086 | G19: 0.025 | H19: + | I19: negligible | J19: More important with greater age and longer PD duration
A20: Stooped or leaning posture | B20: 0.019 | C20: 0.629 | F20: 0.052 | G20: 0.179 | J20: Stable
A21: TREMOR | B21: 0.001 | C21: 0.967 | F21: -0.191 | G21: <0.001 | H21: - | I21: weak | J21: Less important with longer PD duration
A22: INVOLUNTARY MOVEMENTS | B22: -0.073 | C22: 0.057 | F22: 0.174 | G22: <0.001 | H22: + | I22: weak | J22: More important with longer PD duration
A23: Dystonia, Cramping, spasms | B23: -0.096 | C23: 0.012 | D23: - | E23: negligible | F23: 0.070 | G23: 0.070 | J23: Stable
A24: Dyskinesia*, involuntary, erratic, jerking motions | B24: -0.054 | C24: 0.157 | F24: 0.176 | G24: <0.001 | H24: + | I24: weak | J24: More important with longer PD duration
A25: Restless leg syndrome | B25: 0.076 | C25: 0.048 | D25: - | E25: negligible | F25: 0.038 | G25: 0.328 | J25: Stable
A26: COGNITIVE | B26: -0.030 | C26: 0.438 | F26: -0.020 | G26: 0.604 | J26: Stable
A27: Memory | B27: -0.014 | C27: 0.708 | F27: 0.313 | G27: 0.576 | J27: Stable
A28: Clear thinking, menatl alertness | B28: -0.030 | C28: 0.430 | F28: 0.002 | G28: 0.949 | J28: Stable
A29: Slow thinking | B29: -0.001 | C29: 0.983 | F29: -0.009 | G29: 0.807 | J29: Stable
A30: Ability to concentrate | B30: 0.018 | C30: 0.632 | F30: -0.036 | G30: 0.349 | J30: Stable
A31: Ability to multi-task | B31: -0.104 | C31: 0.007 | D31: - | E31: weak | F31: -0.057 | G31: 0.139 | J31: Less important with greater age
A32: Word finding | B32: -0.018 | C32: 0.637 | F32: 0.024 | G32: 0.525 | J32: Stable
A33: Executive function/decision making | B33: -0.019 | C33: 0.618 | F33: -0.016 | G33: 0.671 | J33: Stable
A34: Dementia | B34: - | C34: - | F34: - | G34: - | J34: Not reported
A35: PSYCHIATRIC | B35: -0.046 | C35: 0.232 | F35: -0.029 | G35: 0.446 | J35: Stable
A36: MOOD CHANGES | B36: -0.040 | C36: 0.300 | F36: -0.017 | G36: 0.655 | J36: Stable
A37: Mood changes (unspecified) | B37: -0.026 | C37: 0.499 | F37: 0.007 | G37: 0.857 | J37: Stable
A38: Low motivation/apathy | B38: 0.054 | C38: 0.162 | F38: 0.008 | G38: 0.826 | J38: Stable
A39: Depression/depressed mood | B39: -0.066 | C39: 0.088 | F39: 0.007 | G39: 0.861 | J39: Stable
A40: Anxiety | B40: -0.018 | C40: 0.632 | F40: -0.001 | G40: 0.970 | J40: Stable
A41: Irritability | B41: -0.014 | C41: 0.710 | F41: -0.057 | G41: 0.136 | J41: Stable
A42: Personality changes | B42: -0.026 | C42: 0.493 | F42: 0.035 | G42: 0.369 | J42: Stable
A43: Hallucinations | B43: 0.048 | C43: 0.209 | F43: 0.067 | G43: 0.081 | J43: Stable
A44: SENSATION | B44: -0.008 | C44: 0.842
A45: FIVE SENSES
A46: Vision problems | B46: -0.014 | C46: 0.723 | F46: 0.019 | G46: 0.620 | J46: Stable
A47: Altered sensations - Pin, needle, numbness | B47: -0.067 | C47: 0.081 | F47: -0.010 | G47: 0.794 | J47: Stable
A48: Sense of smell | B48: 0.036 | C48: 0.347 | F48: 0.012 | G48: 0.754 | J48: Stable
A49: Altered or loss taste | B49: 0.051 | C49: 0.185 | F49: -0.023 | G49: 0.548 | J49: Stable
A50: OTHER SENSATIONS
A51: Breathlessness | B51: 0.037 | C51: 0.338 | F51: 0.032 | G51: 0.399 | J51: Stable
A52: Pain | B52: -0.128 | C52: <0.001 | D52: + | E52: weak | F52: 0.024 | G52: 0.540 | J52: More important with greater age
A53: Weakness/loss of strength | B53: 0.032 | C53: 0.412 | F53: -0.054 | G53: 0.159 | J53: Stable
A54: Fatigue/loss of energy/tired | B54: 0.033 | C54: 0.390 | F54: -0.047 | G54: 0.218 | J54: Stable
A55: Restlessness | B55: 0.052 | C55: 0.175 | F55: 0.038 | G55: 0.328 | J55: Stable
A56: SLEEP
A57: SLEEP DISTURBANCES | B57: 0.079 | C57: 0.040 | D57: + | E57: negligible | F57: 0.024 | G57: 0.529 | J57: More important with greater age
A58: Impaired sleep | B58: 0.034 | C58: 0.379 | F58: 0.028 | G58: 0.464 | J58: Stable
A59: RBSD | J59: Stable
A60: Vivid dreams/ Nightmares | B60: 0.011 | C60: 0.784 | F60: 0.023 | G60: 0.552 | J60: Stable
A61: Daytime sleepiness | B61: 0.063 | C61: 0.102 | F61: 0.006 | G61: 0.876 | J61: Stable
A62: SPEECH/VOICE | B62: 0.088 | C62: 0.021 | D62: + | E62: negligible | F62: 0.107 | G62: 0.005 | H62: + | I62: weak | J62: More important with greater age and longer PD duration
A63: Altered speech | B63: 0.055 | C63: 0.156 | F63: 0.112 | G63: 0.004 | H63: + | I63: weak | J63: More important with longer PD duration
A64: Voice changes | B64: 0.022 | C64: 0.561 | F64: -0.028 | G64: 0.463 | J64: Stable
A65: Slurred speech | B65: 0.037 | C65: 0.338 | F65: 0.032 | G65: 0.399 | J65: Stable
A66: Quiet voice | B66: 0.003 | C66: 0.933 | F66: -0.031 | G66: 0.415 | J66: Stable
A67: GI
A68: MOUTH & THROAT
A69: Choking | B69: 0.073 | C69: 0.059 | F69: 0.080 | G69: 0.038 | H69: + | I69: negligible | J69: More important with longer PD duration
A70: Drooling | B70: 0.098 | C70: 0.011 | D70: + | E70: negligible | F70: 0.075 | G70: 0.051 | J70: Stable
A71: Dry mouth | B71: 0.037 | C71: 0.338 | F71: 0.022 | G71: 0.569 | J71: Stable
A72: Difficulty swallowing | B72: 0.045 | C72: 0.241 | F72: 0.037 | G72: 0.340 | J72: Stable
A73: STOMACH
A74: Nausea | B74: 0.034 | C74: 0.372 | F74: 0.001 | G74: 0.975 | J74: Stable
A75: appetite changes | B75: - | C75: - | F75: - | G75: - | J75: Not reported
A76: BOWEL PROBLEMS | B76: 0.071 | C76: 0.066 | F76: 0.081 | G76: 0.036 | H76: + | I76: negligible | J76: More important with longer PD duration
A77: URINARY | B77: 0.093 | C77: 0.015 | D77: + | E77: negligible | F77: 0.060 | G77: 0.117 | J77: More important with greater age
A78: bladder issues | B78: 0.098 | C78: 0.011 | D78: + | E78: negligible | F78: 0.065 | G78: 0.093 | J78: More important with greater age
A79: Incontinence | B79: 0.045 | C79: 0.247 | F79: -0.006 | G79: 0.869 | J79: Stable
A80: Nocturia | B80: 0.037 | C80: 0.340 | F80: -0.010 | G80: 0.792 | J80: Stable
A81: SEXUAL
A82: Erectile dysfunction (ED) | B82: 0.016 | C82: 0.678 | F82: 0.001 | G82: 0.979 | J82: Stable
A83: Loss libido/low sexual interest | B83: -0.050 | C83: 0.195 | F83: -0.034 | G83: 0.376 | J83: Stable
A84: ANS
A85: Slowed breathing | B85: -0.067 | C85: 0.081 | F85: 0.032 | G85: 0.399 | J85: Stable
A86: Low blood pressure/heartrate | B86: 0.037 | C86: 0.338 | F86: -0.015 | G86: 0.694 | J86: Stable
A87: Dizziness, lightheadness | B87: 0.062 | C87: 0.105 | F87: -0.091 | G87: 0.018 | H87: + | I87: negligible | J87: More important with longer PD duration
A88: Temperature regulation | B88: 0.073 | C88: 0.059 | F88: -0.036 | G88: 0.343 | J88: Stable
A89: Perspiration, sweating | B89: -0.065 | C89: 0.093 | F89: 0.046 | G89: 0.233 | J89: Stable
A90: FUNCTIONAL IMPACTS
A91: Affects QoL for PwPD | B91: 0.023 | C91: 0.549 | F91: 0.137 | G91: <0.001 | H91: + | I91: weak | J91: More important with longer PD duration
A92: PHYSICAL FUNCTIONING
A93: MOBILITY - all | B93: 0.028 | C93: 0.460 | F93: 0.098 | G93: 0.011 | H93: + | I93: negligible | J93: More important with longer PD duration
A94: Affects basic mobility | B94: 0.031 | C94: 0.743 | F94: 0.086 | G94: 0.024 | H94: + | I94: negligible | J94: More important with longer PD duration
A95: Being able to move in bed | B95: -0.027 | C95: 0.484 | F95: 0.075 | G95: 0.052 | J95: Stable
A96: Affects turning in bed | B96: 0.003 | C96: 0.944 | F96: 0.044 | G96: 0.249 | J96: Stable
A97: Affects getting up from chair/bed | B97: 0.054 | C97: 0.162 | F97: -0.041 | G97: 0.284 | J97: Stable
A98: Affects getting out of car | B98: -0.030 | C98: 0.438 | F98: 0.062 | G98: 0.033 | J98: Stable
A99: Affects standing | B99: 0.007 | C99: 0.850 | F99: -0.011 | G99: 0.774 | J99: Stable
A100: Affects ability to walk on uneven surfaces | B100: 0.052 | C100: 0.175 | F100: 0.031 | G100: 0.424 | J100: Stable
A101: Affects climbing stairs | B101: 0.060 | C101: 0.116 | F101: 0.045 | G101: 0.246 | J101: Stable
A102: Requires use of assistive device (walker, WC, scooter) | B102: 0.029 | C102: 0.452 | F102: 0.062 | G102: 0.106 | J102: Stable
A103: Affects bending over | B103: 0.037 | C103: 0.338 | F103: 0.032 | G103: 0.399 | J103: Stable
A104: Affects reaching over head | B104: 0.037 | C104: 0.338 | F104: 0.032 | G104: 0.399 | J104: Stable
A105: Affects carrying beverage w/o spill | B105: 0.048 | C105: 0.210 | F105: 0.054 | G105: 0.158 | J105: Stable
A106: Breaking things or dropping things | B106: -0.058 | C106: 0.134 | F106: -0.051 | G106: 0.183 | J106: Stable
A107: Affects ability to be active, exercise, play sports (all) | B107: 0.060 | C107: 0.121 | F107: 0.087 | G107: 0.023 | H107: + | I107: negligible | J107: More important with longer PD duration
A108: Affects sports and exercise | B108: 0.059 | C108: 0.128 | F108: 0.090 | G108: 0.019 | H108: + | I108: negligible | J108: More important with longer PD duration
A109: Affects sports (general) | B109: 0.033 | C109: 0.397 | F109: 0.050 | G109: 0.192 | J109: Stable
A110: Affects Tai Chi, yoga | B110: 0.052 | C110: 0.175 | F110: 0.050 | G110: 0.192 | J110: Stable
A111: Affects golf | B111: -0.053 | C111: 0.170 | F111: 0.001 | G111: 0.982 | J111: Stable
A112: Affects cycling | B112: 0.042 | C112: 0.270 | F112: -0.057 | G112: 0.136 | J112: Stable
A113: Affects swimming | B113: 0.037 | C113: 0.338 | F113: 0.032 | G113: 0.399 | J113: Stable
A114: Affects ability to walk downhill | B114: 0.037 | C114: 0.338 | F114: -0.015 | G114: 0.694 | J114: Stable
A115: Affects hiking | B115: 0.060 | C115: 0.121 | F115: 0.075 | G115: 0.052 | J115: Stable
A116: FINE MOTOR ACTIVITIES | B116: 0.038 | C116: 0.381 | F116: 0.007 | G116: 0.864 | J116: Stable
A117: Loss of hand grip | B117: -0.003 | C117: 0.936 | F117: 0.020 | G117: 0.602 | J117: Stable
A118: Affects picking up small items | B118: -0.024 | C118: 0.541 | F118: -0.010 | G118: 0.791 | J118: Stable
A119: Affects ability to open containers | B119: -0.014 | C119: 0.710 | F119: -0.015 | G119: 0.694 | J119: Stable
A120: Altered handwriting | B120: 0.061 | C120: 0.115 | F120: 0.036 | G120: 0.394 | J120: Stable
A121: Affects painting, drawing | B121: 0.003 | C121: 0.931 | F121: 0.033 | G121: 0.389 | J121: Stable
A122: Affects iPad use | B122: -0.014 | C122: 0.710 | F122: 0.032 | G122: 0.399 | J122: Stable
A123: Affects phone use | B123: -0.033 | C123: 0.388 | F123: -0.002 | G123: 0.958 | J123: Stable
A124: Affects computer use | B124: -0.006 | C124: 0.876 | F124: -0.033 | G124: 0.396 | J124: Stable
A125: WORK OF LIVING | B125: 0.042 | C125: 0.271 | F125: 0.072 | G125: 0.061 | J125: Stable
A126: Limits ability to do things (functional impact including ADL) | B126: 0.059 | C126: 0.123 | F126: 0.120 | G126: 0.002 | H126: + | I126: weak | J126: More important with longer PD duration
A127: Makes everything harder/takes more effort | B127: -0.034 | C127: 0.373 | F127: 0.057 | G127: 0.136 | J127: Stable
A128: PHYSICAL COMFORT | B128: -0.040 | C128: 0.303 | F128: 0.044 | G128: 0.249 | J128: Stable
A129: Causes pain or discomfort | B129: -0.061 | C129: 0.115 | F129: 0.040 | G129: 0.297 | J129: Stable
A130: Feeling unwell | B130: 0.024 | C130: 0.536 | F130: 0.027 | G130: 0.484 | J130: Stable
A131: Affects ability to relax | B131: -0.009 | C131: 0.813 | F131: 0.021 | G131: 0.588 | J131: Stable
A132: SELF-CARE | B132: 0.075 | C132: 0.052 | F132: 0.040 | G132: 0.295 | J132: Stable
A133: Makes toileting difficult | B133: 0.040 | C133: 0.299 | F133: 0.027 | G133: 0.487 | J133: Stable
A134: Affects hygiene, dressing | B134: 0.015 | C134: 0.700 | F134: 0.011 | G134: 0.767 | J134: Stable
A135: Causes odor (urine/bowel incontinence) | B135: 0.037 | C135: 0.338 | F135: 0.059 | G135: 0.128 | J135: Stable
A136: Affects eating | B136: 0.095 | C136: 0.013 | D136: + | E136: negligible | F136: 0.049 | G136: 0.199 | J136: More important with greater age
A137: SAFETY | F137: 0.132 | G137: <0.001 | H137: + | I137: weak | J137: More important with greater age and longer PD duration
A138: Safety | B138: 0.120 | C138: 0.002 | D138: + | E138: weak | F138: 0.121 | G138: 0.002 | H138: + | I138: weak | J138: More important with greater age and longer PD duration
A139: Falling | B139: 0.096 | C139: 0.012 | D139: + | E139: negligible | F139: 0.107 | G139: 0.005 | H139: + | I139: weak | J139: More important with greater age and longer PD duration
A140: PSYCHOSOCIAL FUNCTIONING
A141: INDEPENDENCE | B141: 0.107 | C141: 0.005 | D141: + | F141: 0.116 | G141: 0.003 | H141: + | I141: weak
A142: Affects sense of self reliance/independence | B142: 0.038 | C142: 0.322 | F142: 0.111 | G142: 0.004 | H142: + | I142: weak | J142: More important with longer PD duration
A143: Symptoms require planning prior to going out | B143: 0.045 | C143: 0.245 | F143: 0.101 | G143: 0.008 | H143: + | I143: weak | J143: More important with longer PD duration
A144: Affects driving | B144: 0.039 | C144: 0.316 | F144: 0.093 | G144: 0.016 | H144: + | I144: weak | J144: More important with longer PD duration
A145: Affects use of public transportation (train, bus) | B145: 0.066 | C145: 0.085 | F145: 0.064 | G145: 0.097 | J145: Stable
A146: Affects cooking | B146: 0.031 | C146: 0.421 | F146: -0.033 | G146: 0.390 | J146: Stable
A147: Affects housework/home maintenance | B147: 0.116 | C147: 0.003 | D147: + | E147: weak | F147: 0.005 | G147: 0.906 | J147: More important with greater age
A148: Affects shopping | B148: 0.045 | C148: 0.246 | F148: 0.022 | G148: 0.561 | J148: Stable
A149: SELF-CONCEPT | B149: -0.044 | C149: 0.258 | F149: 0.033 | G149: 0.396 | J149: Stable
A150: Self-conscious, stigma, looking drunk, etc. | B150: -0.049 | C150: 0.207 | F150: -0.026 | G150: 0.504 | J150: Stable
A151: Feelings of embarrassment | B151: -0.034 | C151: 0.372 | F151: -0.038 | G151: 0.318 | J151: Stable
A152: Not having a "normal" life | B152: -0.084 | C152: 0.029 | D152: - | E152: negligible | F152: 0.011 | G152: 0.778 | J152: Less important with greater age
A153: Loss of professional identity | B153: -0.070 | C153: 0.070 | F153: -0.040 | G153: 0.301 | J153: Stable
A154: Decreased self worth | B154: -0.048 | C154: 0.214 | F154: 0.002 | G154: 0.963 | J154: Stable
A155: Affects self-confidence | B155: -0.054 | C155: 0.161 | F155: 0.068 | G155: 0.077 | J155: Stable
A156: COPING | B156: -0.029 | C156: 0.455 | F156: 0.057 | G156: 0.138 | J156: Stable
A157: Fear - of Future and disease progression | B157: -0.045 | C157: 0.239 | F157: 0.048 | G157: 0.212 | J157: Stable
A158: most frustrating symptoms | B158: 0.013 | C158: 0.736 | F158: 0.014 | G158: 0.708 | J158: Stable
A159: Symptoms are more debilitating | B159: 0.029 | C159: 0.449 | F159: 0.074 | G159: 0.055 | J159: Stable
A160: Reminds you that you have PD | B160: -0.064 | C160: 0.097 | F160: -0.031 | G160: 0.418 | J160: Stable
A161: Worried about cost of care or caregiving | B161: - | C161: - | F161: - | G161: -
A162: Hard to cope with | B162: -0.041 | C162: 0.292 | F162: 0.016 | G162: 0.676 | J162: Stable
A163: Its unpredictable | B163: -0.002 | C163: 0.949 | F163: 0.078 | G163: 0.041 | H163: + | I163: negligible | J163: More important with longer PD duration
A164: Affect general well being | B164: 0.011 | C164: 0.768 | F164: 0.007 | G164: 0.864 | J164: Stable
A165: Causes mental exhaustion | B165: -0.049 | C165: 0.198 | F165: -0.012 | G165: 0.755 | J165: Stable
A166: Stress, frustration, distress | B166: -0.089 | C166: 0.020 | D166: + | E166: negligible | F166: 0.049 | G166: 0.200 | J166: More important with greater age
A167: Causes worry, fear | B167: 0.039 | C167: 0.316 | F167: 0.033 | G167: 0.387 | J167: Stable
A168: Lost what is most important | B168: 0.010 | C168: 0.789 | F168: -0.029 | G168: 0.456 | J168: Stable
A169: INTERPERSONAL INTERACTIONS | B169: 0.087 | C169: 0.023 | D169: + | E169: negligible | F169: 0.127 | G169: <0.001 | H169: + | I169: weak | J169: More important with greater age and longer PD duration
A170: Affects social life | B170: 0.078 | C170: 0.043 | D170: + | E170: negligible | F170: 0.105 | G170: 0.006 | H170: + | I170: weak | J170: More important with greater age and longer PD duration
A171: Affects relationships with others | B171: 0.082 | C171: 0.033 | D171: + | E171: negligible | F171: 0.078 | G171: 0.043 | H171: + | I171: negligible | J171: More important with greater age and longer PD duration
A172: Affects communication | B172: 0.051 | C172: 0.187 | F172: 0.084 | G172: 0.028 | J172: Stable
A173: Affects family | B173: 0.029 | C173: 0.456 | F173: 0.064 | G173: 0.097 | J173: Stable
A174: Contributes to isolation | B174: 0.056 | C174: 0.144 | F174: 0.161 | G174: <0.001 | H174: + | I174: weak | J174: More important with longer PD duration
A175: RESPONSIBILITIES | B175: -0.127 | C175: <0.001 | D175: - | E175: weak | F175: -0.069 | G175: 0.075 | J175: More important with greater age
A176: Affects caring for pets | B176: 0.070 | C176: 0.070 | F176: 0.019 | G176: 0.628 | J176: Stable
A177: Affects child-care, care of grandchildern | B177: 0.027 | C177: 0.483 | F177: -0.022 | G177: 0.566 | J177: Stable
A178: Affects paperwork/tasks | B178: -0.028 | C178: 0.461 | F178: -0.056 | G178: 0.144 | J178: Stable
A179: Affects finances | B179: -0.014 | C179: 0.710 | F179: -0.015 | G179: 0.694 | J179: Stable
A180: Affects career or employment | B180: -0.168 | C180: <0.001 | D180: - | E180: weak | F180: -0.060 | G180: 0.120 | J180: More important with greater age
A181: PLEASURABLE ACTIVITIES | B181: 0.111 | C181: 0.004 | D181: + | E181: weak | F181: 0.141 | G181: <0.001 | H181: + | I181: weak | J181: More important with greater age and longer PD duration
A182: Loss of things you enjoy doing | B182: 0.098 | C182: 0.011 | D182: + | E182: negligible | F182: 0.102 | G182: 0.008 | H182: + | I182: weak | J182: More important with greater age and longer PD duration
A183: Makes it difficult to enjoy conversation | B183: 0.048 | C183: 0.210 | F183: 0.017 | G183: 0.652 | J183: Stable
A184: Affects travel plans | B184: 0.051 | C184: 0.186 | F184: 0.120 | G184: 0.002 | H184: + | I184: weak | J184: More important with longer PD duration
A185: Affects hobbies | B185: 0.106 | C185: 0.006 | D185: + | E185: weak | F185: 0.033 | G185: 0.387 | J185: More important with greater age
A186: Affects photography | B186: -0.014 | C186: 0.710 | F186: 0.032 | G186: 0.399 | J186: Stable
A187: Affects gardening | B187: 0.137 | C187: <0.001 | D187: + | E187: weak | F187: 0.081 | G187: 0.036 | H187: + | I187: negligible | J187: More important with greater age and longer PD duration
A188: Affects sewing/embroider | B188: 0.066 | C188: 0.088 | F188: -0.015 | G188: 0.694 | J188: Stable
A189: Affects ability to be still | B189: -0.014 | C189: 0.710 | F189: 0.059 | G189: 0.128 | J189: Stable
A190: Affects watching tv | B190: 0.037 | C190: 0.338 | F190: 0.059 | G190: 0.128 | J190: Stable
A191: Affects playing musical instrument | B191: -0.033 | C191: 0.393 | F191: -0.069 | G191: 0.071 | J191: Stable
A192: Affects singing | B192: 0.073 | C192: 0.059 | F192: -0.021 | G192: 0.578 | J192: Stable
A193: Affects holiday traditions (Christmas decorations, etc) | B193: 0.023 | C193: 0.557 | F193: 0.041 | G193: 0.285 | J193: Stable
A194: Affects dining out | B194: -0.016 | C194: 0.679 | F194: 0.022 | G194: 0.561 | J194: Stable
A195: Affects reading | B195: -0.003 | C195: 0.929 | F195: 0.087 | G195: 0.024 | H195: + | I195: negligible | J195: More important with longer PD duration

Sheet eTable 2. Important factors (%)
A1: eTable 2. Frequencies of most bothersome aspects of Parkinson's for People with PD vs. family | N1: Significance of between group differences (PwP v. Family/CG)
A2: Role | B2: PwP | C2: PwP | D2: PwP | E2: PwP | F2: PwP | G2: PwP | H2: CG | I2: CG | J2: CG | K2: CG | L2: CG | M2: CG | N2: p | O2: p | P2: p | Q2: p | R2: p | S2: p
A3: PD duration | B3: >20 | C3: 11 to 20 | D3: 6 to 10 | E3: 2 to 5 | F3: <2 | G3: All | H3: >20 | I3: 11 to 20 | J3: 6 to 10 | K3: 2 to 5 | L3: <2 | M3: All | N3: >20 | O3: 11 to 20 | P3: 6 to 10 | Q3: 2 to 5 | R3: <2 | S3: All
A4: Sample size | B4: N=18 | C4: N=76 | D4: N=176 | E4: N=283 | F4: N=124 | G4: N=708 | H4: N=9 | I4: N=22 | J4: N=32 | K4: N=30 | L4: N=10 | M4: N=115 | N4: P values <0.05 indicate a significant difference between PwP and Family reports of bothersomeness. Higher P values suggest greater alignment in what is most bothersomeness
A5: SYMPTOMS
A6: MOVEMENT | B6: 94.4% | C6: 86.8% | D6: 85.8% | E6: 80.9% | F6: 81.5% | G6: 83.2% | H6: 55.6% | I6: 68.2% | J6: 62.5% | K6: 70.0% | L6: 70.0% | M6: 64.3% | N6: 0.062 | O6: 0.098 | P6: 0.015 | Q6: 0.225 | R6: 0.482 | S6: 0.062
A7: SLOW MOVEMENT | B7: 33.3% | C7: 30.3% | D7: 30.7% | E7: 27.2% | F7: 37.9% | G7: 30.6% | H7: 11.1% | I7: 13.6% | J7: 28.1% | K7: 20.0% | L7: 40.0% | M7: 20.9% | N7: - | O7: - | P7: - | Q7: - | R7: - | S7: -
A8: Bradykinesia | B8: 11.1% | C8: 14.5% | D8: 14.8% | E8: 13.1% | F8: 19.4% | G8: 15.0% | H8: 0.0% | I8: 0.0% | J8: 21.9% | K8: 16.7% | L8: 30.0% | M8: 13.0% | N8: 0.215 | O8: <0.001 | P8: 0.559 | Q8: 0.629 | R8: 0.443 | S8: 0.215
A9: Dexterity/fine motor | B9: 16.7% | C9: 18.4% | D9: 14.8% | E9: 17.3% | F9: 22.6% | G9: 17.7% | H9: 11.1% | I9: 13.6% | J9: 3.1% | K9: 0.0% | L9: 20.0% | M9: 6.1% | N9: 0.521 | O9: 0.928 | P9: <0.001 | Q9: <0.001 | R9: 0.93 | S9: 0.521
A10: Loss of coordination | B10: 5.6% | C10: 0.0% | D10: 5.1% | E10: 1.4% | F10: 4.8% | G10: 2.8% | H10: 11.1% | I10: 0.0% | J10: 3.1% | K10: 3.3% | L10: 0.0% | M10: 3.5% | N10: 0.663 | O10: - | P10: 0.614 | Q10: 0.44 | R10: 0.022 | S10: 0.663
A11: STIFFNESS | B11: 11.1% | C11: 11.8% | D11: 16.5% | E11: 22.3% | F11: 26.6% | G11: 19.9% | H11: 0.0% | I11: 18.2% | J11: 12.5% | K11: 20.0% | L11: 0.0% | M11: 12.2% | N11: 0.163 | O11: 0.496 | P11: 0.548 | Q11: 0.774 | R11: <0.001 | S11: 0.163
A12: Stiffness and loss of flexibility | B12: 11.1% | C12: 11.8% | D12: 13.1% | E12: 21.2% | F12: 25.8% | G12: 18.4% | H12: 0.0% | I12: 18.2% | J12: 12.5% | K12: 13.3% | L12: 0.0% | M12: 10.4% | N12: 0.172 | O12: 0.95 | P12: 0.187 | Q12: 0.147 | R12: <0.001 | S12: 0.172
A13: Altered facial expressions | B13: 0.0% | C13: 0.0% | D13: 3.4% | E13: 1.4% | F13: 1.6% | G13: 1.8% | H13: 0.0% | I13: 0.0% | J13: 0.0% | K13: 6.7% | L13: 0.0% | M13: 1.7% | N13: - | O13: - | P13: 0.018 | Q13: 0.231 | R13: 0.158 | S13: -
A14: WALKING & BALANCE | B14: 50.0% | C14: 60.5% | D14: 49.4% | E14: 40.6% | F14: 32.3% | G14: 44.4% | H14: 44.4% | I14: 45.5% | J14: 28.1% | K14: 33.3% | L14: 30.0% | M14: 34.8% | N14: 0.789 | O14: 0.227 | P14: 0.021 | Q14: 0.434 | R14: 0.889 | S14: 0.798
A15: Akinesia, freezing | B15: 11.1% | C15: 17.1% | D15: 12.5% | E15: 5.3% | F15: 3.2% | G15: 8.5% | H15: 11.1% | I15: 13.6% | J15: 9.4% | K15: 3.3% | L15: 10.0% | M15: 10.4% | N15: 0.808 | O15: 0.655 | P15: 0.512 | Q15: 0.76 | R15: 0.483 | S15: 0.808
A16: Altered gait | B16: 33.3% | C16: 34.2% | D16: 32.4% | E16: 24.7% | F16: 21.0% | G16: 27.1% | H16: 22.2% | I16: 18.2% | J16: 9.4% | K16: 30.0% | L16: 10.0% | M16: 17.4% | N16: 0.326 | O16: 0.176 | P16: <0.001 | Q16: 0.491 | R16: 0.131 | S16: 0.326
A17: Arm swing | B17: 0.0% | C17: 0.0% | D17: 0.0% | E17: 0.4% | F17: 0.8% | G17: 0.3% | H17: 0.0% | I17: 0.0% | J17: 0.0% | K17: 0.0% | L17: 0.0% | M17: 0.0% | N17: - | O17: - | P17: - | Q17: 0.318 | R17: 0.319 | S17: -
A18: Balance | B18: 16.7% | C18: 28.9% | D18: 16.5% | E18: 17.3% | F18: 12.1% | G18: 17.7% | H18: 33.3% | I18: 18.2% | J18: 9.4% | K18: 13.3% | L18: 20.0% | M18: 14.8% | N18: 0.415 | O18: 0.051 | P18: 0.181 | Q18: 0.382 | R18: 0.515 | S18: 0.415
A19: Stooped or leaning posture | B19: 0.0% | C19: 6.6% | D19: 3.4% | E19: 2.1% | F19: 2.4% | G19: 3.1% | H19: 11.1% | I19: 4.5% | J19: 0.0% | K19: 0.0% | L19: 0.0% | M19: 1.7% | N19: 0.347 | O19: 0.841 | P19: 0.02 | Q19: 0.023 | R19: 0.117 | S19: 0.347
A20: TREMOR | B20: 11.1% | C20: 17.1% | D20: 25.6% | E20: 36.4% | F20: 45.2% | G20: 32.3% | H20: 22.2% | I20: 22.7% | J20: 25.0% | K20: 23.3% | L20: 10.0% | M20: 20.0% | N20: 0.332 | O20: 0.719 | P20: 0.535 | Q20: 0.009 | R20: 0.003 | S20: 0.332
A21: INVOLUNTARY MOVEMENTS | B21: 27.8% | C21: 19.7% | D21: 21.0% | E21: 10.6% | F21: 5.6% | G21: 13.6% | H21: 0.0% | I21: 18.2% | J21: 21.9% | K21: 13.3% | L21: 0.0% | M21: 15.7% | N21: 0.02 | O21: 0.953 | P21: 0.874 | Q21: 0.73 | R21: 0.008 | S21: 0.02
A22: Dystonia, Cramping, spasms | B22: 11.1% | C22: 7.9% | D22: 9.7% | E22: 6.4% | F22: 4.0% | G22: 6.9% | H22: 0.0% | I22: 0.0% | J22: 9.4% | K22: 10.0% | L22: 0.0% | M22: 5.2% | N22: 0.163 | O22: 0.02 | P22: 0.985 | Q22: 0.459 | R22: 0.026 | S22: 0.163
A23: Dyskinesia, involuntary, erratic, jerking motions | B23: 16.7% | C23: 14.5% | D23: 8.0% | E23: 3.9% | F23: 1.6% | G23: 5.9% | H23: 0.0% | I23: 13.6% | J23: 12.5% | K23: 6.7% | L23: 0.0% | M23: 10.4% | N23: 0.088 | O23: 0.065 | P23: 0.561 | Q23: 0.6 | R23: 0.319 | S23: 0.088
A24: Restless leg syndrome | B24: 0.0% | C24: 0.0% | D24: 4.0% | E24: 1.1% | F24: 0.8% | G24: 1.6% | H24: 0.0% | I24: 0.0% | J24: 0.0% | K24: 0.0% | L24: 0.0% | M24: 0.0% | N24: - | O24: - | P24: 0.022 | Q24: 0.088 | R24: 0.319 | S24: -
A25: COGNITIVE | B25: 11.1% | C25: 14.5% | D25: 14.8% | E25: 14.1% | F25: 16.9% | G25: 14.7% | H25: 22.2% | I25: 22.7% | J25: 28.1% | K25: 26.7% | L25: 20.0% | M25: 25.2% | N25: 0.514 | O25: 0.416 | P25: 0.125 | Q25: 0.149 | R25: 0.828 | S25: 0.514
A26: Memory | B26: 5.6% | C26: 5.3% | D26: 7.4% | E26: 6.0% | F26: 5.6% | G26: 6.2% | H26: 22.2% | I26: 4.5% | J26: 9.4% | K26: 0.0% | L26: 0.0% | M26: 7.8% | N26: 0.281 | O26: 0.586 | P26: 0.544 | Q26: <0.001 | R26: 0.014 | S26: 0.281
A27: Cognitive - clear thinking, alertness | B27: 5.6% | C27: 6.6% | D27: 6.8% | E27: 6.4% | F27: 6.5% | G27: 6.2% | H27: 22.2% | I27: 18.2% | J27: 25.0% | K27: 26.7% | L27: 20.0% | M27: 23.5% | N27: 0.313 | O27: 0.273 | P27: 0.127 | Q27: 0.085 | R27: 0.141 | S27: 0.313
A28: Slow thinking | B28: 0.0% | C28: 3.9% | D28: 5.1% | E28: 2.5% | F28: 5.6% | G28: 4.0% | H28: 11.1% | I28: 4.5% | J28: 12.5% | K28: 6.7% | L28: 10.0% | M28: 7.8% | N28: 0.347 | O28: 0.491 | P28: 0.263 | Q28: 0.277 | R28: 0.623 | S28: 0.347
A29: Ability to concentrate | B29: 0.0% | C29: 2.6% | D29: 0.0% | E29: 1.1% | F29: 2.4% | G29: 1.3% | H29: 0.0% | I29: 0.0% | J29: 3.1% | K29: 0.0% | L29: 0.0% | M29: 0.9% | N29: - | O29: 0.159 | P29: 0.325 | Q29: 0.088 | R29: 0.127 | S29: -
A30: Ability to multi-task | B30: 0.0% | C30: 1.3% | D30: 0.6% | E30: 0.0% | F30: 3.2% | G30: 0.8% | H30: 0.0% | I30: 0.0% | J30: 0.0% | K30: 0.0% | L30: 0.0% | M30: 0.0% | N30: - | O30: 0.321 | P30: 0.319 | Q30: - | R30: 0.127 | S30: -
A31: Word finding | B31: 0.0% | C31: 0.0% | D31: 2.3% | E31: 1.4% | F31: 0.0% | G31: 1.1% | H31: 0.0% | I31: 0.0% | J31: 0.0% | K31: 0.0% | L31: 0.0% | M31: 0.0% | N31: - | O31: - | P31: 0.071 | Q31: 0.086 | R31: 0.074 | S31: -
A32: Executive function/decision making | B32: 0.0% | C32: 1.3% | D32: 2.3% | E32: 1.8% | F32: 2.4% | G32: 1.8% | H32: 0.0% | I32: 0.0% | J32: 0.0% | K32: 0.0% | L32: 0.0% | M32: 0.0% | N32: - | O32: 0.321 | P32: 0.063 | Q32: 0.052 | R32: 0.096 | S32: -
A33: Dementia | B33: 0.0% | C33: 0.0% | D33: 0.0% | E33: 0.0% | F33: 0.0% | G33: 0.0% | H33: 0.0% | I33: 9.1% | J33: 3.1% | K33: 3.3% | L33: 10.0% | M33: 5.2% | N33: - | O33: 0.162 | P33: 0.325 | Q33: 0.326 | R33: <0.001 | S33: -
A34: PSYCHIATRIC | B34: 38.9% | C34: 51.3% | D34: 28.4% | E34: 35.0% | F34: 46.8% | G34: 37.7% | H34: 33.3% | I34: 27.3% | J34: 34.4% | K34: 26.7% | L34: 20.0% | M34: 32.2% | N34: 0.596 | O34: 0.04 | P34: 0.52 | Q34: 0.345 | R34: 0.083 | S34: 0.596
A35: MOOD CHANGES | B35: 22.2% | C35: 28.9% | D35: 15.9% | E35: 19.1% | F35: 25.8% | G35: 20.8% | H35: 33.3% | I35: 22.7% | J35: 28.1% | K35: 20.0% | L35: 20.0% | M35: 26.1% | N35: 0.577 | O35: 0.559 | P35: 0.16 | Q35: 0.907 | R35: 0.685 | S35: 0.577
A36: Mood changes (unspecified) | B36: 22.2% | C36: 14.5% | D36: 5.7% | E36: 9.5% | F36: 10.5% | G36: 9.7% | H36: 11.1% | I36: 22.7% | J36: 21.9% | K36: 10.0% | L36: 10.0% | M36: 17.4% | N36: 0.468 | O36: 0.219 | P36: 0.042 | Q36: 0.848 | R36: 0.548 | S36: 0.468
A37: Low motivation/apathy | B37: 5.6% | C37: 3.9% | D37: 2.8% | E37: 3.2% | F37: 3.2% | G37: 3.1% | H37: 0.0% | I37: 13.6% | J37: 3.1% | K37: 3.3% | L37: 0.0% | M37: 5.2% | N37: 0.331 | O37: 0.399 | P37: 0.38 | Q37: 0.313 | R37: 0.049 | S37: 0.331
A38: Depression/depressed mood | B38: 11.1% | C38: 5.3% | D38: 4.5% | E38: 4.6% | F38: 5.6% | G38: 5.2% | H38: 11.1% | I38: 4.5% | J38: 9.4% | K38: 0.0% | L38: 10.0% | M38: 5.2% | N38: 0.771 | O38: 0.835 | P38: 0.364 | Q38: 0.002 | R38: 0.679 | S38: 0.772
A39: Anxiety | B39: 0.0% | C39: 14.5% | D39: 10.2% | E39: 8.1% | F39: 12.1% | G39: 9.9% | H39: 22.2% | I39: 9.1% | J39: 9.4% | K39: 13.3% | L39: 20.0% | M39: 13.0% | N39: 0.195 | O39: 0.152 | P39: 0.947 | Q39: 0.717 | R39: 0.575 | S39: 0.197
A40: Irritability | B40: 0.0% | C40: 0.0% | D40: 0.0% | E40: 0.0% | F40: 0.8% | G40: 0.1% | H40: 0.0% | I40: 0.0% | J40: 0.0% | K40: 0.0% | L40: 0.0% | M40: 0.0% | N40: - | O40: - | P40: - | Q40: - | R40: 0.319 | S40: -
A41: Personality changes | B41: 0.0% | C41: 2.6% | D41: 0.6% | E41: 0.4% | F41: 0.8% | G41: 0.8% | H41: 0.0% | I41: 9.1% | J41: 12.5% | K41: 13.3% | L41: 0.0% | M41: 11.3% | N41: - | O41: 0.333 | P41: 0.119 | Q41: 0.049 | R41: 0.319 | S41: -
A42: Hallucinations | B42: 0.0% | C42: 2.6% | D42: 0.6% | E42: 0.4% | F42: 0.0% | G42: 0.6% | H42: 0.0% | I42: 4.5% | J42: 3.1% | K42: 0.0% | L42: 0.0% | M42: 3.5% | N42: - | O42: 0.433 | P42: 0.398 | Q42: 0.089 | R42: - | S42: -
A43: SENSATION | B43: 33.3% | C43: 34.2% | D43: 48.9% | E43: 49.1% | F43: 43.5% | G43: 45.6% | H43: 33.3% | I43: 31.8% | J43: 31.3% | K43: 53.3% | L43: 20.0% | M43: 35.7%
A44: FIVE SENSES | B44: 5.6% | C44: 1.3% | D44: 5.1% | E44: 2.8% | F44: 4.0% | G44: 3.4% | H44: 0.0% | I44: 9.1% | J44: 0.0% | K44: 0.0% | L44: 10.0% | M44: 2.6% | N44: - | O44: - | P44: - | Q44: - | R44: - | S44: -
A45: Vision problems (double vision, eye lid movement, vision changes) | B45: 0.0% | C45: 1.3% | D45: 1.7% | E45: 1.1% | F45: 0.8% | G45: 1.1% | H45: 0.0% | I45: 9.1% | J45: 0.0% | K45: 0.0% | L45: 10.0% | M45: 2.6% | N45: - | O45: 0.35 | P45: 0.132 | Q45: 0.09 | R45: 0.383 | S45: -
A46: Altered touch sensations - Pin and needle senstation; numbness | B46: 0.0% | C46: 0.0% | D46: 1.1% | E46: 0.7% | F46: 0.8% | G46: 0.7% | H46: 0.0% | I46: 0.0% | J46: 0.0% | K46: 0.0% | L46: 0.0% | M46: 0.0% | N46: - | O46: - | P46: 0.226 | Q46: 0.166 | R46: 0.319 | S46: -
A47: Sense of smell | B47: 5.6% | C47: 0.0% | D47: 2.3% | E47: 1.1% | F47: 1.6% | G47: 1.4% | H47: 0.0% | I47: 0.0% | J47: 0.0% | K47: 0.0% | L47: 0.0% | M47: 0.0% | N47: 0.331 | O47: - | P47: 0.055 | Q47: 0.09 | R47: 0.207 | S47: 0.331
A48: Altered or loss taste | B48: 0.0% | C48: 0.0% | D48: 0.6% | E48: 0.4% | F48: 0.8% | G48: 0.4% | H48: 0.0% | I48: 0.0% | J48: 0.0% | K48: 0.0% | L48: 0.0% | M48: 0.0% | N48: - | O48: - | P48: 0.139 | Q48: 0.318 | R48: 0.319 | S48: -
A49: OTHER SENSATIONS | B49: 27.8% | C49: 34.2% | D49: 46.0% | E49: 47.7% | F49: 41.9% | G49: 43.9% | H49: 33.3% | I49: 22.7% | J49: 31.3% | K49: 53.3% | L49: 10.0% | M49: 33.0% | N49: - | O49: - | P49: - | Q49: - | R49: - | S49: -
A50: Breathlessness | B50: 0.0% | C50: 0.0% | D50: 0.6% | E50: 0.0% | F50: 0.0% | G50: 0.1% | H50: 0.0% | I50: 0.0% | J50: 0.0% | K50: 0.0% | L50: 0.0% | M50: 0.9% | N50: - | O50: - | P50: 0.319 | Q50: - | R50: - | S50: -
A51: Pain | B51: 16.7% | C51: 18.4% | D51: 21.6% | E51: 18.4% | F51: 16.9% | G51: 18.4% | H51: 22.2% | I51: 9.1% | J51: 15.6% | K51: 16.7% | L51: 0.0% | M51: 13.0% | N51: 0.792 | O51: 0.858 | P51: 0.398 | Q51: 0.434 | R51: <0.001 | S51: 0.792
A52: Weakness/loss of strength | B52: 0.0% | C52: 1.3% | D52: 6.8% | E52: 7.8% | F52: 6.5% | G52: 6.4% | H52: 0.0% | I52: 9.1% | J52: 3.1% | K52: 16.7% | L52: 0.0% | M52: 7.0% | N52: - | O52: 0.267 | P52: 0.019 | Q52: 0.252 | R52: <0.001 | S52: -
A53: Fatigue/loss of energy/tired | B53: 5.6% | C53: 22.4% | D53: 25.6% | E53: 29.7% | F53: 25.0% | G53: 26.7% | H53: 11.1% | I53: 13.6% | J53: 15.6% | K53: 33.3% | L53: 10.0% | M53: 19.1% | N53: 0.784 | O53: 0.271 | P53: 0.456 | Q53: 0.97 | R53: 0.382 | S53: 0.784
A54: Restlessness | B54: 5.6% | C54: 0.0% | D54: 0.0% | E54: 0.4% | F54: 0.0% | G54: 0.3% | H54: 0.0% | I54: 0.0% | J54: 3.1% | K54: 0.0% | L54: 0.0% | M54: 0.9% | N54: 0.331 | O54: - | P54: 0.325 | Q54: 0.318 | R54: - | S54: 0.331
A55: SLEEP | B55: 5.6% | C55: 22.4% | D55: 22.7% | E55: 23.7% | F55: 15.3% | G55: 21.2% | H55: 11.1% | I55: 9.1% | J55: 21.9% | K55: 26.7% | L55: 20.0% | M55: 18.3% | N55: 0.663 | O55: 0.1 | P55: 0.916 | S55: 0.663
A56: SLEEP DISTURBANCES | B56: 5.6% | C56: 22.4% | D56: 18.8% | E56: 21.6% | F56: 12.9% | G56: 18.8% | H56: 11.1% | I56: 9.1% | J56: 18.8% | K56: 26.7% | L56: 20.0% | M56: 17.4% | N56: - | O56: - | P56: - | Q56: - | R56: - | S56: -
A57: Impaired sleep | B57: 5.6% | C57: 22.4% | D57: 18.8% | E57: 21.6% | F57: 12.9% | G57: 18.8% | H57: 11.1% | I57: 9.1% | J57: 18.8% | K57: 26.7% | L57: 20.0% | M57: 17.4% | N57: 1 | O57: 0.058 | P57: 0.791 | Q57: 0.435 | R57: 0.47 | S57: 1
A58: RBSD | B58: 5.6% | C58: 1.3% | D58: 1.7% | E58: 2.1% | F58: 0.8% | G58: 1.7% | H58: 0.0% | I58: 0.0% | J58: 3.1% | K58: 0.0% | L58: 0.0% | M58: 1.7% | N58: 0.331 | O58: 0.321 | Q58: 0.025 | R58: 0.319
A59: Vivid dreams/ Nightmares | B59: 5.6% | C59: 1.3% | D59: 1.7% | E59: 2.1% | F59: 0.8% | G59: 1.7% | H59: 0.0% | I59: 0.0% | J59: 3.1% | K59: 0.0% | L59: 0.0% | M59: 1.7% | N59: 0.331 | O59: 0.321 | P59: 0.509 | Q59: 0.025 | R59: 0.319 | S59: 0.331
A60: Daytime sleepiness | B60: 0.0% | C60: 2.6% | D60: 9.1% | E60: 4.6% | F60: 5.6% | G60: 5.8% | H60: 0.0% | I60: 0.0% | J60: 6.3% | K60: 6.7% | L60: 0.0% | M60: 3.5% | O60: 0.159 | P60: 0.385 | Q60: 0.494 | R60: 0.011
A61: SPEECH/VOICE | B61: 27.8% | C61: 18.4% | D61: 13.6% | E61: 11.7% | F61: 7.3% | G61: 13.1% | H61: 22.2% | I61: 36.4% | J61: 12.5% | K61: 20.0% | L61: 0.0% | M61: 19.1% | N61: 0.765 | O61: 0.127 | P61: 0.862 | Q61: 0.285 | R61: 0.002 | S61: 0.765
A62: Altered speech | B62: 27.8% | C62: 18.4% | D62: 10.2% | E62: 9.2% | F62: 6.5% | G62: 10.9% | H62: 22.2% | I62: 27.3% | J62: 12.5% | K62: 13.3% | L62: 0.0% | M62: 15.7% | N62: 0.593 | O62: 0.778 | P62: 0.46 | Q62: 0.448 | R62: 0.006 | S62: 0.593
A63: Voice changes | B63: 0.0% | C63: 1.3% | D63: 2.8% | E63: 4.2% | F63: 2.4% | G63: 3.1% | H63: 0.0% | I63: 4.5% | J63: 0.0% | K63: 3.3% | L63: 0.0% | M63: 1.7% | N63: - | O63: 0.501 | P63: 0.028 | Q63: 0.767 | R63: 0.103 | S63: -
A64: Slurred speech | B64: 0.0% | C64: 0.0% | D64: 0.6% | E64: 0.0% | F64: 0.0% | G64: 0.3% | H64: 0.0% | I64: 0.0% | J64: 0.0% | K64: 0.0% | L64: 0.0% | M64: 0.0% | N64: - | O64: 0.208 | P64: 0.319 | Q64: - | R64: - | S64: -
A65: Quiet voice | B65: 0.0% | C65: 1.3% | D65: 2.3% | E65: 3.5% | F65: 2.4% | G65: 2.5% | H65: 0.0% | I65: 13.6% | J65: 0.0% | K65: 3.3% | L65: 0.0% | M65: 3.5% | N65: - | O65: - | P65: 0.05 | Q65: 0.805 | R65: 0.132 | S65: -
A66: GI/Digestive | B66: 11.1% | C66: 15.8% | D66: 12.5% | E66: 12.7% | F66: 4.8% | G66: 11.7% | H66: 0.0% | I66: 13.6% | J66: 3.1% | K66: 16.7% | L66: 10.0% | M66: 12.2%
A67: MOUTH & THROAT | B67: 11.1% | C67: 5.3% | D67: 4.0% | E67: 5.3% | F67: 1.6% | G67: 4.5% | H67: 0.0% | I67: 13.6% | J67: 3.1% | K67: 10.0% | L67: 0.0% | M67: 9.6% | N67: - | O67: - | P67: - | Q67: - | R67: - | S67: -
A68: Choking | B68: 0.0% | C68: 2.6% | D68: 1.1% | E68: 0.4% | F68: 0.0% | G68: 0.8% | H68: 0.0% | I68: 4.5% | J68: 0.0% | K68: 3.3% | L68: 0.0% | M68: 2.6% | N68: - | O68: 0.912 | P68: 0.158 | Q68: 0.339 | R68: - | S68: -
A69: Drooling | B69: 5.6% | C69: 0.0% | D69: 2.3% | E69: 2.8% | F69: 0.0% | G69: 2.1% | H69: 0.0% | I69: 9.1% | J69: 0.0% | K69: 3.3% | L69: 0.0% | M69: 5.2% | N69: 0.331 | O69: 0.329 | P69: 0.71 | Q69: 0.641 | R69: - | S69: 0.331
A70: Dry mouth | B70: 0.0% | C70: 0.0% | D70: 0.0% | E70: 0.0% | F70: 0.8% | G70: 0.1% | H70: 0.0% | I70: 4.5% | J70: 3.1% | K70: 6.7% | L70: 0.0% | M70: 5.2% | N70: - | O70: - | P70: - | Q70: - | R70: 0.319
A71: Difficulty swallowing | B71: 5.6% | C71: 3.9% | D71: 1.7% | E71: 3.2% | F71: 0.8% | G71: 2.4% | H71: 0.0% | I71: 0.0% | J71: 0.0% | K71: 0.0% | L71: 0.0% | M71: 0.0% | N71: 0.331 | O71: 0.39 | P71: 0.088 | Q71: 0.61 | R71: 0.319 | S71: 0.331
A72: STOMACH | B72: 0.0% | C72: 0.0% | D72: 0.6% | E72: 0.7% | F72: 0.0% | G72: 0.7% | H72: 0.0% | I72: 0.0% | J72: 0.0% | K72: 0.0% | L72: 0.0% | M72: 0.0% | N72: - | O72: - | P72: - | Q72: - | R72: - | S72: -
A73: Nausea | B73: 0.0% | C73: 0.0% | D73: 0.6% | E73: 0.7% | F73: 0.0% | G73: 0.6% | H73: 0.0% | I73: 0.0% | J73: 0.0% | K73: 0.0% | L73: 0.0% | M73: 0.0% | N73: - | O73: - | P73: 0.139 | Q73: 0.206 | R73: - | S73: -
A74: appetite changes | B74: 0.0% | C74: 0.0% | D74: 0.0% | E74: 0.0% | F74: 0.0% | G74: 0.1% | H74: 0.0% | I74: 0.0% | J74: 0.0% | K74: 0.0% | L74: 0.0% | M74: 0.0% | N74: - | O74: - | P74: - | Q74: - | R74: - | S74: -
A75: BOWEL PROBLEMS | B75: 0.0% | C75: 13.2% | D75: 8.0% | E75: 7.4% | F75: 2.4% | G75: 7.1% | H75: 0.0% | I75: 0.0% | J75: 0.0% | K75: 10.0% | L75: 10.0% | M75: 3.5% | N75: - | O75: 0.002 | P75: <0.001 | Q75: 0.852 | R75: 0.522 | S75: -
A76: URINARY | B76: 5.6% | C76: 7.9% | D76: 7.4% | E76: 5.7% | F76: 3.2% | G76: 6.2% | H76: 0.0% | I76: 9.1% | J76: 6.3% | K76: 6.7% | L76: 10.0% | M76: 8.7%
A77: bladder issues | B77: 5.6% | C77: 7.9% | D77: 6.8% | E77: 4.6% | F77: 3.2% | G77: 5.6% | H77: 0.0% | I77: 9.1% | J77: 6.3% | K77: 6.7% | L77: 10.0% | M77: 8.7% | N77: 0.331 | O77: 0.925 | P77: 0.944 | Q77: 0.918 | R77: 0.455 | S77: 0.331
A78: Incontinence | B78: 0.0% | C78: 1.3% | D78: 1.7% | E78: 1.4% | F78: 1.6% | G78: 1.6% | H78: 0.0% | I78: 4.5% | J78: 6.3% | K78: 3.3% | L78: 0.0% | M78: 6.1% | N78: - | O78: 0.406 | P78: 0.475 | Q78: 0.53 | R78: 0.181 | S78: -
A79: Nocturia | B79: 0.0% | C79: 0.0% | D79: 1.1% | E79: 0.7% | F79: 0.8% | G79: 0.7% | H79: 0.0% | I79: 0.0% | J79: 0.0% | K79: 0.0% | L79: 0.0% | M79: 0.0% | N79: - | O79: - | P79: 0.158 | Q79: 0.158 | R79: 0.319 | S79: -
A80: SEXUAL | B80: 5.6% | C80: 1.3% | D80: 0.0% | E80: 0.7% | F80: 2.4% | G80: 1.0% | H80: 0.0% | I80: 0.0% | J80: 3.1% | K80: 3.3% | L80: 0.0% | M80: 0.9%
A81: Erectile dysfunction (ED) | B81: 0.0% | C81: 1.3% | D81: 0.0% | E81: 0.0% | F81: 0.8% | G81: 0.3% | H81: 0.0% | I81: 0.0% | J81: 0.0% | K81: 3.3% | L81: 0.0% | M81: 0.9% | N81: 0.331 | O81: 0.321 | P81: - | Q81: 0.326 | R81: 0.319 | S81: -
A82: Loss libido/low sexual interest | B82: 5.6% | C82: 0.0% | D82: 0.0% | E82: 0.7% | F82: 1.6% | G82: 0.7% | H82: 0.0% | I82: 0.0% | J82: 3.1% | K82: 0.0% | L82: 0.0% | M82: 0.9% | N82: - | O82: - | P82: 0.325 | Q82: 0.158 | R82: 0.158 | S82: 0.331
A83: ANS | B83: 0.0% | C83: 0.0% | D83: 2.3% | E83: 2.1% | F83: 4.0% | G83: 2.1% | H83: 0.0% | I83: 0.0% | J83: 0.0% | K83: 0.0% | L83: 0.0% | M83: 0.0%
A84: Slowed breathing | B84: 0.0% | C84: 0.0% | D84: 0.6% | E84: 0.0% | F84: 0.0% | G84: 0.1% | H84: 0.0% | I84: 0.0% | J84: 0.0% | K84: 0.0% | L84: 0.0% | M84: 0.0% | N84: - | O84: - | P84: 0.319 | Q84: - | R84: - | S84: -
A85: Low blood pressure/heartrate | B85: 0.0% | C85: 0.0% | D85: 0.0% | E85: 0.4% | F85: 0.0% | G85: 0.1% | H85: 11.1% | I85: 0.0% | J85: 0.0% | K85: 3.3% | L85: 0.0% | M85: 3.5% | N85: 0.347 | O85: - | P85: - | Q85: 0.361 | R85: - | S85: 0.347
A86: Dizziness, lightheadness | B86: 0.0% | C86: 0.0% | D86: 0.0% | E86: 0.7% | F86: 2.4% | G86: 0.7% | H86: 11.1% | I86: 4.5% | J86: 0.0% | K86: 3.3% | L86: 0.0% | M86: 2.6% | N86: 0.347 | O86: 0.329 | P86: - | Q86: 0.395 | R86: 0.095 | S86: 0.347
A87: Temperature regulation | B87: 0.0% | C87: 0.0% | D87: 1.1% | E87: 1.1% | F87: 1.6% | G87: 1.0% | H87: 0.0% | I87: 0.0% | J87: 0.0% | K87: 0.0% | L87: 0.0% | M87: 0.0% | N87: - | O87: - | P87: 0.158 | Q87: 0.09 | R87: 0.158 | S87: -
A88: Perspiration, sweating | B88: 0.0% | C88: 0.0% | D88: 1.1% | E88: 0.0% | F88: 0.0% | G88: 0.3% | H88: 0.0% | I88: 4.5% | J88: 0.0% | K88: 0.0% | L88: 0.0% | M88: 0.9% | N88: - | O88: 0.329 | P88: 0.18 | Q88: - | R88: - | S88: -
A89: FUNCTIONAL IMPACTS
A90: Affects QoL for PwPD | B90: 27.8% | C90: 52.6% | D90: 41.5% | E90: 32.5% | F90: 27.4% | G90: 35.9% | H90: 44.4% | I90: 22.7% | J90: 28.1% | K90: 26.7% | L90: 40.0% | M90: 29.6% | N90: 0.784 | O90: 0.009 | P90: 0.14 | Q90: 0.505 | R90: 0.471 | S90: 0.784
A91: PHYSICAL FUNCTIONING | B91: 61.1% | C91: 71.1% | D91: 73.3% | E91: 58.7% | F91: 52.4% | G91: 63.4% | H91: 88.9% | I91: 100.0% | J91: 87.5% | K91: 83.3% | L91: 70.0% | M91: 87.0%
A92: MOBILITY - all | B92: 44.4% | C92: 57.7% | D92: 57.4% | E92: 45.9% | F92: 44.4% | G92: 49.7% | H92: 77.8% | I92: 81.8% | J92: 71.9% | K92: 73.3% | L92: 50.0% | M92: 72.2% | N92: 0.096 | O92: 0.023 | P92: 0.058 | Q92: 0.002 | R92: 0.683 | S92: 0.096
A93: Affects basic mobility | B93: 44.4% | C93: 57.7% | D93: 54.5% | E93: 44.9% | F93: 42.7% | G93: 48.2% | H93: 77.8% | I93: 81.8% | J93: 71.9% | K93: 73.3% | L93: 50.0% | M93: 72.2% | N93: 0.159 | O93: 0.126 | P93: 0.182 | Q93: 0.124 | R93: 0.262 | S93: 0.159
A94: Being able to move in bed | B94: 0.0% | C94: 1.3% | D94: 3.4% | E94: 0.7% | F94: 0.0% | G94: 1.4% | H94: 0.0% | I94: 0.0% | J94: 0.0% | K94: 0.0% | L94: 0.0% | M94: 0.0% | N94: - | O94: 0.321 | P94: 0.02 | Q94: 0.226 | R94: - | S94: -
A95: Affects turning in bed | B95: 0.0% | C95: 2.6% | D95: 2.8% | E95: 1.8% | F95: 0.0% | G95: 1.8% | H95: 0.0% | I95: 0.0% | J95: 3.1% | K95: 3.3% | L95: 0.0% | M95: 1.7% | N95: - | O95: 0.321 | P95: 0.664 | Q95: 0.654 | R95: - | S95: -
A96: Affects getting up from chair/bed | B96: 0.0% | C96: 0.0% | D96: 2.8% | E96: 2.1% | F96: 3.2% | G96: 2.4% | H96: 11.1% | I96: 4.5% | J96: 3.1% | K96: 3.3% | L96: 0.0% | M96: 3.5% | N96: 0.347 | O96: 0.329 | P96: 0.596 | Q96: 0.506 | R96: 0.045 | S96: 0.347
A97: Affects getting out of car | B97: 0.0% | C97: 2.6% | D97: 1.1% | E97: 0.7% | F97: 0.0% | G97: 0.8% | H97: 0.0% | I97: 0.0% | J97: 0.0% | K97: 0.0% | L97: 0.0% | M97: 0.0% | N97: - | O97: 0.208 | P97: 0.158 | Q97: 0.226 | R97: - | S97: -
A98: Affects standing | B98: 0.0% | C98: 2.6% | D98: 1.1% | E98: 1.1% | F98: 2.4% | G98: 1.4% | H98: 0.0% | I98: 9.1% | J98: 0.0% | K98: 3.3% | L98: 0.0% | M98: 2.6% | N98: - | O98: 0.333 | P98: 0.18 | Q98: 0.507 | R98: 0.083 | S98: -
A99: Affects ability to walk on uneven surfaces | B99: 0.0% | C99: 1.3% | D99: 0.0% | E99: 0.4% | F99: 0.0% | G99: 0.3% | H99: 0.0% | I99: 0.0% | J99: 0.0% | K99: 0.0% | L99: 0.0% | M99: 0.0% | N99: - | O99: 0.321 | P99: - | Q99: 0.318 | R99: - | S99: -
A100: Affects climbing stairs | B100: 0.0% | C100: 2.6% | D100: 1.1% | E100: 0.4% | F100: 0.8% | G100: 1.0% | H100: 0.0% | I100: 0.0% | J100: 3.1% | K100: 0.0% | L100: 0.0% | M100: 0.9% | N100: - | O100: 0.159 | P100: 0.481 | Q100: 0.318 | R100: 0.319 | S100: -
A101: Requires use of assistive device (walker, WC, scooter) | B101: 0.0% | C101: 2.6% | D101: 1.1% | E101: 0.7% | F101: 0.0% | G101: 0.8% | H101: 0.0% | I101: 0.0% | J101: 0.0% | K101: 0.0% | L101: 0.0% | M101: 0.0% | N101: - | O101: 0.159 | P101: 0.158 | Q101: 0.158 | R101: - | S101: -
A102: Affects bending over | B102: 0.0% | C102: 0.0% | D102: 0.6% | E102: 0.0% | F102: 0.0% | G102: 0.1% | H102: 0.0% | I102: 0.0% | J102: 0.0% | K102: 0.0% | L102: 0.0% | M102: 0.0% | N102: - | O102: - | P102: 0.319 | Q102: - | R102: - | S102: -
A103: Affects reaching over head | B103: 0.0% | C103: 0.0% | D103: 0.6% | E103: 0.0% | F103: 0.0% | G103: 0.1% | H103: 0.0% | I103: 0.0% | J103: 0.0% | K103: 0.0% | L103: 0.0% | M103: 0.0% | N103: - | O103: - | P103: 0.319 | Q103: - | R103: - | S103: -
A104: Affects carrying beverage w/o spill | B104: 0.0% | C104: 1.3% | D104: 1.1% | E104: 0.4% | F104: 0.0% | G104: 0.6% | H104: 0.0% | I104: 0.0% | J104: 0.0% | K104: 0.0% | L104: 0.0% | M104: 0.0% | N104: - | O104: 0.321 | P104: 0.158 | Q104: 0.318 | R104: - | S104: -
A105: Breaking things or dropping things | B105: 0.0% | C105: 0.0% | D105: 0.0% | E105: 0.4% | F105: 0.8% | G105: 0.3% | H105: 0.0% | I105: 0.0% | J105: 0.0% | K105: 3.3% | L105: 0.0% | M105: 0.9% | N105: - | O105: - | P105: - | Q105: 0.052 | R105: 0.319 | S105: -
A106: Affects ability to be active and exercise | B106: 27.8% | C106: 31.6% | D106: 33.5% | E106: 24.4% | F106: 22.6% | G106: 27.1% | H106: 22.2% | I106: 27.3% | J106: 40.6% | K106: 33.3% | L106: 30.0% | M106: 31.3% | N106: 0.756 | O106: 0.336 | P106: 0.223 | Q106: 0.419 | R106: 0.647 | S106: 0.765
A107: Affects sports | B107: 0.0% | C107: 11.8% | D107: 3.4% | E107: 3.9% | F107: 4.0% | G107: 4.4% | N107: - | O107: 0.008 | P107: 0.019 | Q107: <0.001 | R107: 0.025 | S107: -
A108: Affects Tai Chi, yoga | B108: 0.0% | C108: 1.3% | D108: 0.0% | E108: 0.0% | F108: 0.8% | G108: 0.3% | H108: - | I108: - | J108: - | K108: - | L108: - | M108: - | N108: - | O108: - | P108: - | Q108: - | R108: - | S108: -
A109: Affects golf | B109: 0.0% | C109: 0.0% | D109: 0.0% | E109: 0.0% | F109: 0.8% | G109: 0.1% | H109: - | I109: - | J109: - | K109: - | L109: - | M109: - | N109: - | O109: - | P109: - | Q109: - | R109: - | S109: -
A110: Affects cycling | B110: 0.0% | C110: 1.3% | D110: 0.6% | E110: 0.4% | F110: 1.6% | G110: 0.8% | H110: - | I110: - | J110: - | K110: - | L110: - | M110: - | N110: - | O110: - | P110: - | Q110: - | R110: - | S110: -
A111: Affects swimming | B111: 0.0% | C111: 0.0% | D111: 0.6% | E111: 0.0% | F111: 0.0% | G111: 0.1% | H111: - | I111: - | J111: - | K111: - | L111: - | M111: - | N111: - | O111: - | P111: - | Q111: - | R111: - | S111: -
A112: Affects ability to walk downhill | B112: 0.0% | C112: 0.0% | D112: 0.0% | E112: 0.4% | F112: 0.0% | G112: 0.1% | H112: - | I112: - | J112: - | K112: - | L112: - | M112: - | N112: - | O112: - | P112: - | Q112: - | R112: - | S112: -
A113: Affects hiking | B113: 0.0% | C113: 2.6% | D113: 1.1% | E113: 0.4% | F113: 0.0% | G113: 0.8% | H113: - | I113: - | J113: - | K113: - | L113: - | M113: - | N113: - | O113: - | P113: - | Q113: - | R113: - | S113: -
A114: FINE MOTOR ACTIVITIES | B114: 27.8% | C114: 11.8% | D114: 7.4% | E114: 11.7% | F114: 8.9% | G114: 10.6% | H114: 0.0% | I114: 18.2% | J114: 9.4% | K114: 6.7% | L114: 0.0% | M114: 7.8% | N114: 0.02 | O114: 0.496 | P114: 0.724 | Q114: 0.325 | R114: <0.001 | S114: 0.02
A115: Loss of hand grip | B115: 0.0% | C115: 1.3% | D115: 0.0% | E115: 1.1% | F115: 0.0% | G115: 0.6% | H115: 0.0% | I115: 0.0% | J115: 0.0% | K115: 0.0% | L115: 0.0% | M115: 0.0% | N115: - | O115: 0.321 | P115: - | Q115: 0.083 | R115: - | S115: -
A116: Affects picking up small items | B116: 0.0% | C116: 1.3% | D116: 0.6% | E116: 1.4% | F116: 0.8% | G116: 1.0% | H116: 0.0% | I116: 0.0% | J116: 0.0% | K116: 0.0% | L116: 0.0% | M116: 0.0% | N116: - | O116: 0.321 | P116: 0.319 | Q116: 0.045 | R116: 0.319 | S116: -
A117: Affects ability to open containers | B117: 0.0% | C117: 0.0% | D117: 0.0% | E117: 0.4% | F117: 0.0% | G117: 0.1% | H117: 0.0% | I117: 0.0% | J117: 0.0% | K117: 0.0% | L117: 0.0% | M117: 0.0% | N117: - | P117: - | Q117: 0.318 | R117: - | S117: -
A118: Altered handwriting | B118: 27.8% | C118: 6.6% | D118: 3.4% | E118: 6.4% | F118: 4.8% | G118: 6.2% | H118: 0.0% | I118: 9.1% | J118: 6.3% | K118: 6.7% | L118: 0.0% | M118: 5.2% | N118: 0.025 | O118: 0.567 | P118: 0.424 | Q118: 0.893 | R118: 0.027 | S118: 0.025
A119: Affects painting, drawing | B119: 0.0% | C119: 1.3% | D119: 1.1% | E119: 0.0% | F119: 0.8% | G119: 0.6% | H119: 0.0% | I119: 0.0% | J119: 0.0% | K119: 0.0% | L119: 0.0% | M119: 0.0% | N119: - | O119: 0.321 | P119: 0.158 | Q119: - | R119: 0.319 | S119: -
A120: Affects iPad use | B120: 0.0% | C120: 0.0% | D120: 0.6% | E120: 0.0% | F120: 0.0% | G120: 0.1% | H120: 0.0% | I120: 4.5% | J120: 0.0% | K120: 0.0% | L120: 0.0% | M120: 0.9% | N120: - | O120: 0.329 | P120: 0.319 | Q120: - | R120: - | S120: -
A121: Affects phone use | B121: 0.0% | C121: 0.0% | D121: 1.7% | E121: 1.1% | F121: 0.8% | G121: 1.0% | H121: 0.0% | I121: 13.6% | J121: 3.1% | K121: 0.0% | L121: 0.0% | M121: 3.5% | N121: - | O121: 0.083 | P121: 0.667 | Q121: 0.083 | R121: 0.319 | S121: -
A122: Affects computer use | B122: 5.6% | C122: 2.6% | D122: 1.1% | E122: 3.9% | F122: 3.2% | G122: 2.8% | H122: 0.0% | I122: 4.5% | J122: 0.0% | K122: 0.0% | L122: 0.0% | M122: 0.9% | N122: 0.331 | O122: 0.699 | P122: 0.18 | Q122: <0.001 | R122: 0.045 | S122: 0.331
A123: WORK OF LIVING | B123: 44.4% | C123: 52.6% | D123: 51.7% | E123: 43.5% | F123: 37.9% | G123: 45.5% | H123: 11.1% | I123: 40.9% | J123: 34.4% | K123: 33.3% | L123: 30.0% | M123: 31.3% | N123: 0.054 | O123: 0.171 | P123: 0.07 | Q123: 0.28 | R123: 0.629 | S123: 0.054
A124: Limits ability to do things (functional impact including ADL) | B124: 38.9% | C124: 47.4% | D124: 43.2% | E124: 35.7% | F124: 28.2% | G124: 37.6% | H124: 11.1% | I124: 36.4% | J124: 21.9% | K124: 33.3% | L124: 30.0% | M124: 27.0% | N124: 0.101 | O124: 0.365 | P124: 0.014 | Q124: 0.771 | R124: 0.913 | S124: 0.101
A125: Makes everything harder/takes more effort | B125: 16.7% | C125: 23.7% | D125: 25.6% | E125: 22.3% | F125: 16.1% | G125: 22.0% | H125: 0.0% | I125: 13.6% | J125: 12.5% | K125: 10.0% | L125: 10.0% | M125: 9.6% | N125: 0.083 | O125: 0.268 | P125: 0.06 | Q125: 0.006 | R125: 0.572 | S125: 0.083
A126: PHYSICAL COMFORT | B126: 5.6% | C126: 18.4% | D126: 18.8% | E126: 14.8% | F126: 12.9% | G126: 15.7% | H126: 22.2% | I126: 9.1% | J126: 21.9% | K126: 23.3% | L126: 0.0% | M126: 15.7% | N126: 0.313 | O126: 0.102 | P126: 0.752 | Q126: 0.42 | R126: <0.001 | S126: 0.313
A127: Causes pain or discomfort | B127: 5.6% | C127: 13.2% | D127: 15.3% | E127: 11.7% | F127: 9.7% | G127: 12.0% | H127: 22.2% | I127: 4.5% | J127: 21.9% | K127: 20.0% | L127: 0.0% | M127: 13.9% | N127: 0.131 | O127: 0.156 | P127: 0.414 | Q127: 0.285 | R127: <0.001 | S127: 0.313
A128: Feeling unwell | B128: 0.0% | C128: 7.9% | D128: 1.7% | E128: 3.5% | F128: 2.4% | G128: 3.5% | H128: 0.0% | I128: 4.5% | J128: 0.0% | K128: 3.3% | L128: 0.0% | M128: 1.7% | N128: - | O128: 0.331 | P128: 0.083 | Q128: 0.521 | R128: 0.158 | S128: -
A129: Affects ability to relax | B129: 0.0% | C129: 2.6% | D129: 2.3% | E129: 1.4% | F129: 1.6% | G129: 1.7% | H129: 0.0% | I129: 0.0% | J129: 0.0% | K129: 0.0% | L129: 0.0% | M129: 0.0% | N129: - | O129: 0.159 | P129: 0.045 | Q129: 0.045 | R129: 0.158 | S129: -
A130: SELF-CARE | B130: 11.1% | C130: 15.8% | D130: 9.7% | E130: 10.2% | F130: 8.9% | G130: 10.7% | H130: 11.1% | I130: 27.3% | J130: 21.9% | K130: 16.7% | L130: 10.0% | M130: 20.9% | N130: 1 | O130: 0.287 | P130: 0.124 | Q130: 0.376 | R130: 0.905 | S130: 1
A131: Makes toileting difficult | B131: 0.0% | C131: 5.3% | D131: 1.7% | E131: 1.4% | F131: 2.4% | G131: 2.4% | H131: 0.0% | I131: 0.0% | J131: 6.3% | K131: 0.0% | L131: 0.0% | M131: 1.7% | N131: - | O131: 0.045 | P131: 0.315 | Q131: 0.045 | R131: 0.083 | S131: -
A132: Affects hygiene, dressing | B132: 5.6% | C132: 3.9% | D132: 4.0% | E132: 4.2% | F132: 3.2% | G132: 4.2% | H132: 0.0% | I132: 4.5% | J132: 6.3% | K132: 13.3% | L132: 0.0% | M132: 7.0% | N132: 0.331 | O132: 0.907 | P132: 0.718 | Q132: 0.23 | R132: 0.519 | S132: 0.331
A133: Causes odor (urine/bowel incontinence) | B133: 0.0% | C133: 1.3% | D133: 0.0% | E133: 0.0% | F133: 0.0% | G133: 0.1% | H133: 0.0% | I133: 0.0% | J133: 0.0% | K133: 0.0% | L133: 0.0% | M133: 0.0% | N133: - | O133: 0.321 | P133: - | Q133: - | R133: - | S133: -
A134: Affects eating | B134: 11.1% | C134: 7.9% | D134: 5.1% | E134: 6.0% | F134: 3.2% | G134: 5.5% | H134: 11.1% | I134: 22.7% | J134: 12.5% | K134: 3.3% | L134: 10.0% | M134: 13.9% | N134: 1 | O134: 0.156 | P134: 0.228 | Q134: 0.372 | R134: 0.519 | S134: 1
A135: SAFETY | B135: 11.1% | C135: 21.1% | D135: 18.2% | E135: 11.3% | F135: 6.5% | G135: 13.1% | H135: 44.4% | I135: 50.0% | J135: 25.0% | K135: 20.0% | L135: 20.0% | M135: 33.0% | N135: 0.06 | O135: 0.04 | P135: 0.845 | Q135: 0.911 | R135: 0.403 | S135: 0.06
A136: Safety | B136: 5.6% | C136: 18.4% | D136: 15.9% | E136: 10.2% | F136: 4.8% | G136: 11.4% | H136: 44.4% | I136: 50.0% | J136: 21.9% | K136: 20.0% | L136: 20.0% | M136: 31.3% | N136: 0.062 | O136: 0.021 | P136: 0.71 | Q136: 0.173 | R136: 0.345 | S136: 0.062
A137: Falling | B137: 5.6% | C137: 13.2% | D137: 13.1% | E137: 8.8% | F137: 3.2% | G137: 9.0% | H137: 44.4% | I137: 22.7% | J137: 9.4% | K137: 0.0% | L137: 0.0% | M137: 15.7% | N137: 0.162 | O137: 0.459 | P137: 0.952 | Q137: <0.001 | R137: 0.109 | S137: 0.162
A138: PSYCHOSOCIAL FUNCTIONING | B138: 83.3% | C138: 72.4% | D138: 73.9% | E138: 60.4% | F138: 60.5% | G138: 65.7% | H138: 77.8% | I138: 86.4% | J138: 78.1% | K138: 86.7% | L138: 80.0% | M138: 80.9%
A139: INDEPENDENCE | B139: 11.1% | C139: 19.7% | D139: 21.6% | E139: 14.8% | F139: 7.3% | G139: 15.7% | H139: 0.0% | I139: 22.7% | J139: 15.6% | K139: 20.0% | L139: 50.0% | M139: 20.0% | N139: 0.163 | O139: 0.772 | P139: 0.413 | Q139: 0.509 | R139: 0.031 | S139: 0.163
A140: Affects sense of self reliance/independence | B140: 11.1% | C140: 7.9% | D140: 12.5% | E140: 6.4% | F140: 2.4% | G140: 7.5% | H140: 0.0% | I140: 13.6% | J140: 12.5% | K140: 13.3% | L140: 40.0% | M140: 14.8% | N140: 0.215 | O140: 0.357 | P140: 0.494 | Q140: 0.316 | R140: 0.047 | S140: 0.215
A141: Symptoms require planning prior to going out | B141: 0.0% | C141: 2.6% | D141: 2.3% | E141: 0.0% | F141: 0.0% | G141: 1.3% | H141: 0.0% | I141: 0.0% | J141: 0.0% | K141: 0.0% | L141: 0.0% | M141: 0.0% | N141: - | O141: 0.159 | P141: 0.045 | Q141: 0.626 | R141: - | S141: -
A142: Affects driving | B142: 5.6% | C142: 5.3% | D142: 4.0% | E142: 2.8% | F142: 0.0% | G142: 3.0% | H142: 0.0% | I142: 9.1% | J142: 3.1% | K142: 6.7% | L142: 30.0% | M142: 7.0% | N142: 0.331 | O142: 0.988 | P142: 0.402 | Q142: 0.318 | R142: 0.168 | S142: 0.331
A143: Affects use of public transportation (train, bus) | B143: 0.0% | C143: 3.9% | D143: 1.1% | E143: 0.4% | F143: 0.8% | G143: 1.0% | H143: 0.0% | I143: 0.0% | J143: 0.0% | K143: 0.0% | L143: 0.0% | M143: 0.0% | N143: - | O143: 0.083 | P143: 0.518 | Q143: 0.342 | R143: 0.319 | S143: -
A144: Affects cooking | B144: 0.0% | C144: 0.0% | D144: 1.7% | E144: 2.1% | F144: 1.6% | G144: 1.6% | H144: 0.0% | I144: 4.5% | J144: 0.0% | K144: 6.7% | L144: 0.0% | M144: 2.6% | N144: - | O144: 0.329 | P144: 0.083 | Q144: 0.342 | R144: 0.227 | S144: -
A145: Affects housework/home maintenance | B145: 0.0% | C145: 2.6% | D145: 4.0% | E145: 3.5% | F145: 2.4% | G145: 3.2% | H145: 0.0% | I145: 0.0% | J145: 0.0% | K145: 6.7% | L145: 0.0% | M145: 1.7% | N145: - | O145: 0.159 | P145: 0.008 | Q145: 0.515 | R145: 0.083 | S145: -
A146: Affects shopping | B146: 0.0% | C146: 2.6% | D146: 3.4% | E146: 2.5% | F146: 1.6% | G146: 2.4% | H146: 0.0% | I146: 9.1% | J146: 0.0% | K146: 3.3% | L146: 0.0% | M146: 2.6% | N146: - | O146: 0.333 | P146: 0.014 | Q146: 0.805 | R146: 0.158 | S146: -
A147: SELF-CONCEPT | B147: 38.9% | C147: 42.1% | D147: 28.4% | E147: 27.6% | F147: 34.7% | G147: 31.5% | H147: 11.1% | I147: 27.3% | J147: 28.1% | K147: 36.7% | L147: 30.0% | M147: 28.7% | N147: 0.101 | O147: 0.196 | P147: 0.428 | Q147: 0.786 | R147: 0.774 | S147: 0.101
A148: Self-conscious, stigma, looking drunk, etc. | B148: 22.2% | C148: 17.1% | D148: 15.3% | E148: 14.1% | F148: 21.8% | G148: 16.0% | H148: 0.0% | I148: 9.1% | J148: 9.4% | K148: 6.7% | L148: 0.0% | M148: 7.0% | N148: 0.042 | O148: 0.3 | P148: 0.249 | Q148: 0.121 | R148: <0.001 | S148: 0.042
A149: Feelings of embarrassment | B149: 0.0% | C149: 7.9% | D149: 6.8% | E149: 6.0% | F149: 10.5% | G149: 6.8% | H149: 0.0% | I149: 0.0% | J149: 15.6% | K149: 10.0% | L149: 0.0% | M149: 9.6% | N149: - | O149: 0.049 | P149: 0.203 | Q149: 0.492 | R149: <0.001 | S149: -
A150: Not having a "normal" life | B150: 16.7% | C150: 9.2% | D150: 5.1% | E150: 7.4% | F150: 7.3% | G150: 7.8% | H150: 0.0% | I150: 0.0% | J150: 0.0% | K150: 0.0% | L150: 0.0% | M150: 0.0% | N150: 0.347 | O150: 0.007 | P150: 0.002 | Q150: 0.001 | R150: 0.002 | S150: 0.083
A151: Loss of professional identity | B151: 0.0% | C151: 2.6% | D151: 0.6% | E151: 1.1% | F151: 3.2% | G151: 1.4% | H151: 0.0% | I151: 0.0% | J151: 0.0% | K151: 0.0% | L151: 0.0% | M151: 0.0% | N151: - | O151: 0.159 | P151: 0.319 | Q151: 0.083 | R151: 0.045 | S151: -
A152: Decreased self worth | B152: 0.0% | C152: 2.6% | D152: 0.6% | E152: 0.7% | F152: 1.6% | G152: 1.1% | H152: 0.0% | I152: 0.0% | J152: 3.1% | K152: 0.0% | L152: 10.0% | M152: 2.6% | N152: - | O152: 0.159 | P152: 0.427 | Q152: 0.158 | R152: 0.382 | S152: -
A153: Affects self-confidence | B153: 0.0% | C153: 13.2% | D153: 8.0% | E153: 4.6% | F153: 5.6% | G153: 6.8% | H153: 11.1% | I153: 22.7% | J153: 12.5% | K153: 26.7% | L153: 30.0% | M153: 18.3% | N153: - | O153: 0.249 | P153: 0.469 | Q153: 0.025 | R153: 0.199 | S153: 0.347
A154: COPING | B154: 11.1% | C154: 46.1% | D154: 45.5% | E154: 34.6% | F154: 37.9% | G154: 38.4% | H154: 33.3% | I154: 36.4% | J154: 34.4% | K154: 36.7% | L154: 50.0% | M154: 37.4% | N154: 0.25 | O154: 0.424 | P154: 0.617 | Q154: 0.577 | R154: 0.498 | S154: 0.25
A155: Fear - of Future and disease progression | B155: 5.6% | C155: 17.1% | D155: 9.1% | E155: 5.7% | F155: 10.5% | G155: 8.3% | H155: 11.1% | I155: 4.5% | J155: 0.0% | K155: 0.0% | L155: 10.0% | M155: 2.6% | N155: 0.663 | O155: 0.039 | P155: <0.001 | Q155: <0.001 | R155: 0.517 | S155: 0.663
A156: Most frustrating symptoms | B156: 0.0% | C156: 6.6% | D156: 6.3% | E156: 3.9% | F156: 5.6% | G156: 5.1% | H156: 0.0% | I156: 0.0% | J156: 0.0% | K156: 0.0% | L156: 0.0% | M156: 0.0% | N156: - | O156: 0.024 | P156: <0.001 | Q156: <0.001 | R156: 0.008 | S156: -
A157: Symptoms are more debilitating | B157: 5.6% | C157: 5.3% | D157: 7.4% | E157: 2.5% | F157: 3.2% | G157: 4.8% | H157: 0.0% | I157: 0.0% | J157: 0.0% | K157: 0.0% | L157: 0.0% | M157: 0.0% | N157: 0.331 | O157: 0.045 | P157: <0.001 | Q157: 0.008 | R157: 0.045 | S157: 0.331
A158: Reminds you that you have PD | B158: 0.0% | C158: 9.2% | D158: 3.4% | E158: 3.5% | F158: 8.9% | G158: 4.9% | H158: 0.0% | I158: 0.0% | J158: 3.1% | K158: 0.0% | L158: 0.0% | M158: 0.9% | N158: - | O158: 0.007 | P158: 0.934 | Q158: 0.001 | R158: <0.001 | S158: -
A159: Worried about cost of care or caregiving | B159: 0.0% | C159: 0.0% | D159: 0.0% | E159: 0.0% | F159: 0.0% | G159: 0.0% | H159: 0.0% | I159: 0.0% | J159: 0.0% | K159: 0.0% | L159: 0.0% | M159: 0.0% | N159: - | O159: - | P159: - | Q159: - | R159: - | S159: -
A160: Hard to cope with | B160: 0.0% | C160: 17.1% | D160: 5.1% | E160: 6.0% | F160: 9.7% | G160: 7.8% | H160: 11.1% | I160: 4.5% | J160: 12.5% | K160: 13.3% | L160: 20.0% | M160: 12.2% | N160: 0.347 | O160: 0.05 | P160: 0.282 | Q160: 0.266 | R160: 0.466 | S160: 0.347
A161: It's unpredictable | B161: 0.0% | C161: 7.9% | D161: 5.1% | E161: 3.2% | F161: 1.6% | G161: 3.8% | H161: 11.1% | I161: 9.1% | J161: 6.3% | K161: 6.7% | L161: 10.0% | M161: 7.0% | N161: 0.347 | O161: 0.751 | P161: 0.912 | Q161: 0.486 | R161: 0.383 | S161: 0.347
A162: Affect general well being | B162: 0.0% | C162: 1.3% | D162: 0.0% | E162: 1.1% | F162: 0.0% | G162: 0.8% | H162: 0.0% | I162: 0.0% | J162: 0.0% | K162: 0.0% | L162: 0.0% | M162: 0.0% | N162: - | O162: 0.321 | P162: - | Q162: 0.083 | R162: - | S162: -
A163: Causes mental exhaustion | B163: 0.0% | C163: 0.0% | D163: 4.0% | E163: 3.9% | F163: 1.6% | G163: 3.0% | H163: 0.0% | I163: 4.5% | J163: 0.0% | K163: 0.0% | L163: 0.0% | M163: 0.9% | N163: - | O163: 0.329 | P163: 0.003 | Q163: <0.001 | R163: 0.158 | S163: -
A164: Stress, frustration, distress | B164: 0.0% | C164: 15.8% | D164: 15.3% | E164: 12.4% | F164: 8.9% | G164: 12.3% | H164: 11.1% | I164: 0.0% | J164: 18.8% | K164: 23.3% | L164: 20.0% | M164: 16.5% | N164: 0.347 | O164: 0.001 | P164: 0.886 | Q164: 0.151 | R164: 0.432 | S164: 0.347
A165: Causes worry, fear | B165: 0.0% | C165: 5.3% | D165: 5.1% | E165: 4.2% | F165: 2.4% | G165: 4.1% | H165: 0.0% | I165: 18.2% | J165: 9.4% | K165: 13.3% | L165: 0.0% | M165: 9.6% | N165: - | O165: 0.155 | P165: 0.443 | Q165: 0.167 | R165: 0.083 | S165: -
A166: Lost what is most important | B166: 0.0% | C166: 3.9% | D166: 2.3% | E166: 3.5% | F166: 4.0% | G166: 3.1% | H166: 0.0% | I166: 4.5% | J166: 3.1% | K166: 3.3% | L166: 10.0% | M166: 3.5% | N166: - | O166: 0.907 | P166: 0.799 | Q166: 3955 | R166: 0.57 | S166: -
A167: INTERPERSONAL INTERACTIONS | B167: 38.9% | C167: 32.9% | D167: 34.1% | E167: 24.4% | F167: 19.4% | G167: 27.4% | H167: 77.8% | I167: 68.2% | J167: 50.0% | K167: 56.7% | L167: 60.0% | M167: 60.0% | N167: 0.054 | O167: 0.004 | P167: 0.107 | Q167: 0.002 | R167: 0.036 | S167: 0.054
A168: Affects social life | B168: 16.7% | C168: 31.6% | D168: 27.8% | E168: 19.8% | F168: 16.9% | G168: 22.9% | H168: 22.2% | I168: 22.7% | J168: 25.0% | K168: 36.7% | L168: 40.0% | M168: 28.7% | N168: 0.752 | O168: 0.409 | P168: 0.739 | Q168: 0.077 | R168: 0.197 | S168: 0.752
A169: Affects relationships with others | B169: 22.2% | C169: 14.5% | D169: 17.0% | E169: 13.1% | F169: 8.9% | G169: 13.7% | H169: 11.1% | I169: 9.1% | J169: 21.9% | K169: 13.3% | L169: 20.0% | M169: 18.3% | N169: 0.468 | O169: 0.476 | P169: 0.547 | Q169: 0.947 | R169: 0.432 | S169: 0.468
A170: Affects communication | B170: 33.3% | C170: 13.2% | D170: 14.8% | E170: 11.3% | F170: 8.9% | G170: 12.7% | H170: 22.2% | I170: 45.5% | J170: 21.9% | K170: 26.7% | L170: 10.0% | M170: 27.0% | N170: 0.322 | O170: 0.023 | P170: 0.374 | Q170: 0.075 | R170: 0.915 | S170: 0.322
A171: Affects spouse/partner/CG (burden,QoL, sleep, injury, relationship as couple) | B171: 5.6% | C171: 2.6% | D171: 6.3% | E171: 1.8% | F171: 2.4% | G171: 3.4% | H171: 55.6% | I171: 22.7% | J171: 25.0% | K171: 40.0% | L171: 50.0% | M171: 36.5% | N171: 0.022 | O171: 0.042 | P171: 0.025 | Q171: <0.001 | R171: 0.019 | S171: 0.022
A172: Contributes to isolation | B172: 16.7% | C172: 13.2% | D172: 5.1% | E172: 3.2% | F172: 0.8% | G172: 4.5% | H172: 0.0% | I172: 13.6% | J172: 15.6% | K172: 13.3% | L172: 30.0% | M172: 14.8% | N172: 0.083 | O172: 0.955 | P172: 0.127 | Q172: 0.123 | R172: 0.088 | S172: 0.083
A173: RESPONSIBILITIES | B173: 16.7% | C173: 5.3% | D173: 7.4% | E173: 9.5% | F173: 13.7% | G173: 9.3% | H173: 0.0% | I173: 4.5% | J173: 6.3% | K173: 13.3% | L173: 0.0% | M173: 6.1% | N173: 0.083 | O173: 0.892 | P173: 0.813 | Q173: 0.566 | R173: <0.001 | S173: 0.083
A174: Affects caring for pets | B174: 5.6% | C174: 0.0% | D174: 1.1% | E174: 0.7% | F174: 0.8% | G174: 0.8% | H174: 0.0% | I174: 0.0% | J174: 0.0% | K174: 6.7% | L174: 0.0% | M174: 1.7% | N174: 0.331 | O174: - | P174: 0.158 | Q174: 0.211 | R174: 0.319 | S174: 0.331
A175: Affects child-care, care of grandchildern | B175: 0.0% | C175: 1.3% | D175: 0.6% | E175: 0.7% | F175: 1.6% | G175: 0.8% | H175: 0.0% | I175: 0.0% | J175: 0.0% | K175: 0.0% | L175: 0.0% | M175: 0.0% | N175: - | O175: 0.321 | P175: 0.319 | Q175: 0.158 | R175: 0.158 | S175: -
A176: Affects paperwork/tasks | B176: 0.0% | C176: 0.0% | D176: 0.0% | E176: 2.1% | F176: 0.8% | G176: 1.0% | H176: 0.0% | I176: 0.0% | J176: 0.0% | K176: 3.3% | L176: 0.0% | M176: 0.9% | N176: - | O176: - | P176: - | Q176: 0.727 | R176: 0.778 | S176: -
A177: Affects finances | B177: 0.0% | C177: 0.0% | D177: 0.0% | E177: 0.4% | F177: 0.0% | G177: 0.1% | H177: 0.0% | I177: 0.0% | J177: 0.0% | K177: 0.0% | L177: 0.0% | M177: 0.0% | N177: - | O177: - | P177: - | Q177: 0.318 | R177: - | S177: -
A178: Affects career or employment | B178: 11.1% | C178: 3.9% | D178: 5.7% | E178: 6.7% | F178: 10.5% | G178: 6.9% | H178: 0.0% | I178: 4.5% | J178: 6.3% | K178: 6.7% | L178: 0.0% | M178: 4.3% | N178: 0.163 | O178: 0.907 | P178: 0.827 | Q178: 0.992 | R178: <0.001 | S178: -
A179: PLEASURABLE ACTIVITIES | B179: 16.7% | C179: 35.5% | D179: 31.3% | E179: 17.7% | F179: 17.7% | G179: 23.2% | H179: 22.2% | I179: 27.3% | J179: 31.3% | K179: 23.3% | L179: 20.0% | M179: 27.8% | N179: 0.752 | O179: 0.465 | P179: 1 | Q179: 0.493 | R179: 0.873 | S179: 0.752
A180: Loss of things you enjoy doing | B180: 16.7% | C180: 23.7% | D180: 23.3% | E180: 14.1% | F180: 13.7% | G180: 17.8% | H180: 22.2% | I180: 22.7% | J180: 28.1% | K180: 16.7% | L180: 20.0% | M180: 23.5% | N180: 0.752 | O180: 0.927 | P180: 0.581 | Q180: 0.728 | R180: 0.656 | S180: 0.752
A181: Makes it difficult to enjoy conversation | B181: 0.0% | C181: 0.0% | D181: 1.1% | E181: 0.7% | F181: 0.0% | G181: 1.0% | H181: 0.0% | I181: 0.0% | J181: 0.0% | K181: 0.0% | L181: 0.0% | M181: 0.0% | N181: - | O181: - | P181: 0.158 | Q181: 0.158 | R181: - | S181: -
A182: Affects travel plans | B182: 0.0% | C182: 7.9% | D182: 7.4% | E182: 2.5% | F182: 0.8% | G182: 4.2% | H182: 0.0% | I182: 0.0% | J182: 0.0% | K182: 3.3% | L182: 0.0% | M182: 0.9% | N182: - | O182: 0.013 | P182: <0.001 | Q182: 0.805 | R182: 0.778 | S182: -
A183: Affects hobbies | B183: 0.0% | C183: 1.3% | D183: 6.8% | E183: 3.9% | F183: 1.6% | G183: 3.8% | H183: 0.0% | I183: 27.3% | J183: 15.6% | K183: 13.3% | L183: 10.0% | M183: 14.8% | N183: - | O183: 0.015 | P183: 0.203 | Q183: 0.151 | R183: 0.426 | S183: -
A184: Affects photography | B184: 0.0% | C184: 0.0% | D184: 0.6% | E184: 0.0% | F184: 0.0% | G184: 0.1% | H184: 0.0% | I184: 0.0% | J184: 0.0% | K184: 0.0% | L184: 0.0% | M184: 0.0% | N184: - | O184: - | P184: 0.319 | Q184: - | R184: - | S184: -
A185: Affects gardening | B185: 0.0% | C185: 5.3% | D185: 4.0% | E185: 1.8% | F185: 0.8% | G185: 2.5% | H185: 0.0% | I185: 0.0% | J185: 0.0% | K185: 0.0% | L185: 0.0% | M185: 0.0% | N185: - | O185: 0.045 | P185: 0.008 | Q185: 0.025 | R185: 0.319 | S185: -
A186: Affects sewing/embroider | B186: 0.0% | C186: 0.0% | D186: 0.0% | E186: 0.4% | F186: 0.0% | G186: 0.1% | H186: 0.0% | I186: 0.0% | J186: 0.0% | K186: 0.0% | L186: 0.0% | M186: 0.0% | N186: - | O186: - | P186: - | Q186: 0.318 | R186: - | S186: -
A187: Affects ability to be still | B187: 0.0% | C187: 1.3% | D187: 0.0% | E187: 0.0% | F187: 0.0% | G187: 0.1% | H187: 0.0% | I187: 0.0% | J187: 0.0% | K187: 0.0% | L187: 0.0% | M187: 0.0% | N187: - | O187: 0.321 | P187: - | Q187: - | R187: - | S187: -
A188: Affects watching tv | B188: 0.0% | C188: 1.3% | D188: 0.0% | E188: 0.0% | F188: 0.0% | G188: 0.1% | H188: 0.0% | I188: 0.0% | J188: 0.0% | K188: 0.0% | L188: 0.0% | M188: 0.0% | N188: - | O188: 0.321 | P188: - | Q188: - | R188: - | S188: -
A189: Affects playing musical instrument | B189: 0.0% | C189: 0.0% | D189: 0.6% | E189: 0.4% | F189: 2.4% | G189: 0.7% | H189: 0.0% | I189: 4.5% | J189: 0.0% | K189: 0.0% | L189: 10.0% | M189: 1.7% | N189: - | O189: 0.329 | P189: 0.319 | Q189: 0.318 | R189: 0.471 | S189: -
A190: Affects singing | B190: 0.0% | C190: 0.0% | D190: 0.0% | E190: 0.7% | F190: 0.0% | G190: 0.3% | H190: 0.0% | I190: 0.0% | J190: 0.0% | K190: 0.0% | L190: 0.0% | M190: 0.0% | N190: - | O190: - | P190: - | Q190: 0.158 | R190: - | S190: -
A191: Affects holiday traditions (Christmas decorations, etc) | B191: 0.0% | C191: 0.0% | D191: 1.7% | E191: 0.4% | F191: 0.0% | G191: 0.6% | H191: 0.0% | I191: 0.0% | J191: 0.0% | K191: 0.0% | L191: 0.0% | M191: 0.0% | N191: - | O191: - | P191: 0.083 | Q191: 0.318 | R191: - | S191: -
A192: Affects dining out | B192: 0.0% | C192: 2.6% | D192: 0.0% | E192: 0.4% | F192: 0.8% | G192: 0.6% | H192: 0.0% | I192: 0.0% | J192: 0.0% | K192: 0.0% | L192: 0.0% | M192: 0.0% | N192: - | O192: 0.159 | P192: - | Q192: 0.318 | R192: 0.319 | S192: -
A193: Affects reading | B193: 0.0% | C193: 3.9% | D193: 0.6% | E193: 0.4% | F193: 0.0% | G193: 0.7% | H193: 0.0% | I193: 0.0% | J193: 0.0% | K193: 0.0% | L193: 0.0% | M193: 0.0% | N193: - | O193: 0.083 | P193: 0.319 | Q193: 0.318 | R193: - | S193: -
A194: OTHER IMPORTANT ASPECTS OF PD EXPERIENCE LISTED IN SURVEY
A195: CONTEXTUAL FACTORS | B195: 0.0% | C195: 0.0% | D195: 0.0% | E195: 0.0% | F195: 0.0% | G195: 0.0% | H195: 0.0% | I195: 0.0% | J195: 0.0% | K195: 0.0% | L195: 0.0% | M195: 0.0%
A196: Frequency and severity | B196: 61.1% | C196: 71.1% | D196: 69.3% | E196: 64.3% | F196: 62.1% | G196: 66.1% | H196: 44.4% | I196: 22.7% | J196: 28.1% | K196: 43.3% | L196: 40.0% | M196: 33.0% | N196: - | O196: - | P196: - | Q196: - | R196: - | S196: -
A197: Biggest impact on daily life (dominates life) | B197: 61.1% | C197: 59.2% | D197: 51.7% | E197: 42.4% | F197: 41.1% | G197: 48.0% | H197: 44.4% | I197: 18.2% | J197: 28.1% | K197: 40.0% | L197: 40.0% | M197: 31.3% | N197: - | O197: - | P197: - | Q197: - | R197: - | S197: -
A198: most frequent/evident symptoms | B198: 0.0% | C198: 27.6% | D198: 28.4% | E198: 32.2% | F198: 30.6% | G198: 29.9% | H198: 0.0% | I198: 4.5% | J198: 0.0% | K198: 3.3% | L198: 10.0% | M198: 3.5% | N198: - | O198: - | P198: - | Q198: - | R198: - | S198: -
A199: looking for improved PD management | B199: 22.2% | C199: 30.3% | D199: 26.1% | E199: 18.4% | F199: 14.5% | G199: 20.8% | H199: 33.3% | I199: 27.3% | J199: 21.9% | K199: 20.0% | L199: 20.0% | M199: 24.3% | N199: - | O199: - | P199: - | Q199: - | R199: - | S199: -
A200: Want better treatment/cure | B200: 11.1% | C200: 14.5% | D200: 10.2% | E200: 9.5% | F200: 7.3% | G200: 10.2% | H200: 22.2% | I200: 13.6% | J200: 15.6% | K200: 13.3% | L200: 10.0% | M200: 16.5% | N200: - | O200: - | P200: - | Q200: - | R200: - | S200: -
... 16 more rows

Sheet Suvey questions
A1: Survey Questions
A2: 1. Please confirm that by participating in this survey, you are consenting to the data being used in this way.
A3: 2. What is your association with Parkinson's? (Please select one)
A5: · I have Parkinson's
A6: · I am a carer/partner/family member or friend
A7: · I am a bereaved carer/partner/family member or friend
A9: For People with Parkinson's | B9: For Family/Caregivers
A10: 3. What age are you? | B10: 3. What age is the person with Parkinson's?
A11: 4. When were you diagnosed with Parkinson’s? | B11: 4. When were they diagnosed with Parkinson’s?
A12: 5. What particular aspects of your Parkinson's would, if improved, make the biggest difference to your life? These could be movement or non-movement symptoms, or could be side effects related to your Parkinson's treatment. Please list up to three in the boxes below with the most important first. | B12: 5. What particular aspects of your loved one's Parkinson's would, if improved, make the biggest difference to your lives? These could be movement or non-movement symptoms, or could be side effects related to Parkinson's treatment. Please list up to three in the boxes below with the most important first."
A13: 6. Please tell us why you chose these? | B13: 6. Please tell us why you chose these?

Sheet CG FULL DATA
E1: 115 | F1: 115 | G1: 115 | H1: 115 | I1: NO CLEAR RATIONALE | J1: SYMPTOMS | K1: MOVEMENT | L1: SLOW MOVEMENT | M1: Bradykinesia, slowness | N1: Dexterity/fine motor | O1: Loss of coordination | P1: STIFFNESS | Q1: Stiffness and loss of flexibility | R1: Altered facial expressions | S1: WALKING & BALANCE | T1: Akinesia, freezing | U1: Trouble walking/altered gait | V1: Arm swing | W1: Balance | X1: Stooped or leaning posture | Y1: TREMOR | Z1: Tremors ( n = 8 called shaking) | AA1: INVOLUNTARY MOVEMENTS | AB1: Dystonia, cramping, spasms (face, muscle, feet, hands) | AC1: Dyskinesia, involuntary, erratic, jerking motions | AD1: Blethrospasm? | AE1: Restless leg syndrome | AF1: COGNITION | AG1: Cognitive - Memory | AH1: Affects cognitive function (clear thinking, alertness) | AI1: Slow thinking (Cognitive - processing speed/slowing) | AJ1: Ablity to concentrate | AK1: Limits ability to multi-task | AL1: Word forming/word finding (? expressive aphasia) | AM1: Executive function/decision making | AN1: PD Dementia | AO1: PSYCHIATRIC | AP1: Non-specific psychological | AQ1: MOOD | AR1: Mood changes | AS1: Low motivation/apathy | AT1: Depression | AU1: Anxiety | AV1: Irritability | AW1: PERSONALITY | AX1: personality changes | AY1: PSYCHOSIS | AZ1: Hallucinations | BA1: SENSATION | BB1: FIVE SENSES | BC1: Vision problems (double vision, eye lid movement, vision changes) | BD1: Altered sensations - Pin and needle senstation; numbness | BE1: Sense of smell | BF1: Altered or loss taste | BG1: OTHER SENSATIONS | BH1: Breathlessness | BI1: Pain | BJ1: Weakness/loss of strength | BK1: Fatigue/loss of energy/tired | BL1: Restlessness | BM1: SLEEP | BN1: SLEEP DISTRUBANCES | BO1: Impaired sleep | BP1: RBSD | BQ1: Vivid dreams/ Nightmares | BR1: DAYTIME SLEEPINESS | BS1: Daytime sleepiness | BT1: SPEECH | BU1: Altered speech | BV1: Voice changes | BW1: Slurred speech | BX1: Quiet voice | BY1: GI | BZ1: Non-specific GI symptoms | CA1: MOUTH & THROAT | CB1: Choking | CC1: Drooling | CD1: Dry mouth | CE1: Impaired swallowing | CF1: STOMACH | CG1: Nausea | CH1: Appetite changes | CI1: BOWEL | CJ1: Bowels | CK1: URINARY | CL1: bladder issues | CM1: Incontinence | CN1: Nocturia | CO1: SEXUAL | CP1: Erectile dysfunction (ED) | CQ1: Loss libido/low sexual interest | CR1: ANS | CS1: Slowed breathing/Bradypena | CT1: CARDIOVASCULAR | CU1: Low blood pressure | CV1: LIGHTHEADEDNESS/DIZZINESS | CW1: Dizziness, lightheadedness | CX1: THERMOREGULATION | CY1: Temperature regulation | CZ1: SECRETIONS (SWEATING) | DA1: Perspiration, sweating | DB1: FUNCTIONAL IMPACTS | DC1: Affects QoL for PwPD | DD1: FUNCTIONAL IMPACT physical & psychosocial | DE1: PHYSICAL FUNCTIONING | DF1: GENERAL MOBILITY | DG1: Affects mobility | DH1: Being able to move in bed | DI1: Affects turning in bed | DJ1: Affects getting up from chair/bed | DK1: Affects getting out of car | DL1: Affects standing | DM1: Affects ability to walk on uneven surfaces | DN1: Affects climbing stairs | DO1: Requires use of assistive device (walker, WC, scooter) | DP1: Affects bending over | DQ1: Affects reaching over head | DR1: Affects carrying beverage w/o spill | DS1: Breaking things or dropping things | DT1: SPORTS & EXERCISE | DU1: Affects ability to be active and exercise | DV1: Affects sports | DW1: Affects Tai Chi, yoga | DX1: Affects golf | DY1: Affects cycling | DZ1: Affects swimming | EA1: Affects ability to walk downhill | EB1: Affects hiking | EC1: FINE MOTOR ACTIVITIES | ED1: Loss of hand grip | EE1: Affects picking up small items | EF1: Affects ability to open containers | EG1: Affects handwriting | EH1: Affects painting, drawing | EI1: Affects iPad use | EJ1: Affects phone use | EK1: Affects computer use | EL1: WORK OF LIVING | EM1: Limits ability to do things (functional impact) | EN1: Makes everything harder/takes more effort | EO1: PHYSICAL COMFORT | EP1: Causes pain | EQ1: Feeling unwell | ER1: Ability to relax | ES1: SELF-CARE | ET1: Makes toileting difficult | EU1: Affects hygiene, dressing | EV1: Causes odor (urine/bowel incontinence) | EW1: Affects eating | EX1: SAFETY | EY1: Safety | EZ1: Falling | FA1: PSYCHOSOCIAL FUNCTIONING | FB1: INDEPENDENCE | FC1: Affects sense of self reliance/independence | FD1: Symptoms require planning prior to going out | FE1: Affects driving | FF1: Affects use of public transportation (train, bus) | FG1: Affects cooking | FH1: Affects housework/home maintenance | FI1: Affects shopping | FJ1: SELF-CONCEPT | FK1: Self-conscious, stigma, looking drunk, etc. | FL1: Feelings of embarrassment | FM1: Altered self-concept | FN1: Not having a "normal" life | FO1: Loss of professional identity | FP1: Decreased self worth | FQ1: Affects self-confidence | FR1: COPING | FS1: Fear - of Future and disease progression | FT1: Most frustrating symptoms | FU1: Symptoms are more debilitating | FV1: Reminds you that you have PD | FW1: Worried about cost of care or caregiving | FX1: Hard to cope with | FY1: Its unpredictable | FZ1: Affects general well being | GA1: Causes mental exhaustion | GB1: Causes stress, frustration, distress | GC1: Causes worry, fear | GD1: Lost what is most important | GE1: INTERPERSONAL INTERACTIONS | GF1: Affects social life | GG1: Affects relationships with others | GH1: Affects communication | GI1: Affects spouse/partner/CG (burden,QoL, sleep, injury, relationship as couple) | GJ1: Contributes to isolation | GK1: RESPONSIBILITIES | GL1: Affects caring for pets | GM1: Affects child-care, care of grandchildern | GN1: Affects paperwork/tasks | GO1: Affects finances | GP1: Affects career or employment | GQ1: PLEASURABLE ACTIVITIES | GR1: Loss of things you enjoy doing | GS1: Makes it difficulty to enjoy conversation | GT1: Affects travel plans | GU1: Affects hobbies | GV1: Affects photography | GW1: Affects gardening | GX1: Affects sewing/embroider | GY1: Affects ability to be still | GZ1: Affects watching tv | HA1: Affects playing musical instrument | HB1: Affects singing | HC1: Affects holiday traditions (Christmas decorations, etc) | HD1: Affects dining out | HE1: Affects reading | HF1: CONTEXTUAL FACTORS | HG1: Frequency & Severity | HH1: Biggest impact on daily life (dominates life) | HI1: most frequent/evident symptoms | HJ1: Looking for improved PD management | HK1: Want better treatment/cure | HL1: More education on medication, disease | HM1: Bothered by medication side effects | HN1: Limited by medication food-drug interactions | HO1: Reliance on Medication | HP1: Difficulty with off periods | HQ1: interested in homeopathy, accupuncture, TENS, hydrotherapy, etc. | HR1: Interested in diet & exercise as cure | HS1: Interested in stem cell | HT1: PD symptoms monitoring meter | HU1: Easy access to PD nurses, specialists, appointments, resources | HV1: Interested in self-management strategies | HW1: Limited information available for symptoms | HX1: Interested in PD research | HY1: Interested in drug research | HZ1: Early diagnosis | IA1: Interested in social support
A2: ID | B2: Role | C2: Age | D2: YRS_PD | E2: Improve1 | F2: Improve2 | G2: Improve3 | H2: RATIONALE
H3: Frequency | I3: =I4/116 -> 5.2% | K3: =K4/$H$1 -> 64.3% | L3: =L4/$H$1 -> 20.9% | M3: 13.0% | N3: 6.1% | O3: 3.5% | P3: 12.2% | Q3: 10.4% | R3: 1.7% | S3: 34.8% | T3: 10.4% | U3: 17.4% | V3: 0.0% | W3: 14.8% | X3: 1.7% | Y3: 20.0% | Z3: 20.0% | AA3: 15.7% | AB3: 5.2% | AC3: 10.4% | AD3: 0.9% | AE3: 0.0% | AF3: 25.2% | AG3: 7.8% | AH3: 23.5% | AI3: 7.8% | AJ3: 0.9% | AK3: 0.0% | AL3: 0.0% | AM3: 0.0% | AN3: 5.2% | AO3: 32.2% | AP3: 0.9% | AQ3: 26.1% | AR3: 17.4% | AS3: 5.2% | AT3: 5.2% | AU3: 13.0% | AV3: 0.0% | AW3: 11.3% | AX3: 11.3% | AY3: 3.5% | AZ3: 3.5% | BA3: 35.7% | BB3: 2.6% | BC3: 2.6% | BD3: 0.0% | BE3: 0.0% | BF3: 0.0% | BG3: 33.0% | BH3: 0.9% | BI3: 13.0% | BJ3: 7.0% | BK3: 19.1% | BL3: 0.9% | BM3: 18.3% | BN3: 17.4% | BO3: 17.4% | BP3: 1.7% | BQ3: 1.7% | BR3: 3.5% | BS3: 3.5% | BT3: 19.1% | BU3: 15.7% | BV3: 1.7% | BW3: 0.0% | BX3: =BX4/$H$1 -> 3.5% | BY3: 12.2% | BZ3: 0.0% | CA3: 9.6% | CB3: 2.6% | CC3: 5.2% | CD3: 0.0% | CE3: =CE4/$H$1 -> 5.2% | CF3: 0.0% | CG3: 0.0% | CH3: 0.0% | CI3: 3.5% | CJ3: 3.5% | CK3: 0.0% | CL3: 8.7% | CM3: 6.1% | CN3: 0.0% | CO3: 0.0% | CP3: 0.9% | CQ3: 0.9% | CR3: 0.0% | CS3: 0.0% | CT3: 3.5% | CU3: 3.5% | CV3: 2.6% | CW3: 2.6% | CX3: 0.0% | CY3: 0.0% | DA3: 0.9% | DB3: 0.0% | DC3: 29.6% | DD3: 0.0% | DE3: 87.0% | DF3: 72.2% | DG3: 72.2% | DH3: 0.0% | DI3: 1.7% | DJ3: 3.5% | DK3: 0.0% | DL3: 2.6% | DM3: 0.0% | DN3: 0.9% | DO3: 0.0% | DP3: 0.0% | DQ3: 0.0% | DR3: 0.0% | DS3: 0.9% | DT3: 31.3% | DU3: 31.3% | EC3: 7.8% | ED3: 0.0% | EE3: 0.0% | EF3: 0.0% | EG3: 5.2% | EH3: 0.0% | EI3: 0.9% | EJ3: 3.5% | EK3: 0.9% | EL3: 31.3% | EM3: =EM4/$H$1 -> 27.0% | EN3: =EN4/$H$1 -> 9.6% | EO3: 15.7% | EP3: 13.9% | EQ3: 1.7% | ER3: 0.0% | ES3: 20.9% | ET3: 1.7% | EU3: 7.0% | EV3: 0.0% | EW3: 13.9% | EX3: 33.0% | EY3: 31.3% | EZ3: 15.7% | FA3: 80.9% | FB3: 20.0% | FC3: 14.8% | FD3: 0.0% | FE3: 7.0% | FF3: 0.0% | FG3: 2.6% | FH3: 1.7% | FI3: 2.6% | FJ3: 28.7% | FK3: 7.0% | FL3: =FL4/$H$1 -> 9.6% | FM3: 5.2% | FN3: 0.0% | FO3: 0.0% | FP3: 2.6% | FQ3: 18.3% | FR3: 37.4% | FS3: 2.6% | FT3: 0.0% | FU3: 0.0% | FV3: 0.9% | FW3: 0.9% | FX3: 12.2% | FY3: 7.0% | FZ3: 0.0% | GA3: 0.9% | GB3: 16.5% | GC3: 9.6% | GD3: 3.5% | GE3: 60.0% | GF3: 28.7% | GG3: 18.3% | GH3: 27.0% | GI3: 36.5% | GJ3: 14.8% | GK3: 6.1% | GL3: 1.7% | GM3: 0.0% | GN3: 0.9% | GO3: 0.0% | GP3: 4.3% | GQ3: 27.8% | GR3: 23.5% | GS3: 0.0% | GT3: 0.9% | GU3: 14.8% | GV3: 0.0% | GW3: 0.0% | GX3: 0.0% | GY3: 0.0% | GZ3: =GZ4/$H$1 -> 0.0% | HA3: 1.7% | HB3: 0.0% | HC3: 0.0% | HD3: 0.0% | HE3: 0.0% | HF3: 0.0% | HG3: 33.0% | HH3: 31.3% | HI3: 3.5% | HJ3: 24.3% | HK3: 16.5% | HL3: 0.0% | HM3: 9.6% | HN3: 2.6% | HO3: 0.9% | HP3: 8.7% | HQ3: 1.7% | HR3: 0.0% | HS3: 0.0% | HT3: 0.0% | HU3: 1.7% | HV3: 0.0% | HW3: 0.0% | HX3: 0.0% | HY3: 0.9% | HZ3: 0.0% | IA3: 0.0%
H4: Counts | I4: =COUNTA(I10:I124) -> 6 | K4: =COUNTIFS(K10:K124,">0") -> 74 | L4: =COUNTIF(L10:L124,">0") -> 24 | M4: =COUNTA(M10:M1048576) -> 15 | N4: =COUNTA(N10:N1048576) -> 7 | O4: =COUNTA(O10:O1048576) -> 4 | P4: =COUNTIF(P10:P124,">0") -> 14 | Q4: =COUNTA(Q10:Q1048576) -> 12 | R4: =COUNTA(R10:R1048576) -> 2 | S4: =COUNTIF(S10:S124,">0") -> 40 | T4: =COUNTA(T10:T1048576) -> 12 | U4: =COUNTA(U10:U1048576) -> 20 | V4: =COUNTA(V10:V1048576) -> 0 | W4: =COUNTA(W10:W1048576) -> 17 | X4: =COUNTA(X10:X1048576) -> 2 | Y4: =COUNTIF(Y10:Y124,">0") -> 23 | Z4: =COUNTA(Z10:Z1048576) -> 23 | AA4: =COUNTIF(AA10:AA124,">0") -> 18 | AB4: =COUNTA(AB10:AB1048576) -> 6 | AC4: =COUNTA(AC10:AC1048576) -> 12 | AD4: =COUNTA(AD10:AD1048576) -> 1 | AE4: =COUNTA(AE10:AE1048576) -> 0 | AF4: =COUNTIF(AF10:AF124,">0") -> 29 | AG4: =COUNTA(AG10:AG1048576) -> 9 | AH4: 27 | AI4: 9 | AJ4: 1 | AK4: 0 | AL4: 0 | AM4: 0 | AN4: 6 | AO4: =COUNTIF(AO10:AO124,">0") -> 37 | AP4: =COUNTA(AP10:AP1048576) -> 1 | AQ4: =COUNTIF(AQ10:AQ124,">0") -> 30 | AR4: =COUNTA(AR10:AR1048576) -> 20 | AS4: =COUNTA(AS10:AS1048576) -> 6 | AT4: =COUNTA(AT10:AT1048576) -> 6 | AU4: =COUNTA(AU10:AU1048576) -> 15 | AV4: =COUNTA(AV10:AV1048576) -> 0 | AW4: =COUNTIF(AW10:AW124,">0") -> 13 | AX4: =COUNTA(AX10:AX1048576) -> 13 | AY4: =COUNTIF(AY10:AY124,">0") -> 4 | AZ4: =COUNTA(AZ10:AZ1048576) -> 4 | BA4: =COUNTIF(BA10:BA124,">0") -> 41 | BB4: =COUNTIF(BB10:BB124,">0") -> 3 | BC4: =COUNTA(BC10:BC1048576) -> 3 | BD4: =COUNTA(BD10:BD1048576) -> 0 | BE4: =COUNTA(BE10:BE1048576) -> 0 | BF4: =COUNTA(BF10:BF1048576) -> 0 | BG4: =COUNTIF(BG10:BG124,">0") -> 38 | BH4: =COUNTA(BH10:BH1048576) -> 1 | BI4: =COUNTA(BI10:BI1048576) -> 15 | BJ4: =COUNTA(BJ10:BJ1048576) -> 8 | BK4: =COUNTA(BK10:BK1048576) -> 22 | BL4: =COUNTA(BL10:BL1048576) -> 1 | BM4: =COUNTIF(BM10:BM124,">0") -> 21 | BN4: =COUNTIF(BN10:BN124,">0") -> 20 | BO4: =COUNTA(BO10:BO1048576) -> 20 | BP4: =COUNTIF(BP10:BP124,">0") -> 2 | BQ4: =COUNTA(BQ10:BQ1048576) -> 2 | BR4: =COUNTIF(BR10:BR124,">0") -> 4 | BS4: =COUNTA(BS10:BS1048576) -> 4 | BT4: =COUNTIF(BT10:BT124,">0") -> 22 | BU4: =COUNTA(BU10:BU1048576) -> 18 | BV4: =COUNTA(BV10:BV1048576) -> 2 | BW4: =COUNTA(BW10:BW1048576) -> 0 | BX4: =COUNTA(BX10:BX1048576) -> 4 | BY4: =COUNTIF(BY10:BY124,">0") -> 14 | BZ4: =COUNTA(BZ10:BZ1048576) -> 0 | CA4: =COUNTIF(CA10:CA124,">0") -> 11 | CB4: =COUNTA(CB10:CB1048576) -> 3 | CC4: =COUNTA(CC10:CC1048576) -> 6 | CD4: =COUNTA(CD10:CD1048576) -> 0 | CE4: =COUNTA(CE10:CE1048576) -> 6 | CF4: =COUNTIF(CF10:CF124,">0") -> 0 | CG4: =COUNTA(CG10:CG1048576) -> 0 | CH4: =COUNTA(CH10:CH1048576) -> 0 | CI4: =COUNTIF(CI10:CI124,">0") -> 4 | CJ4: =COUNTA(CJ10:CJ1048576) -> 4 | CK4: =COUNTIF(CK10:CK124,">0") -> 0 | CL4: =COUNTA(CL10:CL1048576) -> 10 | CM4: =COUNTA(CM10:CM1048576) -> 7 | CN4: =COUNTA(CN10:CN1048576) -> 0 | CO4: =COUNTIF(CO10:CO124,">0") -> 0 | CP4: =COUNTA(CP10:CP1048576) -> 1 | CQ4: =COUNTA(CQ10:CQ1048576) -> 1 | CR4: =COUNTIF(CR10:CR124,">0") -> 0 | CS4: =COUNTA(CS10:CS1048576) -> 0 | CT4: =COUNTIF(CT10:CT124,">0") -> 4 | CU4: =COUNTA(CU10:CU1048576) -> 4 | CV4: =COUNTIF(CV10:CV124,">0") -> 3 | CW4: =COUNTA(CW10:CW1048576) -> 3 | CX4: =COUNTIF(CX10:CX124,">0") -> 0 | CY4: =COUNTA(CY10:CY1048576) -> 0 | DA4: =COUNTA(DA10:DA1048576) -> 1 | DC4: =COUNTA(DC10:DC1048576) -> 34 | DD4: =COUNTIF(DD10:DD124,">0") -> 0 | DE4: =COUNTIF(DE10:DE124,">0") -> 100 | DF4: =COUNTIF(DF10:DF124,">0") -> 83 | DG4: =COUNTA(DG10:DG1048576) -> 83 | DH4: 0 | DI4: 2 | DJ4: 4 | DK4: 0 | DL4: 3 | DM4: 0 | DN4: 1 | DO4: 0 | DP4: 0 | DQ4: 0 | DR4: 0 | DS4: 1 | DT4: =COUNTIF(DT10:DT124,">0") -> 36 | DU4: =COUNTA(DU10:DU1048576) -> 36 | EC4: =COUNTIF(EC10:EC124,">0") -> 9 | ED4: =COUNTA(ED10:ED1048576) -> 0 | EE4: 0 | EF4: 0 | EG4: 6 | EH4: 0 | EI4: 1 | EJ4: 4 | EK4: 1 | EL4: =COUNTIF(EL10:EL124,">0") -> 36 | EM4: =COUNTA(EM10:EM1048576) -> 31 | EN4: =COUNTA(EN10:EN1048576) -> 11 | EO4: =COUNTIF(EO10:EO124,">0") -> 18 | EP4: =COUNTA(EP10:EP1048576) -> 16 | EQ4: =COUNTA(EQ10:EQ1048576) -> 2 | ER4: =COUNTA(ER10:ER1048576) -> 0 | ES4: =COUNTIF(ES10:ES124,">0") -> 24 | ET4: =COUNTA(ET10:ET1048576) -> 2 | EU4: =COUNTA(EU10:EU1048576) -> 8 | EV4: =COUNTA(EV10:EV1048576) -> 0 | EW4: =COUNTA(EW10:EW1048576) -> 16 | EX4: =COUNTIF(EX10:EX124,">0") -> 38 | EY4: =COUNTA(EY10:EY1048576) -> 36 | EZ4: =COUNTA(EZ10:EZ1048576) -> 18 | FA4: =COUNTIF(FA10:FA124,">0") -> 93 | FB4: =COUNTIF(FB10:FB124,">0") -> 23 | FC4: =COUNTA(FC10:FC1048576) -> 17 | FD4: 0 | FE4: 8 | FF4: 0 | FG4: 3 | FH4: 2 | FI4: 3 | FJ4: =COUNTIF(FJ10:FJ124,">0") -> 33 | FK4: =COUNTA(FK10:FK1048576) -> 8 | FL4: 11 | FM4: 6 | FN4: 0 | FO4: 0 | FP4: 3 | FQ4: 21 | FR4: =COUNTIF(FR10:FR124,">0") -> 43 | FS4: =COUNTA(FS10:FS1048576) -> 3 | FT4: 0 | FU4: 0 | FV4: 1 | FW4: 1 | FX4: 14 | FY4: 8 | FZ4: 0 | GA4: 1 | GB4: 19 | GC4: 11 | GD4: 4 | GE4: =COUNTIF(GE10:GE124,">0") -> 69 | GF4: =COUNTA(GF10:GF1048576) -> 33 | GG4: =COUNTA(GG10:GG1048576) -> 21 | GH4: =COUNTA(GH10:GH1048576) -> 31 | GI4: =COUNTA(GI10:GI1048576) -> 42 | GJ4: =COUNTA(GJ10:GJ1048576) -> 17 | GK4: =COUNTIF(GK10:GK124,">0") -> 7 | GL4: =COUNTA(GL10:GL1048576) -> 2 | GM4: =COUNTA(GM10:GM1048576) -> 0 | GN4: =COUNTA(GN10:GN1048576) -> 1 | GO4: =COUNTA(GO10:GO1048576) -> 0 | GP4: =COUNTA(GP10:GP1048576) -> 5 | GQ4: =COUNTIF(GQ10:GQ124,">0") -> 32 | GR4: =COUNTA(GR10:GR1048576) -> 27 | GS4: 0 | GT4: 1 | GU4: 17 | GV4: 0 | GW4: 0 | GX4: 0 | GY4: 0 | GZ4: 0 | HA4: 2 | HB4: 0 | HC4: 0 | HD4: 0 | HE4: 0 | HF4: =COUNTIF(HF10:HF124,">0") -> 0 | HG4: =COUNTIF(HG10:HG124,">0") -> 38 | HH4: =COUNTA(HH10:HH1048576) -> 36 | HI4: =COUNTA(HI10:HI1048576) -> 4 | HJ4: =COUNTIF(HJ10:HJ124,">0") -> 28 | HK4: =COUNTA(HK10:HK1048576) -> 19 | HL4: 0 | HM4: 11 | HN4: 3 | HO4: 1 | HP4: 10 | HQ4: 2 | HR4: 0 | HS4: 0 | HT4: 0 | HU4: 2 | HV4: 0 | HW4: 0 | HX4: 0 | HY4: 1 | HZ4: 0 | IA4: 0
H5: 1st | K5: =COUNTIF(K10:K124,"1") -> 5 | L5: 22 | M5: 2 | N5: 0 | O5: 1 | P5: 14 | Q5: 4 | R5: 1 | S5: 31 | T5: 5 | U5: 7 | V5: 0 | W5: 6 | X5: 1 | Y5: 23 | Z5: 8 | AA5: 17 | AB5: 2 | AC5: 2 | AD5: 0 | AE5: 0 | AF5: 11 | AG5: 3 | AH5: 6 | AI5: 3 | AJ5: 0 | AK5: 0 | AL5: 0 | AM5: 0 | AN5: 5 | AO5: 10 | AP5: 1 | AQ5: 16 | AR5: 1 | AS5: 1 | AT5: 1 | AU5: 2 | AV5: 0 | AW5: 13 | AX5: 1 | AY5: 4 | AZ5: 1 | BA5: 13 | BB5: 3 | BC5: 0 | BD5: 0 | BE5: 0 | BF5: 0 | BG5: 29 | BH5: 1 | BI5: 4 | BJ5: 2 | BK5: 3 | BL5: 1 | BM5: 6 | BN5: 20 | BO5: 6 | BP5: 2 | BQ5: 1 | BR5: 4 | BS5: 0 | BT5: 20 | BU5: 6 | BV5: 1 | BW5: =COUNTIF(BW10:BW124,"1") -> 0 | BX5: 1 | BY5: 2 | BZ5: 0 | CA5: 8 | CB5: 2 | CC5: 1 | CD5: 0 | CE5: 3 | CF5: 0 | CG5: 0 | CH5: 0 | CI5: 4 | CJ5: 1 | CK5: 0 | CL5: 0 | CM5: 0 | CN5: 0 | CO5: 0 | CP5: 0 | CQ5: 0 | CR5: 0 | CS5: 0 | CT5: 4 | CU5: 1 | CV5: 3 | CW5: 1 | CX5: 0 | CY5: 0 | DA5: 0 | DB5: 0 | DC5: 0 | DD5: 0 | DE5: 13 | DF5: 74 | DG5: 15 | DH5: 0 | DI5: 0 | DJ5: 1 | DK5: 0 | DL5: 0 | DM5: 0 | DN5: 0 | DO5: 0 | DP5: 0 | DQ5: 0 | DR5: 0 | DS5: 0 | DT5: 36 | DU5: 1 | EC5: =COUNTIF(EC10:EC124,"1") -> 7 | ED5: 0 | EE5: 0 | EF5: 0 | EG5: 1 | EH5: 0 | EI5: 0 | EJ5: 0 | EK5: 0 | EL5: =COUNTIF(EL10:EL124,"1") -> 30 | EM5: 0 | EN5: 0 | EO5: 18 | EP5: 0 | EQ5: 1 | ER5: 0 | ES5: 22 | ET5: 0 | EU5: 0 | EV5: 0 | EW5: 0 | EX5: 22 | EY5: 0 | EZ5: 1 | FA5: 26 | FB5: 15 | FC5: 1 | FD5: 0 | FE5: 1 | FF5: 0 | FG5: 0 | FH5: 0 | FI5: 0 | FJ5: 21 | FK5: 0 | FL5: 0 | FM5: 0 | FN5: 0 | FO5: 0 | FP5: 0 | FQ5: 1 | FR5: 29 | FS5: 1 | FT5: 0 | FU5: 0 | FV5: 0 | FW5: 0 | FX5: 0 | FY5: 0 | FZ5: 0 | GA5: 0 | GB5: 0 | GC5: 0 | GD5: 0 | GE5: 27 | GF5: 0 | GG5: 0 | GH5: 1 | GI5: 0 | GJ5: 0 | GK5: 6 | GL5: 0 | GM5: 0 | GN5: 0 | GO5: =COUNTIF(GO10:GO124,"1") -> 0 | GP5: 0 | GQ5: 20 | GR5: 0 | GS5: 0 | GT5: 0 | GU5: 0 | GV5: 0 | GW5: 0 | GX5: 0 | GY5: 0 | GZ5: 0 | HA5: 0 | HB5: 0 | HC5: 0 | HD5: 0 | HE5: 0 | HF5: 0 | HG5: 36 | HH5: 0 | HI5: 0 | HJ5: 14 | HK5: 5 | HL5: 0 | HM5: 3 | HN5: 0 | HO5: 0 | HP5: 3 | HQ5: 0 | HR5: 0 | HS5: 0 | HT5: 0 | HU5: 0 | HV5: 0 | HW5: 0 | HX5: 0 | HY5: 0 | HZ5: 0 | IA5: 0
H6: 2nd | K6: =COUNTIF(K109:K124,"2") -> 4 | L6: 2 | M6: 0 | N6: 1 | O6: 1 | P6: 0 | Q6: 0 | R6: 0 | S6: 3 | T6: 3 | U6: 0 | V6: 0 | W6: 1 | X6: 1 | Y6: 0 | Z6: 1 | AA6: 0 | AB6: 0 | AC6: 0 | AD6: 0 | AE6: 0 | AF6: 1 | AG6: 0 | AH6: 0 | AI6: 0 | AJ6: 0 | AK6: 0 | AL6: 0 | AM6: 0 | AN6: 0 | AO6: 2 | AP6: 0 | AQ6: 2 | AR6: 0 | AS6: 0 | AT6: 1 | AU6: 0 | AV6: 0 | AW6: 0 | AX6: 0 | AY6: 0 | AZ6: 0 | BA6: 3 | BB6: 0 | BC6: 0 | BD6: 0 | BE6: 0 | BF6: 0 | BG6: 1 | BH6: 0 | BI6: 1 | BJ6: 0 | BK6: 1 | BL6: 0 | BM6: 1 | BN6: 0 | BO6: 0 | BP6: 0 | BQ6: 0 | BR6: 0 | BS6: 0 | BT6: 0 | BU6: 1 | BV6: 0 | BW6: =COUNTIF(BW109:BW124,"2") -> 0 | BX6: 0 | BY6: 1 | BZ6: 0 | CA6: 0 | CB6: 0 | CC6: 1 | CD6: 0 | CE6: 0 | CF6: 0 | CG6: 0 | CH6: 0 | CI6: 0 | CJ6: 0 | CK6: 0 | CL6: 1 | CM6: 0 | CN6: 0 | CO6: 0 | CP6: 0 | CQ6: 0 | CR6: 0 | CS6: 0 | CT6: 0 | CU6: 1 | CV6: 0 | CW6: 0 | CX6: 0 | CY6: 0 | DA6: 0 | DB6: 0 | DC6: 0 | DD6: 0 | DE6: 5 | DF6: 1 | DG6: 1 | DH6: 0 | DI6: 0 | DJ6: 0 | DK6: 0 | DL6: 0 | DM6: 0 | DN6: 0 | DO6: 0 | DP6: 0 | DQ6: 0 | DR6: 0 | DS6: 0 | DT6: 0 | DU6: 0 | EC6: =COUNTIF(EC109:EC124,"2") -> 0 | ED6: 0 | EE6: 0 | EF6: 0 | EG6: 0 | EH6: 0 | EI6: 0 | EJ6: 0 | EK6: 0 | EL6: 0 | EM6: 0 | EN6: 0 | EO6: 0 | EP6: 0 | EQ6: 0 | ER6: 0 | ES6: 0 | ET6: 0 | EU6: 0 | EV6: 0 | EW6: 0 | EX6: 5 | EY6: 0 | EZ6: 1 | FA6: 4 | FB6: 1 | FC6: 0 | FD6: 0 | FE6: 0 | FF6: 0 | FG6: 0 | FH6: 0 | FI6: 0 | FJ6: 0 | FK6: 0 | FL6: 0 | FM6: 0 | FN6: 0 | FO6: 0 | FP6: 0 | FQ6: 0 | FR6: 2 | FS6: 0 | FT6: 0 | FU6: 0 | FV6: 0 | FW6: 0 | FX6: 0 | FY6: 0 | FZ6: 0 | GA6: 0 | GB6: 0 | GC6: 0 | GD6: 0 | GE6: 3 | GF6: 0 | GG6: 0 | GH6: 0 | GI6: 0 | GJ6: 0 | GK6: 0 | GL6: 0 | GM6: 0 | GN6: 0 | GO6: =COUNTIF(GO109:GO124,"2") -> 0 | GP6: 0 | GQ6: 0 | GR6: 0 | GS6: 0 | GT6: 0 | GU6: 0 | GV6: 0 | GW6: 0 | GX6: 0 | GY6: 0 | GZ6: 0 | HA6: 0 | HB6: 0 | HC6: 0 | HD6: 0 | HE6: 0 | HF6: 0 | HG6: 1 | HH6: 0 | HI6: 0 | HJ6: 2 | HK6: 0 | HL6: 0 | HM6: 0 | HN6: 0 | HO6: 0 | HP6: 0 | HQ6: 0 | HR6: 0 | HS6: 0 | HT6: 0 | HU6: 1 | HV6: 0 | HW6: 0 | HX6: 0 | HY6: 0 | HZ6: 0 | IA6: 0
H7: 3rd | K7: =COUNTIF(K10:K124,"3") -> 8 | L7: 0 | M7: 3 | N7: 2 | O7: 1 | P7: 0 | Q7: 3 | R7: 0 | S7: 2 | T7: 2 | U7: 5 | V7: 0 | W7: 7 | X7: 0 | Y7: 0 | Z7: 6 | AA7: 0 | AB7: 2 | AC7: 3 | AD7: 0 | AE7: 0 | AF7: 5 | AG7: 3 | AH7: 0 | AI7: 1 | AJ7: 0 | AK7: 0 | AL7: 0 | AM7: 0 | AN7: 0 | AO7: 7 | AP7: 0 | AQ7: 3 | AR7: 3 | AS7: 0 | AT7: 0 | AU7: 3 | AV7: 0 | AW7: 0 | AX7: 1 | AY7: 0 | AZ7: 1 | BA7: 4 | BB7: 0 | BC7: 0 | BD7: 0 | BE7: 0 | BF7: 0 | BG7: 0 | BH7: 0 | BI7: 0 | BJ7: 2 | BK7: 5 | BL7: 0 | BM7: 1 | BN7: 0 | BO7: 2 | BP7: 0 | BQ7: 0 | BR7: 0 | BS7: 0 | BT7: 0 | BU7: 5 | BV7: 1 | BW7: =COUNTIF(BW10:BW124,"3") -> 0 | BX7: 1 | BY7: 0 | BZ7: 0 | CA7: 1 | CB7: 0 | CC7: 2 | CD7: 0 | CE7: 2 | CF7: 0 | CG7: 0 | CH7: 0 | CI7: 0 | CJ7: 1 | CK7: 0 | CL7: 2 | CM7: 2 | CN7: 0 | CO7: 0 | CP7: 1 | CQ7: 0 | CR7: 0 | CS7: 0 | CT7: 0 | CU7: 1 | CV7: 0 | CW7: 1 | CX7: 0 | CY7: 0 | DA7: 0 | DB7: 0 | DC7: 0 | DD7: 0 | DE7: 25 | DF7: 2 | DG7: 8 | DH7: 0 | DI7: 1 | DJ7: 1 | DK7: 0 | DL7: 0 | DM7: 0 | DN7: 1 | DO7: 0 | DP7: 0 | DQ7: 0 | DR7: 0 | DS7: 0 | DT7: 0 | DU7: 1 | EC7: =COUNTIF(EC10:EC124,"3") -> 1 | ED7: 0 | EE7: 0 | EF7: 0 | EG7: 0 | EH7: 0 | EI7: 0 | EJ7: 0 | EK7: 0 | EL7: 0 | EM7: 0 | EN7: 0 | EO7: 0 | EP7: 0 | EQ7: 0 | ER7: 0 | ES7: 0 | ET7: 0 | EU7: 0 | EV7: 0 | EW7: 1 | EX7: 0 | EY7: 1 | EZ7: 3 | FA7: 14 | FB7: 2 | FC7: 0 | FD7: 0 | FE7: 0 | FF7: 0 | FG7: 0 | FH7: 0 | FI7: 0 | FJ7: 4 | FK7: 0 | FL7: 0 | FM7: 0 | FN7: 0 | FO7: 0 | FP7: 1 | FQ7: 3 | FR7: 3 | FS7: 0 | FT7: 0 | FU7: 0 | FV7: 0 | FW7: 0 | FX7: 0 | FY7: 0 | FZ7: 0 | GA7: 0 | GB7: 1 | GC7: 0 | GD7: 0 | GE7: 11 | GF7: 0 | GG7: 0 | GH7: 2 | GI7: 0 | GJ7: 0 | GK7: 0 | GL7: 0 | GM7: 0 | GN7: 0 | GO7: =COUNTIF(GO10:GO124,"3") -> 0 | GP7: 0 | GQ7: 3 | GR7: 0 | GS7: 0 | GT7: 0 | GU7: 0 | GV7: 0 | GW7: 0 | GX7: 0 | GY7: 0 | GZ7: 0 | HA7: 0 | HB7: 0 | HC7: 0 | HD7: 0 | HE7: 0 | HF7: 0 | HG7: 0 | HH7: 0 | HI7: 0 | HJ7: 5 | HK7: 3 | HL7: 0 | HM7: 2 | HN7: 0 | HO7: 0 | HP7: 2 | HQ7: 1 | HR7: 0 | HS7: 0 | HT7: 0 | HU7: 1 | HV7: 0 | HW7: 0 | HX7: 0 | HY7: 1 | HZ7: 0 | IA7: 0
H9: %
A10: 79575447 | B10: I am a bereaved carer/partner/family member or friend | C10: - | D10: - | E10: Having medication specific to my mother's symptoms | F10: Management of her symptoms to reduce falls | G10: better support of her continence and UTI's | H10: She suffered with medication side effects and every time they changed her meds there were repercussions till things settled. The 'off' periods were longer than the 'on' times! She had debilitating falls that then complicated her condition and her quality of life Her continence was a constant source of anxiety and upset. | K10: =COUNTIF(L10:AE10,">0") -> 0 | L10: =COUNTA(M10:O10) -> 0 | P10: =COUNTA(Q10:R10) -> 0 | S10: =COUNTA(T10:X10) -> 0 | Y10: =COUNTA(Z10) -> 0 | AA10: =COUNTA(AB10:AE10) -> 0 | AF10: =COUNTA(AG10:AN10) -> 0 | AO10: =COUNTIF(AP10:AZ10,">0") -> 1 | AQ10: =COUNTA(AR10:AV10) -> 1 | AU10: + | AW10: =COUNTA(AX10) -> 0 | AY10: =COUNTA(AZ10) -> 0 | BA10: =COUNTIF(BB10:BL10,">0") -> 0 | BB10: =COUNTA(BC10:BF10) -> 0 | BG10: =COUNTA(BH10:BL10) -> 0 | BM10: =COUNTIF(BN10:BS10,">0") -> 0 | BN10: =COUNTA(BO10) -> 0 | BP10: =COUNTA(BQ10) -> 0 | BR10: =COUNTA(BS10) -> 0 | BT10: =COUNTA(BU10:BX10) -> 0 | BY10: =COUNTIF(BZ10:CJ10,">0") -> 0 | CA10: =COUNTA(CB10:CE10) -> 0 | CF10: =COUNTA(CG10:CH10) -> 0 | CI10: =COUNTA(CJ10) -> 0 | CL10: 3 | CM10: 3 | CR10: =COUNTA(CS10) -> 0 | CT10: =COUNTA(CU10) -> 0 | CV10: =COUNTA(CW10) -> 0 | CX10: =COUNTA(CY10) -> 0 | DC10: + | DE10: =COUNTIF(DF10:EZ10,">0") -> 2 | DF10: =COUNTA(DG10:DS10) -> 0 | DT10: =COUNTA(DU10) -> 0 | EC10: =COUNTA(ED10:EK10) -> 0 | EL10: =COUNTA(EM10:EN10) -> 0 | EO10: =COUNTA(EP10:ER10) -> 0 | ES10: =COUNTA(ET10:EW10) -> 0 | EX10: =COUNTA(EY10:EZ10) -> 2 | EY10: + | EZ10: 2 | FA10: =COUNTIF(FB10:HE10,">0") -> 0 | FB10: =COUNTA(FC10:FI10) -> 0 | FJ10: =COUNTA(FK10:FQ10) -> 0 | FR10: =COUNTA(FS10:GD10) -> 0 | GE10: =COUNTA(GF10:GJ10) -> 0 | GK10: =COUNTA(GL10:GP10) -> 0 | GQ10: =COUNTA(GR10:HE10) -> 0 | HG10: =COUNTA(HH10:HI10) -> 0 | HJ10: =COUNTA(HK10:IA10) -> 3 | HK10: 1 | HM10: 1 | HP10: +
A11: 80921644 | B11: I am a bereaved carer/partner/family member or friend | C11: - | D11: - | E11: Dyskenesia | F11: Poor sleep/nightmares | G11: Compulsive behaviour | H11: Dyskenesia caused issues in the last few years as affected all aspects of life.....dressing,eating,drinking,walking. Sleep was very inconsistent and poor quality which heightened his other symptoms. Nightmares were horrific and were mostly related to his army life particularly time served in northern Ireland and the Falklands. Gambling and compulsive buying caused financial issues but were considerably lessened when one of his meds was changed. | K11: 2 | L11: 0 | P11: 0 | S11: 0 | Y11: 0 | AA11: 1 | AC11: 1 | AF11: 0 | AO11: 2 | AQ11: 0 | AW11: 1 | AX11: 3 | AY11: 0 | BA11: 0 | BB11: 0 | BG11: 0 | BM11: 4 | BN11: 1 | BO11: 2 | BP11: 1 | BQ11: 2 | BR11: 0 | BT11: 0 | BY11: 0 | CA11: 0 | CF11: 0 | CI11: 0 | CR11: 0 | CT11: 0 | CV11: 0 | CX11: 0 | DE11: 2 | DF11: 1 | DG11: + | DT11: 0 | EC11: 0 | EL11: =COUNTA(EM11:EN11) -> 0 | EO11: 0 | ES11: 2 | EU11: + | EW11: + | EX11: 0 | FA11: 0 | FB11: 0 | FJ11: 0 | FR11: 0 | GE11: 0 | GK11: 0 | GQ11: 0 | HG11: 0 | HJ11: 0
A12: 80922577 | B12: I am a bereaved carer/partner/family member or friend | C12: - | D12: - | E12: short term memory issues | F12: continuity of care | G12: movement issues | H12: falls and confusion surrounding them caused a great deal of emotional pain for my relative and for those around him. the increasing issues with short term memory and failure to remember sequential actions such as how to unlock a door caused a great deal of anxiety because he was aware that he was becoming increasingly confused It took a long time to reach a diagnosis and that was only after we pushed very hard for a new neurologist. there was then no one person who was fully aware of all aspects of care (professional) such as speech and language therapy, physio, home care all of this had to arranged by family and when in hospital, had he been there alone, with out one of us as an advocate, he would have been severely mistreated. there didn't seem to be anyone with a complete understanding of his condition or previous treatment plans | K12: 0 | L12: 0 | P12: 0 | S12: 0 | Y12: 0 | AA12: 0 | AF12: 2 | AG12: 1 | AH12: + | AO12: 1 | AQ12: 1 | AU12: + | AW12: 0 | AY12: 0 | BA12: 0 | BB12: 0 | BG12: 0 | BM12: 0 | BN12: 0 | BP12: 0 | BR12: 0 | BT12: 0 | BY12: 0 | CA12: 0 | CF12: 0 | CI12: 0 | CR12: 0 | CT12: 0 | CV12: 0 | CX12: 0 | DC12: + | DE12: 3 | DF12: 1 | DG12: 3 | DT12: 0 | EC12: 0 | EL12: 0 | EO12: 0 | ES12: 0 | EX12: 2 | EY12: + | EZ12: + | FA12: 2 | FB12: 0 | FJ12: 0 | FR12: 1 | GB12: + | GE12: 2 | GG12: + | GI12: + | GK12: 0 | GQ12: 0 | HG12: 0 | HJ12: 1 | HK12: +
A13: 80931111 | B13: I am a bereaved carer/partner/family member or friend | C13: - | D13: - | E13: Stabilising blood pressure to avoid falls | F13: Managing continence | G13: Preventing hallucinations | H13: The drops in blood pressure caused unpredictable falls and a lot of discomfort. It meant we felt he should not be left alone, therefore he felt under scrutiny. Incontinence is embarrassing and limits going out, or on holiday, or makes the person feel infantilised. Hallucinations can challenge relationships, lead to uncharacteristic behaviour. | K13: 0 | L13: 0 | P13: 0 | S13: 0 | Y13: 0 | AA13: 0 | AF13: 0 | AO13: 3 | AQ13: 0 | AW13: 1 | AX13: + | AY13: 1 | AZ13: 3 | BA13: 1 | BB13: 0 | BG13: 1 | BI13: + | BM13: 0 | BN13: 0 | BP13: 0 | BR13: 0 | BT13: 0 | BY13: 0 | CA13: 0 | CF13: 0 | CI13: 0 | CL13: + | CM13: 2 | CR13: 0 | CT13: 1 | CU13: 1 | CV13: 0 | CX13: 0 | DE13: 1 | DF13: 0 | DT13: 0 | EC13: 0 | EL13: 0 | EO13: 0 | ES13: 0 | EX13: 2 | EY13: + | EZ13: + | FA13: 3 | FB13: 0 | FJ13: 1 | FL13: + | FR13: 0 | GE13: 3 | GG13: + | GI13: + | GJ13: + | GK13: 0 | GQ13: 1 | GU13: + | HG13: 0 | HJ13: 0
A14: 80947037 | B14: I am a bereaved carer/partner/family member or friend | C14: - | D14: - | E14: Swallowing difficulties and drooling | F14: Walking and balance difficulties | G14: Mental problems ie forgetfulness, anger | H14: My late brother had great difficulty swallowing and in fact choked to death. He was constantly drooling which increased his social embarrassment and ruined his appearance and clothes. He had great difficulty walking and fell over frequently. Towards the end he spent at least one week a month in the local hospital after a fall. He loved his food and having to have mashed and cut up food was so unfair. As PD progressed he got depressed, confused and sometimes angry but he never gave up and tried so hard to keep his independence. | K14: 2 | L14: 0 | P14: 0 | S14: 1 | U14: 2 | Y14: 0 | AA14: 0 | AF14: 2 | AG14: 3 | AH14: + | AO14: 3 | AQ14: 1 | AR14: + | AW14: 1 | AX14: + | AY14: 1 | AZ14: + | BA14: 0 | BB14: 0 | BG14: 0 | BM14: 0 | BN14: 0 | BP14: 0 | BR14: 0 | BT14: 0 | BY14: 4 | CA14: 3 | CB14: 1 | CC14: 1 | CE14: 1 | CF14: 0 | CI14: 0 | CR14: 0 | CT14: 0 | CV14: 0 | CX14: 0 | DC14: + | DE14: 3 | DF14: 1 | DG14: + | DT14: 0 | EC14: 0 | EL14: 0 | EO14: 0 | ES14: 1 | EW14: + | EX14: 2 | EY14: + | EZ14: + | FA14: 5 | FB14: 1 | FC14: + | FJ14: 1 | FL14: + | FR14: 1 | GB14: + | GE14: 2 | GF14: + | GI14: + | GK14: 0 | GQ14: 1 | GR14: + | HG14: 0 | HJ14: 0
A15: 81028337 | B15: I am a bereaved carer/partner/family member or friend | C15: - | D15: - | E15: Speach | F15: movement | H15: My late father wanted to tell us things but jus tcould not ge the words out. Later he was falling and could not walk un-aided | K15: 0 | L15: 0 | P15: 0 | S15: 0 | Y15: 0 | AA15: 0 | AF15: 0 | AO15: 0 | AQ15: 0 | AW15: 0 | AY15: 0 | BA15: 0 | BB15: 0 | BG15: 0 | BM15: 0 | BN15: 0 | BP15: 0 | BR15: 0 | BT15: 1 | BU15: 1 | BY15: 0 | CA15: 0 | CF15: 0 | CI15: 0 | CR15: 0 | CT15: 0 | CV15: 0 | CX15: 0 | DE15: 4 | DF15: 1 | DG15: 2 | DT15: 1 | DU15: + | EC15: 0 | EL15: 0 | EO15: 0 | ES15: 0 | EX15: 1 | EZ15: + | FA15: 2 | FB15: 0 | FJ15: 0 | FR15: 0 | GE15: 3 | GG15: + | GH15: + | GI15: + | GK15: 0 | GQ15: 1 | GR15: + | HG15: 0 | HJ15: 0
A16: 81131876 | B16: I am a bereaved carer/partner/family member or friend | C16: - | D16: - | E16: Movement, freezing | F16: Incontinence | G16: Swallowing | H16: These had the biggest impact on daily life and being able to lead a 'normal' life. All were distressing to the one ith Parkinson's and the family and carers. | K16: 2 | L16: 0 | P16: 0 | S16: 0 | Y16: 0 | AA16: 1 | AC16: 1 | AF16: 0 | AO16: 0 | AQ16: 0 | AW16: 0 | AY16: 0 | BA16: 0 | BB16: 0 | BG16: 0 | BM16: 0 | BN16: 0 | BP16: 0 | BR16: 0 | BT16: 0 | BY16: 2 | CA16: 1 | CE16: 3 | CF16: 0 | CI16: 0 | CL16: + | CM16: 2 | CR16: 0 | CT16: 0 | CV16: 0 | CX16: 0 | DC16: + | DE16: 3 | DF16: 1 | DG16: 1 | DT16: 0 | EC16: 0 | EL16: 0 | EO16: 0 | ES16: 1 | EW16: + | EX16: 0 | FA16: 2 | FB16: 0 | FJ16: 0 | FR16: 1 | GB16: + | GE16: 2 | GG16: + | GI16: + | GK16: 0 | GQ16: 0 | HG16: 1 | HH16: + | HJ16: 0
A17: 81165356 | B17: I am a bereaved carer/partner/family member or friend | C17: - | D17: - | E17: movement | F17: swallow | G17: speech | H17: These were the most debilitating of my father's symptoms and the ones that upset him most. in the latter stages of the confdition he became so drug sensitive that even on the same dose he would either experience wild and exhausting bouts of involuntary movements which people stared at or become completely paralysed. His swallow affected what and how much he could eat and this really affected his enjoyment of life, food and his energy levels and losing his speech was devastating for him as at both ends of the spectrum his movements meant he could not point out words or communicate which made him feel worthless. | K17: 2 | L17: 0 | P17: 0 | S17: 1 | T17: + | Y17: 0 | AA17: 1 | AC17: + | AF17: 0 | AO17: 1 | AQ17: 1 | AR17: + | AW17: 0 | AY17: 0 | BA17: 1 | BB17: 0 | BG17: 1 | BK17: + | BM17: 0 | BN17: 0 | BP17: 0 | BR17: 0 | BT17: 1 | BU17: 3 | BY17: 2 | CA17: 1 | CE17: 2 | CF17: 0 | CI17: 0 | CR17: 0 | CT17: 0 | CV17: 0 | CX17: 0 | DE17: 4 | DF17: 1 | DG17: 1 | DT17: 0 | EC17: 0 | EL17: 1 | EM17: + | EO17: 0 | ES17: 1 | EW17: + | EX17: 0 | FA17: 4 | FB17: 0 | FJ17: 3 | FK17: + | FL17: + | FP17: + | FR17: 1 | FX17: + | GE17: 1 | GH17: + | GK17: 0 | GQ17: 1 | GR17: + | HG17: 2 | HH17: + | HI17: + | HJ17: 2 | HK17: + | HM17: +
A18: 79578557 | B18: I am a carer/partner/family member or friend | C18: 60-69 | D18: 11-20 years ago | E18: Alleviate Dementia | F18: Reduce switching off | H18: PDD is the hardest thing for both patient and carer to cope with. It eliminates the patients ability to do almost any simple task such as using a phone or kniting or cooking. It redices the quality of life extremely for the patient and makes the life of the carer very hard. Switching off in an unpredicable mode means even simple tasks like shopping become hazardous. To some extent Oppicapone has helped us with this. | K18: 0 | L18: 0 | P18: 0 | S18: 0 | Y18: 0 | AA18: 0 | AF18: 1 | AN18: 1 | AO18: 0 | AQ18: 0 | AW18: 0 | AY18: 0 | BA18: 0 | BB18: 0 | BG18: 0 | BM18: 0 | BN18: 0 | BP18: 0 | BR18: 0 | BT18: 0 | BY18: 0 | CA18: 0 | CF18: 0 | CI18: 0 | CR18: 0 | CT18: 0 | CV18: 0 | CX18: 0 | DC18: + | DE18: 3 | DF18: 0 | DT18: 0 | EC18: 2 | EG18: + | EJ18: + | EL18: 2 | EM18: + | EN18: + | EO18: 0 | ES18: 0 | EX18: 1 | EY18: + | FA18: 4 | FB18: 2 | FG18: + | FI18: + | FJ18: 0 | FR18: 2 | FX18: + | FY18: + | GE18: 1 | GI18: + | GK18: 0 | GQ18: 1 | GU18: + | HG18: 1 | HH18: + | HJ18: 1 | HP18: 2
A19: 79591574 | B19: I am a carer/partner/family member or friend | C19: Over 80 | D19: 11-20 years ago | E19: Stiffness/rigidity | F19: Tremor | G19: Speech and swollowing | H19: 1 and 2 greatly affect mobility. 3 make it difficult to eat and difficult to understand speech. | K19: 4 | L19: 0 | P19: 1 | Q19: 1 | S19: 0 | Y19: 1 | Z19: 2 | AA19: 0 | AF19: 0 | AO19: 0 | AQ19: 0 | AW19: 0 | AY19: 0 | BA19: 0 | BB19: 0 | BG19: 0 | BM19: 0 | BN19: 0 | BP19: 0 | BR19: 0 | BT19: 1 | BU19: 3 | BY19: 2 | CA19: 1 | CE19: 3 | CF19: 0 | CI19: 0 | CR19: 0 | CT19: 0 | CV19: 0 | CX19: 0 | DE19: 2 | DF19: 1 | DG19: + | DT19: 0 | EC19: 0 | EL19: 0 | EO19: 0 | ES19: 1 | EW19: + | EX19: 0 | FA19: 1 | FB19: 0 | FJ19: 0 | FR19: 0 | GE19: 1 | GH19: + | GK19: 0 | GQ19: 0 | HG19: 0 | HJ19: 0
A20: 79592508 | B20: I am a carer/partner/family member or friend | C20: 70-79 | D20: 11-20 years ago | E20: S peach and swallow | F20: Blethrospasm | G20: Tremor | H20: Blind a lot of the time due to inability to open eye lids. Having to have soft diet,risk of choking and poor voice volume making any communication difficult. Tremor preventing feeding using Ipad ,phone and computer impossible | K20: 4 | L20: 0 | P20: 0 | S20: 0 | Y20: 1 | Z20: 3 | AA20: 1 | AD20: 2 | AF20: 0 | AO20: 0 | AQ20: 0 | AW20: 0 | AY20: 0 | BA20: 1 | BB20: 1 | BC20: + | BG20: 0 | BM20: 0 | BN20: 0 | BP20: 0 | BR20: 0 | BT20: 2 | BU20: + | BX20: + | BY20: 2 | CA20: 2 | CB20: + | CE20: 1 | CF20: 0 | CI20: 0 | CR20: 0 | CT20: 0 | CV20: 0 | CX20: 0 | DE20: 4 | DF20: 0 | DT20: 0 | EC20: 3 | EI20: + | EJ20: + | EK20: + | EL20: 1 | EM20: + | EO20: 0 | ES20: 1 | EW20: + | EX20: 1 | EY20: + | FA20: 1 | FB20: 0 | FJ20: 0 | FR20: 0 | GE20: 1 | GH20: + | GK20: 0 | GQ20: 0 | HG20: 1 | HH20: + | HJ20: 0
A21: 79607240 | B21: I am a carer/partner/family member or friend | C21: 60-69 | D21: 11-20 years ago | E21: Remove tremor | F21: No involuntary movement | G21: Stiffness | H21: Moving about would be easier, getting in and out of the car is increasingly difficult . | K21: 4 | L21: 0 | P21: 1 | Q21: + | S21: 0 | Y21: 1 | Z21: 1 | AA21: 1 | AC21: + | AF21: 0 | AO21: 0 | AQ21: 0 | AW21: 0 | AY21: 0 | BA21: 0 | BB21: 0 | BG21: 0 | BM21: 0 | BN21: 0 | BP21: 0 | BR21: 0 | BT21: 0 | BY21: 0 | CA21: 0 | CF21: 0 | CI21: 0 | CR21: 0 | CT21: 0 | CV21: 0 | CX21: 0 | DE21: 2 | DF21: 1 | DG21: + | DT21: 0 | EC21: 0 | EL21: 1 | EM21: + | EO21: 0 | ES21: 0 | EX21: 0 | FA21: 0 | FB21: 0 | FJ21: 0 | FR21: 0 | GE21: 0 | GK21: 0 | GQ21: 0 | HG21: 1 | HH21: + | HJ21: 0
A22: 79702918 | B22: I am a carer/partner/family member or friend | C22: 60-69 | D22: 11-20 years ago | E22: voice | F22: fatigue | G22: freezing | H22: Since having DBS her voice has deterioated and her handwriting has become completely illegible, fatigue is almost constant. Freezing before was seldom but now is all too often. | K22: 2 | L22: 0 | P22: 0 | S22: 1 | T22: 3 | Y22: 0 | AA22: 0 | AF22: 0 | AO22: 0 | AQ22: 0 | AW22: 0 | AY22: 0 | BA22: 2 | BB22: 0 | BG22: 1 | BK22: 2 | BM22: 0 | BN22: 0 | BP22: 0 | BR22: 0 | BT22: 1 | BV22: 1 | BY22: 0 | CA22: 0 | CF22: 0 | CI22: 0 | CR22: 0 | CT22: 0 | CV22: 0 | CX22: 0 | DE22: 2 | DF22: 1 | DG22: + | DT22: 0 | EC22: 1 | EG22: + | EL22: 0 | EO22: 0 | ES22: 0 | EX22: 0 | FA22: 1 | FB22: 0 | FJ22: 0 | FR22: 0 | GE22: 1 | GH22: + | GK22: 0 | GQ22: 0 | HG22: 1 | HI22: + | HJ22: 0
A23: 80922488 | B23: I am a carer/partner/family member or friend | C23: 50-59 | D23: 11-20 years ago | E23: Being able to talk louder | F23: Stop the shakes | G23: StopStop losing balance | H23: Sometimes it is difficult to hear my relative talking because she can't speak in a normal tone of voice. This has affected her confidence and she is not as talkative as she used to. She has always had a very good sense of humour, making jokes with the family but she has now become a listener and doesn't intervene much when we are all in a conversation. Besides, when talking over the phone sometimes I struggle at listening to her due to her low tone of voice. Her mobility has also been affected and she is prone to falls. For that reason, if I am walking with her I always hold her arm or she holds mine to prevent falls on the street. She has experienced accidents at home where she has lost balance and has had a fall. This has lead to bruises. Besides, when she sits on a chair sometimes with the shakes she ends up in an uncomfortable position and we have to help her to go back to a more comfortable position. | K23: 4 | L23: 0 | P23: 0 | S23: 1 | W23: 3 | Y23: 1 | Z23: 2 | AA23: 0 | AF23: 0 | AO23: 0 | AQ23: 0 | AW23: 0 | AY23: 0 | BA23: 1 | BB23: 0 | BG23: 1 | BI23: + | BM23: 0 | BN23: 0 | BP23: 0 | BR23: 0 | BT23: 1 | BX23: 1 | BY23: 0 | CA23: 0 | CF23: 0 | CI23: 0 | CR23: 0 | CT23: 0 | CV23: 0 | CX23: 0 | DE23: 4 | DF23: 1 | DG23: + | DT23: 0 | EC23: 1 | EJ23: + | EL23: 1 | EM23: + | EO23: 0 | ES23: 0 | EX23: 2 | EY23: + | EZ23: + | FA23: 3 | FB23: 0 | FJ23: 2 | FK23: + | FQ23: + | FR23: 1 | GC23: + | GE23: 4 | GF23: + | GG23: + | GH23: + | GI23: + | GK23: 0 | GQ23: 0 | HG23: 0 | HJ23: 0
A24: 80930614 | B24: I am a carer/partner/family member or friend | C24: 60-69 | D24: 11-20 years ago | E24: Medication lasting longer | F24: Being able to sleep better | G24: Medication that’s but affected by foid | H24: Medication only lasts 3 hours max sometimes just stops working g fir no apparent reason, difficult to eat out as medication affected by large meal it protein. Cannot sleep after4am but falls asleep at 8 pm seriously affects social life . | K24: 0 | L24: 0 | P24: 0 | S24: 0 | Y24: 0 | AA24: 0 | AF24: 0 | AO24: 0 | AQ24: 0 | AW24: 0 | AY24: 0 | BA24: 0 | BB24: 0 | BG24: 0 | BM24: 2 | BN24: 1 | BO24: 2 | BP24: 0 | BR24: 0 | BT24: 0 | BY24: 0 | CA24: 0 | CF24: 0 | CI24: 0 | CR24: 0 | CT24: 0 | CV24: 0 | CX24: 0 | DE24: 2 | DF24: 0 | DT24: 0 | EC24: 0 | EL24: 0 | EO24: 0 | ES24: 1 | EW24: 3 | EX24: 0 | FA24: 1 | FB24: 0 | FJ24: 0 | FR24: 0 | GE24: 3 | GF24: + | GI24: + | GJ24: + | GK24: 0 | GQ24: 0 | HG24: 0 | HJ24: 3 | HK24: + | HN24: + | HP24: 1
A25: 80931292 | B25: I am a carer/partner/family member or friend | C25: 70-79 | D25: 11-20 years ago | E25: Motor functions - shuffling | F25: Limb weakness | G25: shaking | H25: My father finds it hard to walk around for long period of time because he gets too tired and when he is walking it is more of a shuffle. This is hard for him because he used to love walking through the Lake District and know its hard for him to go for even a 5-10 minute walk. He also finds the shaking tough to deal with, especially when he is eating. He used to love painting, which was fine when the shaking was only in his left arm, but now it is in his right arm and he can't paint like he used to. | K25: 5 | L25: 1 | N25: + | P25: 0 | S25: 1 | U25: 1 | Y25: 1 | Z25: 3 | AA25: 0 | AF25: 0 | AO25: 0 | AQ25: 0 | AW25: 0 | AY25: 0 | BA25: 2 | BB25: 0 | BG25: 2 | BJ25: 2 | BK25: + | BM25: 0 | BN25: 0 | BP25: 0 | BR25: 0 | BT25: 0 | BY25: 0 | CA25: 0 | CF25: 0 | CI25: 0 | CR25: 0 | CT25: 0 | CV25: 0 | CX25: 0 | DC25: + | DE25: 4 | DF25: 1 | DG25: + | DT25: 1 | DU25: + | EC25: 0 | EL25: 1 | EM25: + | EO25: 0 | ES25: 1 | EW25: + | EX25: 0 | FA25: 1 | FB25: 0 | FJ25: 0 | FR25: 0 | GE25: 0 | GK25: 0 | GQ25: 2 | GR25: + | GU25: + | HG25: 0 | HJ25: 0
A26: 80941519 | B26: I am a carer/partner/family member or friend | C26: 70-79 | D26: 11-20 years ago | E26: P.D.related Dementia | F26: Mobility .... being able to walk again | G26: Restoration of Fine Motor Skills | H26: 1: The DEMENTIA has caused loss of memory, logic, common sense, imagination, purpose, motivation, enthusiasm, dignity, self .... and loss of my beloved husband who I watch gradually deteriorating, physically and mentally, becoming more confused and anxious and part of his own world. 2: Losing his MOBILITY, which has caused innumerable falls and inability to now walk or stand for longer than a minute, has him wheelchair-bound, with pressure sores, totally dependant on me ; this loss of his independence has had a deep psychological effect on him. 3: Loss of his FINE MOTOR SKILLS has meant an end to his career as a musician, a profession he dearly loved and at which he excelled. Along with his reduced lung function, difficulty forming an embouchure and double vision, if his fine motor skills were restored, the psychological effects of being able to play again would be enormous. | K26: 4 | L26: 1 | N26: 3 | P26: 0 | S26: 1 | U26: 2 | Y26: 0 | AA26: 0 | AF26: 3 | AG26: + | AH26: + | AN26: 1 | AO26: 2 | AQ26: 3 | AR26: + | AS26: + | AU26: + | AW26: 1 | AX26: + | AY26: 0 | BA26: 1 | BB26: 1 | BC26: + | BG26: 0 | BM26: 0 | BN26: 0 | BP26: 0 | BR26: 0 | BT26: 0 | BY26: 0 | CA26: 0 | CF26: 0 | CI26: 0 | CR26: 0 | CT26: 0 | CV26: 0 | CX26: 0 | DE26: 5 | DF26: 3 | DG26: 2 | DJ26: + | DL26: + | DT26: 0 | EC26: 0 | EL26: 1 | EM26: + | EO26: 1 | EQ26: + | ES26: 0 | EX26: 2 | EY26: + | EZ26: + | FA26: 5 | FB26: 1 | FC26: + | FJ26: 1 | FQ26: + | FR26: 1 | GD26: + | GE26: 1 | GI26: + | GK26: 0 | GQ26: 3 | GR26: + | GU26: + | HA26: + | HG26: 0 | HJ26: 0
A27: 80950681 | B27: I am a carer/partner/family member or friend | C27: 70-79 | D27: 11-20 years ago | E27: confusion | F27: hallucinations | G27: mobility | H27: Because as her carer I have a real worry that the first two symptoms are a precurser for real dememntia, as uffered by her elder sister; her mobility because she is prone to falls and may do real damage at some sstage | K27: 0 | L27: 0 | P27: 0 | S27: 0 | Y27: 0 | AA27: 0 | AF27: 1 | AH27: 1 | AO27: 2 | AQ27: 0 | AW27: 0 | AY27: 1 | AZ27: 2 | BA27: 0 | BB27: 0 | BG27: 0 | BM27: 0 | BN27: 0 | BP27: 0 | BR27: 0 | BT27: 0 | BY27: 0 | CA27: 0 | CF27: 0 | CI27: 0 | CR27: 0 | CT27: 0 | CV27: 0 | CX27: 0 | DE27: 3 | DF27: 1 | DG27: 3 | DT27: 0 | EC27: 0 | EL27: 0 | EO27: 0 | ES27: 0 | EX27: 2 | EY27: + | EZ27: + | FA27: 1 | FB27: 0 | FJ27: 0 | FR27: 2 | FS27: + | GC27: + | GE27: 0 | GK27: 0 | GQ27: 0 | HG27: 0 | HJ27: 0
A28: 80957927 | B28: I am a carer/partner/family member or friend | C28: 60-69 | D28: 11-20 years ago | E28: Freezing | F28: Depression | G28: Falling | H28: They are the most worrisome | K28: 2 | L28: 0 | P28: 0 | S28: 1 | T28: 1 | Y28: 0 | AA28: 0 | AF28: 0 | AO28: 2 | AQ28: 2 | AR28: + | AT28: 2 | AW28: 0 | AY28: 0 | BA28: 0 | BB28: 0 | BG28: 0 | BM28: 0 | BN28: 0 | BP28: 0 | BR28: 0 | BT28: 0 | BY28: 0 | CA28: 0 | CF28: 0 | CI28: 0 | CR28: 0 | CT28: 0 | CV28: 0 | CX28: 0 | DE28: 3 | DF28: 1 | DG28: + | DT28: 0 | EC28: 0 | EL28: 0 | EO28: 0 | ES28: 0 | EX28: 2 | EY28: + | EZ28: 3 | FA28: 1 | FB28: 0 | FJ28: 0 | FR28: 1 | GC28: + | GE28: 0 | GK28: 0 | GQ28: 0 | HG28: 0 | HJ28: 0
A29: 80965471 | B29: I am a carer/partner/family member or friend | C29: 70-79 | D29: 11-20 years ago | E29: Speech | F29: Dexterity | G29: Less medication | H29: My husband has a DBS which has badly affected the level of his voice to bearly a whisper and he has to think about what he wants to say before and needs extra time to actually get his words out. The lack of dexterity in his hands has stopped him fishing, doing car restoration and some DIY. | K29: 2 | L29: 1 | N29: 2 | P29: 0 | S29: 0 | Y29: 0 | AA29: 0 | AF29: 0 | AO29: 0 | AQ29: 0 | AW29: 0 | AY29: 0 | BA29: 0 | BB29: 0 | BG29: 0 | BM29: 0 | BN29: 0 | BP29: 0 | BR29: 0 | BT29: 2 | BU29: 1 | BX29: + | BY29: 0 | CA29: 0 | CF29: 0 | CI29: 0 | CR29: 0 | CT29: 0 | CV29: 0 | CX29: 0 | DE29: 3 | DF29: 1 | DG29: + | DT29: 1 | DU29: + | EC29: 0 | EL29: 0 | EO29: 0 | ES29: 1 | EU29: + | EX29: 0 | FA29: 3 | FB29: 0 | FJ29: 0 | FR29: 0 | GE29: 1 | GH29: 3 | GK29: 0 | GQ29: 2 | GR29: + | GU29: + | HG29: 0 | HJ29: 0
A30: 80988974 | B30: I am a carer/partner/family member or friend | C30: 60-69 | D30: 11-20 years ago | E30: Walking | F30: Speech | G30: Dizzyness | H30: These get mum down the most. She lacks quality of life as she is so immobile and the dizzy spells from the meds mean she is stuck in her chair most of the time. Also, she lacks confidence as she can not talk properly anymore. | K30: 2 | L30: 0 | P30: 0 | S30: 1 | U30: 1 | Y30: 0 | AA30: 0 | AF30: 0 | AO30: 0 | AQ30: 0 | AW30: 0 | AY30: 0 | BA30: 0 | BB30: 0 | BG30: 0 | BM30: 0 | BN30: 0 | BP30: 0 | BR30: 0 | BT30: 1 | BU30: 2 | BY30: 0 | CA30: 0 | CF30: 0 | CI30: 0 | CR30: 0 | CT30: 0 | CV30: 1 | CW30: 3 | CX30: 0 | DC30: + | DE30: 4 | DF30: 1 | DG30: + | DT30: 1 | DU30: + | EC30: 0 | EL30: 1 | EM30: + | EO30: 0 | ES30: 0 | EX30: 1 | EY30: + | FA30: 2 | FB30: 0 | FJ30: 1 | FQ30: + | FR30: 0 | GE30: 2 | GF30: + | GH30: + | GK30: 0 | GQ30: 0 | HG30: 0 | HJ30: 0
A31: 81023885 | B31: I am a carer/partner/family member or friend | C31: 50-59 | D31: 11-20 years ago | E31: Frequency reduction/elimination of "freezing" | F31: Frequency reduction/elimination of falls | G31: Reduction in level of dyskinesia | H31: 1. It's my wife who has Parkinson's and, to her, freezing is a multi-faceted problem. Firstly, it's the "prospect" of freezing which worries her and causes her enough anxiety to (sometimes) postpone or delay going out anywhere. The thought of her freezing in a public place, or trying to cross the road, for example, can sometimes, although not always, by any means, fill her with dread. It's as if sometimes she "senses" the possibility of freezing. 2. She falls quite frequently. We try to implement the various techniques we've read, about or been shown, but it's really difficult when turning, reaching or stepping forward or back are spontaneous actions, therefore she/we forget the recommended technique, and down she goes! 3. Usually her medication is really well controlled and it's effective but just occasionally the dyskinesia can be quite severe, and for no apparent reason. It's usually accompanied by increased anxiety levels and body heat/perspiring. We call it her "summerising" | K31: 4 | L31: 0 | P31: 0 | S31: 1 | T31: 1 | Y31: 0 | AA31: 1 | AC31: 3 | AF31: 0 | AO31: 1 | AQ31: 2 | AR31: + | AU31: + | AW31: 0 | AY31: 0 | BA31: 0 | BB31: 0 | BG31: 0 | BM31: 0 | BN31: 0 | BP31: 0 | BR31: 0 | BT31: 0 | BY31: 0 | CA31: 0 | CF31: 0 | CI31: 0 | CR31: 0 | CT31: 0 | CV31: 0 | CX31: 0 | DA31: + | DE31: 4 | DF31: 1 | DG31: + | DT31: 1 | DU31: + | EC31: 0 | EL31: 0 | EO31: 0 | ES31: 0 | EX31: 2 | EY31: + | EZ31: 2 | FA31: 3 | FB31: 0 | FJ31: 1 | FQ31: + | FR31: 1 | GC31: + | GE31: 1 | GJ31: + | GK31: 0 | GQ31: 0 | HG31: 0 | HJ31: 2 | HK31: + | HP31: +
A32: 81027615 | B32: I am a carer/partner/family member or friend | C32: 60-69 | D32: 11-20 years ago | E32: Communication | F32: Mobility | G32: Drooling | I32: + | K32: 0 | L32: 0 | P32: 0 | S32: 0 | Y32: 0 | AA32: 0 | AF32: 0 | AO32: 0 | AQ32: 0 | AW32: 0 | AY32: 0 | BA32: 0 | BB32: 0 | BG32: 0 | BM32: 0 | BN32: 0 | BP32: 0 | BR32: 0 | BT32: 0 | BY32: 2 | CA32: 1 | CC32: 3 | CF32: 0 | CI32: 0 | CR32: 0 | CT32: 0 | CV32: 0 | CX32: 0 | DE32: 2 | DF32: 1 | DG32: 2 | DT32: 0 | EC32: 0 | EL32: 0 | EO32: 0 | ES32: 0 | EX32: 0 | FA32: 2 | FB32: 0 | FJ32: 0 | FR32: 0 | GE32: 1 | GH32: 1 | GK32: 0 | GQ32: 0 | HG32: 0 | HJ32: 0
A33: 81026988 | B33: I am a carer/partner/family member or friend | C33: 60-69 | D33: 11-20 years ago | E33: Side effects of Parkinson's drugs | F33: Being more motivated | G33: Improve his mood | H33: The effects of the medication are worse than the symptoms of Parkinson's in that my husband becomes argumentative ,his balance is not good, he has dyskenesia and gives the impression of being drunk. He is not very motivated to help himself and is constantly low in mood and doesn't speak very much. | K33: 2 | L33: 0 | P33: 0 | S33: 1 | W33: + | Y33: 0 | AA33: 1 | AC33: + | AF33: 0 | AO33: 4 | AQ33: 2 | AR33: 3 | AS33: 2 | AW33: 1 | AX33: + | AY33: 0 | BA33: 0 | BB33: 0 | BG33: 0 | BM33: 0 | BN33: 0 | BP33: 0 | BR33: 0 | BT33: 0 | BY33: 0 | CA33: 0 | CF33: 0 | CI33: 0 | CR33: 0 | CT33: 0 | CV33: 0 | CX33: 0 | DE33: 1 | DF33: 0 | DT33: 0 | EC33: 0 | EL33: 0 | EO33: 0 | ES33: 0 | EX33: 1 | EY33: + | FA33: 2 | FB33: 0 | FJ33: 1 | FK33: + | FR33: 0 | GE33: 1 | GH33: + | GK33: 0 | GQ33: 0 | HG33: 0 | HJ33: 1 | HM33: 1
A34: 81029533 | B34: I am a carer/partner/family member or friend | C34: 60-69 | D34: 11-20 years ago | E34: Stiffness and associated pain when waking in the morning. | F34: Loss of spontaneous activities. Slower thought processes. | G34: Strength loss and pain while standing and walking | H34: My wife has had DBS. She is using much less medication. It has improved her standard of life a great deal. Mornings start with pain with stiff back but it loosens when meds kick in. She used rise early to drive to work an 10 hour day away from home. Balance has been damaged so she has always to think about the next movement. This is mentally exhausting. Wandering about shopping and gardening are very restricted due to pain. | K34: 3 | L34: 0 | P34: 1 | Q34: 1 | S34: 2 | U34: + | W34: + | Y34: 0 | AA34: 0 | AF34: 2 | AH34: + | AI34: 2 | AO34: 0 | AQ34: 0 | AW34: 0 | AY34: 0 | BA34: 3 | BB34: 0 | BG34: 2 | BI34: 1 | BJ34: 3 | BM34: 0 | BN34: 0 | BP34: 0 | BR34: 0 | BT34: 0 | BY34: 0 | CA34: 0 | CF34: 0 | CI34: 0 | CR34: 0 | CT34: 0 | CV34: 0 | CX34: 0 | DC34: + | DE34: 5 | DF34: 2 | DG34: + | DL34: + | DT34: 1 | DU34: + | EC34: 0 | EL34: 2 | EM34: + | EN34: + | EO34: 1 | EP34: + | ES34: 0 | EX34: 1 | EY34: + | FA34: 4 | FB34: 2 | FE34: + | FI34: + | FJ34: 0 | FR34: 1 | GA34: + | GE34: 0 | GK34: 1 | GP34: + | GQ34: 2 | GR34: + | GU34: + | HG34: 0 | HJ34: 0
A35: 81115656 | B35: I am a carer/partner/family member or friend | C35: 60-69 | D35: 11-20 years ago | E35: Rigidity | F35: movement ability less varied | H35: His fist symptoms were in 1994 with hand walking across bed. His main issue is the rigidity of his muscles [he had polio age six months, Post Polio Syndrome diagnosed as well] His movement ability varies throughout the day from his norm to almost not moving barely able to speak. His meals are between medications. There is no set pattern some days better than others. | K35: 2 | L35: 0 | P35: 1 | Q35: 1 | S35: 0 | Y35: 0 | AA35: 0 | AF35: 0 | AO35: 0 | AQ35: 0 | AW35: 0 | AY35: 0 | BA35: 0 | BB35: 0 | BG35: 0 | BM35: 0 | BN35: 0 | BP35: 0 | BR35: 0 | BT35: 1 | BU35: + | BY35: 0 | CA35: 0 | CF35: 0 | CI35: 0 | CR35: 0 | CT35: 0 | CV35: 0 | CX35: 0 | DE35: 3 | DF35: 1 | DG35: 2 | DT35: 0 | EC35: 0 | EL35: 0 | EO35: 0 | ES35: 1 | EW35: + | EX35: 0 | FA35: 2 | FB35: 0 | FJ35: 0 | FR35: 1 | FY35: + | GE35: 1 | GH35: + | GK35: 0 | GQ35: 0 | HG35: 0 | HJ35: 1 | HN35: +
A36: 81142670 | B36: I am a carer/partner/family member or friend | C36: 70-79 | D36: 11-20 years ago | E36: Mobility, balance and posture | F36: improved speech | G36: Bladder control | H36: These would make him more independent and enable him to socialise better | K36: 3 | L36: 0 | P36: 0 | S36: 2 | W36: 1 | X36: 1 | Y36: 0 | AA36: 0 | AF36: 0 | AO36: 0 | AQ36: 0 | AW36: 0 | AY36: 0 | BA36: 0 | BB36: 0 | BG36: 0 | BM36: 0 | BN36: 0 | BP36: 0 | BR36: 0 | BT36: 1 | BU36: 2 | BY36: 0 | CA36: 0 | CF36: 0 | CI36: 0 | CL36: 2 | CR36: 0 | CT36: 0 | CV36: 0 | CX36: 0 | DE36: 3 | DF36: 1 | DG36: 1 | DT36: 0 | EC36: 0 | EL36: 0 | EO36: 0 | ES36: 0 | EX36: 1 | EY36: + | FA36: 2 | FB36: 1 | FC36: + | FJ36: 0 | FR36: 0 | GE36: 2 | GF36: + | GH36: + | GK36: 0 | GQ36: 0 | HG36: 0 | HJ36: 0
A37: 81148467 | B37: I am a carer/partner/family member or friend | C37: 70-79 | D37: 11-20 years ago | E37: Increased self-confidence and independence. | F37: More enthusiastic/ less gloomy outlook. | G37: Not feeling tired all the time. | H37: I think these aspects have had a big effect on our lives - not wanting to go places; giving up activities due to lack of self-confidence; increasingly not wanting to go places by oneself, even to familiar places or to meet friends. The constant feeling of tiredness and just falling asleep also hampers activities etc. and just not feeling it's worth getting up to start the day. Not being able to drive has had a negative impact too, and now being increasingly less enthusiastic to cycle is having a bearing on keeping active and getting some exercise, which we both think is important to general well-being, as well as to Parkinson's symptoms. | K37: 0 | L37: 0 | P37: 0 | S37: 0 | Y37: 0 | AA37: 0 | AF37: 0 | AO37: 2 | AQ37: 2 | AR37: 2 | AS37: + | AW37: 0 | AY37: 0 | BA37: 2 | BB37: 0 | BG37: 1 | BK37: 3 | BM37: 1 | BN37: 1 | BO37: + | BP37: 0 | BR37: 0 | BT37: 0 | BY37: 0 | CA37: 0 | CF37: 0 | CI37: 0 | CR37: 0 | CT37: 0 | CV37: 0 | CX37: 0 | DC37: + | DE37: 3 | DF37: 1 | DG37: + | DT37: 1 | DU37: + | EC37: 0 | EL37: 1 | EN37: + | EO37: 0 | ES37: 0 | EX37: 0 | FA37: 6 | FB37: 2 | FC37: 1 | FE37: + | FJ37: 1 | FQ37: 1 | FR37: 0 | GE37: 4 | GF37: + | GG37: + | GI37: + | GJ37: + | GK37: 0 | GQ37: 2 | GR37: + | GU37: + | HG37: 1 | HH37: + | HJ37: 0
A38: 81168332 | B38: I am a carer/partner/family member or friend | C38: 70-79 | D38: 11-20 years ago | E38: Improve physiotherapy | F38: Minimise side effects of medicines | G38: Targeted activities they can take part in | I38: + | K38: 0 | L38: 0 | P38: 0 | S38: 0 | Y38: 0 | AA38: 0 | AF38: 0 | AO38: 0 | AQ38: 0 | AW38: 0 | AY38: 0 | BA38: 0 | BB38: 0 | BG38: 0 | BM38: 0 | BN38: 0 | BP38: 0 | BR38: 0 | BT38: 0 | BY38: 0 | CA38: 0 | CF38: 0 | CI38: 0 | CR38: 0 | CT38: 0 | CV38: 0 | CX38: 0 | DE38: 1 | DF38: 1 | DG38: + | DT38: 0 | EC38: 0 | EL38: 0 | EO38: 0 | ES38: 0 | EX38: 0 | FA38: 0 | FB38: 0 | FJ38: 0 | FR38: 0 | GE38: 0 | GK38: 0 | GQ38: 0 | HG38: 0 | HJ38: 2 | HK38: 1 | HM38: 2
A39: 81349502 | B39: I am a carer/partner/family member or friend | C39: 70-79 | D39: 11-20 years ago | E39: Mobility | F39: Confusion | G39: Incontinence | H39: My husband had scoliosis now and his mobility is very poor. He is quite confused at times. He is incontinent and when he goes to the toilet has difficulty "aiming" | K39: 0 | L39: 0 | P39: 0 | S39: 0 | Y39: 0 | AA39: 0 | AF39: 1 | AH39: 2 | AO39: 0 | AQ39: 0 | AW39: 0 | AY39: 0 | BA39: 0 | BB39: 0 | BG39: 0 | BM39: 0 | BN39: 0 | BP39: 0 | BR39: 0 | BT39: 0 | BY39: 0 | CA39: 0 | CF39: 0 | CI39: 0 | CL39: + | CM39: 3 | CR39: 0 | CT39: 0 | CV39: 0 | CX39: 0 | DE39: 2 | DF39: 1 | DG39: 1 | DT39: 0 | EC39: 0 | EL39: 0 | EO39: 0 | ES39: 0 | EX39: 0 | FA39: 0 | FB39: 0 | FJ39: 0 | FR39: 0 | GE39: 0 | GK39: 0 | GQ39: 0 | HG39: 0 | HJ39: 0
A40: 79577941 | B40: I am a carer/partner/family member or friend | C40: 50-59 | D40: 2-5 years ago | E40: Quality sleep | F40: Absence of stiffness | G40: Ability to walk further | H40: It appears that PD and the treatment have caused the side effects as above | I40: + | K40: 4 | L40: 0 | P40: 1 | Q40: 2 | S40: 1 | U40: 3 | Y40: 0 | AA40: 0 | AF40: 0 | AO40: 0 | AQ40: 0 | AW40: 0 | AY40: 0 | BA40: 0 | BB40: 0 | BG40: 0 | BM40: 2 | BN40: 1 | BO40: 1 | BP40: 0 | BR40: 0 | BT40: 0 | BY40: 0 | CA40: 0 | CF40: 0 | CI40: 0 | CR40: 0 | CT40: 0 | CV40: 0 | CX40: 0 | DE40: 1 | DF40: 1 | DG40: + | DT40: 0 | EC40: 0 | EL40: 0 | EO40: 0 | ES40: 0 | EX40: 0 | FA40: 0 | FB40: 0 | FJ40: 0 | FR40: 0 | GE40: 0 | GK40: 0 | GQ40: 0 | HG40: 0 | HJ40: 1 | HM40: +
A41: 79578153 | B41: I am a carer/partner/family member or friend | C41: 70-79 | D41: 2-5 years ago | E41: Bowl movements | H41: It dominates our lives. It's either constipation/ compaction or sudden rush of unstoppable flow | K41: 0 | L41: 0 | P41: 0 | S41: 0 | Y41: 0 | AA41: 0 | AF41: 0 | AO41: 0 | AQ41: 0 | AW41: 0 | AY41: 0 | BA41: 0 | BB41: 0 | BG41: 0 | BM41: 0 | BN41: 0 | BP41: 0 | BR41: 0 | BT41: 0 | BY41: 2 | CA41: 0 | CF41: 0 | CI41: 1 | CJ41: 1 | CR41: 0 | CT41: 0 | CV41: 0 | CX41: 0 | DE41: 0 | DF41: 0 | DT41: 0 | EC41: 0 | EL41: 0 | EO41: 0 | ES41: 0 | EX41: 0 | FA41: 0 | FB41: 0 | FJ41: 0 | FR41: 0 | GE41: 0 | GK41: 0 | GQ41: 0 | HG41: 1 | HH41: + | HJ41: 0
A42: 79601855 | B42: I am a carer/partner/family member or friend | C42: 70-79 | D42: 2-5 years ago | E42: Stiffness when moving. | F42: Constant pain, especially in legs. | G42: Shaking of hands and arms. | H42: My husband's great hobby and relaxation is fly fishing, but this has been very constrained by Parkinson's due to the loss of movement, and now shaking. He is now very slow and stiff and gets quite fatigued in everyday life. This in turn affects his mood, as does the debilitating pain in his body, and sleep is also disrupted. He hasn't driven the car for about two years so his self reliance has also gone. Walking the dog is very hard as my husband needs to keep at a steady pace/rhythm to keep going and dogs love to keep stopping and sniffing! That's another joy lost to Parkinson's. He also used to like cooking but cannot even stand long enough to prepare the vegetables as he's in too much pain. | K42: 5 | L42: 1 | M42: + | P42: 1 | Q42: 1 | S42: 0 | Y42: 1 | Z42: 3 | AA42: 0 | AF42: 0 | AO42: 1 | AQ42: 1 | AR42: + | AW42: 0 | AY42: 0 | BA42: 2 | BB42: 0 | BG42: 2 | BI42: 2 | BK42: + | BM42: 1 | BN42: 1 | BO42: + | BP42: 0 | BR42: 0 | BT42: 0 | BY42: 0 | CA42: 0 | CF42: 0 | CI42: 0 | CR42: 0 | CT42: 0 | CV42: 0 | CX42: 0 | DE42: 3 | DF42: 2 | DG42: + | DL42: + | DT42: 1 | DU42: + | EC42: 0 | EL42: 0 | EO42: 1 | EP42: + | ES42: 0 | EX42: 0 | FA42: 4 | FB42: 3 | FC42: + | FE42: + | FG42: + | FJ42: 1 | FQ42: + | FR42: 0 | GE42: 0 | GK42: 1 | GL42: + | GQ42: 2 | GR42: + | GU42: + | HG42: 1 | HH42: + | HJ42: 0
A43: 79604579 | B43: I am a carer/partner/family member or friend | C43: 60-69 | D43: 2-5 years ago | E43: Walking and coordination | H43: Walking for him is already painful,as he has drop foot so having Parkinson's really doesn't help. He has always been very active. An improvement in this will give him a boost | K43: 4 | L43: 1 | O43: 1 | P43: 0 | S43: 1 | U43: 1 | Y43: 0 | AA43: 0 | AF43: 0 | AO43: 0 | AQ43: 0 | AW43: 0 | AY43: 0 | BA43: 1 | BB43: 0 | BG43: 1 | BI43: + | BM43: 0 | BN43: 0 | BP43: 0 | BR43: 0 | BT43: 0 | BY43: 0 | CA43: 0 | CF43: 0 | CI43: 0 | CR43: 0 | CT43: 0 | CV43: 0 | CX43: 0 | DE43: 5 | DF43: 1 | DG43: + | DT43: 1 | DU43: + | EC43: 0 | EL43: 1 | EM43: + | EO43: 1 | EP43: + | ES43: 0 | EX43: 1 | EY43: + | FA43: 1 | FB43: 0 | FJ43: 0 | FR43: 0 | GE43: 0 | GK43: 0 | GQ43: 1 | GR43: + | HG43: 1 | HH43: + | HJ43: 0
A44: 79628721 | B44: I am a carer/partner/family member or friend | C44: 60-69 | D44: 2-5 years ago | E44: Get rid of his tremor, or at least better control of it | F44: Help him sleep better at night | G44: Medication that has longer duration and/or works more quickly | H44: Fairly self explanatory I would say. The tremor can drive him round the bend as even high doses of medication do not keep it under control, and that's during most of the day and several times during the night. He wakes several times per night and the tremor is immediately there at it's strongest, making it virtually impossible for him to go back to sleep until medication has started to work again. | K44: 2 | L44: 0 | P44: 0 | S44: 0 | Y44: 1 | Z44: 1 | AA44: 0 | AF44: 0 | AO44: 0 | AQ44: 0 | AW44: 0 | AY44: 0 | BA44: 0 | BB44: 0 | BG44: 0 | BM44: 2 | BN44: 1 | BO44: 2 | BP44: 0 | BR44: 0 | BT44: 0 | BY44: 0 | CA44: 0 | CF44: 0 | CI44: 0 | CR44: 0 | CT44: 0 | CV44: 0 | CX44: 0 | DE44: 0 | DF44: 0 | DT44: 0 | EC44: 0 | EL44: 0 | EO44: 0 | ES44: 0 | EX44: 0 | FA44: 1 | FB44: 0 | FJ44: 0 | FR44: 1 | GB44: + | GE44: 0 | GK44: 0 | GQ44: 0 | HG44: 1 | HH44: + | HJ44: 2 | HK44: + | HP44: 3
A45: 79643272 | B45: I am a carer/partner/family member or friend | C45: 70-79 | D45: 2-5 years ago | E45: Getting up from a chair | F45: Thrashing out less in bed | G45: Communicating more with me | H45: I have health problems myself so don't wish to strain my stomach with too much lifting or pushing. Disturbed sleep for both of us. We can have rather silent times. | K45: 1 | L45: 0 | P45: 0 | S45: 0 | Y45: 1 | Z45: + | AA45: 0 | AF45: 0 | AO45: 0 | AQ45: 0 | AW45: 0 | AY45: 0 | BA45: 0 | BB45: 0 | BG45: 0 | BM45: 2 | BN45: 1 | BO45: 2 | BP45: 0 | BR45: 0 | BT45: 0 | BY45: 0 | CA45: 0 | CF45: 0 | CI45: 0 | CR45: 0 | CT45: 0 | CV45: 0 | CX45: 0 | DE45: 2 | DF45: 2 | DG45: + | DJ45: 1 | DT45: 0 | EC45: 0 | EL45: 0 | EO45: 0 | ES45: 0 | EX45: 0 | FA45: 2 | FB45: 0 | FJ45: 0 | FR45: 0 | GE45: 2 | GH45: 3 | GI45: + | GK45: 0 | GQ45: 0 | HG45: 0 | HJ45: 0
A46: 79649242 | B46: I am a carer/partner/family member or friend | C46: 50-59 | D46: 2-5 years ago | E46: Ability to walk normally | F46: To regain lost strength | G46: To not have tremors | H46: My husband is extremely frustrated by his inability to walk normally and for this slowness of movement to be cured would really improve the quality of his life. From my point of view, I find this the most difficult part of Parkinson’s to deal with as it is so limiting in what we are able to do. | K46: 5 | L46: 1 | M46: + | P46: 0 | S46: 1 | U46: 1 | Y46: 1 | Z46: 3 | AA46: 0 | AF46: 0 | AO46: 0 | AQ46: 0 | AW46: 0 | AY46: 0 | BA46: 2 | BB46: 0 | BG46: 1 | BJ46: 2 | BM46: 0 | BN46: 0 | BP46: 0 | BR46: 0 | BT46: 0 | BY46: 0 | CA46: 0 | CF46: 0 | CI46: 0 | CR46: 0 | CT46: 0 | CV46: 0 | CX46: 0 | DC46: + | DE46: 2 | DF46: 1 | DG46: + | DT46: 0 | EC46: 0 | EL46: 2 | EM46: + | EN46: ? | EO46: 0 | ES46: 0 | EX46: 0 | FA46: 2 | FB46: 0 | FJ46: 0 | FR46: 2 | FX46: + | GB46: + | GE46: 2 | GF46: + | GI46: + | GK46: 0 | GQ46: 0 | HG46: 1 | HH46: + | HJ46: 0
A47: 80919664 | B47: I am a carer/partner/family member or friend | C47: Over 80 | D47: 2-5 years ago | E47: Mobility - balance, walking, not freezing | F47: Speech | G47: Facial spasms, drooling | H47: Massive imact on life and confidence. Sheer energy and determination required to keep going. Huge problem conveying to others NOT to chatter to him, NOT to grab in support etc - and freeze hime. As carer on alert whole time protecting him .... Described as his Outrider!!! But still out for coffee n croissant every day, great positivism..... | K47: 6 | L47: 0 | P47: 0 | S47: 3 | T47: 1 | U47: 1 | W47: 1 | Y47: 0 | AA47: 1 | AB47: 3 | AF47: 0 | AO47: 0 | AQ47: 0 | AW47: 0 | AY47: 0 | BA47: 0 | BB47: 0 | BG47: 0 | BM47: 0 | BN47: 0 | BP47: 0 | BR47: 0 | BT47: 1 | BU47: 2 | BY47: 2 | CA47: 1 | CC47: 3 | CF47: 0 | CI47: 0 | CR47: 0 | CT47: 0 | CV47: 0 | CX47: 0 | DC47: + | DE47: 3 | DF47: 1 | DG47: 1 | DT47: 0 | EC47: 0 | EL47: 2 | EM47: + | EN47: + | EO47: 0 | ES47: 0 | EX47: 0 | FA47: 3 | FB47: 0 | FJ47: 1 | FQ47: + | FR47: 0 | GE47: 4 | GF47: + | GG47: + | GH47: + | GI47: + | GK47: 0 | GQ47: 1 | GR47: + | HG47: 1 | HH47: + | HJ47: 0
A48: 80919920 | B48: I am a carer/partner/family member or friend | C48: 60-69 | D48: 2-5 years ago | E48: speech | F48: writing | G48: turning in bed and related | H48: Sufferer was very active scientist and so very frustrated by speech and writing problems, which causes stress. Tremors and walking less problems at this stage than aspects needing strength or bending by carer: worries with e.g. carer arthritis limits. | K48: 1 | L48: 0 | P48: 0 | S48: 0 | Y48: 1 | Z48: + | AA48: 0 | AF48: 0 | AO48: 0 | AQ48: 0 | AW48: 0 | AY48: 0 | BA48: 1 | BB48: 0 | BG48: 1 | BJ48: + | BM48: 1 | BN48: 1 | BO48: + | BP48: 0 | BR48: 0 | BT48: 1 | BU48: 1 | BY48: 0 | CA48: 0 | CF48: 0 | CI48: 0 | CR48: 0 | CT48: 0 | CV48: 0 | CX48: 0 | DE48: 4 | DF48: 2 | DG48: + | DI48: 3 | DT48: 0 | EC48: 1 | EG48: 2 | EL48: 0 | EO48: 0 | ES48: 0 | EX48: 0 | FA48: 4 | FB48: 1 | FC48: + | FJ48: 0 | FR48: 1 | GB48: + | GE48: 2 | GH48: + | GI48: + | GK48: 1 | GP48: + | GQ48: 0 | HG48: 0 | HJ48: 0
A49: 80919888 | B49: I am a carer/partner/family member or friend | C49: 60-69 | D49: 2-5 years ago | E49: Not sleeping at night | F49: Falling asleep during day whenever they eat or watch tv | G49: Quiet voice | H49: These symptoms affect me more than the sufferer. I'm continually asking for them to repeat themselves and when out eating I have to keep gently prodding them to stay awake. I find this embarrassing on their behalf. I worry about them not getting enough sleep at night. | K49: 0 | L49: 0 | P49: 0 | S49: 0 | Y49: 0 | AA49: 0 | AF49: 0 | AO49: 0 | AQ49: 0 | AW49: 0 | AY49: 0 | BA49: 0 | BB49: 0 | BG49: 0 | BM49: 4 | BN49: 1 | BO49: 1 | BP49: 0 | BR49: 1 | BS49: 2 | BT49: 1 | BX49: 3 | BY49: 0 | CA49: 0 | CF49: 0 | CI49: 0 | CR49: 0 | CT49: 0 | CV49: 0 | CX49: 0 | DE49: 0 | DF49: 0 | DT49: 0 | EC49: 0 | EL49: 0 | EO49: 0 | ES49: 0 | EX49: 0 | FA49: 2 | FB49: 0 | FJ49: 1 | FL49: + | FR49: 0 | GE49: 4 | GF49: + | GG49: + | GH49: + | GI49: + | GK49: 0 | GQ49: 0 | HG49: 0 | HJ49: 0
A50: 80926025 | B50: I am a carer/partner/family member or friend | C50: 70-79 | D50: 2-5 years ago | E50: Cognitive slowing - especially in the evening | F50: Continence | G50: Strength and stiffness in left leg | H50: These are the aspects of his Parkinson's that make him feel less like "his normal self" to use his words. The continence issue has caused a lot of anxiety and a loss of confidence in going out. | K50: 2 | L50: 0 | P50: 1 | Q50: 3 | S50: 0 | Y50: 0 | AA50: 0 | AF50: 2 | AH50: + | AI50: 1 | AO50: 2 | AQ50: 1 | AU50: + | AW50: 1 | AX50: + | AY50: 0 | BA50: 2 | BB50: 0 | BG50: 1 | BJ50: 3 | BM50: 0 | BN50: 0 | BP50: 0 | BR50: 0 | BT50: 0 | BY50: 1 | CA50: 0 | CF50: 0 | CI50: 1 | CJ50: ? | CL50: + | CM50: 2 | CR50: 0 | CT50: 0 | CV50: 0 | CX50: 0 | DE50: 2 | DF50: 1 | DG50: + | DT50: 1 | DU50: + | EC50: 0 | EL50: 0 | EO50: 0 | ES50: 0 | EX50: 0 | FA50: 2 | FB50: 1 | FC50: + | FJ50: 2 | FM50: + | FQ50: + | FR50: 0 | GE50: 0 | GK50: 0 | GQ50: 0 | HG50: 0 | HJ50: 0
A51: 80925744 | B51: I am a carer/partner/family member or friend | C51: 70-79 | D51: 2-5 years ago | E51: Slowness | F51: Lack of energy | G51: E.D. | H51: The slowness and lack of energy stops us planning ahead for most things, it is down to how he is feeling on the day, a very frustrating issue. He has a really fuzzy head at times, which means he has to just rest it off. | K51: 2 | L51: 1 | M51: 1 | P51: 0 | S51: 0 | Y51: 0 | AA51: 0 | AF51: 1 | AH51: + | AO51: 0 | AQ51: 0 | AW51: 0 | AY51: 0 | BA51: 2 | BB51: 0 | BG51: 1 | BK51: 2 | BM51: 0 | BN51: 0 | BP51: 0 | BR51: 0 | BT51: 0 | BY51: 0 | CA51: 0 | CF51: 0 | CI51: 0 | CP51: 3 | CR51: 0 | CT51: 0 | CV51: 0 | CX51: 0 | DE51: 1 | DF51: 0 | DT51: 0 | EC51: 0 | EL51: 1 | EM51: + | EO51: 0 | ES51: 0 | EX51: 0 | FA51: 2 | FB51: 0 | FJ51: 0 | FR51: 2 | FY51: + | GB51: + | GE51: 1 | GI51: + | GK51: 0 | GQ51: 0 | HG51: 1 | HH51: + | HJ51: 0
A52: 80920806 | B52: I am a carer/partner/family member or friend | C52: 60-69 | D52: 2-5 years ago | E52: Right arm/right side weakness | F52: Muscle cramps | G52: Fatigue | H52: 1. My wife is right handed and this is the most evident symptom of her Parkinson's and it affects day to day activities such as writing, cooking cleaning, personal hygiene etc. 2. Despite taking part in a significant amount of exercise my wife gets sporadic cramps in her feet and legs when sitting or in bed. 3. She used to have more energy and get-up-and-go. | K52: 2 | L52: 0 | P52: 0 | S52: 0 | Y52: 0 | AA52: 1 | AB52: 2 | AF52: 0 | AO52: 0 | AQ52: 0 | AW52: 0 | AY52: 0 | BA52: 3 | BB52: 0 | BG52: 2 | BJ52: 1 | BK52: 3 | BM52: 0 | BN52: 0 | BP52: 0 | BR52: 0 | BT52: 0 | BY52: 0 | CA52: 0 | CF52: 0 | CI52: 0 | CR52: 0 | CT52: 0 | CV52: 0 | CX52: 0 | DE52: 4 | DF52: 1 | DG52: + | DT52: 0 | EC52: 1 | EG52: + | EL52: 0 | EO52: 1 | EP52: + | ES52: 1 | EU52: + | EX52: 0 | FA52: 2 | FB52: 2 | FG52: + | FH52: + | FJ52: 0 | FR52: 0 | GE52: 1 | GH52: + | GK52: 0 | GQ52: 0 | HG52: 1 | HI52: + | HJ52: 0
A53: 80930474 | B53: I am a carer/partner/family member or friend | C53: 70-79 | D53: 2-5 years ago | E53: Feeling very unwell and foggy | F53: The dyskinesia | G53: Stress levels unable to cope | H53: My mother feels very unwell a lot of the time , and this has a huge impact on her daily life , she never knows when it’s going to happen or for how long, and therefore worries about planning anything or if she is out and suddenly becomes unwell “ what she will do” this also causes a high level of frustration and distress to her. Movements are getting worse and are now causing embarrassment to her . Also the frustration of dropping and or braking things. Unable to cope now with very simple tasks eg any paperwork. It cause high amounts of stress and worry . | K53: 2 | L53: 0 | P53: 0 | S53: 0 | Y53: 0 | AA53: 1 | AC53: 2 | AF53: 1 | AH53: 1 | AO53: 2 | AQ53: 1 | AU53: + | AW53: 1 | AX53: + | AY53: 0 | BA53: 0 | BB53: 0 | BG53: 0 | BM53: 0 | BN53: 0 | BP53: 0 | BR53: 0 | BT53: 0 | BY53: 1 | CA53: 1 | CC53: + | CF53: 0 | CI53: 0 | CR53: 0 | CT53: 0 | CV53: 0 | CX53: 0 | DC53: + | DE53: 4 | DF53: 2 | DG53: + | DS53: + | DT53: 0 | EC53: 0 | EL53: 2 | EM53: + | EN53: + | EO53: 1 | EQ53: 1 | ES53: 0 | EX53: 0 | FA53: 4 | FB53: 0 | FJ53: 1 | FL53: + | FR53: 4 | FX53: + | FY53: + | GB53: 3 | GC53: + | GE53: 0 | GK53: 1 | GN53: + | GQ53: 0 | HG53: 1 | HH53: + | HJ53: 0
A54: 80937139 | B54: I am a carer/partner/family member or friend | C54: 70-79 | D54: 2-5 years ago | E54: Mobility, walking at a quicker pace. | F54: Being less focused on small details. | G54: Being more spontaneous | H54: These are some of the symptoms which have altered the person I have been married to for over 40 years. It is as though he is being left behind and not the go ahead adventurous character he used to be. | K54: 2 | L54: 0 | P54: 0 | S54: 1 | U54: 1 | Y54: 0 | AA54: 0 | AF54: 1 | AH54: + | AO54: 2 | AQ54: 0 | AW54: 1 | AX54: 2 | AY54: 0 | BA54: 0 | BB54: 0 | BG54: 0 | BM54: 0 | BN54: 0 | BP54: 0 | BR54: 0 | BT54: 0 | BY54: 0 | CA54: 0 | CF54: 0 | CI54: 0 | CR54: 0 | CT54: 0 | CV54: 0 | CX54: 0 | DC54: + | DE54: 4 | DF54: 1 | DG54: 1 | DT54: 1 | DU54: + | EC54: 0 | EL54: 1 | EM54: + | EO54: 0 | ES54: 0 | EX54: 0 | FA54: 2 | FB54: 0 | FJ54: 0 | FR54: 1 | GD54: + | GE54: 3 | GF54: + | GG54: + | GI54: + | GK54: 0 | GQ54: 0 | HG54: 0 | HJ54: 0
A55: 80940133 | B55: I am a carer/partner/family member or friend | C55: Over 80 | D55: 2-5 years ago | E55: swallowing | F55: severe constipation | G55: feeling unsafe when walking outside | H55: We are unable to on holiday or even out for a day because having something to eat or drink means choking, even after a drink which can continue for up to an hour also the feeling of throat always being full causes a lot of coughing. Both these cause him distress. Constipation causes extreme discomfort and constantly trying ways to deal with it, The feeling of being unsafe means he cannot go out alone and cannot do the gardening he would like to do | K55: 3 | L55: 0 | P55: 0 | S55: 2 | U55: 3 | W55: 3 | Y55: 0 | AA55: 0 | AF55: 0 | AO55: 0 | AQ55: 0 | AW55: 0 | AY55: 0 | BA55: 1 | BB55: 0 | BG55: 1 | BI55: + | BM55: 0 | BN55: 0 | BP55: 0 | BR55: 0 | BT55: 0 | BY55: 5 | CA55: 2 | CB55: 1 | CE55: 1 | CF55: 0 | CI55: 1 | CJ55: 2 | CR55: 0 | CT55: 0 | CV55: 0 | CX55: 0 | DE55: 7 | DF55: 1 | DG55: + | DT55: 1 | DU55: + | EC55: 0 | EL55: 1 | EM55: + | EO55: 1 | EP55: + | ES55: 1 | EW55: + | EX55: 1 | EY55: 3 | FA55: 4 | FB55: 1 | FH55: + | FJ55: 0 | FR55: 3 | FX55: + | GB55: + | GC55: + | GE55: 2 | GF55: + | GI55: + | GK55: 0 | GQ55: 3 | GR55: + | GT55: + | GU55: + | HG55: 0 | HJ55: 0
A56: 80949948 | B56: I am a carer/partner/family member or friend | C56: 60-69 | D56: 2-5 years ago | E56: Unable to sleep at night | F56: Daytime fatigue affecting movement | H56: My husband get disturbed nights and he spends periods not sleeping. He rarely disturbs me. This results in him requiring a afternoon sleep. Although, we have learnt to live with this and manage it, it does affect what we can do. | K56: 0 | L56: 0 | P56: 0 | S56: 0 | Y56: 0 | AA56: 0 | AF56: 0 | AO56: 0 | AQ56: 0 | AW56: 0 | AY56: 0 | BA56: 2 | BB56: 0 | BG56: 1 | BK56: 2 | BM56: 3 | BN56: 1 | BO56: 1 | BP56: 0 | BR56: 1 | BS56: + | BT56: 0 | BY56: 0 | CA56: 0 | CF56: 0 | CI56: 0 | CR56: 0 | CT56: 0 | CV56: 0 | CX56: 0 | DE56: 0 | DF56: 0 | DT56: 0 | EC56: 0 | EL56: 0 | EO56: 0 | ES56: 0 | EX56: 0 | FA56: 2 | FB56: 0 | FJ56: 0 | FR56: 0 | GE56: 1 | GI56: + | GK56: 0 | GQ56: 1 | GR56: + | HG56: 0 | HJ56: 0
A57: 80972855 | B57: I am a carer/partner/family member or friend | C57: 60-69 | D57: 2-5 years ago | E57: Loss of strength in muscles | F57: Tiredness | G57: Time taken to identify levels of medication | H57: A long term friend was recently diagnosed with Parkinson's and it is the deterioration of basic skills and consequent loss of confidence ie to drive that I have noticed. | K57: 0 | L57: 0 | P57: 0 | S57: 0 | Y57: 0 | AA57: 0 | AF57: 0 | AO57: 0 | AQ57: 0 | AW57: 0 | AY57: 0 | BA57: 3 | BB57: 0 | BG57: 2 | BJ57: 1 | BK57: 2 | BM57: 0 | BN57: 0 | BP57: 0 | BR57: 0 | BT57: 0 | BY57: 0 | CA57: 0 | CF57: 0 | CI57: 0 | CR57: 0 | CT57: 0 | CV57: 0 | CX57: 0 | DE57: 2 | DF57: 0 | DT57: 0 | EC57: 0 | EL57: 1 | EM57: + | EO57: 0 | ES57: 1 | EU57: + | EX57: 0 | FA57: 1 | FB57: 0 | FJ57: 1 | FQ57: + | FR57: 0 | GE57: 0 | GK57: 0 | GQ57: 0 | HG57: 0 | HJ57: 1 | HK57: 3
A58: 80985860 | B58: I am a carer/partner/family member or friend | C58: 70-79 | D58: 2-5 years ago | E58: Loss of some cognition | F58: Falling over | G58: Tiredness created by the medication | H58: They have the greatest impact on the quality of life for my Mum at present. I feel like I'm losing her day by day. | K58: 0 | L58: 0 | P58: 0 | S58: 0 | Y58: 0 | AA58: 0 | AF58: 1 | AH58: 1 | AO58: 1 | AQ58: 0 | AW58: 1 | AX58: + | AY58: 0 | BA58: 2 | BB58: 0 | BG58: 1 | BK58: 3 | BM58: 0 | BN58: 0 | BP58: 0 | BR58: 0 | BT58: 0 | BY58: 0 | CA58: 0 | CF58: 0 | CI58: 0 | CR58: 0 | CT58: 0 | CV58: 0 | CX58: 0 | DC58: + | DE58: 2 | DF58: 1 | DG58: + | DT58: 0 | EC58: 0 | EL58: 0 | EO58: 0 | ES58: 0 | EX58: 1 | EY58: + | FA58: 0 | FB58: 0 | FJ58: 0 | FR58: 0 | GE58: 0 | GK58: 0 | GQ58: 0 | HG58: 1 | HH58: + | HJ58: 1 | HM58: 3
A59: 80993056 | B59: I am a carer/partner/family member or friend | C59: 70-79 | D59: 2-5 years ago | E59: Stronger mobility | F59: Less need for constant urination | G59: Confidence | K59: 0 | L59: 0 | P59: 0 | S59: 0 | Y59: 0 | AA59: 0 | AF59: 0 | AO59: 0 | AQ59: 0 | AW59: 0 | AY59: 0 | BA59: 0 | BB59: 0 | BG59: 0 | BM59: 0 | BN59: 0 | BP59: 0 | BR59: 0 | BT59: 0 | BY59: 0 | CA59: 0 | CF59: 0 | CI59: 0 | CL59: 2 | CR59: 0 | CT59: 0 | CV59: 0 | CX59: 0 | DE59: 2 | DF59: 1 | DG59: 1 | DT59: 0 | EC59: 0 | EL59: 0 | EO59: 0 | ES59: 0 | EX59: 0 | FA59: 2 | FB59: 0 | FJ59: 1 | FQ59: 3 | FR59: 0 | GE59: 0 | GK59: 0 | GQ59: 0 | HG59: 0 | HJ59: 0
A60: 80994400 | B60: I am a carer/partner/family member or friend | C60: Over 80 | D60: 2-5 years ago | E60: Memory | F60: Mood | G60: Speech | H60: They are the things that modt disturb and which impact onnormal life. | K60: 0 | L60: 0 | P60: 0 | S60: 0 | Y60: 0 | AA60: 0 | AF60: 1 | AH60: 1 | AO60: 2 | AQ60: 1 | AR60: 2 | AW60: 0 | AY60: 0 | BA60: 0 | BB60: 0 | BG60: 0 | BM60: 0 | BN60: 0 | BP60: 0 | BR60: 0 | BT60: 1 | BU60: 3 | BY60: 0 | CA60: 0 | CF60: 0 | CI60: 0 | CR60: 0 | CT60: 0 | CV60: 0 | CX60: 0 | DE60: 0 | DF60: 0 | DT60: 0 | EC60: 0 | EL60: 0 | EO60: 0 | ES60: 0 | EX60: 0 | FA60: 1 | FB60: 0 | FJ60: 0 | FR60: 0 | GE60: 1 | GH60: + | GK60: 0 | GQ60: 0 | HG60: 1 | HH60: + | HJ60: 0
A61: 81011469 | B61: I am a carer/partner/family member or friend | C61: 50-59 | D61: 2-5 years ago | E61: More energy | F61: Easier movement | G61: Better sleep | H61: Allow a more complete retirement | K61: 0 | L61: 0 | P61: 0 | S61: 0 | Y61: 0 | AA61: 0 | AF61: 0 | AO61: 0 | AQ61: 0 | AW61: 0 | AY61: 0 | BA61: 2 | BB61: 0 | BG61: 1 | BK61: 1 | BM61: 2 | BN61: 1 | BO61: 3 | BP61: 0 | BR61: 0 | BT61: 0 | BY61: 0 | CA61: 0 | CF61: 0 | CI61: 0 | CR61: 0 | CT61: 0 | CV61: 0 | CX61: 0 | DE61: 3 | DF61: 1 | DG61: 2 | DT61: 0 | EC61: 0 | EL61: 1 | EM61: + | EO61: 0 | ES61: 0 | EX61: 0 | FA61: 0 | FB61: 0 | FJ61: 0 | FR61: 0 | GE61: 0 | GK61: 0 | GQ61: 0 | HG61: 0 | HJ61: 0
A62: 81023152 | B62: I am a carer/partner/family member or friend | C62: 60-69 | D62: 2-5 years ago | E62: Facial expressions | F62: Shaking | G62: Movement | H62: The person is affected greatly by the way they change with day to day interaction. Not only movement but also the way they look. Memory is not really a problem but simple every day tasks are frustrating. | K62: 4 | L62: 0 | P62: 1 | R62: 1 | S62: 0 | Y62: 1 | Z62: 2 | AA62: 0 | AF62: 0 | AO62: 0 | AQ62: 0 | AW62: 0 | AY62: 0 | BA62: 0 | BB62: 0 | BG62: 0 | BM62: 0 | BN62: 0 | BP62: 0 | BR62: 0 | BT62: 0 | BY62: 0 | CA62: 0 | CF62: 0 | CI62: 0 | CR62: 0 | CT62: 0 | CV62: 0 | CX62: 0 | DC62: + | DE62: 3 | DF62: 1 | DG62: 3 | DT62: 0 | EC62: 0 | EL62: 0 | EO62: 0 | ES62: 1 | EU62: + | EX62: 0 | FA62: 2 | FB62: 0 | FJ62: 3 | FL62: + | FM62: + | FQ62: + | FR62: 1 | GB62: + | GE62: 0 | GK62: 0 | GQ62: 0 | HG62: 0 | HJ62: 0
A63: 81030991 | B63: I am a carer/partner/family member or friend | C63: 70-79 | D63: 2-5 years ago | E63: Return of speech | F63: Mobility | H63: Speech to join in conversations Mobility to improve my balance so I can walk unaided. | K63: 1 | L63: 0 | P63: 0 | S63: 2 | U63: + | W63: + | Y63: 0 | AA63: 0 | AF63: 0 | AO63: 0 | AQ63: 0 | AW63: 0 | AY63: 0 | BA63: 0 | BB63: 0 | BG63: 0 | BM63: 0 | BN63: 0 | BP63: 0 | BR63: 0 | BT63: 1 | BU63: 1 | BY63: 0 | CA63: 0 | CF63: 0 | CI63: 0 | CR63: 0 | CT63: 0 | CV63: 0 | CX63: 0 | DE63: 3 | DF63: 1 | DG63: 2 | DT63: 0 | EC63: 0 | EL63: 0 | EO63: 0 | ES63: 0 | EX63: 1 | EY63: + | FA63: 1 | FB63: 0 | FJ63: 0 | FR63: 0 | GE63: 2 | GF63: + | GH63: + | GK63: 0 | GQ63: 0 | HG63: 0 | HJ63: 0
A64: 81107144 | B64: I am a carer/partner/family member or friend | C64: 70-79 | D64: 2-5 years ago | E64: Speedier movement both physical & mental | F64: Improve facial and shuffling | G64: Tiredness | H64: Two aspects the first being how people react to Parkinsons sufferers particularly in a public environment ie stareing and avoidance as if the person has the plague. Secondly the person who has Parkinson’s know there is no cure so it is like no future | K64: 6 | L64: 1 | M64: 1 | P64: 1 | R64: 2 | S64: 1 | U64: 2 | Y64: 0 | AA64: 0 | AF64: 2 | AH64: + | AI64: 1 | AO64: 0 | AQ64: 0 | AW64: 0 | AY64: 0 | BA64: 2 | BB64: 0 | BG64: 1 | BK64: 3 | BM64: 0 | BN64: 0 | BP64: 0 | BR64: 0 | BT64: 0 | BY64: 0 | CA64: 0 | CF64: 0 | CI64: 0 | CR64: 0 | CT64: 0 | CV64: 0 | CX64: 0 | DE64: 1 | DF64: 1 | DG64: + | DT64: 0 | EC64: 0 | EL64: 0 | EO64: 0 | ES64: 0 | EX64: 0 | FA64: 1 | FB64: 0 | FJ64: 2 | FK64: + | FM64: + | FR64: 0 | GE64: 0 | GK64: 0 | GQ64: 0 | HG64: 0 | HJ64: 1 | HK64: +
A65: 81128750 | B65: I am a carer/partner/family member or friend | C65: 70-79 | D65: 2-5 years ago | E65: Constant dizziness | F65: Fatigue | G65: Stiffness in limbs | H65: Can only walk very short distance so unable to go out with friends other than for a meal. Feels dizzy all the time, therefore feels like going to fall over, struggles to shower, shave and get dressed. If we meet friends when we get the paper he cannot stand still to talk Due to dizziness and fatigue unable to go for days out | K65: 2 | L65: 0 | P65: 1 | Q65: 3 | S65: 0 | Y65: 0 | AA65: 0 | AF65: 0 | AO65: 0 | AQ65: 0 | AW65: 0 | AY65: 0 | BA65: 2 | BB65: 0 | BG65: 1 | BK65: 2 | BM65: 0 | BN65: 0 | BP65: 0 | BR65: 0 | BT65: 0 | BY65: 0 | CA65: 0 | CF65: 0 | CI65: 0 | CR65: 0 | CT65: 0 | CV65: 1 | CW65: 1 | CX65: 0 | DE65: 5 | DF65: 1 | DG65: + | DT65: 1 | DU65: + | EC65: 0 | EL65: 1 | EM65: + | EO65: 0 | ES65: 1 | EU65: + | EX65: 1 | EY65: + | FA65: 2 | FB65: 0 | FJ65: 0 | FR65: 1 | GC65: + | GE65: 4 | GF65: + | GG65: + | GI65: + | GJ65: + | GK65: 0 | GQ65: 0 | HG65: 0 | HJ65: 0
A66: 81158738 | B66: I am a carer/partner/family member or friend | C66: 30-49 | D66: 2-5 years ago | E66: Cramps | F66: Involuntary movements | G66: Loss of confidence, anxiety | H66: We are carers for our son who has moderate learning difficulties and who is now 42. Up to his Parkinson's diagnosis he had been able to be independent, to walk to work and back, to catch public transport and go to the nearest city for a day by himself. He was happy and seemingly carefree. Eight years ago he was diagnosed with severe depression following a viral ear infection. The depression was out of the blue as he had never had any mental health issue before, it was followed with difficulties in walking, because of a drop foot and severe pain he experienced behind the knee and in his back He had to change his job venue (with much help and support from his present employer) and give up sporting activities such as tennis. After a number of tests by Orthopaedic and Neuro and Muscle Consultants, he was finally diagnosed 3 years ago with Parkinson's and medication was started. His pain (behind the knee and backache) improved and he is now managing to cope albeit with increased anxiety. His main problems are cramps. These happen almost daily, anywhere and can vary in intensity of pain from 1 to 10. The shorter ones he has mostly learnt to manage. At work he goes to the staff room, when in town he goes to a cafe and sits down for 15 to 30 minutes etc. However when he is walking he has to sit down sometimes on the pavement and he gets funny looks from passers by. Other times these cramps/spasms can last for up to 4 hours. These occur specially during the night and when he has been out late. He has been given Madopar Dispersible 62.5mg to manage these episodes and so far this has worked. He is only using this as a 'rescue medicine' and he is grateful for the relief it provides. Regarding the involuntary movements, it seems his body is never at rest, the muscles seem taught and his arms seem as if they want to jump up. His movements are often clumsy and he looks as if he often trips when he walks. It is exhausting for him particularly and for us too. All these symptoms have considerably decreased his self-confidence. He used to take our dog for long walks before and did shopping and house cleaning as well as working part time (30 hours). Now his motivation is very low. He works 22 hours a week and feels exhausted when he comes home. He waits for us to come to town with him and he would not even attempt a solo city escapes as before. He attends a group Physio session with others who have Parkinson's and enjoys this although very often he has to stop because of cramps. | K66: 4 | L66: 0 | P66: 0 | S66: 1 | U66: + | Y66: 0 | AA66: 2 | AB66: 1 | AC66: 2 | AF66: 0 | AO66: 1 | AQ66: 3 | AR66: + | AS66: + | AU66: + | AW66: 0 | AY66: 0 | BA66: 1 | BB66: 0 | BG66: 2 | BI66: + | BK66: + | BM66: 0 | BN66: 0 | BP66: 0 | BR66: 0 | BT66: 0 | BY66: 0 | CA66: 0 | CF66: 0 | CI66: 0 | CR66: 0 | CT66: 0 | CV66: 0 | CX66: 0 | DC66: + | DE66: 3 | DF66: 1 | DG66: + | DT66: 1 | DU66: + | EC66: 0 | EL66: 0 | EO66: 1 | EP66: + | ES66: 0 | EX66: 0 | FA66: 6 | FB66: 3 | FC66: + | FE66: + | FI66: + | FJ66: 2 | FK66: + | FQ66: 3 | FR66: 0 | GE66: 3 | GF66: + | GI66: + | GJ66: + | GK66: 2 | GL66: + | GP66: + | GQ66: 1 | GU66: + | HG66: 1 | HH66: + | HJ66: 0
A67: 81200621 | B67: I am a carer/partner/family member or friend | C67: 70-79 | D67: 2-5 years ago | E67: Dementia | F67: Blood pressure | G67: Voice | H67: Dementia because this is stopping him from fully participating when in company. Low blood pressure because this stops him fully enjoying going walking and other keep fit exercises. Voice even doing exercises his voice is quite often effected with sentences fading off. | K67: 0 | L67: 0 | P67: 0 | S67: 0 | Y67: 0 | AA67: 0 | AF67: 2 | AH67: + | AN67: 1 | AO67: 0 | AQ67: 0 | AW67: 0 | AY67: 0 | BA67: 0 | BB67: 0 | BG67: 0 | BM67: 0 | BN67: 0 | BP67: 0 | BR67: 0 | BT67: 1 | BV67: 3 | BY67: 0 | CA67: 0 | CF67: 0 | CI67: 0 | CR67: 0 | CT67: 1 | CU67: 2 | CV67: 0 | CX67: 0 | DE67: 1 | DF67: 0 | DT67: 1 | DU67: + | EC67: 0 | EL67: 0 | EO67: 0 | ES67: 0 | EX67: 0 | FA67: 1 | FB67: 0 | FJ67: 0 | FR67: 0 | GE67: 2 | GF67: + | GH67: + | GK67: 0 | GQ67: 0 | HG67: 0 | HJ67: 0
A68: 81266855 | B68: I am a carer/partner/family member or friend | C68: 70-79 | D68: 2-5 years ago | E68: Tremor | F68: Slowness of movement | G68: Anxiety | H68: The tremor is the symptom that upsets my wife the most, hence it upsets me as well. it makes her more introverted that she was. The slowness of movement affects general life - we go a lot of walks together and lately this has become even slower - so even thought we get some benefit, I have to go out later to walk at a faster rate. | K68: 4 | L68: 1 | M68: 2 | P68: 0 | S68: 0 | Y68: 1 | Z68: 1 | AA68: 0 | AF68: 0 | AO68: 2 | AQ68: 1 | AU68: 3 | AW68: 0 | AY68: 0 | BA68: 0 | BB68: 0 | BG68: 0 | BM68: 0 | BN68: 0 | BP68: 0 | BR68: 0 | BT68: 0 | BY68: 0 | CA68: 0 | CF68: 0 | CI68: 0 | CR68: 0 | CT68: 0 | CV68: 0 | CX68: 0 | DC68: + | DE68: 2 | DF68: 1 | DG68: + | DT68: 1 | DU68: + | EC68: 0 | EL68: 0 | EO68: 0 | ES68: 0 | EX68: 0 | FA68: 2 | FB68: 0 | FJ68: 0 | FR68: 1 | FX68: + | GE68: 3 | GF68: + | GI68: + | GJ68: + | GK68: 0 | GQ68: 0 | HG68: 1 | HH68: + | HJ68: 0
A69: 81343409 | B69: I am a carer/partner/family member or friend | C69: 70-79 | D69: 2-5 years ago | E69: balance | F69: pain | G69: confidence | H69: Feeling wobbly & not trusting himself, a previously very active man enjoying DIY & outdoor pursuits now spends much time sitting & not going out, going away. muscle pain & pain once thought to be kidney stone means taking over the counter painkillers daily, but not wanting to become reliant, always taking the lower dose means not totally controlling it. Previously accustomed to taking calculated risks, now missing out on opportunities because risk-averse | K69: 2 | L69: 0 | P69: 0 | S69: 1 | W69: 1 | Y69: 0 | AA69: 0 | AF69: 0 | AO69: 0 | AQ69: 0 | AW69: 0 | AY69: 0 | BA69: 2 | BB69: 0 | BG69: 1 | BI69: 2 | BM69: 0 | BN69: 0 | BP69: 0 | BR69: 0 | BT69: 0 | BY69: 0 | CA69: 0 | CF69: 0 | CI69: 0 | CR69: 0 | CT69: 0 | CV69: 0 | CX69: 0 | DE69: 4 | DF69: 1 | DG69: + | DT69: 1 | DU69: + | EC69: 0 | EL69: 0 | EO69: 1 | EP69: + | ES69: 0 | EX69: 1 | EY69: + | FA69: 5 | FB69: 0 | FJ69: 1 | FQ69: 3 | FR69: 1 | GC69: + | GE69: 2 | GF69: + | GJ69: + | GK69: 0 | GQ69: 1 | GU69: + | HG69: 0 | HJ69: 1 | HK69: +
A70: 79579946 | B70: I am a carer/partner/family member or friend | C70: 70-79 | D70: 6-10 years ago | E70: Shaking | K70: 2 | L70: 0 | P70: 0 | S70: 0 | Y70: 1 | Z70: 1 | AA70: 0 | AF70: 0 | AO70: 0 | AQ70: 0 | AW70: 0 | AY70: 0 | BA70: 0 | BB70: 0 | BG70: 0 | BM70: 0 | BN70: 0 | BP70: 0 | BR70: 0 | BT70: 0 | BY70: 0 | CA70: 0 | CF70: 0 | CI70: 0 | CR70: 0 | CT70: 0 | CV70: 0 | CX70: 0 | DE70: 0 | DF70: 0 | DT70: 0 | EC70: 0 | EL70: 0 | EO70: 0 | ES70: 0 | EX70: 0 | FA70: 0 | FB70: 0 | FJ70: 0 | FR70: 0 | GE70: 0 | GK70: 0 | GQ70: 0 | HG70: 0 | HJ70: 0
A71: 79580188 | B71: I am a carer/partner/family member or friend | C71: 60-69 | D71: 6-10 years ago | E71: Movement | K71: 0 | L71: 0 | P71: 0 | S71: 0 | Y71: 0 | AA71: 0 | AF71: 0 | AO71: 0 | AQ71: 0 | AW71: 0 | AY71: 0 | BA71: 0 | BB71: 0 | BG71: 0 | BM71: 0 | BN71: 0 | BP71: 0 | BR71: 0 | BT71: 0 | BY71: 0 | CA71: 0 | CF71: 0 | CI71: 0 | CR71: 0 | CT71: 0 | CV71: 0 | CX71: 0 | DE71: 2 | DF71: 1 | DG71: 1 | DT71: 0 | EC71: 0 | EL71: 0 | EO71: 0 | ES71: 0 | EX71: 0 | FA71: 0 | FB71: 0 | FJ71: 0 | FR71: 0 | GE71: 0 | GK71: 0 | GQ71: 0 | HG71: 0 | HJ71: 0
A72: 79583982 | B72: I am a carer/partner/family member or friend | C72: 60-69 | D72: 6-10 years ago | E72: Balance | F72: Shaking movements | G72: Slowness of movement | H72: These seem 2 frustrate my husband most & cause him most upset. | K72: 6 | L72: 1 | M72: 3 | P72: 0 | S72: 1 | W72: 1 | Y72: 1 | Z72: 2 | AA72: 0 | AF72: 0 | AO72: 0 | AQ72: 0 | AW72: 0 | AY72: 0 | BA72: 0 | BB72: 0 | BG72: 0 | BM72: 0 | BN72: 0 | BP72: 0 | BR72: 0 | BT72: 0 | BY72: 0 | CA72: 0 | CF72: 0 | CI72: 0 | CR72: 0 | CT72: 0 | CV72: 0 | CX72: 0 | DC72: + | DE72: 1 | DF72: 1 | DG72: + | DT72: 0 | EC72: 0 | EL72: 0 | EO72: 0 | ES72: 0 | EX72: 0 | FA72: 1 | FB72: 0 | FJ72: 0 | FR72: 1 | GB72: + | GE72: 0 | GK72: 0 | GQ72: 0 | HG72: 1 | HH72: + | HJ72: 0
A73: 79657110 | B73: I am a carer/partner/family member or friend | C73: 60-69 | D73: 6-10 years ago | E73: Personality changes | F73: Movement reduction | G73: Memory | H73: Personality is the hardest to see change over time. The movement is a constant reminder of the crue l disease and the memory shows progression of illness. | K73: 0 | L73: 0 | P73: 0 | S73: 0 | Y73: 0 | AA73: 0 | AF73: 2 | AG73: 3 | AH73: + | AO73: 3 | AQ73: 1 | AR73: + | AW73: 1 | AX73: 1 | AY73: 0 | BA73: 0 | BB73: 0 | BG73: 0 | BM73: 0 | BN73: 0 | BP73: 0 | BR73: 0 | BT73: 0 | BY73: 0 | CA73: 0 | CF73: 0 | CI73: 0 | CR73: 0 | CT73: 0 | CV73: 0 | CX73: 0 | DE73: 2 | DF73: 1 | DG73: 2 | DT73: 0 | EC73: 0 | EL73: 0 | EO73: 0 | ES73: 0 | EX73: 0 | FA73: 2 | FB73: 0 | FJ73: 0 | FR73: 1 | FV73: + | GE73: 1 | GI73: + | GK73: 0 | GQ73: 0 | HG73: 0 | HJ73: 0
A74: 79686776 | B74: I am a carer/partner/family member or friend | C74: 60-69 | D74: 6-10 years ago | E74: Pain relief that actually works | F74: Sleeping through the night | G74: Access to more physiotherapy | H74: They are the three areas that affect my brother the most. The pain influences the other two and impacts evry single aspct of his life which is a living hell. | K74: =COUNTIF(L74:AE74,">0") -> 0 | L74: =COUNTA(M74:O74) -> 0 | P74: =COUNTA(Q74:R74) -> 0 | S74: =COUNTA(T74:X74) -> 0 | Y74: =COUNTA(Z74) -> 0 | AA74: =COUNTA(AB74:AE74) -> 0 | AF74: =COUNTA(AG74:AN74) -> 0 | AO74: =COUNTIF(AP74:AZ74,">0") -> 0 | AQ74: =COUNTA(AR74:AV74) -> 0 | AW74: =COUNTA(AX74) -> 0 | AY74: =COUNTA(AZ74) -> 0 | BA74: =COUNTIF(BB74:BL74,">0") -> 2 | BB74: =COUNTA(BC74:BF74) -> 0 | BG74: =COUNTA(BH74:BL74) -> 1 | BI74: 1 | BM74: =COUNTIF(BN74:BS74,">0") -> 2 | BN74: =COUNTA(BO74) -> 1 | BO74: 2 | BP74: =COUNTA(BQ74) -> 0 | BR74: =COUNTA(BS74) -> 0 | BT74: =COUNTA(BU74:BX74) -> 0 | BY74: =COUNTIF(BZ74:CJ74,">0") -> 0 | CA74: =COUNTA(CB74:CE74) -> 0 | CF74: =COUNTA(CG74:CH74) -> 0 | CI74: =COUNTA(CJ74) -> 0 | CR74: =COUNTA(CS74) -> 0 | CT74: =COUNTA(CU74) -> 0 | CV74: =COUNTA(CW74) -> 0 | CX74: =COUNTA(CY74) -> 0 | DC74: + | DE74: =COUNTIF(DF74:EZ74,">0") -> 2 | DF74: =COUNTA(DG74:DS74) -> 1 | DG74: + | DT74: =COUNTA(DU74) -> 0 | EC74: =COUNTA(ED74:EK74) -> 0 | EL74: 0 | EO74: =COUNTA(EP74:ER74) -> 1 | EP74: + | ES74: =COUNTA(ET74:EW74) -> 0 | EX74: =COUNTA(EY74:EZ74) -> 0 | FA74: =COUNTIF(FB74:HE74,">0") -> 0 | FB74: =COUNTA(FC74:FI74) -> 0 | FJ74: =COUNTA(FK74:FQ74) -> 0 | FR74: =COUNTA(FS74:GD74) -> 0 | GE74: =COUNTA(GF74:GJ74) -> 0 | GK74: =COUNTA(GL74:GP74) -> 0 | GQ74: =COUNTA(GR74:HE74) -> 0 | HG74: =COUNTA(HH74:HI74) -> 1 | HH74: + | HJ74: =COUNTA(HK74:IA74) -> 1 | HU74: 3
A75: 79695904 | B75: I am a carer/partner/family member or friend | C75: 70-79 | D75: 6-10 years ago | E75: stop dreams and halucinations | F75: cease restlessness | G75: do more exercise | H75: these are the symptoms that cause the most worry. | K75: 0 | L75: 0 | P75: 0 | S75: 0 | Y75: 0 | AA75: 0 | AF75: 1 | AH75: + | AO75: 2 | AQ75: 0 | AW75: 0 | AY75: 1 | AZ75: 1 | BA75: 2 | BB75: 0 | BG75: 1 | BL75: 1 | BM75: 4 | BN75: 1 | BO75: 1 | BP75: 1 | BQ75: 1 | BR75: 0 | BT75: 0 | BY75: 0 | CA75: 0 | CF75: 0 | CI75: 0 | CR75: 0 | CT75: 0 | CV75: 0 | CX75: 0 | DE75: 4 | DF75: 1 | DG75: 3 | DT75: 1 | DU75: 3 | EC75: 0 | EL75: =COUNTA(EM75:EN75) -> 0 | EO75: 0 | ES75: 0 | EX75: 0 | FA75: 0 | FB75: 0 | FJ75: 0 | FR75: 0 | GE75: 0 | GK75: 0 | GQ75: 0 | HG75: 0 | HJ75: 0
A76: 80920926 | B76: I am a carer/partner/family member or friend | C76: 60-69 | D76: 6-10 years ago | E76: Speech problems - isolation as a result of being unable to effectively comunicate at times and join in conversation | F76: Freezing | G76: Dyskinesia | H76: The PWP is a retired professional, hitherto very articulate with a great sense of humour. That now seems to have been lost, although a glimmer of the humour shines through on a good day. Whilst one can accept that it becomes harder to get about, inability to communicate effectively, make oneself understood both face-to-face and on the phone, becomes very isolating. Freezing can make life very difficult, especially when it happens in a public place as the public's perception is that one may be drunk. Also, there can be problems when out of getting to the toilet on time etc. Dyskinesia - ditto about looking drunk, especially if one's voice isn't good and one makes noises rather than words. Also, coping with the frequent involuntary movements can be extremely tiring. | K76: 4 | L76: 0 | P76: 0 | S76: 1 | T76: 2 | Y76: 0 | AA76: 1 | AC76: 3 | AF76: 0 | AO76: 1 | AQ76: 0 | AW76: 1 | AX76: + | AY76: 0 | BA76: 0 | BB76: 0 | BG76: 0 | BM76: 0 | BN76: 0 | BP76: 0 | BR76: 0 | BT76: 1 | BU76: 1 | BY76: 0 | CA76: 0 | CF76: 0 | CI76: 0 | CM76: + | CR76: 0 | CT76: 0 | CV76: 0 | CX76: 0 | DC76: + | DE76: 3 | DF76: 1 | DG76: + | DT76: 0 | EC76: 1 | EJ76: + | EL76: 0 | EO76: 0 | ES76: 1 | ET76: + | EX76: 0 | FA76: 3 | FB76: 0 | FJ76: 3 | FK76: + | FL76: + | FQ76: + | FR76: 3 | FX76: + | FY76: + | GD76: + | GE76: 4 | GF76: + | GG76: + | GH76: + | GJ76: + | GK76: 0 | GQ76: 0 | HG76: 1 | HH76: + | HJ76: 0
A77: 80923222 | B77: I am a carer/partner/family member or friend | C77: 60-69 | D77: 6-10 years ago | E77: Anxiety | F77: Mood swings | G77: Muscle spasms | H77: My husband copes relatively well with the physical aspects, in this respect his medication works well. The most difficult aspect for us are the psychological aspects, in particular attacks of anxiety/panic. Mood swings can be very sudden and difficult to deal with also. Muscle spasms are probably his worst physical problem. | K77: 2 | L77: 0 | P77: 0 | S77: 0 | Y77: 0 | AA77: 1 | AB77: 3 | AF77: 0 | AO77: 3 | AQ77: 2 | AR77: 2 | AU77: 1 | AW77: 0 | AY77: 0 | BA77: 0 | BB77: 0 | BG77: 0 | BM77: 0 | BN77: 0 | BP77: 0 | BR77: 0 | BT77: 0 | BY77: 0 | CA77: 0 | CF77: 0 | CI77: 0 | CR77: 0 | CT77: 0 | CV77: 0 | CX77: 0 | DE77: 1 | DF77: 0 | DT77: 0 | EC77: 0 | EL77: 0 | EO77: 1 | EP77: + | ES77: 0 | EX77: 0 | FA77: 1 | FB77: 0 | FJ77: 0 | FR77: 2 | FX77: + | FY77: + | GE77: 0 | GK77: 0 | GQ77: 0 | HG77: 1 | HH77: + | HJ77: 0
A78: 80927398 | B78: I am a carer/partner/family member or friend | C78: 60-69 | D78: 6-10 years ago | E78: Movement issues | F78: Muscle pain | G78: Off periods | H78: Difficulty in getting around, inability to drive as off periods are dreadful and pain very bad.involuntary movements are very uncomfortable and the whole illness is embarrassing. Too much talk and promises not backed up by consultants.Too many treatments are standard even though we are told each is individual.Drugs available are not released through funding issues specifically in Gloucestershire.Follow up by Specialists is poor to non existent. I feel sorry for those suffers who don't have a strong person to stand their corner. | K78: 1 | L78: 0 | P78: 0 | S78: 0 | Y78: 0 | AA78: 1 | AC78: + | AF78: 0 | AO78: 0 | AQ78: 0 | AW78: 0 | AY78: 0 | BA78: 2 | BB78: 0 | BG78: 1 | BI78: 2 | BM78: 0 | BN78: 0 | BP78: 0 | BR78: 0 | BT78: 0 | BY78: 0 | CA78: 0 | CF78: 0 | CI78: 0 | CR78: 0 | CT78: 0 | CV78: 0 | CX78: 0 | DE78: 4 | DF78: 1 | DG78: 1 | DT78: 1 | DU78: + | EC78: 0 | EL78: 0 | EO78: 1 | EP78: + | ES78: 0 | EX78: 0 | FA78: 3 | FB78: 1 | FE78: + | FJ78: 1 | FL78: + | FR78: 1 | GB78: + | GE78: 0 | GK78: 0 | GQ78: 0 | HG78: 0 | HJ78: 2 | HK78: + | HP78: 3
A79: 80928372 | B79: I am a carer/partner/family member or friend | C79: 60-69 | D79: 6-10 years ago | E79: The off periods when the drugs don't seem to work especially aafter a big meal at lunchtime | F79: the slowness of doing anything | G79: the balance problems | H79: Because they seem to have got a lot worse recently and are having a big effect on our lives | K79: 4 | L79: 1 | M79: 2 | P79: 0 | S79: 1 | W79: 3 | Y79: 0 | AA79: 0 | AF79: 0 | AO79: 0 | AQ79: 0 | AW79: 0 | AY79: 0 | BA79: 0 | BB79: 0 | BG79: 0 | BM79: 0 | BN79: 0 | BP79: 0 | BR79: 0 | BT79: 0 | BY79: 0 | CA79: 0 | CF79: 0 | CI79: 0 | CR79: 0 | CT79: 0 | CV79: 0 | CX79: 0 | DC79: + | DE79: 4 | DF79: 1 | DG79: + | DT79: 1 | DU79: + | EC79: 0 | EL79: 0 | EO79: 0 | ES79: 1 | EW79: + | EX79: 1 | EY79: + | FA79: 1 | FB79: 0 | FJ79: 0 | FR79: 0 | GE79: 1 | GI79: + | GK79: 0 | GQ79: 0 | HG79: 1 | HH79: + | HJ79: 3 | HK79: + | HN79: + | HP79: 1
A80: 80929107 | B80: I am a carer/partner/family member or friend | C80: 70-79 | D80: 6-10 years ago | E80: Tremors | F80: Speech | G80: Gait | H80: I am speaking on behalf of my resident. He has, at times, really bad tremors up to the point of hitting himself and anyone near him. His medications have been adjusted so this didn’t happen too often. Because of this he is starting to isolate himself as he dosnt want to hurt anyone. His speech is very slurred but a speech and language therapist is working with him. His mobility can be erratic and either full pelt or very slow, this tired him even more and he is sleeping more through the day. | K80: 5 | L80: 0 | P80: 0 | S80: 1 | U80: 3 | Y80: 1 | Z80: 1 | AA80: 1 | AC80: + | AF80: 0 | AO80: 0 | AQ80: 0 | AW80: 0 | AY80: 0 | BA80: 0 | BB80: 0 | BG80: 0 | BM80: 2 | BN80: 1 | BO80: + | BP80: 0 | BR80: 1 | BS80: + | BT80: 1 | BU80: 2 | BY80: 0 | CA80: 0 | CF80: 0 | CI80: 0 | CR80: 0 | CT80: 0 | CV80: 0 | CX80: 0 | DE80: 2 | DF80: 1 | DG80: + | DT80: 0 | EC80: 0 | EL80: 1 | EM80: + | EO80: 0 | ES80: 0 | EX80: 0 | FA80: 1 | FB80: 0 | FJ80: 0 | FR80: 0 | GE80: 4 | GF80: + | GG80: + | GH80: + | GJ80: + | GK80: 0 | GQ80: 0 | HG80: 0 | HJ80: 0
A81: 80938098 | B81: I am a carer/partner/family member or friend | C81: 70-79 | D81: 6-10 years ago | E81: Better treatments | F81: Less mood changes | G81: Less drug side effects | H81: There is little available that is new and exciting. Being told on diagnosis "you will die with it not from it" is a double edged sword. Low mood and anxiety might be part of Parkinson's but the impact on life is great with no offer of help. More understanding of this urgently needed. Drug side effects cause much embarrassment further lowering mood. | K81: 0 | L81: 0 | P81: 0 | S81: 0 | Y81: 0 | AA81: 0 | AF81: 0 | AO81: 2 | AQ81: 2 | AR81: 2 | AU81: + | AW81: 0 | AY81: 0 | BA81: 0 | BB81: 0 | BG81: 0 | BM81: 0 | BN81: 0 | BP81: 0 | BR81: 0 | BT81: 0 | BY81: 0 | CA81: 0 | CF81: 0 | CI81: 0 | CR81: 0 | CT81: 0 | CV81: 0 | CX81: 0 | DE81: 0 | DF81: 0 | DT81: 0 | EC81: 0 | EL81: 0 | EO81: 0 | ES81: 0 | EX81: 0 | FA81: 1 | FB81: 0 | FJ81: 2 | FL81: + | FM81: + | FR81: 0 | GE81: 0 | GK81: 0 | GQ81: 0 | HG81: 1 | HH81: + | HJ81: 2 | HK81: 1 | HM81: 3
A82: 80941955 | B82: I am a carer/partner/family member or friend | C82: 70-79 | D82: 6-10 years ago | E82: Lack of energy | F82: Difficulty getting in and out ok chair ,bed ,car | G82: Walking and climbing stairs | H82: Because he’s always been told to try and keep doing what he used to lack of energy means he cannot do the things he used to enjoy i/e golf,walking holidays ,Bowls .Lack of contact with male friends also makes him less agreeable at home as he enjoys men’s banter and misses putting the world to rights with then. | K82: 0 | L82: 0 | P82: 0 | S82: 0 | Y82: 0 | AA82: 0 | AF82: 0 | AO82: 0 | AQ82: 0 | AW82: 0 | AY82: 0 | BA82: 2 | BB82: 0 | BG82: 1 | BK82: 1 | BM82: 0 | BN82: 0 | BP82: 0 | BR82: 0 | BT82: 0 | BY82: 0 | CA82: 0 | CF82: 0 | CI82: 0 | CR82: 0 | CT82: 0 | CV82: 0 | CX82: 0 | DC82: + | DE82: 6 | DF82: 3 | DG82: 3 | DJ82: 3 | DN82: 3 | DT82: 1 | DU82: + | EC82: 0 | EL82: 1 | EM82: + | EO82: 0 | ES82: 0 | EX82: 0 | FA82: 2 | FB82: 0 | FJ82: 0 | FR82: 0 | GE82: 3 | GF82: + | GG82: + | GJ82: + | GK82: 0 | GQ82: 2 | GR82: + | GU82: + | HG82: 0 | HJ82: 0
A83: 80946273 | B83: I am a carer/partner/family member or friend | C83: 70-79 | D83: 6-10 years ago | E83: Freezing | F83: Very slow | G83: Mood swings | H83: Freezing:- this has become worse on change of medication. Not happy to let him go out on his own I'm afraid of him falling. Very slow:- in movement and thought. Outside people don't always have the patience to wait and give him time to move and say what he wants to. Mood swings:- I personally am finding this difficult to cope with as this is something new as he was always very calm and understanding. He's never physically violent just thing's he says, then very upset afterwards and bursts into tears which is so out of character for him!!! | K83: 4 | L83: 1 | M83: 2 | P83: 0 | S83: 1 | T83: 1 | Y83: 0 | AA83: 0 | AF83: 2 | AH83: + | AI83: + | AO83: 3 | AQ83: 1 | AR83: 3 | AW83: 1 | AX83: + | AY83: 0 | BA83: 0 | BB83: 0 | BG83: 0 | BM83: 0 | BN83: 0 | BP83: 0 | BR83: 0 | BT83: 0 | BY83: 0 | CA83: 0 | CF83: 0 | CI83: 0 | CR83: 0 | CT83: 0 | CV83: 0 | CX83: 0 | DE83: 3 | DF83: 1 | DG83: + | DT83: 0 | EC83: 0 | EL83: 1 | EM83: + | EO83: 0 | ES83: 0 | EX83: 2 | EY83: + | EZ83: + | FA83: 2 | FB83: 0 | FJ83: 0 | FR83: 2 | FX83: + | GC83: + | GE83: 3 | GG83: + | GH83: + | GI83: + | GK83: 0 | GQ83: 0 | HG83: 0 | HJ83: 1 | HM83: +
A84: 80959038 | B84: I am a carer/partner/family member or friend | C84: 50-59 | D84: 6-10 years ago | E84: lessoning or erradication of the pain | F84: muscle distortion | G84: freezing | H84: The pain suffered is contstant and excrutiating. It's unbelievable any-one in thw 21st centuary has to be tortured like this. Muscle distortion is causing the body to weaken, contort and affect movement. Freezing is annoying, frustrating and down right dangerous. | K84: 4 | L84: 0 | P84: 1 | Q84: 2 | S84: 1 | T84: 3 | Y84: 0 | AA84: 0 | AF84: 0 | AO84: 0 | AQ84: 0 | AW84: 0 | AY84: 0 | BA84: 2 | BB84: 0 | BG84: 2 | BI84: 1 | BJ84: + | BM84: 0 | BN84: 0 | BP84: 0 | BR84: 0 | BT84: 0 | BY84: 0 | CA84: 0 | CF84: 0 | CI84: 0 | CR84: 0 | CT84: 0 | CV84: 0 | CX84: 0 | DE84: 3 | DF84: 1 | DG84: + | DT84: 0 | EC84: 0 | EL84: 0 | EO84: 1 | EP84: + | ES84: 0 | EX84: 1 | EY84: + | FA84: 1 | FB84: 0 | FJ84: 0 | FR84: 1 | GB84: + | GE84: 0 | GK84: 0 | GQ84: 0 | HG84: 0 | HJ84: 0
A85: 80970137 | B85: I am a carer/partner/family member or friend | C85: 70-79 | D85: 6-10 years ago | E85: Movement | F85: Memory | G85: Confusion | H85: My husband forgets where he is going and I cannot hold a conversation with him as he forgets the words he was going to say. He walks very slow and we no longer enjoy our walks we used to do He cannot get himself dressed without supervision. | K85: 2 | L85: 1 | M85: + | P85: 0 | S85: 1 | U85: + | Y85: 0 | AA85: 0 | AF85: 3 | AG85: 2 | AH85: 2 | AI85: 3 | AO85: 0 | AQ85: 0 | AW85: 0 | AY85: 0 | BA85: 0 | BB85: 0 | BG85: 0 | BM85: 0 | BN85: 0 | BP85: 0 | BR85: 0 | BT85: 0 | BY85: 0 | CA85: 0 | CF85: 0 | CI85: 0 | CR85: 0 | CT85: 0 | CV85: 0 | CX85: 0 | DE85: 5 | DF85: 1 | DG85: 1 | DT85: 1 | DU85: + | EC85: 0 | EL85: 1 | EM85: + | EO85: 0 | ES85: 1 | EU85: + | EX85: 0 | FA85: 3 | FB85: 1 | FC85: + | FJ85: 0 | FR85: 0 | GE85: 3 | GG85: + | GH85: + | GI85: + | GK85: 0 | GQ85: 1 | GR85: + | HG85: 0 | HJ85: 0
A86: 80983494 | B86: I am a carer/partner/family member or friend | C86: 60-69 | D86: 6-10 years ago | E86: Muscle spasms | F86: Tiredness | G86: Slow movements | H86: Muscle spasms because they cause her a lot of pain. Tiredness because she can suddenly become exhausted. Slow movements because she gets frustrated that everyday tasks take so long. | K86: 4 | L86: 1 | M86: 3 | P86: 0 | S86: 0 | Y86: 0 | AA86: 1 | AB86: 1 | AF86: 0 | AO86: 0 | AQ86: 0 | AW86: 0 | AY86: 0 | BA86: 2 | BB86: 0 | BG86: 2 | BI86: + | BK86: 2 | BM86: 0 | BN86: 0 | BP86: 0 | BR86: 0 | BT86: 0 | BY86: 0 | CA86: 0 | CF86: 0 | CI86: 0 | CR86: 0 | CT86: 0 | CV86: 0 | CX86: 0 | DE86: 4 | DF86: 1 | DG86: + | DT86: 0 | EC86: 0 | EL86: 0 | EO86: 1 | EP86: + | ES86: 0 | EX86: 1 | EZ86: 2 | FA86: 1 | FB86: 0 | FJ86: 0 | FR86: 1 | GB86: + | GE86: 0 | GK86: 0 | GQ86: 0 | HG86: 0 | HJ86: 0
A87: 81004371 | B87: I am a carer/partner/family member or friend | C87: 60-69 | D87: 6-10 years ago | E87: Cognition and processing speed | F87: Ability to orientate in bed and move more easily at night | G87: Walking more smoothly | H87: My husband has rigid type of PD but I notice more the cognitive issues and slowness of thought. He notices this less which is a blessing! He has difficultly orienting himself in space, particularly in bed and often his legs fall out of bed disturbing sleep for both of us. Walking more smoothly and easily would enable him to do the hobbies he used to love, walking, birdwatching etc which are now more difficult. He'd also be able to get to the toilet more quickly and avoid accidents. | K87: 3 | L87: 0 | P87: 1 | Q87: + | S87: 1 | U87: 3 | Y87: 0 | AA87: 0 | AF87: 1 | AH87: 1 | AO87: 0 | AQ87: 0 | AW87: 0 | AY87: 0 | BA87: 0 | BB87: 0 | BG87: 0 | BM87: 1 | BN87: 1 | BO87: + | BP87: 0 | BR87: 0 | BT87: 0 | BY87: 0 | CA87: 0 | CF87: 0 | CI87: 0 | CM87: + | CR87: 0 | CT87: 0 | CV87: 0 | CX87: 0 | DC87: + | DE87: 4 | DF87: 2 | DG87: + | DI87: 2 | DT87: 0 | EC87: 0 | EL87: 0 | EO87: 0 | ES87: 1 | ET87: + | EX87: 1 | EY87: + | FA87: 2 | FB87: 0 | FJ87: 0 | FR87: 0 | GE87: 1 | GI87: + | GK87: 0 | GQ87: 2 | GR87: + | GU87: + | HG87: 0 | HJ87: 0
A88: 81020869 | B88: I am a carer/partner/family member or friend | C88: 70-79 | D88: 6-10 years ago | E88: Paranoia | F88: Anxiety | G88: Speech | H88: They are the symptoms that have the most negative affect on our everyday lives, our ability to do anything and detrimentally affect our relationship. Communication is difficult. | K88: 0 | L88: 0 | P88: 0 | S88: 0 | Y88: 0 | AA88: 0 | AF88: 0 | AO88: 4 | AP88: 1 | AQ88: 1 | AU88: 2 | AW88: 1 | AX88: + | AY88: 0 | BA88: 0 | BB88: 0 | BG88: 0 | BM88: 0 | BN88: 0 | BP88: 0 | BR88: 0 | BT88: 1 | BU88: 3 | BY88: 0 | CA88: 0 | CF88: 0 | CI88: 0 | CR88: 0 | CT88: 0 | CV88: 0 | CX88: 0 | DE88: 1 | DF88: 0 | DT88: 0 | EC88: 0 | EL88: 1 | EM88: + | EO88: 0 | ES88: 0 | EX88: 0 | FA88: 2 | FB88: 0 | FJ88: 0 | FR88: 0 | GE88: 4 | GF88: + | GG88: + | GH88: + | GI88: + | GK88: 0 | GQ88: 1 | GR88: + | HG88: 1 | HH88: + | HJ88: 0
A89: 81025146 | B89: I am a carer/partner/family member or friend | C89: 70-79 | D89: 6-10 years ago | E89: Tiredness | H89: Feeling sleepy sometimes, less enthusiasm to participate in non routine activities. | K89: 0 | L89: 0 | P89: 0 | S89: 0 | Y89: 0 | AA89: 0 | AF89: 0 | AO89: 1 | AQ89: 2 | AR89: + | AS89: + | AW89: 0 | AY89: 0 | BA89: 2 | BB89: 0 | BG89: 1 | BK89: 1 | BM89: 1 | BN89: 0 | BP89: 0 | BR89: 1 | BS89: + | BT89: 0 | BY89: 0 | CA89: 0 | CF89: 0 | CI89: 0 | CR89: 0 | CT89: 0 | CV89: 0 | CX89: 0 | DE89: 0 | DF89: 0 | DT89: 0 | EC89: 0 | EL89: 0 | EO89: 0 | ES89: 0 | EX89: 0 | FA89: 0 | FB89: 0 | FJ89: 0 | FR89: 0 | GE89: 0 | GK89: 0 | GQ89: 0 | HG89: 0 | HJ89: 0
A90: 81030487 | B90: I am a carer/partner/family member or friend | C90: Over 80 | D90: 6-10 years ago | E90: Difficulty writing | F90: Difficulty feeding | G90: Uncontrolled movement | H90: All interfere with the quality of life | K90: 2 | L90: 0 | P90: 0 | S90: 0 | Y90: 0 | AA90: 1 | AC90: 3 | AF90: 0 | AO90: 0 | AQ90: 0 | AW90: 0 | AY90: 0 | BA90: 0 | BB90: 0 | BG90: 0 | BM90: 0 | BN90: 0 | BP90: 0 | BR90: 0 | BT90: 0 | BY90: 0 | CA90: 0 | CF90: 0 | CI90: 0 | CR90: 0 | CT90: 0 | CV90: 0 | CX90: 0 | DC90: + | DE90: 5 | DF90: 1 | DG90: + | DT90: 0 | EC90: 1 | EG90: 1 | EL90: 0 | EO90: 0 | ES90: 1 | EW90: 2 | EX90: 0 | FA90: 1 | FB90: 0 | FJ90: 0 | FR90: 0 | GE90: 1 | GH90: + | GK90: 0 | GQ90: 0 | HG90: 0 | HJ90: 0
A91: 81034572 | B91: I am a carer/partner/family member or friend | C91: 60-69 | D91: 6-10 years ago | E91: side effects of Parkinson's treatment | F91: severe nocturia,stiffness, fatigue and very low mood | G91: homeopathic treatment with no side effects instead of PD medications (Rasagiline, Dopamine etc) | H91: My family member's life is so stressful due to urinary incontinence. Her life is ruled by always having to be in sight of a toilet. She has had to stop her favourite activities such as rambling, Nordic walking and even travelling far by bus or car as unable to have quick and easy access to a toilet. It has really affected her self esteem and she has become socially withdrawn. Also she is so tired due to lack of sleep as she has to get up throughout the night up to 7 times to pass urine. This leaves her very fatigued and often distressed. She also suffers from a very noticeable permanent arm tremor which makes her arm very stiff and sore by the evening. The rigidity is also very upsetting for her. She does exercise as much as possible but she is becoming apathetic as she feels nothing is helping her. I have noticed since starting PD medications she has no relief from the tremor or the other problems she suffers from but does have side effects from the drugs. She knows the drugs can be changed but she has never been able to tolerate medication of any type very well and doesn't want to chop and change medications. All over the world Homeopathy is extremely popular and extremely effective. Europe, India, Australia to name a few countries are using it (often on their health care systems) and having fantastic results with many many illness including PD. No one seems to be listening in this country when the subject of Homeopathy versus conventional Dopamine drugs is raised. The multi-million dollar drug companies certainly don't want to know about it. They would be out of business. HOMEOPATHY WORKS!!! I have used it over the last 35 years and have had fantastic results. My Homeopath was also a renowned GP and always offered his patients a choice of conventional drugs or homeopathy. Those who chose homeopathy had very positive results. This GP worked with all diseases (neuro-degenerative brain diseases, pneumoconiosis, glandular fever etc (was called in to treat the students in universities when conventional treatment failed) and cured himself of prostate cancer much to his hospital Consultant's surprise. The cancer did not return. He died in his late 80's in an accident. He travelled the world lecturing and practising homeopathy and was a very well respected Homeopath. I do understand PD is an incurable and progressive disease, but homeopathic remedies can go a long way in alleviating some of the unbearable side effects of conventional drugs and in many cases help remove some of these unpleasant side effects altogether. They can be used alone or alongside conventional medicines. I feel this area of treatment has never been investigated fully. Doctor's don't seem interested and just refuse to learn about it. Many studies have been carried out on animals - it can't be the placebo effect with animals - but they are cured of many things - cows with mastitis have been given homeopathic treatment alongside cows with mastitis being given antibiotics. The cows given homeopathic medicines were cured of the mastitis much quicker and in much higher percentages than those without the homeopathic remedies. I would be delighted if you could please put this forward in your research and give all PD patients a choice - the option of homeopathic medicine. It costs pennies as opposed to conventional drugs. PD treatment hasn't progressed for over the last 50 years or so. Isn't it time to look at a different type of treatment? I look forward to your comments. | K91: 4 | L91: 0 | P91: 1 | Q91: 2 | S91: 0 | Y91: 1 | Z91: + | AA91: 1 | AB91: + | AF91: 0 | AO91: 2 | AQ91: 2 | AR91: + | AT91: 2 | AW91: 0 | AY91: 0 | BA91: 2 | BB91: 0 | BG91: 1 | BK91: 2 | BM91: 1 | BN91: 1 | BO91: + | BP91: 0 | BR91: 0 | BT91: 0 | BY91: 0 | CA91: 0 | CF91: 0 | CI91: 0 | CL91: 2 | CR91: 0 | CT91: 0 | CV91: 0 | CX91: 0 | DC91: + | DE91: 3 | DF91: 1 | DG91: + | DT91: 1 | DU91: + | EC91: 0 | EL91: 0 | EO91: 1 | EP91: + | ES91: 0 | EX91: 0 | FA91: 4 | FB91: 0 | FJ91: 3 | FM91: + | FP91: + | FQ91: + | FR91: 3 | FX91: + | GB91: + | GC91: + | GE91: 1 | GJ91: + | GK91: 0 | GQ91: 1 | GU91: + | HG91: 0 | HJ91: 3 | HK91: 3 | HM91: 1 | HQ91: 3
A92: 81036505 | B92: I am a carer/partner/family member or friend | C92: 70-79 | D92: 6-10 years ago | E92: Slowness of thinking processes | F92: Slowness of movement | G92: Shaking hands | H92: Because they effect our lives the most. Our main interests were walking, bird watching and cryptic crosswords. All have become difficult, if not impossible, for my husband. Also intimacy has stopped. | K92: 4 | L92: 1 | M92: 2 | P92: 0 | S92: 0 | Y92: 1 | Z92: 3 | AA92: 0 | AF92: 2 | AH92: + | AI92: 1 | AO92: 0 | AQ92: 0 | AW92: 0 | AY92: 0 | BA92: 0 | BB92: 0 | BG92: 0 | BM92: 0 | BN92: 0 | BP92: 0 | BR92: 0 | BT92: 0 | BY92: 0 | CA92: 0 | CF92: 0 | CI92: 0 | CQ92: + | CR92: 0 | CT92: 0 | CV92: 0 | CX92: 0 | DC92: + | DE92: 2 | DF92: 1 | DG92: + | DT92: 0 | EC92: 0 | EL92: 1 | EN92: + | EO92: 0 | ES92: 0 | EX92: 0 | FA92: 2 | FB92: 0 | FJ92: 0 | FR92: 0 | GE92: 2 | GG92: + | GI92: + | GK92: 0 | GQ92: 2 | GR92: + | GU92: + | HG92: 1 | HH92: + | HJ92: 0
A93: 81043164 | B93: I am a carer/partner/family member or friend | C93: 70-79 | D93: 6-10 years ago | E93: dimentia | F93: coordination | G93: urine infactions | K93: 2 | L93: 1 | O93: 2 | P93: 0 | S93: 0 | Y93: 0 | AA93: 0 | AF93: 1 | AN93: + | AO93: 2 | AQ93: 1 | AT93: 1 | AW93: 0 | AY93: 0 | BA93: 0 | BB93: 0 | BG93: 0 | BM93: 0 | BN93: 0 | BP93: 0 | BR93: 0 | BT93: 0 | BY93: 0 | CA93: 0 | CF93: 0 | CI93: 0 | CL93: 3 | CR93: 0 | CT93: 0 | CV93: 0 | CX93: 0 | DE93: 1 | DF93: 0 | DT93: 0 | EC93: 0 | EL93: 0 | EO93: 0 | ES93: 0 | EX93: 1 | EY93: + | FA93: 0 | FB93: 0 | FJ93: 0 | FR93: 0 | GE93: 0 | GK93: 0 | GQ93: 0 | HG93: 0 | HJ93: 0
A94: 81046357 | B94: I am a carer/partner/family member or friend | C94: 70-79 | D94: 6-10 years ago | E94: Tremor | H94: The tremor (in this case affecting arms and hands) makes many everyday things difficult or impossible - eating, dressing, writing, FIT. This is frustrating and embarrassing and reduces independence. | K94: 3 | L94: 1 | N94: + | P94: 0 | S94: 0 | Y94: 1 | Z94: 1 | AA94: 0 | AF94: 0 | AO94: 0 | AQ94: 0 | AW94: 0 | AY94: 0 | BA94: 0 | BB94: 0 | BG94: 0 | BM94: 0 | BN94: 0 | BP94: 0 | BR94: 0 | BT94: 0 | BY94: 0 | CA94: 0 | CF94: 0 | CI94: 0 | CR94: 0 | CT94: 0 | CV94: 0 | CX94: 0 | DE94: 4 | DF94: 0 | DT94: 1 | DU94: + | EC94: 1 | EG94: + | EL94: 1 | EN94: + | EO94: 0 | ES94: 2 | EU94: + | EW94: + | EX94: 0 | FA94: 3 | FB94: 1 | FC94: + | FJ94: 1 | FL94: + | FR94: 1 | GB94: + | GE94: 0 | GK94: 0 | GQ94: 0 | HG94: 1 | HH94: + | HJ94: 0
A95: 81058356 | B95: I am a carer/partner/family member or friend | C95: 70-79 | D95: 6-10 years ago | E95: Sleep | F95: General Movement issues/stoop etc. | G95: Mood | H95: Not having a Good Nights Sleep means that my Dad can feel Tired, low mood, then this can manifest itself into mild depression depression if this happens for a few days. Movement related issues means sometimes daily tasks seem impossible, and even short distance walking feel unachievable. On the whole if a good nights sleep has been achieved then there is a different mindset for the day that allows him to still come into work, answer the telephone in our family business and enjoy seeing people. | K95: 0 | L95: 0 | P95: 0 | S95: 0 | Y95: 0 | AA95: 0 | AF95: 0 | AO95: 2 | AQ95: 2 | AR95: 3 | AT95: + | AW95: 0 | AY95: 0 | BA95: 1 | BB95: 0 | BG95: 1 | BK95: + | BM95: 2 | BN95: 1 | BO95: 1 | BP95: 0 | BR95: 0 | BT95: 0 | BY95: 0 | CA95: 0 | CF95: 0 | CI95: 0 | CR95: 0 | CT95: 0 | CV95: 0 | CX95: 0 | DE95: 4 | DF95: 1 | DG95: 2 | DT95: 1 | DU95: + | EC95: 0 | EL95: 1 | EN95: + | EO95: 0 | ES95: 0 | EX95: 0 | FA95: 1 | FB95: 0 | FJ95: 0 | FR95: 0 | GE95: 0 | GK95: 0 | GQ95: 1 | GR95: + | HG95: 0 | HJ95: 0
A96: 81100501 | B96: I am a carer/partner/family member or friend | C96: 30-49 | D96: 6-10 years ago | E96: Movement | F96: Concentration | G96: Balance | H96: Movement is required in all day to day activities. Especially in manual jobs. Ability to focus and concentrate on tasks in less obvious ways would make life easier. Balance for general movement capabilities. | K96: 2 | L96: 0 | P96: 0 | S96: 1 | W96: 3 | Y96: 0 | AA96: 0 | AF96: 2 | AH96: 2 | AJ96: 2 | AO96: 0 | AQ96: 0 | AW96: 0 | AY96: 0 | BA96: 0 | BB96: 0 | BG96: 0 | BM96: 0 | BN96: 0 | BP96: 0 | BR96: 0 | BT96: 0 | BY96: 0 | CA96: 0 | CF96: 0 | CI96: 0 | CR96: 0 | CT96: 0 | CV96: 0 | CX96: 0 | DE96: 5 | DF96: 1 | DG96: 1 | DT96: 1 | DU96: + | EC96: 0 | EL96: 1 | EN96: + | EO96: 0 | ES96: 0 | EX96: 1 | EY96: + | FA96: 2 | FB96: 0 | FJ96: 0 | FR96: 0 | GE96: 0 | GK96: 1 | GP96: + | GQ96: 1 | GR96: + | HG96: 0 | HJ96: 0
A97: 81117753 | B97: I am a carer/partner/family member or friend | C97: 60-69 | D97: 6-10 years ago | E97: Tremor | F97: Falls | G97: Rigidity | H97: Tremor has significant impact on eating (publicly) Falls - risk of fractures, fear, avoiding going out Rigidity - pain, Slowness, | K97: 5 | L97: 1 | M97: + | P97: 1 | Q97: 3 | S97: 0 | Y97: 1 | Z97: 1 | AA97: 0 | AF97: 0 | AO97: 0 | AQ97: 0 | AW97: 0 | AY97: 0 | BA97: 1 | BB97: 0 | BG97: 1 | BI97: + | BM97: 0 | BN97: 0 | BP97: 0 | BR97: 0 | BT97: 0 | BY97: 0 | CA97: 0 | CF97: 0 | CI97: 0 | CR97: 0 | CT97: 0 | CV97: 0 | CX97: 0 | DE97: 7 | DF97: 1 | DG97: + | DT97: 1 | DU97: + | EC97: 0 | EL97: 1 | EM97: + | EO97: 1 | EP97: + | ES97: 1 | EW97: + | EX97: 2 | EY97: + | EZ97: 2 | FA97: 4 | FB97: 0 | FJ97: 1 | FK97: + | FR97: 1 | GC97: + | GE97: 2 | GF97: + | GJ97: + | GK97: 0 | GQ97: 1 | GR97: + | HG97: 0 | HJ97: 0
A98: 81124116 | B98: I am a carer/partner/family member or friend | C98: 50-59 | D98: 6-10 years ago | E98: Speech | F98: Confidence | G98: Mobilty | H98: Speech makes socialising easier, you feel more confident with others. Movement just generally even if you can still get around you don’t have the freedom. | K98: 0 | L98: 0 | P98: 0 | S98: 0 | Y98: 0 | AA98: 0 | AF98: 0 | AO98: 0 | AQ98: 0 | AW98: 0 | AY98: 0 | BA98: 0 | BB98: 0 | BG98: 0 | BM98: 0 | BN98: 0 | BP98: 0 | BR98: 0 | BT98: 1 | BU98: 1 | BY98: 0 | CA98: 0 | CF98: 0 | CI98: 0 | CR98: 0 | CT98: 0 | CV98: 0 | CX98: 0 | DE98: 3 | DF98: 1 | DG98: 3 | DT98: 1 | DU98: + | EC98: 0 | EL98: 0 | EO98: 0 | ES98: 0 | EX98: 0 | FA98: 4 | FB98: 1 | FC98: + | FJ98: 1 | FQ98: 2 | FR98: 0 | GE98: 2 | GF98: + | GH98: + | GK98: 0 | GQ98: 0 | HG98: 0 | HJ98: 0
A99: 81187443 | B99: I am a carer/partner/family member or friend | C99: 70-79 | D99: 6-10 years ago | E99: Psychological input towards understanding symptoms of PD | F99: More groups and outreach support catered towards older adults from a minority ethnic background | G99: More events available locally | I99: ? | K99: 0 | L99: 0 | P99: 0 | S99: 0 | Y99: 0 | AA99: 0 | AF99: 0 | AO99: 0 | AQ99: 0 | AW99: 0 | AY99: 0 | BA99: 0 | BB99: 0 | BG99: 0 | BM99: 0 | BN99: 0 | BP99: 0 | BR99: 0 | BT99: 0 | BY99: 0 | CA99: 0 | CF99: 0 | CI99: 0 | CR99: 0 | CT99: 0 | CV99: 0 | CX99: 0 | DE99: 0 | DF99: 0 | DT99: 0 | EC99: 0 | EL99: 0 | EO99: 0 | ES99: 0 | EX99: 0 | FA99: 0 | FB99: 0 | FJ99: 0 | FR99: 0 | GE99: 0 | GK99: 0 | GQ99: 0 | HG99: 0 | HJ99: 1 | HK99: 1
A100: 81288868 | B100: I am a carer/partner/family member or friend | C100: 60-69 | D100: 6-10 years ago | E100: memory | F100: cognitive and processing skills | G100: mobility | H100: 1&2 are important for independence, socially, personal integrity when you have had an intellectual career. Mobility for fitness, enjoyment, leisure, independence especially when you have been an outdoor and sporty person. | K100: 0 | L100: 0 | P100: 0 | S100: 0 | Y100: 0 | AA100: 0 | AF100: 3 | AG100: 1 | AH100: + | AI100: 2 | AO100: 0 | AQ100: 0 | AW100: 0 | AY100: 0 | BA100: 0 | BB100: 0 | BG100: 0 | BM100: 0 | BN100: 0 | BP100: 0 | BR100: 0 | BT100: 0 | BY100: 0 | CA100: 0 | CF100: 0 | CI100: 0 | CR100: 0 | CT100: 0 | CV100: 0 | CX100: 0 | DE100: 4 | DF100: 1 | DG100: 3 | DT100: 1 | DU100: + | EC100: 0 | EL100: 1 | EM100: + | EO100: 0 | ES100: 0 | EX100: 0 | FA100: 5 | FB100: 1 | FC100: + | FJ100: 2 | FM100: + | FQ100: + | FR100: 0 | GE100: 2 | GF100: + | GI100: + | GK100: 1 | GP100: + | GQ100: 2 | GR100: + | GU100: + | HG100: 0 | HJ100: 0
A101: 81358080 | B101: I am a carer/partner/family member or friend | C101: Over 80 | D101: 6-10 years ago | E101: Stimulation, excercise | F101: Reduce dribbling/saliva control | G101: Reduce tremours | H101: I think stimulation is important be it music or movement - clubs are ideal for this but also having time at home for activities. For people who have socialised most of their life & still wish to continue to do so, the dribbling is an embarrassment. | K101: 2 | L101: 0 | P101: 0 | S101: 0 | Y101: 1 | Z101: 3 | AA101: 0 | AF101: 0 | AO101: 0 | AQ101: 0 | AW101: 0 | AY101: 0 | BA101: 0 | BB101: 0 | BG101: 0 | BM101: 0 | BN101: 0 | BP101: 0 | BR101: 0 | BT101: 0 | BY101: 2 | CA101: 1 | CC101: 2 | CF101: 0 | CI101: 0 | CR101: 0 | CT101: 0 | CV101: 0 | CX101: 0 | DE101: 2 | DF101: 0 | DT101: 1 | DU101: 1 | EC101: 0 | EL101: 0 | EO101: 0 | ES101: 0 | EX101: 0 | FA101: 2 | FB101: 0 | FJ101: 2 | FK101: + | FL101: + | FR101: 0 | GE101: 1 | GF101: + | GK101: 0 | GQ101: 0 | HG101: 0 | HJ101: 0
A102: 79576144 | B102: I am a carer/partner/family member or friend | C102: 70-79 | D102: Less than 2 years ago | E102: balance | F102: mobility | G102: bowels | K102: =COUNTIF(L102:AE102, ">0") -> 2 | L102: 0 | P102: 0 | S102: 1 | W102: 1 | Y102: 0 | AA102: 0 | AF102: 0 | AO102: 0 | AQ102: 0 | AW102: 0 | AY102: 0 | BA102: 0 | BB102: 0 | BG102: 0 | BM102: 0 | BN102: 0 | BP102: 0 | BR102: 0 | BT102: 0 | BY102: 2 | CA102: 0 | CF102: 0 | CI102: 1 | CJ102: 3 | CR102: 0 | CT102: 0 | CV102: 0 | CX102: 0 | DE102: 3 | DF102: 1 | DG102: 2 | DT102: 0 | EC102: 0 | EL102: 0 | EO102: 0 | ES102: 0 | EX102: 1 | EY102: + | FA102: 0 | FB102: 0 | FJ102: 0 | FR102: 0 | GE102: 0 | GK102: 0 | GQ102: 0 | HG102: 0 | HJ102: 0
A103: 79593610 | B103: I am a carer/partner/family member or friend | C103: 70-79 | D103: Less than 2 years ago | E103: Movement | F103: Confidence | G103: Self worth | H103: He has lost what he feels are the most important part of daily life. He cannot drive and that hurts,he is so slow in his daily tasks and feels that he has become useless and dependant. | K103: =COUNTIF(L103:AE103,">0") -> 1 | L103: 1 | M103: + | P103: 0 | S103: 0 | Y103: 0 | AA103: 0 | AF103: 0 | AO103: 0 | AQ103: 0 | AW103: 0 | AY103: 0 | BA103: 0 | BB103: 0 | BG103: 0 | BM103: 0 | BN103: 0 | BP103: 0 | BR103: 0 | BT103: 0 | BY103: 0 | CA103: 0 | CF103: 0 | CI103: 0 | CR103: 0 | CT103: 0 | CV103: 0 | CX103: 0 | DC103: + | DE103: 4 | DF103: 1 | DG103: 1 | DT103: 1 | DU103: + | EC103: 0 | EL103: 1 | EM103: + | EO103: 0 | ES103: 0 | EX103: 0 | FA103: 6 | FB103: 2 | FC103: + | FE103: + | FJ103: 2 | FP103: 3 | FQ103: 2 | FR103: 1 | GD103: + | GE103: 1 | GI103: + | GK103: 0 | GQ103: 0 | HG103: 1 | HH103: + | HJ103: 0
A104: 79791598 | B104: I am a carer/partner/family member or friend | C104: 70-79 | D104: Less than 2 years ago | E104: Alertness | F104: Quicker processing of information | G104: Being able to maintain a reasonable walking pace for more than an hour | H104: Alertness because sometimes it feels like I am on my own in the same room as my husband, and it feels lonely because he doesn't react to outside stimuli. When we are doing things together I can get frustrated by the time it takes for him to process what seems to me to be simple information. I am learning to be more patient but it makes doing things together laborious and harder to enjoy. Neither of us want me to become a carer before it is absolutely necessary, and so I try to maintain a perspective without slipping into caring 'mode' which can damage his independence. Frame of mind is so important in quality of life terms. My husband can walk at a reasonable pace for about half an hour to an hour depending on the ground. Going for longer walks is good for his and my health, but it is difficult when his walking pace becomes slow. | K104: 4 | L104: 1 | M104: 3 | P104: 0 | S104: 1 | U104: 3 | Y104: 0 | AA104: 0 | AF104: 2 | AH104: 1 | AI104: 2 | AO104: 0 | AQ104: 0 | AW104: 0 | AY104: 0 | BA104: 0 | BB104: 0 | BG104: 0 | BM104: 0 | BN104: 0 | BP104: 0 | BR104: 0 | BT104: 0 | BY104: 0 | CA104: 0 | CF104: 0 | CI104: 0 | CR104: 0 | CT104: 0 | CV104: 0 | CX104: 0 | DC104: + | DE104: 3 | DF104: 1 | DG104: + | DT104: 1 | DU104: + | EC104: 0 | EL104: 2 | EM104: + | EN104: + | EO104: 0 | ES104: 0 | EX104: 0 | FA104: 4 | FB104: 1 | FC104: + | FJ104: 0 | FR104: 1 | GB104: + | GE104: 4 | GF104: + | GH104: + | GI104: + | GJ104: + | GK104: 0 | GQ104: 1 | GR104: + | HG104: 0 | HJ104: 0
A105: 80920429 | B105: I am a carer/partner/family member or friend | C105: 70-79 | D105: Less than 2 years ago | E105: Sleep issues - solving them | F105: Tremor | G105: Research | H105: 1. Having a good night’s sleep makes all the difference to my dad’s health and performance the next day. 2. Although in the early stages, my dad’s tremor in his lip is very pronounced (after taking dopa) and he doesn’t want to tell any friends/wider family about his diagnosis so it’s getting difficult to have anyone around - especially at meal times. 3. Research - always money-related so keep raising as much as possible please. | K105: 2 | L105: 0 | P105: 0 | S105: 0 | Y105: 1 | Z105: 2 | AA105: 0 | AF105: 0 | AO105: 0 | AQ105: 0 | AW105: 0 | AY105: 0 | BA105: 0 | BB105: 0 | BG105: 0 | BM105: 2 | BN105: 1 | BO105: 1 | BP105: 0 | BR105: 0 | BT105: 0 | BY105: 0 | CA105: 0 | CF105: 0 | CI105: 0 | CR105: 0 | CT105: 0 | CV105: 0 | CX105: 0 | DE105: 1 | DF105: 0 | DT105: 0 | EC105: 0 | EL105: 0 | EO105: 0 | ES105: 1 | EW105: + | EX105: 0 | FA105: 2 | FB105: 0 | FJ105: 1 | FQ105: + | FR105: 0 | GE105: 3 | GF105: + | GG105: + | GJ105: + | GK105: 0 | GQ105: 0 | HG105: 1 | HH105: + | HJ105: 1 | HY105: 3
A106: 80928666 | B106: I am a carer/partner/family member or friend | C106: 60-69 | D106: Less than 2 years ago | E106: Anxiety | F106: Depression | G106: Mobility | H106: My husbands mobility is pretty good but the crippling anxiety has taken a terrible toll on all aspects of our lives - his mental health impacts on his well being, how he sees himself, how he relates to others and his whole physical demeanour. He has been suicidal, he avoids family and friends, he is totally self absorbed. He can't relax, it's relentless - and it's heartbreaking to watch and not be able to help. | K106: 0 | L106: 0 | P106: 0 | S106: 0 | Y106: 0 | AA106: 0 | AF106: 0 | AO106: 3 | AQ106: 3 | AR106: + | AT106: 2 | AU106: 1 | AW106: 0 | AY106: 0 | BA106: 0 | BB106: 0 | BG106: 0 | BM106: 0 | BN106: 0 | BP106: 0 | BR106: 0 | BT106: 0 | BY106: 0 | CA106: 0 | CF106: 0 | CI106: 0 | CR106: 0 | CT106: 0 | CV106: 0 | CX106: 0 | DC106: + | DE106: 2 | DF106: 1 | DG106: 3 | DT106: 0 | EC106: 0 | EL106: 0 | EO106: 0 | ES106: 0 | EX106: 0 | FA106: 4 | FB106: 1 | FC106: + | FJ106: 1 | FQ106: + | FR106: 1 | FX106: + | GE106: 4 | GF106: + | GG106: + | GI106: + | GJ106: + | GK106: 0 | GQ106: 0 | HG106: 0 | HJ106: 0
A107: 80932547 | B107: I am a carer/partner/family member or friend | C107: 60-69 | D107: Less than 2 years ago | E107: Dementia | F107: Sleep disorder | G107: Anxiety | H107: Dementia has led to me not being able to leave my husband alone in the house overnight so I can no longer take time out to stay with friends. Doing disturbed at night means I am very tired and stressed. Anxiety causes lose of sleep and is disturbing for us both. | K107: 0 | L107: 0 | P107: 0 | S107: 0 | Y107: 0 | AA107: 0 | AF107: 2 | AH107: + | AN107: 1 | AO107: 2 | AQ107: 1 | AU107: 3 | AW107: 0 | AY107: 0 | BA107: 0 | BB107: 0 | BG107: 0 | BM107: 2 | BN107: 1 | BO107: 2 | BP107: 0 | BR107: 0 | BT107: 0 | BY107: 0 | CA107: 0 | CF107: 0 | CI107: 0 | CR107: 0 | CT107: 0 | CV107: 0 | CX107: 0 | DE107: 0 | DF107: 0 | DT107: 0 | EC107: 0 | EL107: 0 | EO107: 0 | ES107: 0 | EX107: 0 | FA107: 2 | FB107: 0 | FJ107: 0 | FR107: 2 | FX107: + | GB107: + | GE107: 2 | GF107: + | GI107: + | GK107: 0 | GQ107: 0 | HG107: 0 | HJ107: 0
A108: 80931604 | B108: I am a carer/partner/family member or friend | C108: 60-69 | D108: Less than 2 years ago | E108: To know we could slow down the disease | F108: To know what might come next | G108: To know there are treatments that can truly help | H108: Parkinson’s is unique to every person and it is this that creates the fear of what comes next, and when. From what we have read and heard resorting to drugs like Levadopa fills us with dread and would be a last resort. As such my wife, who was diagnosed in August, has avoided prescribed PD drugs and we are pursuing other non medical options in the hope of slowing this dreadful disease down until the promise of new treatments such as stem cells come on line, it is hoped over the next five years. She has changed diet, takes supplements, homeopathy treatments, lots of yoga and had all of her mercury fillings removed. All in the hope and belief that these will slow down progression of the disease. | I108: + | K108: 0 | L108: 0 | P108: 0 | S108: 0 | Y108: 0 | AA108: 0 | AF108: 0 | AO108: 0 | AQ108: 0 | AW108: 0 | AY108: 0 | BA108: 0 | BB108: 0 | BG108: 0 | BM108: 0 | BN108: 0 | BP108: 0 | BR108: 0 | BT108: 0 | BY108: 0 | CA108: 0 | CF108: 0 | CI108: 0 | CR108: 0 | CT108: 0 | CV108: 0 | CX108: 0 | DE108: 0 | DF108: 0 | DT108: 0 | EC108: 0 | EL108: 0 | EO108: 0 | ES108: 0 | EX108: 0 | FA108: 3 | FB108: 0 | FJ108: 0 | FR108: 2 | FS108: 1 | FY108: 2 | GE108: 0 | GK108: 0 | GQ108: 0 | HG108: 0 | HJ108: 3 | HK108: 3 | HM108: + | HQ108: +
A109: 80971807 | B109: I am a carer/partner/family member or friend | C109: 70-79 | D109: Less than 2 years ago | E109: Mobility | F109: Dexterity | H109: My husband has only recently been diagnosed with Parkinson's Disease and is finding it very hard that he is a lot less mobile and his reaction time to everyday things has slowed down so much. He is finding it hard to play his guitar as his fingers on the left hand are a lot slower with movement so this is a hobby that no longer gives him the enormous pleasure it did until so recently. He is in the early stages but he has already lost his freedom although he also has an eye condition that was only diagnosed very recently too and, because of this, he cannot drive at the moment but the condition is treatable so this could change if the problem is corrected. | K109: 2 | L109: 2 | M109: + | N109: 2 | P109: 0 | S109: 0 | Y109: 0 | AA109: 0 | AF109: 0 | AO109: 0 | AQ109: 0 | AW109: 0 | AY109: 0 | BA109: 1 | BB109: 1 | BC109: + | BG109: 0 | BM109: 0 | BN109: 0 | BP109: 0 | BR109: 0 | BT109: 0 | BY109: 0 | CA109: 0 | CF109: 0 | CI109: 0 | CR109: 0 | CT109: 0 | CV109: 0 | CX109: 0 | DE109: 4 | DF109: 1 | DG109: 1 | DT109: 1 | DU109: + | EC109: 0 | EL109: 1 | EM109: + | EO109: 0 | ES109: 0 | EX109: 0 | FA109: 3 | FB109: 2 | FC109: + | FE109: + | FJ109: 0 | FR109: 0 | GE109: 1 | GI109: + | GK109: 0 | GQ109: 3 | GR109: + | GU109: + | HA109: + | HG109: 0 | HJ109: 0
A110: 81032029 | B110: I am a carer/partner/family member or friend | C110: 70-79 | D110: Less than 2 years ago | E110: Limbs freezing | F110: Bladder incontinence | G110: Balance problems | H110: If my mum's Balance wasn't so affected by PD , she wouldn't be at risk of falls and injuries . Her balance is bad sometimes because her limbs freeze and this means she gets stuck on the spot without warning whilst trying to walk. Bladder incontinence has affected her greatly. This was actually one of her first symptoms. She is on medication for this too and soon to undergo some hospital treatment for it. These are the three biggest side effects for mum and the ones that dominate her daily life | K110: 3 | L110: 0 | P110: 0 | S110: 2 | T110: 1 | W110: 3 | Y110: 0 | AA110: 0 | AF110: 0 | AO110: 0 | AQ110: 0 | AW110: 0 | AY110: 0 | BA110: 0 | BB110: 0 | BG110: 0 | BM110: 0 | BN110: 0 | BP110: 0 | BR110: 0 | BT110: 0 | BY110: 0 | CA110: 0 | CF110: 0 | CI110: 0 | CL110: 2 | CR110: 0 | CT110: 0 | CV110: 0 | CX110: 0 | DC110: + | DE110: 1 | DF110: 0 | DT110: 0 | EC110: 0 | EL110: 0 | EO110: 0 | ES110: 0 | EX110: 1 | EY110: + | FA110: 0 | FB110: 0 | FJ110: 0 | FR110: 0 | GE110: 0 | GK110: 0 | GQ110: 0 | HG110: 1 | HH110: + | HJ110: 0
A111: 81141557 | B111: I am a carer/partner/family member or friend | C111: 60-69 | D111: Less than 2 years ago | E111: Driving | F111: Stamina | G111: Fine detail work | H111: These are the things that I notice the most and I think has the biggest impact every day | K111: 2 | L111: 1 | N111: 3 | P111: 0 | S111: 0 | Y111: 0 | AA111: 0 | AF111: 0 | AO111: 0 | AQ111: 0 | AW111: 0 | AY111: 0 | BA111: 2 | BB111: 0 | BG111: 1 | BK111: 2 | BM111: 0 | BN111: 0 | BP111: 0 | BR111: 0 | BT111: 0 | BY111: 0 | CA111: 0 | CF111: 0 | CI111: 0 | CR111: 0 | CT111: 0 | CV111: 0 | CX111: 0 | DE111: 0 | DF111: 0 | DT111: 0 | EC111: 0 | EL111: 0 | EO111: 0 | ES111: 0 | EX111: 0 | FA111: 2 | FB111: 1 | FE111: 1 | FJ111: 0 | FR111: 0 | GE111: 0 | GK111: 0 | GQ111: 0 | HG111: 2 | HH111: + | HI111: + | HJ111: 0
A112: 79576842 | B112: I am a carer/partner/family member or friend | C112: 70-79 | D112: More than 20 years ago | E112: mobility | F112: depression | H112: To give us a better quality of life. | K112: 0 | L112: 0 | P112: 0 | S112: 0 | Y112: 0 | AA112: 0 | AF112: 0 | AO112: 2 | AQ112: 2 | AR112: + | AT112: 2 | AW112: 0 | AY112: 0 | BA112: 0 | BB112: 0 | BG112: 0 | BM112: 0 | BN112: 0 | BP112: 0 | BR112: 0 | BT112: 0 | BY112: 0 | CA112: 0 | CF112: 0 | CI112: 0 | CR112: 0 | CT112: 0 | CV112: 0 | CX112: 0 | DC112: = | DE112: 2 | DF112: 1 | DG112: 1 | DT112: 0 | EC112: 0 | EL112: 0 | EO112: 0 | ES112: 0 | EX112: 0 | FA112: 1 | FB112: 0 | FJ112: 0 | FR112: 0 | GE112: 1 | GI112: + | GK112: 0 | GQ112: 0 | HG112: 0 | HJ112: 0
A113: 79594861 | B113: I am a carer/partner/family member or friend | C113: 60-69 | D113: More than 20 years ago | E113: better mobility and off periods | F113: better speech quailty | G113: better memory | H113: They are the 3 things that impact most on our daily lives and our quality of life as a couple. | K113: 0 | L113: 0 | P113: 0 | S113: 0 | Y113: 0 | AA113: 0 | AF113: 2 | AG113: 3 | AH113: + | AO113: 0 | AQ113: 0 | AW113: 0 | AY113: 0 | BA113: 0 | BB113: 0 | BG113: 0 | BM113: 0 | BN113: 0 | BP113: 0 | BR113: 0 | BT113: 1 | BU113: 2 | BY113: 0 | CA113: 0 | CF113: 0 | CI113: 0 | CR113: 0 | CT113: 0 | CV113: 0 | CX113: 0 | DC113: + | DE113: 2 | DF113: 1 | DG113: 1 | DT113: 0 | EC113: 0 | EL113: 0 | EO113: 0 | ES113: 0 | EX113: 0 | FA113: 1 | FB113: 0 | FJ113: 0 | FR113: 0 | GE113: 2 | GH113: + | GI113: + | GK113: 0 | GQ113: 0 | HG113: 1 | HH113: + | HJ113: 1 | HP113: +
A114: 79606693 | B114: I am a carer/partner/family member or friend | C114: 60-69 | D114: More than 20 years ago | E114: tremour | F114: freezing | G114: speech | H114: These are the three symptoms which effect him most and put so much restriction on his life. | K114: 4 | L114: 0 | P114: 0 | S114: 1 | T114: 2 | Y114: 1 | Z114: 1 | AA114: 0 | AF114: 0 | AO114: 0 | AQ114: 0 | AW114: 0 | AY114: 0 | BA114: 0 | BB114: 0 | BG114: 0 | BM114: 0 | BN114: 0 | BP114: 0 | BR114: 0 | BT114: 1 | BU114: 3 | BY114: 0 | CA114: 0 | CF114: 0 | CI114: 0 | CR114: 0 | CT114: 0 | CV114: 0 | CX114: 0 | DE114: 2 | DF114: 1 | DG114: + | DT114: 0 | EC114: 0 | EL114: 1 | EM114: + | EO114: 0 | ES114: 0 | EX114: 0 | FA114: 1 | FB114: 0 | FJ114: 0 | FR114: 0 | GE114: 1 | GH114: + | GK114: 0 | GQ114: 0 | HG114: 1 | HH114: + | HJ114: 0
A115: 79619883 | B115: I am a carer/partner/family member or friend | C115: 70-79 | D115: More than 20 years ago | E115: Even out the on/off times in mediaction effectiveness | F115: Find a way to manage Parkinson's pain | G115: Find a way to manage anxiety | H115: Because for us these three things are the most difficult to manage and touch every part of our daily life. | K115: 0 | L115: 0 | P115: 0 | S115: 0 | Y115: 0 | AA115: 0 | AF115: 0 | AO115: 2 | AQ115: 1 | AU115: 3 | AW115: 0 | AY115: 0 | BA115: 2 | BB115: 0 | BG115: 1 | BI115: 2 | BM115: 0 | BN115: 0 | BP115: 0 | BR115: 0 | BT115: 0 | BY115: 0 | CA115: 0 | CF115: 0 | CI115: 0 | CR115: 0 | CT115: 0 | CV115: 0 | CX115: 0 | DC115: + | DE115: 2 | DF115: 1 | DG115: + | DT115: 0 | EC115: 0 | EL115: 0 | EO115: 1 | EP115: + | ES115: 0 | EX115: 0 | FA115: 2 | FB115: 0 | FJ115: 0 | FR115: 1 | FX115: + | GE115: 1 | GI115: + | GK115: 0 | GQ115: 0 | HG115: 1 | HH115: + | HJ115: 2 | HK115: + | HP115: 1
A116: 79717841 | B116: I am a carer/partner/family member or friend | C116: 50-59 | D116: More than 20 years ago | E116: Drugs to improve PD without debilitating side effects | F116: More immediate access to specialists in non motor symptoms e.g. Anxiety & clinical psychologists | G116: Improved non invasive surgical techniques/use of new technologies to enhance everyday lives e.g. Computers, lasers, MRIs | H116: Because people suffering with PD like my husband who has had to cope with it all his adult life need (practical) help NOW. Surely there is knowledge enough considering the breakthroughs in other illnesses such as cancers to supply levodopa continuously over a 24 hr period via patches, an injection even a pill without side effects that are worse than pd itself or having risky surgical procedures or pumps? More targeted collaboration & integration on trials/development of new drugs between the mega rich pharmaceutical companies. If not, legitimate access to more natural plant based drugs like cannabis. | K116: 0 | L116: 0 | P116: 0 | S116: 0 | Y116: 0 | AA116: 0 | AF116: 0 | AO116: 1 | AQ116: 1 | AU116: + | AW116: 0 | AY116: 0 | BA116: 0 | BB116: 0 | BG116: 0 | BM116: 0 | BN116: 0 | BP116: 0 | BR116: 0 | BT116: 0 | BY116: 0 | CA116: 0 | CF116: 0 | CI116: 0 | CR116: 0 | CT116: 0 | CV116: 0 | CX116: 0 | DE116: 0 | DF116: 0 | DT116: 0 | EC116: 0 | EL116: 0 | EO116: 0 | ES116: 0 | EX116: 0 | FA116: 0 | FB116: 0 | FJ116: 0 | FR116: 0 | GE116: 0 | GK116: 0 | GQ116: 0 | HG116: 0 | HJ116: 4 | HK116: 1 | HM116: + | HP116: + | HU116: 2
A117: 80923583 | B117: I am a carer/partner/family member or friend | C117: 70-79 | D117: More than 20 years ago | E117: Pain | F117: Tremor | G117: Falls | H117: Pain is underestimated in parkinson's. We have lived with severe back pain for 25 years. It is easy to say this is not due to parkinson's but we are very clear it is and little is done about pain in parkinson's. To the extent that it is often denied. | K117: 2 | L117: 0 | P117: 0 | S117: 0 | Y117: 1 | Z117: 2 | AA117: 0 | AF117: 0 | AO117: 0 | AQ117: 0 | AW117: 0 | AY117: 0 | BA117: 2 | BB117: 0 | BG117: 1 | BI117: 1 | BM117: 0 | BN117: 0 | BP117: 0 | BR117: 0 | BT117: 0 | BY117: 0 | CA117: 0 | CF117: 0 | CI117: 0 | CR117: 0 | CT117: 0 | CV117: 0 | CX117: 0 | DE117: 3 | DF117: 0 | DT117: 0 | EC117: 0 | EL117: 0 | EO117: 1 | EP117: + | ES117: 0 | EX117: 2 | EY117: + | EZ117: 3 | FA117: 0 | FB117: 0 | FJ117: 0 | FR117: 0 | GE117: 0 | GK117: 0 | GQ117: 0 | HG117: 0 | HJ117: 0
A118: 80929016 | B118: I am a carer/partner/family member or friend | C118: 70-79 | D118: More than 20 years ago | E118: Memory failing | F118: Posture, bent over and affecting walking | G118: Falling | H118: Memory failing means that every day tasks become more unreliable and can cause argument. Also attention span is lower. If this leads to dementia then all else falls into insignificance. Posture causes instability, and can affect walking, and also doing tasks near floor level instead of at normal level. Falling can cause bruising and aching or injury. When this happens other functions can be affected eg. movement. Also, a help system is needed. | K118: 3 | L118: 0 | P118: 0 | S118: 3 | U118: + | W118: 3 | X118: 2 | Y118: 0 | AA118: 0 | AF118: 3 | AG118: 1 | AH118: + | AI118: + | AO118: 0 | AQ118: 0 | AW118: 0 | AY118: 0 | BA118: 0 | BB118: 0 | BG118: 0 | BM118: 0 | BN118: 0 | BP118: 0 | BR118: 0 | BT118: 0 | BY118: 0 | CA118: 0 | CF118: 0 | CI118: 0 | CR118: 0 | CT118: 0 | CV118: 0 | CX118: 0 | DE118: 4 | DF118: 1 | DG118: + | DT118: 1 | DU118: + | EC118: 0 | EL118: 0 | EO118: 0 | ES118: 0 | EX118: 2 | EY118: + | EZ118: 3 | FA118: 2 | FB118: 0 | FJ118: 0 | FR118: 2 | FS118: + | FY118: + | GE118: 2 | GG118: + | GI118: + | GK118: 0 | GQ118: 0 | HG118: 0 | HJ118: 0
A119: 80932933 | B119: I am a carer/partner/family member or friend | C119: 70-79 | D119: More than 20 years ago | E119: Stop falls | F119: Coordination | G119: Sleeping at night | H119: My husband can’t be left in case of falls which means I’m with him 24/7. Needs help with most things as he can’t coordinate hands and feet which means he has trouble with eating, that holds us back from eating out as much as we’d like. Sleeping at night is a great problem as he needs help with getting in and out of bed then neither of us are sleeping well. This can make me short tempered as I’m tired a lot of the time. | K119: 4 | L119: 2 | N119: + | O119: 2 | P119: 0 | S119: 1 | W119: 1 | Y119: 0 | AA119: 0 | AF119: 0 | AO119: 0 | AQ119: 0 | AW119: 0 | AY119: 0 | BA119: 1 | BB119: 0 | BG119: 1 | BK119: + | BM119: 2 | BN119: 1 | BO119: 3 | BP119: 0 | BR119: 0 | BT119: 0 | BY119: 0 | CA119: 0 | CF119: 0 | CI119: 0 | CR119: 0 | CT119: 0 | CV119: 0 | CX119: 0 | DE119: 5 | DF119: 2 | DG119: + | DJ119: + | DT119: 1 | DU119: + | EC119: 0 | EL119: 0 | EO119: 0 | ES119: 1 | EW119: + | EX119: 2 | EY119: + | EZ119: 1 | FA119: 3 | FB119: 0 | FJ119: 0 | FR119: 1 | GB119: + | GE119: 2 | GF119: + | GI119: + | GK119: 0 | GQ119: 1 | GR119: + | HG119: 0 | HJ119: 0
A120: 81076665 | B120: I am a carer/partner/family member or friend | C120: Over 80 | D120: More than 20 years ago | E120: able to walk normally | F120: balance | G120: low blood pressure | H120: waking is a problem with parkinsons sufferers and affects their social life tremendously balance causes many falls and can end up at hospital with injuries, some quite severe. Low blood pressure causes dizziness and again dangerous falls all above my husband suffers from and the impact on his day to day life is really bad. | K120: 3 | L120: 0 | P120: 0 | S120: 2 | U120: 1 | W120: 2 | Y120: 0 | AA120: 0 | AF120: 0 | AO120: 0 | AQ120: 0 | AW120: 0 | AY120: 0 | BA120: 0 | BB120: 0 | BG120: 0 | BM120: 0 | BN120: 0 | BP120: 0 | BR120: 0 | BT120: 0 | BY120: 0 | CA120: 0 | CF120: 0 | CI120: 0 | CR120: 0 | CT120: 1 | CU120: 3 | CV120: 1 | CW120: + | CX120: 0 | DC120: + | DE120: 2 | DF120: 1 | DG120: + | DT120: 0 | EC120: 0 | EL120: 0 | EO120: 0 | ES120: 0 | EX120: 2 | EY120: + | EZ120: + | FA120: 3 | FB120: 0 | FJ120: 1 | FQ120: + | FR120: 0 | GE120: 1 | GF120: + | GK120: 0 | GQ120: 1 | GR120: + | HG120: 1 | HH120: + | HJ120: 0
A121: 81089324 | E121: unablw to say | F121: unable to say | G121: unable to say | H121: I am unable to say which is most important as I do not live with the family member | I121: + | K121: 0 | L121: 0 | P121: 0 | S121: 0 | Y121: 0 | AA121: 0 | AF121: 0 | AO121: 0 | AQ121: 0 | AW121: 0 | AY121: 0 | BA121: 0 | BB121: 0 | BG121: 0 | BM121: 0 | BN121: 0 | BP121: 0 | BR121: 0 | BT121: 0 | BY121: 0 | CA121: 0 | CF121: 0 | CI121: 0 | CR121: 0 | CT121: 0 | CV121: 0 | CX121: 0 | DE121: 0 | DF121: 0 | DT121: 0 | EC121: 0 | EL121: 0 | EO121: 0 | ES121: 0 | EX121: 0 | FA121: 0 | FB121: 0 | FJ121: 0 | FR121: 0 | GE121: 0 | GK121: 0 | GQ121: 0 | HG121: 0 | HJ121: 0
A122: 81673636 | E122: Dementia | F122: Lack of mobility/freezing | G122: Balance & coordination problems | H122: They have ruined our lives and all our plans for our retirement. We can no longer enjoy previously important parts of our lives, eg walking, take active holidays and take part in many family and social activities. Communication is a huge problem, largely due to dementia and cognitive decline. I am constantly exhausted. It seems unlikely will ever be eligible for Continuing Care funding, and care costs and respite are a constant and enormous expense. | K122: 5 | L122: 1 | O122: 3 | P122: 0 | S122: 2 | T122: 2 | W122: 3 | Y122: 0 | AA122: 0 | AF122: 3 | AG122: + | AH122: + | AN122: 1 | AO122: 0 | AQ122: 0 | AW122: 0 | AY122: 0 | BA122: 0 | BB122: 0 | BG122: 0 | BM122: 0 | BN122: 0 | BP122: 0 | BR122: 0 | BT122: 0 | BY122: 0 | CA122: 0 | CF122: 0 | CI122: 0 | CR122: 0 | CT122: 0 | CV122: 0 | CX122: 0 | DE122: 5 | DF122: 1 | DG122: 2 | DT122: 1 | DU122: + | EC122: 0 | EL122: 1 | EM122: + | EO122: 0 | ES122: 0 | EX122: 1 | EY122: + | FA122: 3 | FB122: 0 | FJ122: 0 | FR122: 2 | FW122: + | FX122: + | GE122: 4 | GF122: + | GG122: + | GH122: + | GI122: + | GK122: 0 | GQ122: 1 | GR122: + | HG122: 1 | HH122: + | HJ122: 0
A123: 82167787 | E123: passivity and lack of motivation | F123: freezing/staggering/low blood pressure falls | G123: Anxiety and withdrawal from social interractions | H123: On the one hand my husband wants to be independent and doesn't want me to fuss round him but on the other he is passive and constantly asking me to do things for him or just expecting me to do everything for him. This is exacerbated by his lack of mobility and unwillingness to go out and meet people. | K123: 2 | L123: 0 | P123: 0 | S123: 1 | T123: 2 | Y123: 0 | AA123: 0 | AF123: 0 | AO123: 3 | AQ123: 2 | AR123: 1 | AS123: 1 | AW123: 0 | AY123: 0 | BA123: 0 | BB123: 0 | BG123: 0 | BM123: 0 | BN123: 0 | BP123: 0 | BR123: 0 | BT123: 0 | BY123: 0 | CA123: 0 | CF123: 0 | CI123: 0 | CR123: 0 | CT123: 1 | CU123: 2 | CV123: 0 | CX123: 0 | DE123: 3 | DF123: 1 | DG123: + | DT123: 0 | EC123: 0 | EL123: 0 | EO123: 0 | ES123: 0 | EX123: 2 | EY123: + | EZ123: 2 | FA123: 2 | FB123: 1 | FC123: + | FJ123: 0 | FR123: 0 | GE123: 3 | GF123: + | GI123: + | GJ123: + | GK123: 0 | GQ123: 0 | HG123: 0 | HJ123: 0
A124: 83470026 | E124: Breathlessness | F124: Feeling of too much water in mouth | G124: Tiredness | H124: The breathlessness, which can happen at any time but particulsrly when medication is wearing off, is by far the worst of her symptoms. | K124: 0 | L124: 0 | P124: 0 | S124: 0 | Y124: 0 | AA124: 0 | AF124: 0 | AO124: 0 | AQ124: 0 | AW124: 0 | AY124: 0 | BA124: 3 | BB124: 0 | BG124: 2 | BH124: 1 | BK124: 3 | BM124: 0 | BN124: 0 | BP124: 0 | BR124: 0 | BT124: 0 | BY124: 2 | CA124: 1 | CC124: 2 | CF124: 0 | CI124: 0 | CR124: 0 | CT124: 0 | CV124: 0 | CX124: 0 | DE124: 0 | DF124: 0 | DT124: 0 | EC124: 0 | EL124: 0 | EO124: 0 | ES124: 0 | EX124: 0 | FA124: 0 | FB124: 0 | FJ124: 0 | FR124: 0 | GE124: 0 | GK124: 0 | GQ124: 0 | HG124: 0 | HJ124: 2 | HK124: + | HO124: +

Sheet CG >20 YR
E1: =COUNTA(E10:E18) -> 9 | F1: =COUNTA(F10:F18) -> 9 | G1: =COUNTA(G10:G18) -> 9 | H1: =COUNTA(H10:H18) -> 9 | I1: NO CLEAR RATIONALE | J1: SYMPTOMS | K1: MOVEMENT | L1: SLOW MOVEMENT | M1: Bradykinesia, slowness | N1: Dexterity/fine motor | O1: Loss of coordination | P1: STIFFNESS | Q1: Stiffness and loss of flexibility | R1: Altered facial expressions | S1: WALKING & BALANCE | T1: Akinesia, freezing | U1: Trouble walking/altered gait | V1: Arm swing | W1: Balance | X1: Stooped or leaning posture | Y1: TREMOR | Z1: Tremors ( n = 8 called shaking) | AA1: INVOLUNTARY MOVEMENTS | AB1: Dystonia, cramping, spasms (face, muscle, feet, hands) | AC1: Dyskinesia, involuntary, erratic, jerking motions | AD1: Blethrospasm? | AE1: Restless leg syndrome | AF1: COGNITION | AG1: Cognitive - Memory | AH1: Affects cognitive function (clear thinking, alertness) | AI1: Slow thinking (Cognitive - processing speed/slowing) | AJ1: Ablity to concentrate | AK1: Limits ability to multi-task | AL1: Word forming/word finding (? expressive aphasia) | AM1: Executive function/decision making | AN1: PD Dementia | AO1: PSYCHIATRIC | AP1: Non-specific psychological | AQ1: MOOD | AR1: Mood changes | AS1: Low motivation/apathy | AT1: Depression | AU1: Anxiety | AV1: Irritability | AW1: PERSONALITY | AX1: personality changes | AY1: PSYCHOSIS | AZ1: Hallucinations | BA1: SENSATION | BB1: FIVE SENSES | BC1: Vision problems (double vision, eye lid movement, vision changes) | BD1: Altered sensations - Pin and needle senstation; numbness | BE1: Sense of smell | BF1: Altered or loss taste | BG1: OTHER SENSATIONS | BH1: Breathlessness | BI1: Pain | BJ1: Weakness/loss of strength | BK1: Fatigue/loss of energy/tired | BL1: Restlessness | BM1: SLEEP | BN1: SLEEP DISTRUBANCES | BO1: Impaired sleep | BP1: RBSD | BQ1: Vivid dreams/ Nightmares | BR1: DAYTIME SLEEPINESS | BS1: Daytime sleepiness | BT1: SPEECH | BU1: Altered speech | BV1: Voice changes | BW1: Slurred speech | BX1: Quiet voice | BY1: GI | BZ1: Non-specific GI symptoms | CA1: MOUTH & THROAT | CB1: Choking | CC1: Drooling | CD1: Dry mouth | CE1: Impaired swallowing | CF1: STOMACH | CG1: Nausea | CH1: Appetite changes | CI1: BOWEL | CJ1: Bowels | CK1: URINARY | CL1: bladder issues | CM1: Incontinence | CN1: Nocturia | CO1: SEXUAL | CP1: Erectile dysfunction (ED) | CQ1: Loss libido/low sexual interest | CR1: ANS | CS1: Slowed breathing/Bradypena | CT1: CARDIOVASCULAR | CU1: Low blood pressure | CV1: LIGHTHEADEDNESS/DIZZINESS | CW1: Dizziness, lightheadedness | CX1: THERMOREGULATION | CY1: Temperature regulation | CZ1: SECRETIONS (SWEATING) | DA1: Perspiration, sweating | DB1: FUNCTIONAL IMPACTS | DC1: Affects QoL for PwPD | DD1: FUNCTIONAL IMPACT physical & psychosocial | DE1: PHYSICAL FUNCTIONING | DF1: GENERAL MOBILITY | DG1: Affects mobility | DH1: Being able to move in bed | DI1: Affects turning in bed | DJ1: Affects getting up from chair/bed | DK1: Affects getting out of car | DL1: Affects standing | DM1: Affects ability to walk on uneven surfaces | DN1: Affects climbing stairs | DO1: Requires use of assistive device (walker, WC, scooter) | DP1: Affects bending over | DQ1: Affects reaching over head | DR1: Affects carrying beverage w/o spill | DS1: Breaking things or dropping things | DT1: SPORTS & EXERCISE | DU1: Affects ability to be active and exercise | DV1: Affects sports | DW1: Affects Tai Chi, yoga | DX1: Affects golf | DY1: Affects cycling | DZ1: Affects swimming | EA1: Affects ability to walk downhill | EB1: Affects hiking | EC1: FINE MOTOR ACTIVITIES | ED1: Loss of hand grip | EE1: Affects picking up small items | EF1: Affects ability to open containers | EG1: Affects handwriting | EH1: Affects painting, drawing | EI1: Affects iPad use | EJ1: Affects phone use | EK1: Affects computer use | EL1: WORK OF LIVING | EM1: Limits ability to do things (functional impact) | EN1: Makes everything harder/takes more effort | EO1: PHYSICAL COMFORT | EP1: Causes pain | EQ1: Feeling unwell | ER1: Ability to relax | ES1: SELF-CARE | ET1: Makes toileting difficult | EU1: Affects hygiene, dressing | EV1: Causes odor (urine/bowel incontinence) | EW1: Affects eating | EX1: SAFETY | EY1: Safety | EZ1: Falling | FA1: PSYCHOSOCIAL FUNCTIONING | FB1: INDEPENDENCE | FC1: Affects sense of self reliance/independence | FD1: Symptoms require planning prior to going out | FE1: Affects driving | FF1: Affects use of public transportation (train, bus) | FG1: Affects cooking | FH1: Affects housework/home maintenance | FI1: Affects shopping | FJ1: SELF-CONCEPT | FK1: Self-conscious, stigma, looking drunk, etc. | FL1: Feelings of embarrassment | FM1: Altered self-concept | FN1: Not having a "normal" life | FO1: Loss of professional identity | FP1: Decreased self worth | FQ1: Affects self-confidence | FR1: COPING | FS1: Fear - of Future and disease progression | FT1: Most frustrating symptoms | FU1: Symptoms are more debilitating | FV1: Reminds you that you have PD | FW1: Worried about cost of care or caregiving | FX1: Hard to cope with | FY1: Its unpredictable | FZ1: Affects general well being | GA1: Causes mental exhaustion | GB1: Causes stress, frustration, distress | GC1: Causes worry, fear | GD1: Lost what is most important | GE1: INTERPERSONAL INTERACTIONS | GF1: Affects social life | GG1: Affects relationships with others | GH1: Affects communication | GI1: Affects spouse/partner/CG (burden,QoL, sleep, injury, relationship as couple) | GJ1: Contributes to isolation | GK1: RESPONSIBILITIES | GL1: Affects caring for pets | GM1: Affects child-care, care of grandchildern | GN1: Affects paperwork/tasks | GO1: Affects finances | GP1: Affects career or employment | GQ1: PLEASURABLE ACTIVITIES | GR1: Loss of things you enjoy doing | GS1: Makes it difficulty to enjoy conversation | GT1: Affects travel plans | GU1: Affects hobbies | GV1: Affects photography | GW1: Affects gardening | GX1: Affects sewing/embroider | GY1: Affects ability to be still | GZ1: Affects watching tv | HA1: Affects playing musical instrument | HB1: Affects singing | HC1: Affects holiday traditions (Christmas decorations, etc) | HD1: Affects dining out | HE1: Affects reading | HF1: CONTEXTUAL FACTORS | HG1: Frequency & Severity | HH1: Biggest impact on daily life (dominates life) | HI1: most frequent/evident symptoms | HJ1: Looking for improved PD management | HK1: Want better treatment/cure | HL1: More education on medication, disease | HM1: Bothered by medication side effects | HN1: Limited by medication food-drug interactions | HO1: Reliance on Medication | HP1: Difficulty with off periods | HQ1: interested in homeopathy, accupuncture, TENS, hydrotherapy, etc. | HR1: Interested in diet & exercise as cure | HS1: Interested in stem cell | HT1: PD symptoms monitoring meter | HU1: Easy access to PD nurses, specialists, appointments, resources | HV1: Interested in self-management strategies | HW1: Limited information available for symptoms | HX1: Interested in PD research | HY1: Interested in drug research | HZ1: Early diagnosis | IA1: Interested in social support
A2: ID | B2: Role | C2: Age | D2: YRS_PD | E2: Improve1 | F2: Improve2 | G2: Improve3 | H2: RATIONALE
H3: Frequency | I3: =I4/116 -> 0.0% | K3: =K4/$H$1 -> 55.6% | L3: =L4/$H$1 -> 11.1% | M3: 0.0% | N3: 11.1% | O3: 11.1% | P3: 0.0% | Q3: 0.0% | R3: 0.0% | S3: 44.4% | T3: 11.1% | U3: 22.2% | V3: 0.0% | W3: 33.3% | X3: 11.1% | Y3: 22.2% | Z3: 22.2% | AA3: 0.0% | AB3: 0.0% | AC3: 0.0% | AD3: 0.0% | AE3: 0.0% | AF3: 22.2% | AG3: 22.2% | AH3: 22.2% | AI3: 11.1% | AJ3: 0.0% | AK3: 0.0% | AL3: 0.0% | AM3: 0.0% | AN3: 0.0% | AO3: 33.3% | AP3: 0.0% | AQ3: 33.3% | AR3: 11.1% | AS3: 0.0% | AT3: 11.1% | AU3: 22.2% | AV3: 0.0% | AW3: 0.0% | AX3: 0.0% | AY3: 0.0% | AZ3: 0.0% | BA3: 33.3% | BB3: 0.0% | BC3: 0.0% | BD3: 0.0% | BE3: 0.0% | BF3: 0.0% | BG3: 33.3% | BH3: 0.0% | BI3: 22.2% | BJ3: 0.0% | BK3: 11.1% | BL3: 0.0% | BM3: 11.1% | BN3: 11.1% | BO3: 11.1% | BP3: 0.0% | BQ3: 0.0% | BR3: 0.0% | BS3: 0.0% | BT3: 22.2% | BU3: 22.2% | BV3: 0.0% | BW3: 0.0% | BX3: =BX4/$H$1 -> 0.0% | BY3: 0.0% | BZ3: 0.0% | CA3: 0.0% | CB3: 0.0% | CC3: 0.0% | CD3: 0.0% | CE3: =CE4/$H$1 -> 0.0% | CF3: 0.0% | CG3: 0.0% | CH3: 0.0% | CI3: 0.0% | CJ3: 0.0% | CK3: 0.0% | CL3: 0.0% | CM3: 0.0% | CN3: 0.0% | CO3: 0.0% | CP3: 0.0% | CQ3: 0.0% | CR3: 0.0% | CS3: 0.0% | CT3: 11.1% | CU3: 11.1% | CV3: 11.1% | CW3: 11.1% | CX3: 0.0% | CY3: 0.0% | DA3: 0.0% | DB3: 0.0% | DC3: 44.4% | DD3: 0.0% | DE3: 88.9% | DF3: 77.8% | DG3: 77.8% | DH3: 0.0% | DI3: 0.0% | DJ3: 11.1% | DK3: 0.0% | DL3: 0.0% | DM3: 0.0% | DN3: 0.0% | DO3: 0.0% | DP3: 0.0% | DQ3: 0.0% | DR3: 0.0% | DS3: 0.0% | DT3: 22.2% | DU3: 22.2% | EC3: 0.0% | ED3: 0.0% | EE3: 0.0% | EF3: 0.0% | EG3: 0.0% | EH3: 0.0% | EI3: 0.0% | EJ3: 0.0% | EK3: 0.0% | EL3: 11.1% | EM3: =EM4/$H$1 -> 11.1% | EN3: =EN4/$H$1 -> 0.0% | EO3: 22.2% | EP3: 22.2% | EQ3: 0.0% | ER3: 0.0% | ES3: 11.1% | ET3: 0.0% | EU3: 0.0% | EV3: 0.0% | EW3: 11.1% | EX3: 44.4% | EY3: 44.4% | EZ3: 44.4% | FA3: 77.8% | FB3: 0.0% | FC3: 0.0% | FD3: 0.0% | FE3: 0.0% | FF3: 0.0% | FG3: 0.0% | FH3: 0.0% | FI3: 0.0% | FJ3: 11.1% | FK3: 0.0% | FL3: =FL4/$H$1 -> 0.0% | FM3: 0.0% | FN3: 0.0% | FO3: 0.0% | FP3: 0.0% | FQ3: 11.1% | FR3: 33.3% | FS3: 11.1% | FT3: 0.0% | FU3: 0.0% | FV3: 0.0% | FW3: 0.0% | FX3: 11.1% | FY3: 11.1% | FZ3: 0.0% | GA3: 0.0% | GB3: 11.1% | GC3: 0.0% | GD3: 0.0% | GE3: 77.8% | GF3: 22.2% | GG3: 11.1% | GH3: 22.2% | GI3: 55.6% | GJ3: 0.0% | GK3: 0.0% | GL3: 0.0% | GM3: 0.0% | GN3: 0.0% | GO3: 0.0% | GP3: 0.0% | GQ3: 22.2% | GR3: 22.2% | GS3: 0.0% | GT3: 0.0% | GU3: 0.0% | GV3: 0.0% | GW3: 0.0% | GX3: 0.0% | GY3: 0.0% | GZ3: =GZ4/$H$1 -> 0.0% | HA3: 0.0% | HB3: 0.0% | HC3: 0.0% | HD3: 0.0% | HE3: 0.0% | HF3: 0.0% | HG3: 44.4% | HH3: 44.4% | HI3: 0.0% | HJ3: 33.3% | HK3: 22.2% | HL3: 0.0% | HM3: 11.1% | HN3: 0.0% | HO3: 0.0% | HP3: 33.3% | HQ3: 0.0% | HR3: 0.0% | HS3: 0.0% | HT3: 0.0% | HU3: 11.1% | HV3: 0.0% | HW3: 0.0% | HX3: 0.0% | HY3: 0.0% | HZ3: 0.0% | IA3: 0.0%
H4: Counts | I4: =COUNTA(I10:I18) -> 0 | K4: =COUNTIFS(K10:K18,">0") -> 5 | L4: =COUNTIF(L10:L18,">0") -> 1 | M4: =COUNTA(M10:M1048576) -> 0 | N4: =COUNTA(N10:N1048576) -> 1 | O4: =COUNTA(O10:O1048576) -> 1 | P4: =COUNTIF(P10:P18,">0") -> 0 | Q4: =COUNTA(Q10:Q1048576) -> 0 | R4: =COUNTA(R10:R1048576) -> 0 | S4: =COUNTIF(S10:S18,">0") -> 4 | T4: =COUNTA(T10:T1048576) -> 1 | U4: =COUNTA(U10:U1048576) -> 2 | V4: =COUNTA(V10:V1048576) -> 0 | W4: =COUNTA(W10:W1048576) -> 3 | X4: =COUNTA(X10:X1048576) -> 1 | Y4: =COUNTIF(Y10:Y18,">0") -> 2 | Z4: =COUNTA(Z10:Z1048576) -> 2 | AA4: =COUNTIF(AA10:AA18,">0") -> 0 | AB4: =COUNTA(AB10:AB1048576) -> 0 | AC4: =COUNTA(AC10:AC1048576) -> 0 | AD4: =COUNTA(AD10:AD1048576) -> 0 | AE4: =COUNTA(AE10:AE1048576) -> 0 | AF4: =COUNTIF(AF10:AF18,">0") -> 2 | AG4: =COUNTA(AG10:AG1048576) -> 2 | AH4: 2 | AI4: 1 | AJ4: 0 | AK4: 0 | AL4: 0 | AM4: 0 | AN4: 0 | AO4: =COUNTIF(AO10:AO18,">0") -> 3 | AP4: =COUNTA(AP10:AP1048576) -> 0 | AQ4: =COUNTIF(AQ10:AQ18,">0") -> 3 | AR4: =COUNTA(AR10:AR1048576) -> 1 | AS4: =COUNTA(AS10:AS1048576) -> 0 | AT4: =COUNTA(AT10:AT1048576) -> 1 | AU4: =COUNTA(AU10:AU1048576) -> 2 | AV4: =COUNTA(AV10:AV1048576) -> 0 | AW4: =COUNTIF(AW10:AW18,">0") -> 0 | AX4: =COUNTA(AX10:AX1048576) -> 0 | AY4: =COUNTIF(AY10:AY18,">0") -> 0 | AZ4: =COUNTA(AZ10:AZ1048576) -> 0 | BA4: =COUNTIF(BA10:BA18,">0") -> 3 | BB4: =COUNTIF(BB10:BB18,">0") -> 0 | BC4: =COUNTA(BC10:BC1048576) -> 0 | BD4: =COUNTA(BD10:BD1048576) -> 0 | BE4: =COUNTA(BE10:BE1048576) -> 0 | BF4: =COUNTA(BF10:BF1048576) -> 0 | BG4: =COUNTIF(BG10:BG18,">0") -> 3 | BH4: =COUNTA(BH10:BH1048576) -> 0 | BI4: =COUNTA(BI10:BI1048576) -> 2 | BJ4: =COUNTA(BJ10:BJ1048576) -> 0 | BK4: =COUNTA(BK10:BK1048576) -> 1 | BL4: =COUNTA(BL10:BL1048576) -> 0 | BM4: =COUNTIF(BM10:BM18,">0") -> 1 | BN4: =COUNTIF(BN10:BN18,">0") -> 1 | BO4: =COUNTA(BO10:BO1048576) -> 1 | BP4: =COUNTIF(BP10:BP18,">0") -> 0 | BQ4: =COUNTA(BQ10:BQ1048576) -> 0 | BR4: =COUNTIF(BR10:BR18,">0") -> 0 | BS4: =COUNTA(BS10:BS1048576) -> 0 | BT4: =COUNTIF(BT10:BT18,">0") -> 2 | BU4: =COUNTA(BU10:BU1048576) -> 2 | BV4: =COUNTA(BV10:BV1048576) -> 0 | BW4: =COUNTA(BW10:BW1048576) -> 0 | BX4: =COUNTA(BX10:BX1048576) -> 0 | BY4: =COUNTIF(BY10:BY18,">0") -> 0 | BZ4: =COUNTA(BZ10:BZ1048576) -> 0 | CA4: =COUNTIF(CA10:CA18,">0") -> 0 | CB4: =COUNTA(CB10:CB1048576) -> 0 | CC4: =COUNTA(CC10:CC1048576) -> 0 | CD4: =COUNTA(CD10:CD1048576) -> 0 | CE4: =COUNTA(CE10:CE1048576) -> 0 | CF4: =COUNTIF(CF10:CF18,">0") -> 0 | CG4: =COUNTA(CG10:CG1048576) -> 0 | CH4: =COUNTA(CH10:CH1048576) -> 0 | CI4: =COUNTIF(CI10:CI18,">0") -> 0 | CJ4: =COUNTA(CJ10:CJ1048576) -> 0 | CK4: =COUNTIF(CK10:CK18,">0") -> 0 | CL4: =COUNTA(CL10:CL1048576) -> 0 | CM4: =COUNTA(CM10:CM1048576) -> 0 | CN4: =COUNTA(CN10:CN1048576) -> 0 | CO4: =COUNTIF(CO10:CO18,">0") -> 0 | CP4: =COUNTA(CP10:CP1048576) -> 0 | CQ4: =COUNTA(CQ10:CQ1048576) -> 0 | CR4: =COUNTIF(CR10:CR18,">0") -> 0 | CS4: =COUNTA(CS10:CS1048576) -> 0 | CT4: =COUNTIF(CT10:CT18,">0") -> 1 | CU4: =COUNTA(CU10:CU1048576) -> 1 | CV4: =COUNTIF(CV10:CV18,">0") -> 1 | CW4: =COUNTA(CW10:CW1048576) -> 1 | CX4: =COUNTIF(CX10:CX18,">0") -> 0 | CY4: =COUNTA(CY10:CY1048576) -> 0 | DA4: =COUNTA(DA10:DA1048576) -> 0 | DC4: =COUNTA(DC10:DC1048576) -> 4 | DD4: =COUNTIF(DD10:DD18,">0") -> 0 | DE4: =COUNTIF(DE10:DE18,">0") -> 8 | DF4: =COUNTIF(DF10:DF18,">0") -> 7 | DG4: =COUNTA(DG10:DG1048576) -> 7 | DH4: 0 | DI4: 0 | DJ4: 1 | DK4: 0 | DL4: 0 | DM4: 0 | DN4: 0 | DO4: 0 | DP4: 0 | DQ4: 0 | DR4: 0 | DS4: 0 | DT4: =COUNTIF(DT10:DT18,">0") -> 2 | DU4: =COUNTA(DU10:DU1048576) -> 2 | EC4: =COUNTIF(EC10:EC18,">0") -> 0 | ED4: =COUNTA(ED10:ED1048576) -> 0 | EE4: 0 | EF4: 0 | EG4: 0 | EH4: 0 | EI4: 0 | EJ4: 0 | EK4: 0 | EL4: =COUNTIF(EL10:EL18,">0") -> 1 | EM4: =COUNTA(EM10:EM1048576) -> 1 | EN4: =COUNTA(EN10:EN1048576) -> 0 | EO4: =COUNTIF(EO10:EO18,">0") -> 2 | EP4: =COUNTA(EP10:EP1048576) -> 2 | EQ4: =COUNTA(EQ10:EQ1048576) -> 0 | ER4: =COUNTA(ER10:ER1048576) -> 0 | ES4: =COUNTIF(ES10:ES18,">0") -> 1 | ET4: =COUNTA(ET10:ET1048576) -> 0 | EU4: =COUNTA(EU10:EU1048576) -> 0 | EV4: =COUNTA(EV10:EV1048576) -> 0 | EW4: =COUNTA(EW10:EW1048576) -> 1 | EX4: =COUNTIF(EX10:EX18,">0") -> 4 | EY4: =COUNTA(EY10:EY1048576) -> 4 | EZ4: =COUNTA(EZ10:EZ1048576) -> 4 | FA4: =COUNTIF(FA10:FA18,">0") -> 7 | FB4: =COUNTIF(FB10:FB18,">0") -> 0 | FC4: =COUNTA(FC10:FC1048576) -> 0 | FD4: 0 | FE4: 0 | FF4: 0 | FG4: 0 | FH4: 0 | FI4: 0 | FJ4: =COUNTIF(FJ10:FJ18,">0") -> 1 | FK4: =COUNTA(FK10:FK1048576) -> 0 | FL4: 0 | FM4: 0 | FN4: 0 | FO4: 0 | FP4: 0 | FQ4: 1 | FR4: =COUNTIF(FR10:FR18,">0") -> 3 | FS4: =COUNTA(FS10:FS1048576) -> 1 | FT4: 0 | FU4: 0 | FV4: 0 | FW4: 0 | FX4: 1 | FY4: 1 | FZ4: 0 | GA4: 0 | GB4: 1 | GC4: 0 | GD4: 0 | GE4: =COUNTIF(GE10:GE18,">0") -> 7 | GF4: =COUNTA(GF10:GF1048576) -> 2 | GG4: =COUNTA(GG10:GG1048576) -> 1 | GH4: =COUNTA(GH10:GH1048576) -> 2 | GI4: =COUNTA(GI10:GI1048576) -> 5 | GJ4: =COUNTA(GJ10:GJ1048576) -> 0 | GK4: =COUNTIF(GK10:GK18,">0") -> 0 | GL4: =COUNTA(GL10:GL1048576) -> 0 | GM4: =COUNTA(GM10:GM1048576) -> 0 | GN4: =COUNTA(GN10:GN1048576) -> 0 | GO4: =COUNTA(GO10:GO1048576) -> 0 | GP4: =COUNTA(GP10:GP1048576) -> 0 | GQ4: =COUNTIF(GQ10:GQ18,">0") -> 2 | GR4: =COUNTA(GR10:GR1048576) -> 2 | GS4: 0 | GT4: 0 | GU4: 0 | GV4: 0 | GW4: 0 | GX4: 0 | GY4: 0 | GZ4: 0 | HA4: 0 | HB4: 0 | HC4: 0 | HD4: 0 | HE4: 0 | HF4: =COUNTIF(HF10:HF18,">0") -> 0 | HG4: =COUNTIF(HG10:HG18,">0") -> 4 | HH4: =COUNTA(HH10:HH1048576) -> 4 | HI4: =COUNTA(HI10:HI1048576) -> 0 | HJ4: =COUNTIF(HJ10:HJ18,">0") -> 3 | HK4: =COUNTA(HK10:HK1048576) -> 2 | HL4: 0 | HM4: 1 | HN4: 0 | HO4: 0 | HP4: 3 | HQ4: 0 | HR4: 0 | HS4: 0 | HT4: 0 | HU4: 1 | HV4: 0 | HW4: 0 | HX4: 0 | HY4: 0 | HZ4: 0 | IA4: 0
H5: 1st | K5: =COUNTIF(K10:K18,"1") -> 0 | L5: 0 | M5: 0 | N5: 0 | O5: 0 | P5: 0 | Q5: 0 | R5: 0 | S5: 2 | T5: 0 | U5: 1 | V5: 0 | W5: 1 | X5: 0 | Y5: 2 | Z5: 1 | AA5: 0 | AB5: 0 | AC5: 0 | AD5: 0 | AE5: 0 | AF5: 0 | AG5: 1 | AH5: 0 | AI5: 0 | AJ5: 0 | AK5: 0 | AL5: 0 | AM5: 0 | AN5: 0 | AO5: 1 | AP5: 0 | AQ5: =COUNTIF(AQ10:AQ18,"1") -> 2 | AR5: 0 | AS5: 0 | AT5: 0 | AU5: 0 | AV5: 0 | AW5: 0 | AX5: 0 | AY5: 0 | AZ5: 0 | BA5: 1 | BB5: 0 | BC5: 0 | BD5: 0 | BE5: 0 | BF5: 0 | BG5: 3 | BH5: 0 | BI5: 1 | BJ5: 0 | BK5: 0 | BL5: 0 | BM5: 0 | BN5: 1 | BO5: 0 | BP5: 0 | BQ5: 0 | BR5: 0 | BS5: 0 | BT5: 2 | BU5: 0 | BV5: 0 | BW5: =COUNTIF(BW10:BW18,"1") -> 0 | BX5: 0 | BY5: 0 | BZ5: 0 | CA5: 0 | CB5: 0 | CC5: 0 | CD5: 0 | CE5: 0 | CF5: 0 | CG5: 0 | CH5: 0 | CI5: 0 | CJ5: 0 | CK5: 0 | CL5: 0 | CM5: 0 | CN5: 0 | CO5: 0 | CP5: 0 | CQ5: 0 | CR5: 0 | CS5: 0 | CT5: 1 | CU5: 0 | CV5: 1 | CW5: 0 | CX5: 0 | CY5: 0 | DA5: =COUNTIF(DA10:DA18,"1") -> 0 | DB5: 0 | DC5: 0 | DD5: 0 | DE5: 0 | DF5: 6 | DG5: 2 | DH5: 0 | DI5: 0 | DJ5: 0 | DK5: 0 | DL5: 0 | DM5: 0 | DN5: 0 | DO5: 0 | DP5: 0 | DQ5: 0 | DR5: 0 | DS5: 0 | DT5: 2 | DU5: 0 | EC5: =COUNTIF(EC10:EC18,"1") -> 0 | ED5: 0 | EE5: 0 | EF5: 0 | EG5: 0 | EH5: 0 | EI5: 0 | EJ5: 0 | EK5: 0 | EL5: 1 | EM5: 0 | EN5: 0 | EO5: 2 | EP5: 0 | EQ5: 0 | ER5: 0 | ES5: 1 | ET5: 0 | EU5: 0 | EV5: 0 | EW5: 0 | EX5: 0 | EY5: 0 | EZ5: 1 | FA5: 3 | FB5: 0 | FC5: 0 | FD5: 0 | FE5: 0 | FF5: 0 | FG5: 0 | FH5: 0 | FI5: =COUNTIF(FI10:FI18,"1") -> 0 | FJ5: 1 | FK5: 0 | FL5: 0 | FM5: 0 | FN5: 0 | FO5: 0 | FP5: 0 | FQ5: 0 | FR5: 2 | FS5: 0 | FT5: 0 | FU5: 0 | FV5: 0 | FW5: 0 | FX5: 0 | FY5: 0 | FZ5: 0 | GA5: 0 | GB5: 0 | GC5: 0 | GD5: 0 | GE5: 4 | GF5: 0 | GG5: 0 | GH5: 0 | GI5: 0 | GJ5: 0 | GK5: 0 | GL5: 0 | GM5: 0 | GN5: 0 | GO5: =COUNTIF(GO10:GO18,"1") -> 0 | GP5: 0 | GQ5: 2 | GR5: 0 | GS5: 0 | GT5: 0 | GU5: 0 | GV5: 0 | GW5: 0 | GX5: 0 | GY5: 0 | GZ5: 0 | HA5: 0 | HB5: 0 | HC5: 0 | HD5: 0 | HE5: 0 | HF5: 0 | HG5: 4 | HH5: 0 | HI5: 0 | HJ5: 1 | HK5: 1 | HL5: 0 | HM5: 0 | HN5: 0 | HO5: 0 | HP5: 1 | HQ5: 0 | HR5: 0 | HS5: 0 | HT5: 0 | HU5: =COUNTIF(HU10:HU18,"1") -> 0 | HV5: 0 | HW5: 0 | HX5: 0 | HY5: 0 | HZ5: 0 | IA5: 0
H6: 2nd | K6: =COUNTIF(K10:K18,"2") -> 1 | L6: 1 | M6: 0 | N6: 0 | O6: 1 | P6: 0 | Q6: 0 | R6: 0 | S6: 1 | T6: 1 | U6: 0 | V6: 0 | W6: 1 | X6: 1 | Y6: 0 | Z6: 1 | AA6: 0 | AB6: 0 | AC6: 0 | AD6: 0 | AE6: 0 | AF6: 1 | AG6: 0 | AH6: 0 | AI6: 0 | AJ6: 0 | AK6: 0 | AL6: 0 | AM6: 0 | AN6: 0 | AO6: 2 | AP6: 0 | AQ6: =COUNTIF(AQ10:AQ18,"2") -> 1 | AR6: 0 | AS6: 0 | AT6: 1 | AU6: 0 | AV6: 0 | AW6: 0 | AX6: 0 | AY6: 0 | AZ6: 0 | BA6: 2 | BB6: 0 | BC6: 0 | BD6: 0 | BE6: 0 | BF6: 0 | BG6: 0 | BH6: 0 | BI6: 1 | BJ6: 0 | BK6: 0 | BL6: 0 | BM6: 1 | BN6: 0 | BO6: 0 | BP6: 0 | BQ6: 0 | BR6: 0 | BS6: 0 | BT6: 0 | BU6: 1 | BV6: 0 | BW6: =COUNTIF(BW10:BW18,"2") -> 0 | BX6: 0 | BY6: 0 | BZ6: 0 | CA6: 0 | CB6: 0 | CC6: 0 | CD6: 0 | CE6: 0 | CF6: 0 | CG6: 0 | CH6: 0 | CI6: 0 | CJ6: 0 | CK6: 0 | CL6: 0 | CM6: 0 | CN6: 0 | CO6: 0 | CP6: 0 | CQ6: 0 | CR6: 0 | CS6: 0 | CT6: 0 | CU6: 0 | CV6: 0 | CW6: 0 | CX6: 0 | CY6: 0 | DA6: =COUNTIF(DA10:DA18,"2") -> 0 | DB6: 0 | DC6: 0 | DD6: 0 | DE6: 5 | DF6: 1 | DG6: 0 | DH6: 0 | DI6: 0 | DJ6: 0 | DK6: 0 | DL6: 0 | DM6: 0 | DN6: 0 | DO6: 0 | DP6: 0 | DQ6: 0 | DR6: 0 | DS6: 0 | DT6: 0 | DU6: 0 | EC6: =COUNTIF(EC10:EC18,"2") -> 0 | ED6: 0 | EE6: 0 | EF6: 0 | EG6: 0 | EH6: 0 | EI6: 0 | EJ6: 0 | EK6: 0 | EL6: 0 | EM6: 0 | EN6: 0 | EO6: 0 | EP6: 0 | EQ6: 0 | ER6: 0 | ES6: 0 | ET6: 0 | EU6: 0 | EV6: 0 | EW6: 0 | EX6: 4 | EY6: 0 | EZ6: 0 | FA6: 2 | FB6: 0 | FC6: 0 | FD6: 0 | FE6: 0 | FF6: 0 | FG6: 0 | FH6: 0 | FI6: =COUNTIF(FI10:FI18,"2") -> 0 | FJ6: 0 | FK6: 0 | FL6: 0 | FM6: 0 | FN6: 0 | FO6: 0 | FP6: 0 | FQ6: 0 | FR6: 1 | FS6: 0 | FT6: 0 | FU6: 0 | FV6: 0 | FW6: 0 | FX6: 0 | FY6: 0 | FZ6: 0 | GA6: 0 | GB6: 0 | GC6: 0 | GD6: 0 | GE6: 3 | GF6: 0 | GG6: 0 | GH6: 0 | GI6: 0 | GJ6: 0 | GK6: 0 | GL6: 0 | GM6: 0 | GN6: 0 | GO6: =COUNTIF(GO10:GO18,"2") -> 0 | GP6: 0 | GQ6: 0 | GR6: 0 | GS6: 0 | GT6: 0 | GU6: 0 | GV6: 0 | GW6: 0 | GX6: 0 | GY6: 0 | GZ6: 0 | HA6: 0 | HB6: 0 | HC6: 0 | HD6: 0 | HE6: 0 | HF6: 0 | HG6: 0 | HH6: 0 | HI6: 0 | HJ6: 1 | HK6: 0 | HL6: 0 | HM6: 0 | HN6: 0 | HO6: 0 | HP6: 0 | HQ6: 0 | HR6: 0 | HS6: 0 | HT6: 0 | HU6: =COUNTIF(HU10:HU18,"2") -> 1 | HV6: 0 | HW6: 0 | HX6: 0 | HY6: 0 | HZ6: 0 | IA6: 0
H7: 3rd | K7: =COUNTIF(K10:K18,"3") -> 2 | L7: 0 | M7: 0 | N7: 0 | O7: 0 | P7: 0 | Q7: 0 | R7: 0 | S7: 1 | T7: 0 | U7: 0 | V7: 0 | W7: 1 | X7: 0 | Y7: 0 | Z7: 0 | AA7: 0 | AB7: 0 | AC7: 0 | AD7: 0 | AE7: 0 | AF7: 1 | AG7: 1 | AH7: 0 | AI7: 0 | AJ7: 0 | AK7: 0 | AL7: 0 | AM7: 0 | AN7: 0 | AO7: 0 | AP7: 0 | AQ7: =COUNTIF(AQ10:AQ18,"3") -> 0 | AR7: 0 | AS7: 0 | AT7: 0 | AU7: 1 | AV7: 0 | AW7: 0 | AX7: 0 | AY7: 0 | AZ7: 0 | BA7: 0 | BB7: 0 | BC7: 0 | BD7: 0 | BE7: 0 | BF7: 0 | BG7: 0 | BH7: 0 | BI7: 0 | BJ7: 0 | BK7: 0 | BL7: 0 | BM7: 0 | BN7: 0 | BO7: 1 | BP7: 0 | BQ7: 0 | BR7: 0 | BS7: 0 | BT7: 0 | BU7: 1 | BV7: 0 | BW7: =COUNTIF(BW10:BW18,"3") -> 0 | BX7: 0 | BY7: 0 | BZ7: 0 | CA7: 0 | CB7: 0 | CC7: 0 | CD7: 0 | CE7: 0 | CF7: 0 | CG7: 0 | CH7: 0 | CI7: 0 | CJ7: 0 | CK7: 0 | CL7: 0 | CM7: 0 | CN7: 0 | CO7: 0 | CP7: 0 | CQ7: 0 | CR7: 0 | CS7: 0 | CT7: 0 | CU7: 1 | CV7: 0 | CW7: 0 | CX7: 0 | CY7: 0 | DA7: =COUNTIF(DA10:DA18,"3") -> 0 | DB7: 0 | DC7: 0 | DD7: 0 | DE7: 1 | DF7: 0 | DG7: 0 | DH7: 0 | DI7: 0 | DJ7: 0 | DK7: 0 | DL7: 0 | DM7: 0 | DN7: 0 | DO7: 0 | DP7: 0 | DQ7: 0 | DR7: 0 | DS7: 0 | DT7: 0 | DU7: 0 | EC7: =COUNTIF(EC10:EC18,"3") -> 0 | ED7: 0 | EE7: 0 | EF7: 0 | EG7: 0 | EH7: 0 | EI7: 0 | EJ7: 0 | EK7: 0 | EL7: 0 | EM7: 0 | EN7: 0 | EO7: 0 | EP7: 0 | EQ7: 0 | ER7: 0 | ES7: 0 | ET7: 0 | EU7: 0 | EV7: 0 | EW7: 0 | EX7: 0 | EY7: 0 | EZ7: 2 | FA7: 2 | FB7: 0 | FC7: 0 | FD7: 0 | FE7: 0 | FF7: 0 | FG7: 0 | FH7: 0 | FI7: =COUNTIF(FI10:FI18,"3") -> 0 | FJ7: 0 | FK7: 0 | FL7: 0 | FM7: 0 | FN7: 0 | FO7: 0 | FP7: 0 | FQ7: 0 | FR7: 0 | FS7: 0 | FT7: 0 | FU7: 0 | FV7: 0 | FW7: 0 | FX7: 0 | FY7: 0 | FZ7: 0 | GA7: 0 | GB7: 0 | GC7: 0 | GD7: 0 | GE7: 0 | GF7: 0 | GG7: 0 | GH7: 0 | GI7: 0 | GJ7: 0 | GK7: 0 | GL7: 0 | GM7: 0 | GN7: 0 | GO7: =COUNTIF(GO10:GO18,"3") -> 0 | GP7: 0 | GQ7: 0 | GR7: 0 | GS7: 0 | GT7: 0 | GU7: 0 | GV7: 0 | GW7: 0 | GX7: 0 | GY7: 0 | GZ7: 0 | HA7: 0 | HB7: 0 | HC7: 0 | HD7: 0 | HE7: 0 | HF7: 0 | HG7: 0 | HH7: 0 | HI7: 0 | HJ7: 0 | HK7: 0 | HL7: 0 | HM7: 0 | HN7: 0 | HO7: 0 | HP7: 0 | HQ7: 0 | HR7: 0 | HS7: 0 | HT7: 0 | HU7: =COUNTIF(HU10:HU18,"3") -> 0 | HV7: 0 | HW7: 0 | HX7: 0 | HY7: 0 | HZ7: 0 | IA7: 0
H9: %
A10: 79576842 | B10: I am a carer/partner/family member or friend | C10: 70-79 | D10: More than 20 years ago | E10: mobility | F10: depression | H10: To give us a better quality of life. | K10: =COUNTIF(L10:AE10,">0") -> 0 | L10: =COUNTA(M10:O10) -> 0 | P10: =COUNTA(Q10:R10) -> 0 | S10: =COUNTA(T10:X10) -> 0 | Y10: =COUNTA(Z10) -> 0 | AA10: =COUNTA(AB10:AE10) -> 0 | AF10: =COUNTA(AG10:AN10) -> 0 | AO10: =COUNTIF(AP10:AZ10,">0") -> 2 | AQ10: =COUNTA(AR10:AV10) -> 2 | AR10: + | AT10: 2 | AW10: =COUNTA(AX10) -> 0 | AY10: =COUNTA(AZ10) -> 0 | BA10: =COUNTIF(BB10:BL10,">0") -> 0 | BB10: =COUNTA(BC10:BF10) -> 0 | BG10: =COUNTA(BH10:BL10) -> 0 | BM10: =COUNTIF(BN10:BS10,">0") -> 0 | BN10: =COUNTA(BO10) -> 0 | BP10: =COUNTA(BQ10) -> 0 | BR10: =COUNTA(BS10) -> 0 | BT10: =COUNTA(BU10:BX10) -> 0 | BY10: =COUNTIF(BZ10:CJ10,">0") -> 0 | CA10: =COUNTA(CB10:CE10) -> 0 | CF10: =COUNTA(CG10:CH10) -> 0 | CI10: =COUNTA(CJ10) -> 0 | CR10: =COUNTA(CS10) -> 0 | CT10: =COUNTA(CU10) -> 0 | CV10: =COUNTA(CW10) -> 0 | CX10: =COUNTA(CY10) -> 0 | DC10: = | DE10: =COUNTIF(DF10:EZ10,">0") -> 2 | DF10: =COUNTA(DG10:DS10) -> 1 | DG10: 1 | DT10: =COUNTA(DU10) -> 0 | EC10: =COUNTA(ED10:EK10) -> 0 | EL10: =COUNTA(EM10:EN10) -> 0 | EO10: =COUNTA(EP10:ER10) -> 0 | ES10: =COUNTA(ET10:EW10) -> 0 | EX10: =COUNTA(EY10:EZ10) -> 0 | FA10: =COUNTIF(FB10:HE10,">0") -> 1 | FB10: =COUNTA(FC10:FI10) -> 0 | FJ10: =COUNTA(FK10:FQ10) -> 0 | FR10: =COUNTA(FS10:GD10) -> 0 | GE10: =COUNTA(GF10:GJ10) -> 1 | GI10: + | GK10: =COUNTA(GL10:GP10) -> 0 | GQ10: =COUNTA(GR10:HE10) -> 0 | HG10: =COUNTA(HH10:HI10) -> 0 | HJ10: =COUNTA(HK10:IA10) -> 0
A11: 79594861 | B11: I am a carer/partner/family member or friend | C11: 60-69 | D11: More than 20 years ago | E11: better mobility and off periods | F11: better speech quailty | G11: better memory | H11: They are the 3 things that impact most on our daily lives and our quality of life as a couple. | K11: 0 | L11: 0 | P11: 0 | S11: 0 | Y11: 0 | AA11: 0 | AF11: 2 | AG11: 3 | AH11: + | AO11: 0 | AQ11: 0 | AW11: 0 | AY11: 0 | BA11: 0 | BB11: 0 | BG11: 0 | BM11: 0 | BN11: 0 | BP11: 0 | BR11: 0 | BT11: 1 | BU11: 2 | BY11: 0 | CA11: 0 | CF11: 0 | CI11: 0 | CR11: 0 | CT11: 0 | CV11: 0 | CX11: 0 | DC11: + | DE11: 2 | DF11: 1 | DG11: 1 | DT11: 0 | EC11: 0 | EL11: 0 | EO11: 0 | ES11: 0 | EX11: 0 | FA11: 1 | FB11: 0 | FJ11: 0 | FR11: 0 | GE11: 2 | GH11: + | GI11: + | GK11: 0 | GQ11: 0 | HG11: 1 | HH11: + | HJ11: 1 | HP11: +
A12: 79606693 | B12: I am a carer/partner/family member or friend | C12: 60-69 | D12: More than 20 years ago | E12: tremour | F12: freezing | G12: speech | H12: These are the three symptoms which effect him most and put so much restriction on his life. | K12: 4 | L12: 0 | P12: 0 | S12: 1 | T12: 2 | Y12: 1 | Z12: 1 | AA12: 0 | AF12: 0 | AO12: 0 | AQ12: 0 | AW12: 0 | AY12: 0 | BA12: 0 | BB12: 0 | BG12: 0 | BM12: 0 | BN12: 0 | BP12: 0 | BR12: 0 | BT12: 1 | BU12: 3 | BY12: 0 | CA12: 0 | CF12: 0 | CI12: 0 | CR12: 0 | CT12: 0 | CV12: 0 | CX12: 0 | DE12: 2 | DF12: 1 | DG12: + | DT12: 0 | EC12: 0 | EL12: 1 | EM12: + | EO12: 0 | ES12: 0 | EX12: 0 | FA12: 1 | FB12: 0 | FJ12: 0 | FR12: 0 | GE12: 1 | GH12: + | GK12: 0 | GQ12: 0 | HG12: 1 | HH12: + | HJ12: 0
A13: 79619883 | B13: I am a carer/partner/family member or friend | C13: 70-79 | D13: More than 20 years ago | E13: Even out the on/off times in mediaction effectiveness | F13: Find a way to manage Parkinson's pain | G13: Find a way to manage anxiety | H13: Because for us these three things are the most difficult to manage and touch every part of our daily life. | K13: 0 | L13: 0 | P13: 0 | S13: 0 | Y13: 0 | AA13: 0 | AF13: 0 | AO13: 2 | AQ13: 1 | AU13: 3 | AW13: 0 | AY13: 0 | BA13: 2 | BB13: 0 | BG13: 1 | BI13: 2 | BM13: 0 | BN13: 0 | BP13: 0 | BR13: 0 | BT13: 0 | BY13: 0 | CA13: 0 | CF13: 0 | CI13: 0 | CR13: 0 | CT13: 0 | CV13: 0 | CX13: 0 | DC13: + | DE13: 2 | DF13: 1 | DG13: + | DT13: 0 | EC13: 0 | EL13: 0 | EO13: 1 | EP13: + | ES13: 0 | EX13: 0 | FA13: 2 | FB13: 0 | FJ13: 0 | FR13: 1 | FX13: + | GE13: 1 | GI13: + | GK13: 0 | GQ13: 0 | HG13: 1 | HH13: + | HJ13: 2 | HK13: + | HP13: 1
A14: 79717841 | B14: I am a carer/partner/family member or friend | C14: 50-59 | D14: More than 20 years ago | E14: Drugs to improve PD without debilitating side effects | F14: More immediate access to specialists in non motor symptoms e.g. Anxiety & clinical psychologists | G14: Improved non invasive surgical techniques/use of new technologies to enhance everyday lives e.g. Computers, lasers, MRIs | H14: Because people suffering with PD like my husband who has had to cope with it all his adult life need (practical) help NOW. Surely there is knowledge enough considering the breakthroughs in other illnesses such as cancers to supply levodopa continuously over a 24 hr period via patches, an injection even a pill without side effects that are worse than pd itself or having risky surgical procedures or pumps? More targeted collaboration & integration on trials/development of new drugs between the mega rich pharmaceutical companies. If not, legitimate access to more natural plant based drugs like cannabis. | K14: 0 | L14: 0 | P14: 0 | S14: 0 | Y14: 0 | AA14: 0 | AF14: 0 | AO14: 1 | AQ14: 1 | AU14: + | AW14: 0 | AY14: 0 | BA14: 0 | BB14: 0 | BG14: 0 | BM14: 0 | BN14: 0 | BP14: 0 | BR14: 0 | BT14: 0 | BY14: 0 | CA14: 0 | CF14: 0 | CI14: 0 | CR14: 0 | CT14: 0 | CV14: 0 | CX14: 0 | DE14: 0 | DF14: 0 | DT14: 0 | EC14: 0 | EL14: 0 | EO14: 0 | ES14: 0 | EX14: 0 | FA14: 0 | FB14: 0 | FJ14: 0 | FR14: 0 | GE14: 0 | GK14: 0 | GQ14: 0 | HG14: 0 | HJ14: 4 | HK14: 1 | HM14: + | HP14: + | HU14: 2
A15: 80923583 | B15: I am a carer/partner/family member or friend | C15: 70-79 | D15: More than 20 years ago | E15: Pain | F15: Tremor | G15: Falls | H15: Pain is underestimated in parkinson's. We have lived with severe back pain for 25 years. It is easy to say this is not due to parkinson's but we are very clear it is and little is done about pain in parkinson's. To the extent that it is often denied. | K15: 2 | L15: 0 | P15: 0 | S15: 0 | Y15: 1 | Z15: 2 | AA15: 0 | AF15: 0 | AO15: 0 | AQ15: 0 | AW15: 0 | AY15: 0 | BA15: 2 | BB15: 0 | BG15: 1 | BI15: 1 | BM15: 0 | BN15: 0 | BP15: 0 | BR15: 0 | BT15: 0 | BY15: 0 | CA15: 0 | CF15: 0 | CI15: 0 | CR15: 0 | CT15: 0 | CV15: 0 | CX15: 0 | DE15: 3 | DF15: 0 | DT15: 0 | EC15: 0 | EL15: 0 | EO15: 1 | EP15: + | ES15: 0 | EX15: 2 | EY15: + | EZ15: 3 | FA15: 0 | FB15: 0 | FJ15: 0 | FR15: 0 | GE15: 0 | GK15: 0 | GQ15: 0 | HG15: 0 | HJ15: 0
A16: 80929016 | B16: I am a carer/partner/family member or friend | C16: 70-79 | D16: More than 20 years ago | E16: Memory failing | F16: Posture, bent over and affecting walking | G16: Falling | H16: Memory failing means that every day tasks become more unreliable and can cause argument. Also attention span is lower. If this leads to dementia then all else falls into insignificance. Posture causes instability, and can affect walking, and also doing tasks near floor level instead of at normal level. Falling can cause bruising and aching or injury. When this happens other functions can be affected eg. movement. Also, a help system is needed. | K16: 3 | L16: 0 | P16: 0 | S16: 3 | U16: + | W16: 3 | X16: 2 | Y16: 0 | AA16: 0 | AF16: 3 | AG16: 1 | AH16: + | AI16: + | AO16: 0 | AQ16: 0 | AW16: 0 | AY16: 0 | BA16: 0 | BB16: 0 | BG16: 0 | BM16: 0 | BN16: 0 | BP16: 0 | BR16: 0 | BT16: 0 | BY16: 0 | CA16: 0 | CF16: 0 | CI16: 0 | CR16: 0 | CT16: 0 | CV16: 0 | CX16: 0 | DE16: 4 | DF16: 1 | DG16: + | DT16: 1 | DU16: + | EC16: 0 | EL16: 0 | EO16: 0 | ES16: 0 | EX16: 2 | EY16: + | EZ16: 3 | FA16: 2 | FB16: 0 | FJ16: 0 | FR16: 2 | FS16: + | FY16: + | GE16: 2 | GG16: + | GI16: + | GK16: 0 | GQ16: 0 | HG16: 0 | HJ16: 0
A17: 80932933 | B17: I am a carer/partner/family member or friend | C17: 70-79 | D17: More than 20 years ago | E17: Stop falls | F17: Coordination | G17: Sleeping at night | H17: My husband can’t be left in case of falls which means I’m with him 24/7. Needs help with most things as he can’t coordinate hands and feet which means he has trouble with eating, that holds us back from eating out as much as we’d like. Sleeping at night is a great problem as he needs help with getting in and out of bed then neither of us are sleeping well. This can make me short tempered as I’m tired a lot of the time. | K17: 4 | L17: 2 | N17: + | O17: 2 | P17: 0 | S17: 1 | W17: 1 | Y17: 0 | AA17: 0 | AF17: 0 | AO17: 0 | AQ17: 0 | AW17: 0 | AY17: 0 | BA17: 1 | BB17: 0 | BG17: 1 | BK17: + | BM17: 2 | BN17: 1 | BO17: 3 | BP17: 0 | BR17: 0 | BT17: 0 | BY17: 0 | CA17: 0 | CF17: 0 | CI17: 0 | CR17: 0 | CT17: 0 | CV17: 0 | CX17: 0 | DE17: 5 | DF17: 2 | DG17: + | DJ17: + | DT17: 1 | DU17: + | EC17: 0 | EL17: 0 | EO17: 0 | ES17: 1 | EW17: + | EX17: 2 | EY17: + | EZ17: 1 | FA17: 3 | FB17: 0 | FJ17: 0 | FR17: 1 | GB17: + | GE17: 2 | GF17: + | GI17: + | GK17: 0 | GQ17: 1 | GR17: + | HG17: 0 | HJ17: 0
A18: 81076665 | B18: I am a carer/partner/family member or friend | C18: Over 80 | D18: More than 20 years ago | E18: able to walk normally | F18: balance | G18: low blood pressure | H18: waking is a problem with parkinsons sufferers and affects their social life tremendously balance causes many falls and can end up at hospital with injuries, some quite severe. Low blood pressure causes dizziness and again dangerous falls all above my husband suffers from and the impact on his day to day life is really bad. | K18: 3 | L18: 0 | P18: 0 | S18: 2 | U18: 1 | W18: 2 | Y18: 0 | AA18: 0 | AF18: 0 | AO18: 0 | AQ18: 0 | AW18: 0 | AY18: 0 | BA18: 0 | BB18: 0 | BG18: 0 | BM18: 0 | BN18: 0 | BP18: 0 | BR18: 0 | BT18: 0 | BY18: 0 | CA18: 0 | CF18: 0 | CI18: 0 | CR18: 0 | CT18: 1 | CU18: 3 | CV18: 1 | CW18: + | CX18: 0 | DC18: + | DE18: 2 | DF18: 1 | DG18: + | DT18: 0 | EC18: 0 | EL18: 0 | EO18: 0 | ES18: 0 | EX18: 2 | EY18: + | EZ18: + | FA18: 3 | FB18: 0 | FJ18: 1 | FQ18: + | FR18: 0 | GE18: 1 | GF18: + | GK18: 0 | GQ18: 1 | GR18: + | HG18: 1 | HH18: + | HJ18: 0

Sheet CG 11-20 YR
E1: =COUNTA(E10:E31) -> 22 | F1: =COUNTA(F10:F31) -> 22 | G1: =COUNTA(G10:G31) -> 22 | H1: =COUNTA(H10:H31) -> 22 | I1: NO CLEAR RATIONALE | J1: SYMPTOMS | K1: MOVEMENT | L1: SLOW MOVEMENT | M1: Bradykinesia, slowness | N1: Dexterity/fine motor | O1: Loss of coordination | P1: STIFFNESS | Q1: Stiffness and loss of flexibility | R1: Altered facial expressions | S1: WALKING & BALANCE | T1: Akinesia, freezing | U1: Trouble walking/altered gait | V1: Arm swing | W1: Balance | X1: Stooped or leaning posture | Y1: TREMOR | Z1: Tremors ( n = 8 called shaking) | AA1: INVOLUNTARY MOVEMENTS | AB1: Dystonia, cramping, spasms (face, muscle, feet, hands) | AC1: Dyskinesia, involuntary, erratic, jerking motions | AD1: Blethrospasm? | AE1: Restless leg syndrome | AF1: COGNITION | AG1: Cognitive - Memory | AH1: Affects cognitive function (clear thinking, alertness) | AI1: Slow thinking (Cognitive - processing speed/slowing) | AJ1: Ablity to concentrate | AK1: Limits ability to multi-task | AL1: Word forming/word finding (? expressive aphasia) | AM1: Executive function/decision making | AN1: PD Dementia | AO1: PSYCHIATRIC | AP1: Non-specific psychological | AQ1: MOOD | AR1: Mood changes | AS1: Low motivation/apathy | AT1: Depression | AU1: Anxiety | AV1: Irritability | AW1: PERSONALITY | AX1: personality changes | AY1: PSYCHOSIS | AZ1: Hallucinations | BA1: SENSATION | BB1: FIVE SENSES | BC1: Vision problems (double vision, eye lid movement, vision changes) | BD1: Altered sensations - Pin and needle senstation; numbness | BE1: Sense of smell | BF1: Altered or loss taste | BG1: OTHER SENSATIONS | BH1: Breathlessness | BI1: Pain | BJ1: Weakness/loss of strength | BK1: Fatigue/loss of energy/tired | BL1: Restlessness | BM1: SLEEP | BN1: SLEEP DISTRUBANCES | BO1: Impaired sleep | BP1: RBSD | BQ1: Vivid dreams/ Nightmares | BR1: DAYTIME SLEEPINESS | BS1: Daytime sleepiness | BT1: SPEECH | BU1: Altered speech | BV1: Voice changes | BW1: Slurred speech | BX1: Quiet voice | BY1: GI | BZ1: Non-specific GI symptoms | CA1: MOUTH & THROAT | CB1: Choking | CC1: Drooling | CD1: Dry mouth | CE1: Impaired swallowing | CF1: STOMACH | CG1: Nausea | CH1: Appetite changes | CI1: BOWEL | CJ1: Bowels | CK1: URINARY | CL1: bladder issues | CM1: Incontinence | CN1: Nocturia | CO1: SEXUAL | CP1: Erectile dysfunction (ED) | CQ1: Loss libido/low sexual interest | CR1: ANS | CS1: Slowed breathing/Bradypena | CT1: CARDIOVASCULAR | CU1: Low blood pressure | CV1: LIGHTHEADEDNESS/DIZZINESS | CW1: Dizziness, lightheadedness | CX1: THERMOREGULATION | CY1: Temperature regulation | CZ1: SECRETIONS (SWEATING) | DA1: Perspiration, sweating | DB1: FUNCTIONAL IMPACTS | DC1: Affects QoL for PwPD | DD1: FUNCTIONAL IMPACT physical & psychosocial | DE1: PHYSICAL FUNCTIONING | DF1: GENERAL MOBILITY | DG1: Affects mobility | DH1: Being able to move in bed | DI1: Affects turning in bed | DJ1: Affects getting up from chair/bed | DK1: Affects getting out of car | DL1: Affects standing | DM1: Affects ability to walk on uneven surfaces | DN1: Affects climbing stairs | DO1: Requires use of assistive device (walker, WC, scooter) | DP1: Affects bending over | DQ1: Affects reaching over head | DR1: Affects carrying beverage w/o spill | DS1: Breaking things or dropping things | DT1: SPORTS & EXERCISE | DU1: Affects ability to be active and exercise | DV1: Affects sports | DW1: Affects Tai Chi, yoga | DX1: Affects golf | DY1: Affects cycling | DZ1: Affects swimming | EA1: Affects ability to walk downhill | EB1: Affects hiking | EC1: FINE MOTOR ACTIVITIES | ED1: Loss of hand grip | EE1: Affects picking up small items | EF1: Affects ability to open containers | EG1: Affects handwriting | EH1: Affects painting, drawing | EI1: Affects iPad use | EJ1: Affects phone use | EK1: Affects computer use | EL1: WORK OF LIVING | EM1: Limits ability to do things (functional impact) | EN1: Makes everything harder/takes more effort | EO1: PHYSICAL COMFORT | EP1: Causes pain | EQ1: Feeling unwell | ER1: Ability to relax | ES1: SELF-CARE | ET1: Makes toileting difficult | EU1: Affects hygiene, dressing | EV1: Causes odor (urine/bowel incontinence) | EW1: Affects eating | EX1: SAFETY | EY1: Safety | EZ1: Falling | FA1: PSYCHOSOCIAL FUNCTIONING | FB1: INDEPENDENCE | FC1: Affects sense of self reliance/independence | FD1: Symptoms require planning prior to going out | FE1: Affects driving | FF1: Affects use of public transportation (train, bus) | FG1: Affects cooking | FH1: Affects housework/home maintenance | FI1: Affects shopping | FJ1: SELF-CONCEPT | FK1: Self-conscious, stigma, looking drunk, etc. | FL1: Feelings of embarrassment | FM1: Altered self-concept | FN1: Not having a "normal" life | FO1: Loss of professional identity | FP1: Decreased self worth | FQ1: Affects self-confidence | FR1: COPING | FS1: Fear - of Future and disease progression | FT1: Most frustrating symptoms | FU1: Symptoms are more debilitating | FV1: Reminds you that you have PD | FW1: Worried about cost of care or caregiving | FX1: Hard to cope with | FY1: Its unpredictable | FZ1: Affects general well being | GA1: Causes mental exhaustion | GB1: Causes stress, frustration, distress | GC1: Causes worry, fear | GD1: Lost what is most important | GE1: INTERPERSONAL INTERACTIONS | GF1: Affects social life | GG1: Affects relationships with others | GH1: Affects communication | GI1: Affects spouse/partner/CG (burden,QoL, sleep, injury, relationship as couple) | GJ1: Contributes to isolation | GK1: RESPONSIBILITIES | GL1: Affects caring for pets | GM1: Affects child-care, care of grandchildern | GN1: Affects paperwork/tasks | GO1: Affects finances | GP1: Affects career or employment | GQ1: PLEASURABLE ACTIVITIES | GR1: Loss of things you enjoy doing | GS1: Makes it difficulty to enjoy conversation | GT1: Affects travel plans | GU1: Affects hobbies | GV1: Affects photography | GW1: Affects gardening | GX1: Affects sewing/embroider | GY1: Affects ability to be still | GZ1: Affects watching tv | HA1: Affects playing musical instrument | HB1: Affects singing | HC1: Affects holiday traditions (Christmas decorations, etc) | HD1: Affects dining out | HE1: Affects reading | HF1: CONTEXTUAL FACTORS | HG1: Frequency & Severity | HH1: Biggest impact on daily life (dominates life) | HI1: most frequent/evident symptoms | HJ1: Looking for improved PD management | HK1: Want better treatment/cure | HL1: More education on medication, disease | HM1: Bothered by medication side effects | HN1: Limited by medication food-drug interactions | HO1: Reliance on Medication | HP1: Difficulty with off periods | HQ1: interested in homeopathy, accupuncture, TENS, hydrotherapy, etc. | HR1: Interested in diet & exercise as cure | HS1: Interested in stem cell | HT1: PD symptoms monitoring meter | HU1: Easy access to PD nurses, specialists, appointments, resources | HV1: Interested in self-management strategies | HW1: Limited information available for symptoms | HX1: Interested in PD research | HY1: Interested in drug research | HZ1: Early diagnosis | IA1: Interested in social support
A2: ID | B2: Role | C2: Age | D2: YRS_PD | E2: Improve1 | F2: Improve2 | G2: Improve3 | H2: RATIONALE
H3: Frequency | I3: =I4/116 -> 1.7% | K3: =K4/$H$1 -> 68.2% | L3: =L4/$H$1 -> 13.6% | M3: 0.0% | N3: 13.6% | O3: 0.0% | P3: 18.2% | Q3: 18.2% | R3: 0.0% | S3: 45.5% | T3: 13.6% | U3: 18.2% | V3: 0.0% | W3: 18.2% | X3: 4.5% | Y3: 22.7% | Z3: 22.7% | AA3: 18.2% | AB3: 0.0% | AC3: 13.6% | AD3: 4.5% | AE3: 0.0% | AF3: 22.7% | AG3: 4.5% | AH3: 18.2% | AI3: 4.5% | AJ3: 0.0% | AK3: 0.0% | AL3: 0.0% | AM3: 0.0% | AN3: 9.1% | AO3: 27.3% | AP3: 0.0% | AQ3: 22.7% | AR3: 22.7% | AS3: 13.6% | AT3: 4.5% | AU3: 9.1% | AV3: 0.0% | AW3: 9.1% | AX3: 9.1% | AY3: 4.5% | AZ3: 4.5% | BA3: 31.8% | BB3: 9.1% | BC3: 9.1% | BD3: 0.0% | BE3: 0.0% | BF3: 0.0% | BG3: 22.7% | BH3: 0.0% | BI3: 9.1% | BJ3: 9.1% | BK3: 13.6% | BL3: 0.0% | BM3: 9.1% | BN3: 9.1% | BO3: 9.1% | BP3: 0.0% | BQ3: 0.0% | BR3: 0.0% | BS3: 0.0% | BT3: 36.4% | BU3: 27.3% | BV3: 4.5% | BW3: 0.0% | BX3: =BX4/$H$1 -> 13.6% | BY3: 13.6% | BZ3: 0.0% | CA3: 13.6% | CB3: 4.5% | CC3: 4.5% | CD3: 0.0% | CE3: =CE4/$H$1 -> 9.1% | CF3: 0.0% | CG3: 0.0% | CH3: 0.0% | CI3: 0.0% | CJ3: 0.0% | CK3: 9.1% | CL3: 9.1% | CM3: 4.5% | CN3: 0.0% | CO3: 0.0% | CP3: 0.0% | CQ3: 0.0% | CR3: 0.0% | CS3: 0.0% | CT3: 0.0% | CU3: 0.0% | CV3: 4.5% | CW3: 4.5% | CX3: 0.0% | CY3: 0.0% | DA3: 4.5% | DB3: 0.0% | DC3: 22.7% | DD3: 0.0% | DE3: 100.0% | DF3: 81.8% | DG3: 81.8% | DH3: 0.0% | DI3: 0.0% | DJ3: 4.5% | DK3: 0.0% | DL3: 9.1% | DM3: 0.0% | DN3: 0.0% | DO3: 0.0% | DP3: 0.0% | DQ3: 0.0% | DR3: 0.0% | DS3: 0.0% | DT3: 27.3% | DU3: 27.3% | EC3: 18.2% | ED3: 0.0% | EE3: 0.0% | EF3: 0.0% | EG3: 9.1% | EH3: 0.0% | EI3: 4.5% | EJ3: 13.6% | EK3: 4.5% | EL3: 40.9% | EM3: =EM4/$H$1 -> 36.4% | EN3: =EN4/$H$1 -> 13.6% | EO3: 9.1% | EP3: 4.5% | EQ3: 4.5% | ER3: 0.0% | ES3: 27.3% | ET3: 0.0% | EU3: 4.5% | EV3: 0.0% | EW3: 22.7% | EX3: 50.0% | EY3: 50.0% | EZ3: 22.7% | FA3: 86.4% | FB3: 22.7% | FC3: 13.6% | FD3: 0.0% | FE3: 9.1% | FF3: 0.0% | FG3: 4.5% | FH3: 0.0% | FI3: 9.1% | FJ3: 27.3% | FK3: 9.1% | FL3: =FL4/$H$1 -> 0.0% | FM3: 0.0% | FN3: 0.0% | FO3: 0.0% | FP3: 0.0% | FQ3: 22.7% | FR3: 36.4% | FS3: 4.5% | FT3: 0.0% | FU3: 0.0% | FV3: 0.0% | FW3: 0.0% | FX3: 4.5% | FY3: 9.1% | FZ3: 0.0% | GA3: 4.5% | GB3: 0.0% | GC3: 18.2% | GD3: 4.5% | GE3: 68.2% | GF3: 22.7% | GG3: 9.1% | GH3: 45.5% | GI3: 22.7% | GJ3: 13.6% | GK3: 4.5% | GL3: 0.0% | GM3: 0.0% | GN3: 0.0% | GO3: 0.0% | GP3: 4.5% | GQ3: 27.3% | GR3: 22.7% | GS3: 0.0% | GT3: 0.0% | GU3: 27.3% | GV3: 0.0% | GW3: 0.0% | GX3: 0.0% | GY3: 0.0% | GZ3: =GZ4/$H$1 -> 0.0% | HA3: 4.5% | HB3: 0.0% | HC3: 0.0% | HD3: 0.0% | HE3: 0.0% | HF3: 0.0% | HG3: 22.7% | HH3: 18.2% | HI3: 4.5% | HJ3: 27.3% | HK3: 13.6% | HL3: 0.0% | HM3: 9.1% | HN3: 9.1% | HO3: 0.0% | HP3: 13.6% | HQ3: 0.0% | HR3: 0.0% | HS3: 0.0% | HT3: 0.0% | HU3: 0.0% | HV3: 0.0% | HW3: 0.0% | HX3: 0.0% | HY3: 0.0% | HZ3: 0.0% | IA3: 0.0%
H4: Counts | I4: =COUNTA(I10:I31) -> 2 | K4: =COUNTIFS(K10:K31,">0") -> 15 | L4: =COUNTIF(L10:L31,">0") -> 3 | M4: =COUNTA(M10:M1048576) -> 0 | N4: =COUNTA(N10:N1048576) -> 3 | O4: =COUNTA(O10:O1048576) -> 0 | P4: =COUNTIF(P10:P31,">0") -> 4 | Q4: =COUNTA(Q10:Q1048576) -> 4 | R4: =COUNTA(R10:R1048576) -> 0 | S4: =COUNTIF(S10:S31,">0") -> 10 | T4: =COUNTA(T10:T1048576) -> 3 | U4: =COUNTA(U10:U1048576) -> 4 | V4: =COUNTA(V10:V1048576) -> 0 | W4: =COUNTA(W10:W1048576) -> 4 | X4: =COUNTA(X10:X1048576) -> 1 | Y4: =COUNTIF(Y10:Y31,">0") -> 5 | Z4: =COUNTA(Z10:Z1048576) -> 5 | AA4: =COUNTIF(AA10:AA31,">0") -> 4 | AB4: =COUNTA(AB10:AB1048576) -> 0 | AC4: =COUNTA(AC10:AC1048576) -> 3 | AD4: =COUNTA(AD10:AD1048576) -> 1 | AE4: =COUNTA(AE10:AE1048576) -> 0 | AF4: =COUNTIF(AF10:AF31,">0") -> 5 | AG4: =COUNTA(AG10:AG1048576) -> 1 | AH4: 4 | AI4: 1 | AJ4: 0 | AK4: 0 | AL4: 0 | AM4: 0 | AN4: 2 | AO4: =COUNTIF(AO10:AO31,">0") -> 6 | AP4: =COUNTA(AP10:AP1048576) -> 0 | AQ4: =COUNTIF(AQ10:AQ31,">0") -> 5 | AR4: =COUNTA(AR10:AR1048576) -> 5 | AS4: =COUNTA(AS10:AS1048576) -> 3 | AT4: =COUNTA(AT10:AT1048576) -> 1 | AU4: =COUNTA(AU10:AU1048576) -> 2 | AV4: =COUNTA(AV10:AV1048576) -> 0 | AW4: =COUNTIF(AW10:AW31,">0") -> 2 | AX4: =COUNTA(AX10:AX1048576) -> 2 | AY4: =COUNTIF(AY10:AY31,">0") -> 1 | AZ4: =COUNTA(AZ10:AZ1048576) -> 1 | BA4: =COUNTIF(BA10:BA31,">0") -> 7 | BB4: =COUNTIF(BB10:BB31,">0") -> 2 | BC4: =COUNTA(BC10:BC1048576) -> 2 | BD4: =COUNTA(BD10:BD1048576) -> 0 | BE4: =COUNTA(BE10:BE1048576) -> 0 | BF4: =COUNTA(BF10:BF1048576) -> 0 | BG4: =COUNTIF(BG10:BG31,">0") -> 5 | BH4: =COUNTA(BH10:BH1048576) -> 0 | BI4: =COUNTA(BI10:BI1048576) -> 2 | BJ4: =COUNTA(BJ10:BJ1048576) -> 2 | BK4: =COUNTA(BK10:BK1048576) -> 3 | BL4: =COUNTA(BL10:BL1048576) -> 0 | BM4: =COUNTIF(BM10:BM31,">0") -> 2 | BN4: =COUNTIF(BN10:BN31,">0") -> 2 | BO4: =COUNTA(BO10:BO1048576) -> 2 | BP4: =COUNTIF(BP10:BP31,">0") -> 0 | BQ4: =COUNTA(BQ10:BQ1048576) -> 0 | BR4: =COUNTIF(BR10:BR31,">0") -> 0 | BS4: =COUNTA(BS10:BS1048576) -> 0 | BT4: =COUNTIF(BT10:BT31,">0") -> 8 | BU4: =COUNTA(BU10:BU1048576) -> 6 | BV4: =COUNTA(BV10:BV1048576) -> 1 | BW4: =COUNTA(BW10:BW1048576) -> 0 | BX4: =COUNTA(BX10:BX1048576) -> 3 | BY4: =COUNTIF(BY10:BY31,">0") -> 3 | BZ4: =COUNTA(BZ10:BZ1048576) -> 0 | CA4: =COUNTIF(CA10:CA31,">0") -> 3 | CB4: =COUNTA(CB10:CB1048576) -> 1 | CC4: =COUNTA(CC10:CC1048576) -> 1 | CD4: =COUNTA(CD10:CD1048576) -> 0 | CE4: =COUNTA(CE10:CE1048576) -> 2 | CF4: =COUNTIF(CF10:CF31,">0") -> 0 | CG4: =COUNTA(CG10:CG1048576) -> 0 | CH4: =COUNTA(CH10:CH1048576) -> 0 | CI4: =COUNTIF(CI10:CI31,">0") -> 0 | CJ4: =COUNTA(CJ10:CJ1048576) -> 0 | CK4: =COUNTIF(CK10:CK31,">0") -> 2 | CL4: =COUNTA(CL10:CL1048576) -> 2 | CM4: =COUNTA(CM10:CM1048576) -> 1 | CN4: =COUNTA(CN10:CN1048576) -> 0 | CO4: =COUNTIF(CO10:CO31,">0") -> 0 | CP4: =COUNTA(CP10:CP1048576) -> 0 | CQ4: =COUNTA(CQ10:CQ1048576) -> 0 | CR4: =COUNTIF(CR10:CR31,">0") -> 0 | CS4: =COUNTA(CS10:CS1048576) -> 0 | CT4: =COUNTIF(CT10:CT31,">0") -> 0 | CU4: =COUNTA(CU10:CU1048576) -> 0 | CV4: =COUNTIF(CV10:CV31,">0") -> 1 | CW4: =COUNTA(CW10:CW1048576) -> 1 | CX4: =COUNTIF(CX10:CX31,">0") -> 0 | CY4: =COUNTA(CY10:CY1048576) -> 0 | DA4: =COUNTA(DA10:DA1048576) -> 1 | DC4: =COUNTA(DC10:DC1048576) -> 5 | DD4: =COUNTIF(DD10:DD31,">0") -> 0 | DE4: =COUNTIF(DE10:DE31,">0") -> 22 | DF4: =COUNTIF(DF10:DF31,">0") -> 18 | DG4: =COUNTA(DG10:DG1048576) -> 18 | DH4: 0 | DI4: 0 | DJ4: 1 | DK4: 0 | DL4: 2 | DM4: 0 | DN4: 0 | DO4: 0 | DP4: 0 | DQ4: 0 | DR4: 0 | DS4: 0 | DT4: =COUNTIF(DT10:DT31,">0") -> 6 | DU4: =COUNTA(DU10:DU1048576) -> 6 | EC4: =COUNTIF(EC10:EC31,">0") -> 4 | ED4: =COUNTA(ED10:ED1048576) -> 0 | EE4: 0 | EF4: 0 | EG4: 2 | EH4: 0 | EI4: 1 | EJ4: 3 | EK4: 1 | EL4: =COUNTIF(EL10:EL31,">0") -> 9 | EM4: =COUNTA(EM10:EM1048576) -> 8 | EN4: =COUNTA(EN10:EN1048576) -> 3 | EO4: =COUNTIF(EO10:EO31,">0") -> 2 | EP4: =COUNTA(EP10:EP1048576) -> 1 | EQ4: =COUNTA(EQ10:EQ1048576) -> 1 | ER4: =COUNTA(ER10:ER1048576) -> 0 | ES4: =COUNTIF(ES10:ES31,">0") -> 6 | ET4: =COUNTA(ET10:ET1048576) -> 0 | EU4: =COUNTA(EU10:EU1048576) -> 1 | EV4: =COUNTA(EV10:EV1048576) -> 0 | EW4: =COUNTA(EW10:EW1048576) -> 5 | EX4: =COUNTIF(EX10:EX31,">0") -> 11 | EY4: =COUNTA(EY10:EY1048576) -> 11 | EZ4: =COUNTA(EZ10:EZ1048576) -> 5 | FA4: =COUNTIF(FA10:FA31,">0") -> 19 | FB4: =COUNTIF(FB10:FB31,">0") -> 5 | FC4: =COUNTA(FC10:FC1048576) -> 3 | FD4: 0 | FE4: 2 | FF4: 0 | FG4: 1 | FH4: 0 | FI4: 2 | FJ4: =COUNTIF(FJ10:FJ31,">0") -> 6 | FK4: =COUNTA(FK10:FK1048576) -> 2 | FL4: 0 | FM4: 0 | FN4: 0 | FO4: 0 | FP4: 0 | FQ4: 5 | FR4: =COUNTIF(FR10:FR31,">0") -> 8 | FS4: =COUNTA(FS10:FS1048576) -> 1 | FT4: 0 | FU4: 0 | FV4: 0 | FW4: 0 | FX4: 1 | FY4: 2 | FZ4: 0 | GA4: 1 | GB4: 0 | GC4: 4 | GD4: 1 | GE4: =COUNTIF(GE10:GE31,">0") -> 15 | GF4: =COUNTA(GF10:GF1048576) -> 5 | GG4: =COUNTA(GG10:GG1048576) -> 2 | GH4: =COUNTA(GH10:GH1048576) -> 10 | GI4: =COUNTA(GI10:GI1048576) -> 5 | GJ4: =COUNTA(GJ10:GJ1048576) -> 3 | GK4: =COUNTIF(GK10:GK31,">0") -> 1 | GL4: =COUNTA(GL10:GL1048576) -> 0 | GM4: =COUNTA(GM10:GM1048576) -> 0 | GN4: =COUNTA(GN10:GN1048576) -> 0 | GO4: =COUNTA(GO10:GO1048576) -> 0 | GP4: =COUNTA(GP10:GP1048576) -> 1 | GQ4: =COUNTIF(GQ10:GQ31,">0") -> 6 | GR4: =COUNTA(GR10:GR1048576) -> 5 | GS4: 0 | GT4: 0 | GU4: 6 | GV4: 0 | GW4: 0 | GX4: 0 | GY4: 0 | GZ4: 0 | HA4: 1 | HB4: 0 | HC4: 0 | HD4: 0 | HE4: 0 | HF4: =COUNTIF(HF10:HF31,">0") -> 0 | HG4: =COUNTIF(HG10:HG31,">0") -> 5 | HH4: =COUNTA(HH10:HH1048576) -> 4 | HI4: =COUNTA(HI10:HI1048576) -> 1 | HJ4: =COUNTIF(HJ10:HJ31,">0") -> 6 | HK4: =COUNTA(HK10:HK1048576) -> 3 | HL4: 0 | HM4: 2 | HN4: 2 | HO4: 0 | HP4: 3 | HQ4: 0 | HR4: 0 | HS4: 0 | HT4: 0 | HU4: 0 | HV4: 0 | HW4: 0 | HX4: 0 | HY4: 0 | HZ4: 0 | IA4: 0
H5: 1st | K5: =COUNTIF(K10:K31,"1") -> 0 | L5: 3 | M5: 0 | N5: 0 | O5: 0 | P5: 4 | Q5: 3 | R5: 0 | S5: 8 | T5: 2 | U5: 2 | V5: 0 | W5: 1 | X5: 1 | Y5: 5 | Z5: 1 | AA5: 4 | AB5: 0 | AC5: 0 | AD5: 0 | AE5: 0 | AF5: 3 | AG5: 0 | AH5: 1 | AI5: 0 | AJ5: 0 | AK5: 0 | AL5: 0 | AM5: 0 | AN5: 2 | AO5: 1 | AP5: 0 | AQ5: =COUNTIF(AQ10:AQ31,"1") -> 0 | AR5: 0 | AS5: 0 | AT5: 0 | AU5: 0 | AV5: 0 | AW5: 2 | AX5: 0 | AY5: 1 | AZ5: 0 | BA5: 3 | BB5: 2 | BC5: 0 | BD5: 0 | BE5: 0 | BF5: 0 | BG5: 3 | BH5: 0 | BI5: 1 | BJ5: 0 | BK5: 0 | BL5: 0 | BM5: 1 | BN5: 2 | BO5: 0 | BP5: 0 | BQ5: 0 | BR5: 0 | BS5: 0 | BT5: 6 | BU5: 1 | BV5: 1 | BW5: =COUNTIF(BW10:BW31,"1") -> 0 | BX5: 1 | BY5: 0 | BZ5: 0 | CA5: 2 | CB5: 0 | CC5: 0 | CD5: 0 | CE5: 1 | CF5: 0 | CG5: 0 | CH5: 0 | CI5: 0 | CJ5: 0 | CK5: 1 | CL5: 0 | CM5: 0 | CN5: 0 | CO5: 0 | CP5: 0 | CQ5: 0 | CR5: 0 | CS5: 0 | CT5: 0 | CU5: 0 | CV5: 1 | CW5: 0 | CX5: 0 | CY5: 0 | DA5: =COUNTIF(DA10:DA31,"1") -> 0 | DB5: 0 | DC5: 0 | DD5: 0 | DE5: 2 | DF5: 16 | DG5: 2 | DH5: 0 | DI5: 0 | DJ5: 0 | DK5: 0 | DL5: 0 | DM5: 0 | DN5: 0 | DO5: 0 | DP5: 0 | DQ5: 0 | DR5: 0 | DS5: 0 | DT5: 6 | DU5: 0 | EC5: =COUNTIF(EC10:EC31,"1") -> 2 | ED5: 0 | EE5: 0 | EF5: 0 | EG5: 0 | EH5: 0 | EI5: 0 | EJ5: 0 | EK5: 0 | EL5: 7 | EM5: 0 | EN5: 0 | EO5: 2 | EP5: 0 | EQ5: 0 | ER5: 0 | ES5: 6 | ET5: 0 | EU5: 0 | EV5: 0 | EW5: 0 | EX5: 6 | EY5: 0 | EZ5: 0 | FA5: 7 | FB5: 2 | FC5: 1 | FD5: 0 | FE5: 0 | FF5: 0 | FG5: 0 | FH5: 0 | FI5: =COUNTIF(FI10:FI31,"1") -> 0 | FJ5: 5 | FK5: 0 | FL5: 0 | FM5: 0 | FN5: 0 | FO5: 0 | FP5: 0 | FQ5: 1 | FR5: 6 | FS5: 0 | FT5: 0 | FU5: 0 | FV5: 0 | FW5: 0 | FX5: 0 | FY5: 0 | FZ5: 0 | GA5: 0 | GB5: 0 | GC5: 0 | GD5: 0 | GE5: 10 | GF5: 0 | GG5: 0 | GH5: 1 | GI5: 0 | GJ5: 0 | GK5: 1 | GL5: 0 | GM5: 0 | GN5: 0 | GO5: =COUNTIF(GO10:GO31,"1") -> 0 | GP5: 0 | GQ5: 1 | GR5: 0 | GS5: 0 | GT5: 0 | GU5: 0 | GV5: 0 | GW5: 0 | GX5: 0 | GY5: 0 | GZ5: 0 | HA5: 0 | HB5: 0 | HC5: 0 | HD5: 0 | HE5: 0 | HF5: 0 | HG5: 5 | HH5: 0 | HI5: 0 | HJ5: 3 | HK5: 1 | HL5: 0 | HM5: 1 | HN5: 0 | HO5: 0 | HP5: 1 | HQ5: 0 | HR5: 0 | HS5: 0 | HT5: 0 | HU5: =COUNTIF(HU10:HU31,"1") -> 0 | HV5: 0 | HW5: 0 | HX5: 0 | HY5: 0 | HZ5: 0 | IA5: 0
H6: 2nd | K6: =COUNTIF(K10:K32,"2") -> 6 | L6: =COUNTIF(L10:L32,"2") -> 0 | M6: 0 | N6: 1 | O6: 0 | P6: 0 | Q6: 0 | R6: 0 | S6: 2 | T6: 0 | U6: 1 | V6: 0 | W6: 0 | X6: 0 | Y6: 0 | Z6: 2 | AA6: 0 | AB6: 0 | AC6: 0 | AD6: 1 | AE6: 0 | AF6: 1 | AG6: 0 | AH6: 1 | AI6: 1 | AJ6: 0 | AK6: 0 | AL6: 0 | AM6: 0 | AN6: 0 | AO6: 4 | AP6: 0 | AQ6: 4 | AR6: 1 | AS6: 1 | AT6: 1 | AU6: 0 | AV6: 0 | AW6: 0 | AX6: 0 | AY6: 0 | AZ6: 1 | BA6: 3 | BB6: 0 | BC6: 0 | BD6: 0 | BE6: 0 | BF6: 0 | BG6: 2 | BH6: 0 | BI6: 0 | BJ6: 1 | BK6: 1 | BL6: 0 | BM6: 1 | BN6: 0 | BO6: 1 | BP6: 0 | BQ6: 0 | BR6: 0 | BS6: 0 | BT6: 2 | BU6: 2 | BV6: 0 | BW6: 0 | BX6: =COUNTIF(BX10:BX32,"2") -> 0 | BY6: 3 | BZ6: 0 | CA6: 1 | CB6: 0 | CC6: 0 | CD6: 0 | CE6: 0 | CF6: 0 | CG6: 0 | CH6: 0 | CI6: 0 | CJ6: 0 | CK6: 1 | CL6: 1 | CM6: 0 | CN6: 0 | CO6: 0 | CP6: 0 | CQ6: 0 | CR6: 0 | CS6: 0 | CT6: 0 | CU6: 0 | CV6: 0 | CW6: 0 | CX6: 0 | CY6: 0 | CZ6: 0 | DA6: 0 | DB6: 0 | DC6: 0 | DD6: 0 | DE6: 6 | DF6: 1 | DG6: 3 | DH6: 0 | DI6: 0 | DJ6: 0 | DK6: 0 | DL6: 0 | DM6: 0 | DN6: 0 | DO6: 0 | DP6: 0 | DQ6: 0 | DR6: 0 | DS6: 0 | DT6: 0 | DU6: 0 | DV6: 0 | DW6: 0 | DX6: 0 | DY6: 0 | DZ6: 0 | EA6: 0 | EB6: 0 | EC6: 1 | ED6: 0 | EE6: 0 | EF6: 0 | EG6: 0 | EH6: 0 | EI6: 0 | EJ6: =COUNTIF(EJ10:EJ32,"2") -> 0 | EK6: 0 | EL6: 2 | EM6: 0 | EN6: 0 | EO6: 0 | EP6: 0 | EQ6: 0 | ER6: 0 | ES6: 0 | ET6: 0 | EU6: 0 | EV6: 0 | EW6: 0 | EX6: 5 | EY6: 0 | EZ6: 1 | FA6: 5 | FB6: 3 | FC6: 0 | FD6: 0 | FE6: 0 | FF6: 0 | FG6: 0 | FH6: 0 | FI6: 0 | FJ6: 1 | FK6: 0 | FL6: 0 | FM6: 0 | FN6: 0 | FO6: 0 | FP6: 0 | FQ6: 0 | FR6: 2 | FS6: 0 | FT6: 0 | FU6: 0 | FV6: 0 | FW6: 0 | FX6: 0 | FY6: 0 | FZ6: 0 | GA6: 0 | GB6: 0 | GC6: 0 | GD6: 0 | GE6: 2 | GF6: 0 | GG6: 0 | GH6: 0 | GI6: 0 | GJ6: 0 | GK6: 0 | GL6: 0 | GM6: 0 | GN6: 0 | GO6: 0 | GP6: 0 | GQ6: 4 | GR6: 0 | GS6: 0 | GT6: 0 | GU6: 0 | GV6: =COUNTIF(GV10:GV32,"2") -> 0 | GW6: 0 | GX6: 0 | GY6: 0 | GZ6: 0 | HA6: 0 | HB6: 0 | HC6: 0 | HD6: 0 | HE6: 0 | HF6: 0 | HG6: 0 | HH6: 0 | HI6: 0 | HJ6: 2 | HK6: 0 | HL6: 0 | HM6: 1 | HN6: 0 | HO6: 0 | HP6: 1 | HQ6: 0 | HR6: 0 | HS6: 0 | HT6: 0 | HU6: 0 | HV6: 0 | HW6: 0 | HX6: 0 | HY6: 0 | HZ6: 0 | IA6: 0
H7: 3rd | K7: =COUNTIF(K10:K31,"3") -> 2 | L7: 0 | M7: 0 | N7: 1 | O7: 0 | P7: 0 | Q7: 0 | R7: 0 | S7: 0 | T7: 1 | U7: 0 | V7: 0 | W7: 1 | X7: 0 | Y7: 0 | Z7: 2 | AA7: 0 | AB7: 0 | AC7: 1 | AD7: 0 | AE7: 0 | AF7: 1 | AG7: 0 | AH7: 0 | AI7: 0 | AJ7: 0 | AK7: 0 | AL7: 0 | AM7: 0 | AN7: 0 | AO7: 0 | AP7: 0 | AQ7: =COUNTIF(AQ10:AQ31,"3") -> 1 | AR7: 1 | AS7: 0 | AT7: 0 | AU7: 0 | AV7: 0 | AW7: 0 | AX7: 0 | AY7: 0 | AZ7: 0 | BA7: 1 | BB7: 0 | BC7: 0 | BD7: 0 | BE7: 0 | BF7: 0 | BG7: 0 | BH7: 0 | BI7: 0 | BJ7: 1 | BK7: 1 | BL7: 0 | BM7: 0 | BN7: 0 | BO7: 0 | BP7: 0 | BQ7: 0 | BR7: 0 | BS7: 0 | BT7: 0 | BU7: 1 | BV7: 0 | BW7: =COUNTIF(BW10:BW31,"3") -> 0 | BX7: 0 | BY7: 0 | BZ7: 0 | CA7: 0 | CB7: 0 | CC7: 1 | CD7: 0 | CE7: 1 | CF7: 0 | CG7: 0 | CH7: 0 | CI7: 0 | CJ7: 0 | CK7: 0 | CL7: 0 | CM7: 1 | CN7: 0 | CO7: 0 | CP7: 0 | CQ7: 0 | CR7: 0 | CS7: 0 | CT7: 0 | CU7: 0 | CV7: 0 | CW7: 1 | CX7: 0 | CY7: 0 | DA7: =COUNTIF(DA10:DA31,"3") -> 0 | DB7: 0 | DC7: 0 | DD7: 0 | DE7: 7 | DF7: 1 | DG7: 1 | DH7: 0 | DI7: 0 | DJ7: 0 | DK7: 0 | DL7: 0 | DM7: 0 | DN7: 0 | DO7: 0 | DP7: 0 | DQ7: 0 | DR7: 0 | DS7: 0 | DT7: 0 | DU7: 0 | EC7: =COUNTIF(EC10:EC31,"3") -> 1 | ED7: 0 | EE7: 0 | EF7: 0 | EG7: 0 | EH7: 0 | EI7: 0 | EJ7: 0 | EK7: 0 | EL7: 0 | EM7: 0 | EN7: 0 | EO7: 0 | EP7: 0 | EQ7: 0 | ER7: 0 | ES7: 0 | ET7: 0 | EU7: 0 | EV7: 0 | EW7: 1 | EX7: 0 | EY7: 0 | EZ7: 1 | FA7: 3 | FB7: 0 | FC7: 0 | FD7: 0 | FE7: 0 | FF7: 0 | FG7: 0 | FH7: 0 | FI7: =COUNTIF(FI10:FI31,"3") -> 0 | FJ7: 0 | FK7: 0 | FL7: 0 | FM7: 0 | FN7: 0 | FO7: 0 | FP7: 0 | FQ7: 0 | FR7: 0 | FS7: 0 | FT7: 0 | FU7: 0 | FV7: 0 | FW7: 0 | FX7: 0 | FY7: 0 | FZ7: 0 | GA7: 0 | GB7: 0 | GC7: 0 | GD7: 0 | GE7: 1 | GF7: 0 | GG7: 0 | GH7: 1 | GI7: 0 | GJ7: 0 | GK7: 0 | GL7: 0 | GM7: 0 | GN7: 0 | GO7: =COUNTIF(GO10:GO31,"3") -> 0 | GP7: 0 | GQ7: 1 | GR7: 0 | GS7: 0 | GT7: 0 | GU7: 0 | GV7: 0 | GW7: 0 | GX7: 0 | GY7: 0 | GZ7: 0 | HA7: 0 | HB7: 0 | HC7: 0 | HD7: 0 | HE7: 0 | HF7: 0 | HG7: 0 | HH7: 0 | HI7: 0 | HJ7: 1 | HK7: 0 | HL7: 0 | HM7: 0 | HN7: 0 | HO7: 0 | HP7: 0 | HQ7: 0 | HR7: 0 | HS7: 0 | HT7: 0 | HU7: =COUNTIF(HU10:HU31,"3") -> 0 | HV7: 0 | HW7: 0 | HX7: 0 | HY7: 0 | HZ7: 0 | IA7: 0
H9: %
A10: 79578557 | B10: I am a carer/partner/family member or friend | C10: 60-69 | D10: 11-20 years ago | E10: Alleviate Dementia | F10: Reduce switching off | H10: PDD is the hardest thing for both patient and carer to cope with. It eliminates the patients ability to do almost any simple task such as using a phone or kniting or cooking. It redices the quality of life extremely for the patient and makes the life of the carer very hard. Switching off in an unpredicable mode means even simple tasks like shopping become hazardous. To some extent Oppicapone has helped us with this. | K10: =COUNTIF(L10:AE10,">0") -> 0 | L10: =COUNTA(M10:O10) -> 0 | P10: =COUNTA(Q10:R10) -> 0 | S10: =COUNTA(T10:X10) -> 0 | Y10: =COUNTA(Z10) -> 0 | AA10: =COUNTA(AB10:AE10) -> 0 | AF10: =COUNTA(AG10:AN10) -> 1 | AN10: 1 | AO10: =COUNTIF(AP10:AZ10,">0") -> 0 | AQ10: =COUNTA(AR10:AV10) -> 0 | AW10: =COUNTA(AX10) -> 0 | AY10: =COUNTA(AZ10) -> 0 | BA10: =COUNTIF(BB10:BL10,">0") -> 0 | BB10: =COUNTA(BC10:BF10) -> 0 | BG10: =COUNTA(BH10:BL10) -> 0 | BM10: =COUNTIF(BN10:BS10,">0") -> 0 | BN10: =COUNTA(BO10) -> 0 | BP10: =COUNTA(BQ10) -> 0 | BR10: =COUNTA(BS10) -> 0 | BT10: =COUNTA(BU10:BX10) -> 0 | BY10: =COUNTIF(BZ10:CJ10,">0") -> 0 | CA10: =COUNTA(CB10:CE10) -> 0 | CF10: =COUNTA(CG10:CH10) -> 0 | CI10: =COUNTA(CJ10) -> 0 | CK10: =COUNTA(CL10:CN10) -> 0 | CR10: =COUNTA(CS10) -> 0 | CT10: =COUNTA(CU10) -> 0 | CV10: =COUNTA(CW10) -> 0 | CX10: =COUNTA(CY10) -> 0 | DC10: + | DE10: =COUNTIF(DF10:EZ10,">0") -> 3 | DF10: =COUNTA(DG10:DS10) -> 0 | DT10: =COUNTA(DU10) -> 0 | EC10: =COUNTA(ED10:EK10) -> 2 | EG10: + | EJ10: + | EL10: =COUNTA(EM10:EN10) -> 2 | EM10: + | EN10: + | EO10: =COUNTA(EP10:ER10) -> 0 | ES10: =COUNTA(ET10:EW10) -> 0 | EX10: =COUNTA(EY10:EZ10) -> 1 | EY10: + | FA10: =COUNTIF(FB10:HE10,">0") -> 4 | FB10: =COUNTA(FC10:FI10) -> 2 | FG10: + | FI10: + | FJ10: =COUNTA(FK10:FQ10) -> 0 | FR10: =COUNTA(FS10:GD10) -> 2 | FX10: + | FY10: + | GE10: =COUNTA(GF10:GJ10) -> 1 | GI10: + | GK10: =COUNTA(GL10:GP10) -> 0 | GQ10: =COUNTA(GR10:HE10) -> 1 | GU10: + | HG10: =COUNTA(HH10:HI10) -> 1 | HH10: + | HJ10: =COUNTA(HK10:IA10) -> 1 | HP10: 2
A11: 79591574 | B11: I am a carer/partner/family member or friend | C11: Over 80 | D11: 11-20 years ago | E11: Stiffness/rigidity | F11: Tremor | G11: Speech and swollowing | H11: 1 and 2 greatly affect mobility. 3 make it difficult to eat and difficult to understand speech. | K11: 4 | L11: 0 | P11: 1 | Q11: 1 | S11: 0 | Y11: 1 | Z11: 2 | AA11: 0 | AF11: 0 | AO11: 0 | AQ11: 0 | AW11: 0 | AY11: 0 | BA11: 0 | BB11: 0 | BG11: 0 | BM11: 0 | BN11: 0 | BP11: 0 | BR11: 0 | BT11: 1 | BU11: 3 | BY11: 2 | CA11: 1 | CE11: 3 | CF11: 0 | CI11: 0 | CK11: =COUNTA(CL11:CN11) -> 0 | CR11: 0 | CT11: 0 | CV11: 0 | CX11: 0 | DE11: 2 | DF11: 1 | DG11: + | DT11: 0 | EC11: 0 | EL11: 0 | EO11: 0 | ES11: 1 | EW11: + | EX11: 0 | FA11: 1 | FB11: 0 | FJ11: 0 | FR11: 0 | GE11: 1 | GH11: + | GK11: 0 | GQ11: 0 | HG11: 0 | HJ11: 0
A12: 79592508 | B12: I am a carer/partner/family member or friend | C12: 70-79 | D12: 11-20 years ago | E12: S peach and swallow | F12: Blethrospasm | G12: Tremor | H12: Blind a lot of the time due to inability to open eye lids. Having to have soft diet,risk of choking and poor voice volume making any communication difficult. Tremor preventing feeding using Ipad ,phone and computer impossible | K12: 4 | L12: 0 | P12: 0 | S12: 0 | Y12: 1 | Z12: 3 | AA12: 1 | AD12: 2 | AF12: 0 | AO12: 0 | AQ12: 0 | AW12: 0 | AY12: 0 | BA12: 1 | BB12: 1 | BC12: + | BG12: 0 | BM12: 0 | BN12: 0 | BP12: 0 | BR12: 0 | BT12: 2 | BU12: + | BX12: + | BY12: 2 | CA12: 2 | CB12: + | CE12: 1 | CF12: 0 | CI12: 0 | CK12: 0 | CR12: 0 | CT12: 0 | CV12: 0 | CX12: 0 | DE12: 4 | DF12: 0 | DT12: 0 | EC12: 3 | EI12: + | EJ12: + | EK12: + | EL12: 1 | EM12: + | EO12: 0 | ES12: 1 | EW12: + | EX12: 1 | EY12: + | FA12: 1 | FB12: 0 | FJ12: 0 | FR12: 0 | GE12: 1 | GH12: + | GK12: 0 | GQ12: 0 | HG12: 1 | HH12: + | HJ12: 0
A13: 79607240 | B13: I am a carer/partner/family member or friend | C13: 60-69 | D13: 11-20 years ago | E13: Remove tremor | F13: No involuntary movement | G13: Stiffness | H13: Moving about would be easier, getting in and out of the car is increasingly difficult . | K13: 4 | L13: 0 | P13: 1 | Q13: + | S13: 0 | Y13: 1 | Z13: 1 | AA13: 1 | AC13: + | AF13: 0 | AO13: 0 | AQ13: 0 | AW13: 0 | AY13: 0 | BA13: 0 | BB13: 0 | BG13: 0 | BM13: 0 | BN13: 0 | BP13: 0 | BR13: 0 | BT13: 0 | BY13: 0 | CA13: 0 | CF13: 0 | CI13: 0 | CK13: 0 | CR13: 0 | CT13: 0 | CV13: 0 | CX13: 0 | DE13: 2 | DF13: 1 | DG13: + | DT13: 0 | EC13: 0 | EL13: 1 | EM13: + | EO13: 0 | ES13: 0 | EX13: 0 | FA13: 0 | FB13: 0 | FJ13: 0 | FR13: 0 | GE13: 0 | GK13: 0 | GQ13: 0 | HG13: 1 | HH13: + | HJ13: 0
A14: 79702918 | B14: I am a carer/partner/family member or friend | C14: 60-69 | D14: 11-20 years ago | E14: voice | F14: fatigue | G14: freezing | H14: Since having DBS her voice has deterioated and her handwriting has become completely illegible, fatigue is almost constant. Freezing before was seldom but now is all too often. | K14: 2 | L14: 0 | P14: 0 | S14: 1 | T14: 3 | Y14: 0 | AA14: 0 | AF14: 0 | AO14: 0 | AQ14: 0 | AW14: 0 | AY14: 0 | BA14: 2 | BB14: 0 | BG14: 1 | BK14: 2 | BM14: 0 | BN14: 0 | BP14: 0 | BR14: 0 | BT14: 1 | BV14: 1 | BY14: 0 | CA14: 0 | CF14: 0 | CI14: 0 | CK14: 0 | CR14: 0 | CT14: 0 | CV14: 0 | CX14: 0 | DE14: 2 | DF14: 1 | DG14: + | DT14: 0 | EC14: 1 | EG14: + | EL14: 0 | EO14: 0 | ES14: 0 | EX14: 0 | FA14: 1 | FB14: 0 | FJ14: 0 | FR14: 0 | GE14: 1 | GH14: + | GK14: 0 | GQ14: 0 | HG14: 1 | HI14: + | HJ14: 0
A15: 80922488 | B15: I am a carer/partner/family member or friend | C15: 50-59 | D15: 11-20 years ago | E15: Being able to talk louder | F15: Stop the shakes | G15: StopStop losing balance | H15: Sometimes it is difficult to hear my relative talking because she can't speak in a normal tone of voice. This has affected her confidence and she is not as talkative as she used to. She has always had a very good sense of humour, making jokes with the family but she has now become a listener and doesn't intervene much when we are all in a conversation. Besides, when talking over the phone sometimes I struggle at listening to her due to her low tone of voice. Her mobility has also been affected and she is prone to falls. For that reason, if I am walking with her I always hold her arm or she holds mine to prevent falls on the street. She has experienced accidents at home where she has lost balance and has had a fall. This has lead to bruises. Besides, when she sits on a chair sometimes with the shakes she ends up in an uncomfortable position and we have to help her to go back to a more comfortable position. | K15: 4 | L15: 0 | P15: 0 | S15: 1 | W15: 3 | Y15: 1 | Z15: 2 | AA15: 0 | AF15: 0 | AO15: 0 | AQ15: 0 | AW15: 0 | AY15: 0 | BA15: 1 | BB15: 0 | BG15: 1 | BI15: + | BM15: 0 | BN15: 0 | BP15: 0 | BR15: 0 | BT15: 1 | BX15: 1 | BY15: 0 | CA15: 0 | CF15: 0 | CI15: 0 | CK15: 0 | CR15: 0 | CT15: 0 | CV15: 0 | CX15: 0 | DE15: 4 | DF15: 1 | DG15: + | DT15: 0 | EC15: 1 | EJ15: + | EL15: 1 | EM15: + | EO15: 0 | ES15: 0 | EX15: 2 | EY15: + | EZ15: + | FA15: 3 | FB15: 0 | FJ15: 2 | FK15: + | FQ15: + | FR15: 1 | GC15: + | GE15: 4 | GF15: + | GG15: + | GH15: + | GI15: + | GK15: 0 | GQ15: 0 | HG15: 0 | HJ15: 0
A16: 80930614 | B16: I am a carer/partner/family member or friend | C16: 60-69 | D16: 11-20 years ago | E16: Medication lasting longer | F16: Being able to sleep better | G16: Medication that’s but affected by foid | H16: Medication only lasts 3 hours max sometimes just stops working g fir no apparent reason, difficult to eat out as medication affected by large meal it protein. Cannot sleep after4am but falls asleep at 8 pm seriously affects social life . | K16: 0 | L16: 0 | P16: 0 | S16: 0 | Y16: 0 | AA16: 0 | AF16: 0 | AO16: 0 | AQ16: 0 | AW16: 0 | AY16: 0 | BA16: 0 | BB16: 0 | BG16: 0 | BM16: 2 | BN16: 1 | BO16: 2 | BP16: 0 | BR16: 0 | BT16: 0 | BY16: 0 | CA16: 0 | CF16: 0 | CI16: 0 | CK16: 0 | CR16: 0 | CT16: 0 | CV16: 0 | CX16: 0 | DE16: 2 | DF16: 0 | DT16: 0 | EC16: 0 | EL16: 0 | EO16: 0 | ES16: 1 | EW16: 3 | EX16: 0 | FA16: 1 | FB16: 0 | FJ16: 0 | FR16: 0 | GE16: 3 | GF16: + | GI16: + | GJ16: + | GK16: 0 | GQ16: 0 | HG16: 0 | HJ16: 3 | HK16: + | HN16: + | HP16: 1
A17: 80931292 | B17: I am a carer/partner/family member or friend | C17: 70-79 | D17: 11-20 years ago | E17: Motor functions - shuffling | F17: Limb weakness | G17: shaking | H17: My father finds it hard to walk around for long period of time because he gets too tired and when he is walking it is more of a shuffle. This is hard for him because he used to love walking through the Lake District and know its hard for him to go for even a 5-10 minute walk. He also finds the shaking tough to deal with, especially when he is eating. He used to love painting, which was fine when the shaking was only in his left arm, but now it is in his right arm and he can't paint like he used to. | K17: 5 | L17: 1 | N17: + | P17: 0 | S17: 1 | U17: 1 | Y17: 1 | Z17: 3 | AA17: 0 | AF17: 0 | AO17: 0 | AQ17: 0 | AW17: 0 | AY17: 0 | BA17: 2 | BB17: 0 | BG17: 2 | BJ17: 2 | BK17: + | BM17: 0 | BN17: 0 | BP17: 0 | BR17: 0 | BT17: 0 | BY17: 0 | CA17: 0 | CF17: 0 | CI17: 0 | CK17: 0 | CR17: 0 | CT17: 0 | CV17: 0 | CX17: 0 | DC17: + | DE17: 4 | DF17: 1 | DG17: + | DT17: 1 | DU17: + | EC17: 0 | EL17: 1 | EM17: + | EO17: 0 | ES17: 1 | EW17: + | EX17: 0 | FA17: 1 | FB17: 0 | FJ17: 0 | FR17: 0 | GE17: 0 | GK17: 0 | GQ17: 2 | GR17: + | GU17: + | HG17: 0 | HJ17: 0
A18: 80941519 | B18: I am a carer/partner/family member or friend | C18: 70-79 | D18: 11-20 years ago | E18: P.D.related Dementia | F18: Mobility .... being able to walk again | G18: Restoration of Fine Motor Skills | H18: 1: The DEMENTIA has caused loss of memory, logic, common sense, imagination, purpose, motivation, enthusiasm, dignity, self .... and loss of my beloved husband who I watch gradually deteriorating, physically and mentally, becoming more confused and anxious and part of his own world. 2: Losing his MOBILITY, which has caused innumerable falls and inability to now walk or stand for longer than a minute, has him wheelchair-bound, with pressure sores, totally dependant on me ; this loss of his independence has had a deep psychological effect on him. 3: Loss of his FINE MOTOR SKILLS has meant an end to his career as a musician, a profession he dearly loved and at which he excelled. Along with his reduced lung function, difficulty forming an embouchure and double vision, if his fine motor skills were restored, the psychological effects of being able to play again would be enormous. | K18: 4 | L18: 1 | N18: 3 | P18: 0 | S18: 1 | U18: 2 | Y18: 0 | AA18: 0 | AF18: 3 | AG18: + | AH18: + | AN18: 1 | AO18: 2 | AQ18: 3 | AR18: + | AS18: + | AU18: + | AW18: 1 | AX18: + | AY18: 0 | BA18: 1 | BB18: 1 | BC18: + | BG18: 0 | BM18: 0 | BN18: 0 | BP18: 0 | BR18: 0 | BT18: 0 | BY18: 0 | CA18: 0 | CF18: 0 | CI18: 0 | CK18: 0 | CR18: 0 | CT18: 0 | CV18: 0 | CX18: 0 | DE18: 5 | DF18: 3 | DG18: 2 | DJ18: + | DL18: + | DT18: 0 | EC18: 0 | EL18: 1 | EM18: + | EO18: 1 | EQ18: + | ES18: 0 | EX18: 2 | EY18: + | EZ18: + | FA18: 5 | FB18: 1 | FC18: + | FJ18: 1 | FQ18: + | FR18: 1 | GD18: + | GE18: 1 | GI18: + | GK18: 0 | GQ18: 3 | GR18: + | GU18: + | HA18: + | HG18: 0 | HJ18: 0
A19: 80950681 | B19: I am a carer/partner/family member or friend | C19: 70-79 | D19: 11-20 years ago | E19: confusion | F19: hallucinations | G19: mobility | H19: Because as her carer I have a real worry that the first two symptoms are a precurser for real dememntia, as uffered by her elder sister; her mobility because she is prone to falls and may do real damage at some sstage | K19: 0 | L19: 0 | P19: 0 | S19: 0 | Y19: 0 | AA19: 0 | AF19: 1 | AH19: 1 | AO19: 2 | AQ19: 0 | AW19: 0 | AY19: 1 | AZ19: 2 | BA19: 0 | BB19: 0 | BG19: 0 | BM19: 0 | BN19: 0 | BP19: 0 | BR19: 0 | BT19: 0 | BY19: 0 | CA19: 0 | CF19: 0 | CI19: 0 | CK19: 0 | CR19: 0 | CT19: 0 | CV19: 0 | CX19: 0 | DE19: 3 | DF19: 1 | DG19: 3 | DT19: 0 | EC19: 0 | EL19: 0 | EO19: 0 | ES19: 0 | EX19: 2 | EY19: + | EZ19: + | FA19: 1 | FB19: 0 | FJ19: 0 | FR19: 2 | FS19: + | GC19: + | GE19: 0 | GK19: 0 | GQ19: 0 | HG19: 0 | HJ19: 0
A20: 80957927 | B20: I am a carer/partner/family member or friend | C20: 60-69 | D20: 11-20 years ago | E20: Freezing | F20: Depression | G20: Falling | H20: They are the most worrisome | K20: 2 | L20: 0 | P20: 0 | S20: 1 | T20: 1 | Y20: 0 | AA20: 0 | AF20: 0 | AO20: 2 | AQ20: 2 | AR20: + | AT20: 2 | AW20: 0 | AY20: 0 | BA20: 0 | BB20: 0 | BG20: 0 | BM20: 0 | BN20: 0 | BP20: 0 | BR20: 0 | BT20: 0 | BY20: 0 | CA20: 0 | CF20: 0 | CI20: 0 | CK20: 0 | CR20: 0 | CT20: 0 | CV20: 0 | CX20: 0 | DE20: 3 | DF20: 1 | DG20: + | DT20: 0 | EC20: 0 | EL20: 0 | EO20: 0 | ES20: 0 | EX20: 2 | EY20: + | EZ20: 3 | FA20: 1 | FB20: 0 | FJ20: 0 | FR20: 1 | GC20: + | GE20: 0 | GK20: 0 | GQ20: 0 | HG20: 0 | HJ20: 0
A21: 80965471 | B21: I am a carer/partner/family member or friend | C21: 70-79 | D21: 11-20 years ago | E21: Speech | F21: Dexterity | G21: Less medication | H21: My husband has a DBS which has badly affected the level of his voice to bearly a whisper and he has to think about what he wants to say before and needs extra time to actually get his words out. The lack of dexterity in his hands has stopped him fishing, doing car restoration and some DIY. | K21: 2 | L21: 1 | N21: 2 | P21: 0 | S21: 0 | Y21: 0 | AA21: 0 | AF21: 0 | AO21: 0 | AQ21: 0 | AW21: 0 | AY21: 0 | BA21: 0 | BB21: 0 | BG21: 0 | BM21: 0 | BN21: 0 | BP21: 0 | BR21: 0 | BT21: 2 | BU21: 1 | BX21: + | BY21: 0 | CA21: 0 | CF21: 0 | CI21: 0 | CK21: 0 | CR21: 0 | CT21: 0 | CV21: 0 | CX21: 0 | DE21: 3 | DF21: 1 | DG21: + | DT21: 1 | DU21: + | EC21: 0 | EL21: 0 | EO21: 0 | ES21: 1 | EU21: + | EX21: 0 | FA21: 3 | FB21: 0 | FJ21: 0 | FR21: 0 | GE21: 1 | GH21: 3 | GK21: 0 | GQ21: 2 | GR21: + | GU21: + | HG21: 0 | HJ21: 0
A22: 80988974 | B22: I am a carer/partner/family member or friend | C22: 60-69 | D22: 11-20 years ago | E22: Walking | F22: Speech | G22: Dizzyness | H22: These get mum down the most. She lacks quality of life as she is so immobile and the dizzy spells from the meds mean she is stuck in her chair most of the time. Also, she lacks confidence as she can not talk properly anymore. | K22: 2 | L22: 0 | P22: 0 | S22: 1 | U22: 1 | Y22: 0 | AA22: 0 | AF22: 0 | AO22: 0 | AQ22: 0 | AW22: 0 | AY22: 0 | BA22: 0 | BB22: 0 | BG22: 0 | BM22: 0 | BN22: 0 | BP22: 0 | BR22: 0 | BT22: 1 | BU22: 2 | BY22: 0 | CA22: 0 | CF22: 0 | CI22: 0 | CK22: 0 | CR22: 0 | CT22: 0 | CV22: 1 | CW22: 3 | CX22: 0 | DC22: + | DE22: 4 | DF22: 1 | DG22: + | DT22: 1 | DU22: + | EC22: 0 | EL22: 1 | EM22: + | EO22: 0 | ES22: 0 | EX22: 1 | EY22: + | FA22: 2 | FB22: 0 | FJ22: 1 | FQ22: + | FR22: 0 | GE22: 2 | GF22: + | GH22: + | GK22: 0 | GQ22: 0 | HG22: 0 | HJ22: 0
A23: 81023885 | B23: I am a carer/partner/family member or friend | C23: 50-59 | D23: 11-20 years ago | E23: Frequency reduction/elimination of "freezing" | F23: Frequency reduction/elimination of falls | G23: Reduction in level of dyskinesia | H23: 1. It's my wife who has Parkinson's and, to her, freezing is a multi-faceted problem. Firstly, it's the "prospect" of freezing which worries her and causes her enough anxiety to (sometimes) postpone or delay going out anywhere. The thought of her freezing in a public place, or trying to cross the road, for example, can sometimes, although not always, by any means, fill her with dread. It's as if sometimes she "senses" the possibility of freezing. 2. She falls quite frequently. We try to implement the various techniques we've read, about or been shown, but it's really difficult when turning, reaching or stepping forward or back are spontaneous actions, therefore she/we forget the recommended technique, and down she goes! 3. Usually her medication is really well controlled and it's effective but just occasionally the dyskinesia can be quite severe, and for no apparent reason. It's usually accompanied by increased anxiety levels and body heat/perspiring. We call it her "summerising" | K23: 4 | L23: 0 | P23: 0 | S23: 1 | T23: 1 | Y23: 0 | AA23: 1 | AC23: 3 | AF23: 0 | AO23: 1 | AQ23: 2 | AR23: + | AU23: + | AW23: 0 | AY23: 0 | BA23: 0 | BB23: 0 | BG23: 0 | BM23: 0 | BN23: 0 | BP23: 0 | BR23: 0 | BT23: 0 | BY23: 0 | CA23: 0 | CF23: 0 | CI23: 0 | CK23: 0 | CR23: 0 | CT23: 0 | CV23: 0 | CX23: 0 | DA23: + | DE23: 4 | DF23: 1 | DG23: + | DT23: 1 | DU23: + | EC23: 0 | EL23: 0 | EO23: 0 | ES23: 0 | EX23: 2 | EY23: + | EZ23: 2 | FA23: 3 | FB23: 0 | FJ23: 1 | FQ23: + | FR23: 1 | GC23: + | GE23: 1 | GJ23: + | GK23: 0 | GQ23: 0 | HG23: 0 | HJ23: 2 | HK23: + | HP23: +
A24: 81027615 | B24: I am a carer/partner/family member or friend | C24: 60-69 | D24: 11-20 years ago | E24: Communication | F24: Mobility | G24: Drooling | I24: + | K24: 0 | L24: 0 | P24: 0 | S24: 0 | Y24: 0 | AA24: 0 | AF24: 0 | AO24: 0 | AQ24: 0 | AW24: 0 | AY24: 0 | BA24: 0 | BB24: 0 | BG24: 0 | BM24: 0 | BN24: 0 | BP24: 0 | BR24: 0 | BT24: 0 | BY24: 2 | CA24: 1 | CC24: 3 | CF24: 0 | CI24: 0 | CK24: 0 | CR24: 0 | CT24: 0 | CV24: 0 | CX24: 0 | DE24: 2 | DF24: 1 | DG24: 2 | DT24: 0 | EC24: 0 | EL24: 0 | EO24: 0 | ES24: 0 | EX24: 0 | FA24: 2 | FB24: 0 | FJ24: 0 | FR24: 0 | GE24: 1 | GH24: 1 | GK24: 0 | GQ24: 0 | HG24: 0 | HJ24: 0
A25: 81026988 | B25: I am a carer/partner/family member or friend | C25: 60-69 | D25: 11-20 years ago | E25: Side effects of Parkinson's drugs | F25: Being more motivated | G25: Improve his mood | H25: The effects of the medication are worse than the symptoms of Parkinson's in that my husband becomes argumentative ,his balance is not good, he has dyskenesia and gives the impression of being drunk. He is not very motivated to help himself and is constantly low in mood and doesn't speak very much. | K25: 2 | L25: 0 | P25: 0 | S25: 1 | W25: + | Y25: 0 | AA25: 1 | AC25: + | AF25: 0 | AO25: 4 | AQ25: 2 | AR25: 3 | AS25: 2 | AW25: 1 | AX25: + | AY25: 0 | BA25: 0 | BB25: 0 | BG25: 0 | BM25: 0 | BN25: 0 | BP25: 0 | BR25: 0 | BT25: 0 | BY25: 0 | CA25: 0 | CF25: 0 | CI25: 0 | CK25: 0 | CR25: 0 | CT25: 0 | CV25: 0 | CX25: 0 | DE25: 1 | DF25: 0 | DT25: 0 | EC25: 0 | EL25: 0 | EO25: 0 | ES25: 0 | EX25: 1 | EY25: + | FA25: 2 | FB25: 0 | FJ25: 1 | FK25: + | FR25: 0 | GE25: 1 | GH25: + | GK25: 0 | GQ25: 0 | HG25: 0 | HJ25: 1 | HM25: 1
A26: 81029533 | B26: I am a carer/partner/family member or friend | C26: 60-69 | D26: 11-20 years ago | E26: Stiffness and associated pain when waking in the morning. | F26: Loss of spontaneous activities. Slower thought processes. | G26: Strength loss and pain while standing and walking | H26: My wife has had DBS. She is using much less medication. It has improved her standard of life a great deal. Mornings start with pain with stiff back but it loosens when meds kick in. She used rise early to drive to work an 10 hour day away from home. Balance has been damaged so she has always to think about the next movement. This is mentally exhausting. Wandering about shopping and gardening are very restricted due to pain. | K26: 3 | L26: 0 | P26: 1 | Q26: 1 | S26: 2 | U26: + | W26: + | Y26: 0 | AA26: 0 | AF26: 2 | AH26: + | AI26: 2 | AO26: 0 | AQ26: 0 | AW26: 0 | AY26: 0 | BA26: 3 | BB26: 0 | BG26: 2 | BI26: 1 | BJ26: 3 | BM26: 0 | BN26: 0 | BP26: 0 | BR26: 0 | BT26: 0 | BY26: 0 | CA26: 0 | CF26: 0 | CI26: 0 | CK26: 0 | CR26: 0 | CT26: 0 | CV26: 0 | CX26: 0 | DC26: + | DE26: 5 | DF26: 2 | DG26: + | DL26: + | DT26: 1 | DU26: + | EC26: 0 | EL26: 2 | EM26: + | EN26: + | EO26: 1 | EP26: + | ES26: 0 | EX26: 1 | EY26: + | FA26: 4 | FB26: 2 | FE26: + | FI26: + | FJ26: 0 | FR26: 1 | GA26: + | GE26: 0 | GK26: 1 | GP26: + | GQ26: 2 | GR26: + | GU26: + | HG26: 0 | HJ26: 0
A27: 81115656 | B27: I am a carer/partner/family member or friend | C27: 60-69 | D27: 11-20 years ago | E27: Rigidity | F27: movement ability less varied | H27: His fist symptoms were in 1994 with hand walking across bed. His main issue is the rigidity of his muscles [he had polio age six months, Post Polio Syndrome diagnosed as well] His movement ability varies throughout the day from his norm to almost not moving barely able to speak. His meals are between medications. There is no set pattern some days better than others. | K27: 2 | L27: 0 | P27: 1 | Q27: 1 | S27: 0 | Y27: 0 | AA27: 0 | AF27: 0 | AO27: 0 | AQ27: 0 | AW27: 0 | AY27: 0 | BA27: 0 | BB27: 0 | BG27: 0 | BM27: 0 | BN27: 0 | BP27: 0 | BR27: 0 | BT27: 1 | BU27: + | BY27: 0 | CA27: 0 | CF27: 0 | CI27: 0 | CK27: 0 | CR27: 0 | CT27: 0 | CV27: 0 | CX27: 0 | DE27: 3 | DF27: 1 | DG27: 2 | DT27: 0 | EC27: 0 | EL27: 0 | EO27: 0 | ES27: 1 | EW27: + | EX27: 0 | FA27: 2 | FB27: 0 | FJ27: 0 | FR27: 1 | FY27: + | GE27: 1 | GH27: + | GK27: 0 | GQ27: 0 | HG27: 0 | HJ27: 1 | HN27: +
A28: 81142670 | B28: I am a carer/partner/family member or friend | C28: 70-79 | D28: 11-20 years ago | E28: Mobility, balance and posture | F28: improved speech | G28: Bladder control | H28: These would make him more independent and enable him to socialise better | K28: 3 | L28: 0 | P28: 0 | S28: 2 | W28: 1 | X28: 1 | Y28: 0 | AA28: 0 | AF28: 0 | AO28: 0 | AQ28: 0 | AW28: 0 | AY28: 0 | BA28: 0 | BB28: 0 | BG28: 0 | BM28: 0 | BN28: 0 | BP28: 0 | BR28: 0 | BT28: 1 | BU28: 2 | BY28: 0 | CA28: 0 | CF28: 0 | CI28: 0 | CK28: 1 | CL28: 2 | CR28: 0 | CT28: 0 | CV28: 0 | CX28: 0 | DE28: 3 | DF28: 1 | DG28: 1 | DT28: 0 | EC28: 0 | EL28: 0 | EO28: 0 | ES28: 0 | EX28: 1 | EY28: + | FA28: 2 | FB28: 1 | FC28: + | FJ28: 0 | FR28: 0 | GE28: 2 | GF28: + | GH28: + | GK28: 0 | GQ28: 0 | HG28: 0 | HJ28: 0
A29: 81148467 | B29: I am a carer/partner/family member or friend | C29: 70-79 | D29: 11-20 years ago | E29: Increased self-confidence and independence. | F29: More enthusiastic/ less gloomy outlook. | G29: Not feeling tired all the time. | H29: I think these aspects have had a big effect on our lives - not wanting to go places; giving up activities due to lack of self-confidence; increasingly not wanting to go places by oneself, even to familiar places or to meet friends. The constant feeling of tiredness and just falling asleep also hampers activities etc. and just not feeling it's worth getting up to start the day. Not being able to drive has had a negative impact too, and now being increasingly less enthusiastic to cycle is having a bearing on keeping active and getting some exercise, which we both think is important to general well-being, as well as to Parkinson's symptoms. | K29: 0 | L29: 0 | P29: 0 | S29: 0 | Y29: 0 | AA29: 0 | AF29: 0 | AO29: 2 | AQ29: 2 | AR29: 2 | AS29: + | AW29: 0 | AY29: 0 | BA29: 2 | BB29: 0 | BG29: 1 | BK29: 3 | BM29: 1 | BN29: 1 | BO29: + | BP29: 0 | BR29: 0 | BT29: 0 | BY29: 0 | CA29: 0 | CF29: 0 | CI29: 0 | CK29: 0 | CR29: 0 | CT29: 0 | CV29: 0 | CX29: 0 | DC29: + | DE29: 3 | DF29: 1 | DG29: + | DT29: 1 | DU29: + | EC29: 0 | EL29: 1 | EN29: + | EO29: 0 | ES29: 0 | EX29: 0 | FA29: 6 | FB29: 2 | FC29: 1 | FE29: + | FJ29: 1 | FQ29: 1 | FR29: 0 | GE29: 4 | GF29: + | GG29: + | GI29: + | GJ29: + | GK29: 0 | GQ29: 2 | GR29: + | GU29: + | HG29: 1 | HH29: + | HJ29: 0
A30: 81168332 | B30: I am a carer/partner/family member or friend | C30: 70-79 | D30: 11-20 years ago | E30: Improve physiotherapy | F30: Minimise side effects of medicines | G30: Targeted activities they can take part in | I30: + | K30: 0 | L30: 0 | P30: 0 | S30: 0 | Y30: 0 | AA30: 0 | AF30: 0 | AO30: 0 | AQ30: 0 | AW30: 0 | AY30: 0 | BA30: 0 | BB30: 0 | BG30: 0 | BM30: 0 | BN30: 0 | BP30: 0 | BR30: 0 | BT30: 0 | BY30: 0 | CA30: 0 | CF30: 0 | CI30: 0 | CK30: 0 | CR30: 0 | CT30: 0 | CV30: 0 | CX30: 0 | DE30: 1 | DF30: 1 | DG30: + | DT30: 0 | EC30: 0 | EL30: 0 | EO30: 0 | ES30: 0 | EX30: 0 | FA30: 0 | FB30: 0 | FJ30: 0 | FR30: 0 | GE30: 0 | GK30: 0 | GQ30: 0 | HG30: 0 | HJ30: 2 | HK30: 1 | HM30: 2
A31: 81349502 | B31: I am a carer/partner/family member or friend | C31: 70-79 | D31: 11-20 years ago | E31: Mobility | F31: Confusion | G31: Incontinence | H31: My husband had scoliosis now and his mobility is very poor. He is quite confused at times. He is incontinent and when he goes to the toilet has difficulty "aiming" | K31: 0 | L31: 0 | P31: 0 | S31: 0 | Y31: 0 | AA31: 0 | AF31: 1 | AH31: 2 | AO31: 0 | AQ31: 0 | AW31: 0 | AY31: 0 | BA31: 0 | BB31: 0 | BG31: 0 | BM31: 0 | BN31: 0 | BP31: 0 | BR31: 0 | BT31: 0 | BY31: 0 | CA31: 0 | CF31: 0 | CI31: 0 | CK31: 2 | CL31: + | CM31: 3 | CR31: 0 | CT31: 0 | CV31: 0 | CX31: 0 | DE31: 2 | DF31: 1 | DG31: 1 | DT31: 0 | EC31: 0 | EL31: 0 | EO31: 0 | ES31: 0 | EX31: 0 | FA31: 0 | FB31: 0 | FJ31: 0 | FR31: 0 | GE31: 0 | GK31: 0 | GQ31: 0 | HG31: 0 | HJ31: 0

Sheet CG 6-10 YR
